Workbook

Sheet Калькулятор
C3: Тепловой расчет конвекторов внутрипольных Royal Thermo ATRIUM
C6: 1. Укажите Тподачи, Тобрат, Тпом
C7: Т подачи ͦС | D7: Т обрат, ͦС | E7: Т пом, ͦС | F7: ΔT
C8: 95 | D8: 85 | E8: 20 | F8: =IF(OR(ISBLANK(C8),ISBLANK(D8),ISBLANK(E8)),0,ROUND((C8+D8)/2-E8,1)) -> 70.00
C9: 2. Укажите диапазон мощности
C10: От, Вт | E10: До, Вт
C12: 3. Выберите диапазон длин от мин. до макс.
C13: Длина от, мм | E13: Длина до, мм
C14: 800 | E14: 3000
C15: 4. Выберите глубину
C17: 5. Выберите ширину конвектора
C19: 6. Выберите тип решетки*
C20: *DG - дизайн-решетка, LG - линейная решетка, RG - рулонная решетка, NG - без решетки
C22: 7. Выберите цвет решетки*
C23: *NA - натуральный алюминий, BL - черный, AU - золото, LB - светлая бронза, DB - темная бронза, RAL - покраска в цвет RAL
C25: 8. Выберите тип рамки
C27: *Расчет тепловой мощности неуказанных длин конвекторов (с шагом 100мм) производится пропорционально
D28: =D29&D31 -> 75200 | E28: 75250 | F28: 75300 | G28: 75400 | H28: 90200 | I28: 90250 | J28: 90300 | K28: 90400 | L28: 110200 | M28: 110250 | N28: 110300 | O28: 110400 | P28: 150200 | Q28: 150250 | R28: 150300 | S28: 150400 | T28: 190200 | U28: 190250 | V28: 190300 | W28: 190400
D29: 75 | E29: 75 | F29: 75 | G29: 75 | H29: 90 | I29: 90 | J29: 90 | K29: 90 | L29: 110 | M29: 110 | N29: 110 | O29: 110 | P29: 150 | Q29: 150 | R29: 150 | S29: 150 | T29: 190 | U29: 190 | V29: 190 | W29: 190
C30: Ширина/ Длина мм | D30: Глубина 75мм | H30: Глубина 90мм | L30: Глубина 110мм | P30: Глубина 150мм | T30: Глубина 190мм
D31: 200 | E31: 250 | F31: 300 | G31: 400 | H31: 200 | I31: 250 | J31: 300 | K31: 400 | L31: 200 | M31: 250 | N31: 300 | O31: 400 | P31: 200 | Q31: 250 | R31: 300 | S31: 400 | T31: 200 | U31: 250 | V31: 300 | W31: 400
C32: 800 | D32: =IF($F$8<>70,ROUND(справочно!C6*($F$8/70)^справочно!$Y$2,0),ROUND(справочно!C6,0)) -> 175 | E32: =IF($F$8<>70,ROUND(справочно!D6*($F$8/70)^справочно!$Y$2,0),ROUND(справочно!D6,0)) -> 216 | F32: =IF($F$8<>70,ROUND(справочно!E6*($F$8/70)^справочно!$Y$2,0),ROUND(справочно!E6,0)) -> 259 | G32: =IF($F$8<>70,ROUND(справочно!F6*($F$8/70)^справочно!$Y$2,0),ROUND(справочно!F6,0)) -> 351 | H32: =IF($F$8<>70,ROUND(справочно!G6*($F$8/70)^справочно!$Y$2,0),ROUND(справочно!G6,0)) -> 222 | I32: =IF($F$8<>70,ROUND(справочно!H6*($F$8/70)^справочно!$Y$2,0),ROUND(справочно!H6,0)) -> 290 | J32: =IF($F$8<>70,ROUND(справочно!I6*($F$8/70)^справочно!$Y$2,0),ROUND(справочно!I6,0)) -> 384 | K32: =IF($F$8<>70,ROUND(справочно!J6*($F$8/70)^справочно!$Y$2,0),ROUND(справочно!J6,0)) -> 516 | L32: =IF($F$8<>70,ROUND(справочно!K6*($F$8/70)^справочно!$Y$2,0),ROUND(справочно!K6,0)) -> 279 | M32: =IF($F$8<>70,ROUND(справочно!L6*($F$8/70)^справочно!$Y$2,0),ROUND(справочно!L6,0)) -> 356 | N32: =IF($F$8<>70,ROUND(справочно!M6*($F$8/70)^справочно!$Y$2,0),ROUND(справочно!M6,0)) -> 470 | O32: =IF($F$8<>70,ROUND(справочно!N6*($F$8/70)^справочно!$Y$2,0),ROUND(справочно!N6,0)) -> 659 | P32: =IF($F$8<>70,ROUND(справочно!O6*($F$8/70)^справочно!$Y$2,0),ROUND(справочно!O6,0)) -> 392 | Q32: =IF($F$8<>70,ROUND(справочно!P6*($F$8/70)^справочно!$Y$2,0),ROUND(справочно!P6,0)) -> 503 | R32: =IF($F$8<>70,ROUND(справочно!Q6*($F$8/70)^справочно!$Y$2,0),ROUND(справочно!Q6,0)) -> 630 | S32: =IF($F$8<>70,ROUND(справочно!R6*($F$8/70)^справочно!$Y$2,0),ROUND(справочно!R6,0)) -> 850 | T32: =IF($F$8<>70,ROUND(справочно!S6*($F$8/70)^справочно!$Y$2,0),ROUND(справочно!S6,0)) -> 446 | U32: =IF($F$8<>70,ROUND(справочно!T6*($F$8/70)^справочно!$Y$2,0),ROUND(справочно!T6,0)) -> 519 | V32: =IF($F$8<>70,ROUND(справочно!U6*($F$8/70)^справочно!$Y$2,0),ROUND(справочно!U6,0)) -> 817 | W32: =IF($F$8<>70,ROUND(справочно!V6*($F$8/70)^справочно!$Y$2,0),ROUND(справочно!V6,0)) -> 895
C33: 1000 | D33: =IF($F$8<>70,ROUND(справочно!C7*($F$8/70)^справочно!$Y$2,0),ROUND(справочно!C7,0)) -> 238 | E33: =IF($F$8<>70,ROUND(справочно!D7*($F$8/70)^справочно!$Y$2,0),ROUND(справочно!D7,0)) -> 293 | F33: =IF($F$8<>70,ROUND(справочно!E7*($F$8/70)^справочно!$Y$2,0),ROUND(справочно!E7,0)) -> 351 | G33: =IF($F$8<>70,ROUND(справочно!F7*($F$8/70)^справочно!$Y$2,0),ROUND(справочно!F7,0)) -> 476 | H33: =IF($F$8<>70,ROUND(справочно!G7*($F$8/70)^справочно!$Y$2,0),ROUND(справочно!G7,0)) -> 306 | I33: =IF($F$8<>70,ROUND(справочно!H7*($F$8/70)^справочно!$Y$2,0),ROUND(справочно!H7,0)) -> 388 | J33: =IF($F$8<>70,ROUND(справочно!I7*($F$8/70)^справочно!$Y$2,0),ROUND(справочно!I7,0)) -> 494 | K33: =IF($F$8<>70,ROUND(справочно!J7*($F$8/70)^справочно!$Y$2,0),ROUND(справочно!J7,0)) -> 671 | L33: =IF($F$8<>70,ROUND(справочно!K7*($F$8/70)^справочно!$Y$2,0),ROUND(справочно!K7,0)) -> 384 | M33: =IF($F$8<>70,ROUND(справочно!L7*($F$8/70)^справочно!$Y$2,0),ROUND(справочно!L7,0)) -> 475 | N33: =IF($F$8<>70,ROUND(справочно!M7*($F$8/70)^справочно!$Y$2,0),ROUND(справочно!M7,0)) -> 605 | O33: =IF($F$8<>70,ROUND(справочно!N7*($F$8/70)^справочно!$Y$2,0),ROUND(справочно!N7,0)) -> 857 | P33: =IF($F$8<>70,ROUND(справочно!O7*($F$8/70)^справочно!$Y$2,0),ROUND(справочно!O7,0)) -> 536 | Q33: =IF($F$8<>70,ROUND(справочно!P7*($F$8/70)^справочно!$Y$2,0),ROUND(справочно!P7,0)) -> 671 | R33: =IF($F$8<>70,ROUND(справочно!Q7*($F$8/70)^справочно!$Y$2,0),ROUND(справочно!Q7,0)) -> 812 | S33: =IF($F$8<>70,ROUND(справочно!R7*($F$8/70)^справочно!$Y$2,0),ROUND(справочно!R7,0)) -> 1,104 | T33: =IF($F$8<>70,ROUND(справочно!S7*($F$8/70)^справочно!$Y$2,0),ROUND(справочно!S7,0)) -> 616 | U33: =IF($F$8<>70,ROUND(справочно!T7*($F$8/70)^справочно!$Y$2,0),ROUND(справочно!T7,0)) -> 692 | V33: =IF($F$8<>70,ROUND(справочно!U7*($F$8/70)^справочно!$Y$2,0),ROUND(справочно!U7,0)) -> 1,052 | W33: =IF($F$8<>70,ROUND(справочно!V7*($F$8/70)^справочно!$Y$2,0),ROUND(справочно!V7,0)) -> 1,164
C34: 1200 | D34: =IF($F$8<>70,ROUND(справочно!C8*($F$8/70)^справочно!$Y$2,0),ROUND(справочно!C8,0)) -> 299 | E34: =IF($F$8<>70,ROUND(справочно!D8*($F$8/70)^справочно!$Y$2,0),ROUND(справочно!D8,0)) -> 370 | F34: =IF($F$8<>70,ROUND(справочно!E8*($F$8/70)^справочно!$Y$2,0),ROUND(справочно!E8,0)) -> 444 | G34: =IF($F$8<>70,ROUND(справочно!F8*($F$8/70)^справочно!$Y$2,0),ROUND(справочно!F8,0)) -> 603 | H34: =IF($F$8<>70,ROUND(справочно!G8*($F$8/70)^справочно!$Y$2,0),ROUND(справочно!G8,0)) -> 391 | I34: =IF($F$8<>70,ROUND(справочно!H8*($F$8/70)^справочно!$Y$2,0),ROUND(справочно!H8,0)) -> 485 | J34: =IF($F$8<>70,ROUND(справочно!I8*($F$8/70)^справочно!$Y$2,0),ROUND(справочно!I8,0)) -> 605 | K34: =IF($F$8<>70,ROUND(справочно!J8*($F$8/70)^справочно!$Y$2,0),ROUND(справочно!J8,0)) -> 826 | L34: =IF($F$8<>70,ROUND(справочно!K8*($F$8/70)^справочно!$Y$2,0),ROUND(справочно!K8,0)) -> 490 | M34: =IF($F$8<>70,ROUND(справочно!L8*($F$8/70)^справочно!$Y$2,0),ROUND(справочно!L8,0)) -> 595 | N34: =IF($F$8<>70,ROUND(справочно!M8*($F$8/70)^справочно!$Y$2,0),ROUND(справочно!M8,0)) -> 741 | O34: =IF($F$8<>70,ROUND(справочно!N8*($F$8/70)^справочно!$Y$2,0),ROUND(справочно!N8,0)) -> 1,054 | P34: =IF($F$8<>70,ROUND(справочно!O8*($F$8/70)^справочно!$Y$2,0),ROUND(справочно!O8,0)) -> 686 | Q34: =IF($F$8<>70,ROUND(справочно!P8*($F$8/70)^справочно!$Y$2,0),ROUND(справочно!P8,0)) -> 839 | R34: =IF($F$8<>70,ROUND(справочно!Q8*($F$8/70)^справочно!$Y$2,0),ROUND(справочно!Q8,0)) -> 993 | S34: =IF($F$8<>70,ROUND(справочно!R8*($F$8/70)^справочно!$Y$2,0),ROUND(справочно!R8,0)) -> 1,360 | T34: =IF($F$8<>70,ROUND(справочно!S8*($F$8/70)^справочно!$Y$2,0),ROUND(справочно!S8,0)) -> 784 | U34: =IF($F$8<>70,ROUND(справочно!T8*($F$8/70)^справочно!$Y$2,0),ROUND(справочно!T8,0)) -> 866 | V34: =IF($F$8<>70,ROUND(справочно!U8*($F$8/70)^справочно!$Y$2,0),ROUND(справочно!U8,0)) -> 1,287 | W34: =IF($F$8<>70,ROUND(справочно!V8*($F$8/70)^справочно!$Y$2,0),ROUND(справочно!V8,0)) -> 1,433
C35: 1400 | D35: =IF($F$8<>70,ROUND(справочно!C9*($F$8/70)^справочно!$Y$2,0),ROUND(справочно!C9,0)) -> 362 | E35: =IF($F$8<>70,ROUND(справочно!D9*($F$8/70)^справочно!$Y$2,0),ROUND(справочно!D9,0)) -> 448 | F35: =IF($F$8<>70,ROUND(справочно!E9*($F$8/70)^справочно!$Y$2,0),ROUND(справочно!E9,0)) -> 537 | G35: =IF($F$8<>70,ROUND(справочно!F9*($F$8/70)^справочно!$Y$2,0),ROUND(справочно!F9,0)) -> 728 | H35: =IF($F$8<>70,ROUND(справочно!G9*($F$8/70)^справочно!$Y$2,0),ROUND(справочно!G9,0)) -> 474 | I35: =IF($F$8<>70,ROUND(справочно!H9*($F$8/70)^справочно!$Y$2,0),ROUND(справочно!H9,0)) -> 580 | J35: =IF($F$8<>70,ROUND(справочно!I9*($F$8/70)^справочно!$Y$2,0),ROUND(справочно!I9,0)) -> 718 | K35: =IF($F$8<>70,ROUND(справочно!J9*($F$8/70)^справочно!$Y$2,0),ROUND(справочно!J9,0)) -> 977 | L35: =IF($F$8<>70,ROUND(справочно!K9*($F$8/70)^справочно!$Y$2,0),ROUND(справочно!K9,0)) -> 595 | M35: =IF($F$8<>70,ROUND(справочно!L9*($F$8/70)^справочно!$Y$2,0),ROUND(справочно!L9,0)) -> 714 | N35: =IF($F$8<>70,ROUND(справочно!M9*($F$8/70)^справочно!$Y$2,0),ROUND(справочно!M9,0)) -> 877 | O35: =IF($F$8<>70,ROUND(справочно!N9*($F$8/70)^справочно!$Y$2,0),ROUND(справочно!N9,0)) -> 1,251 | P35: =IF($F$8<>70,ROUND(справочно!O9*($F$8/70)^справочно!$Y$2,0),ROUND(справочно!O9,0)) -> 835 | Q35: =IF($F$8<>70,ROUND(справочно!P9*($F$8/70)^справочно!$Y$2,0),ROUND(справочно!P9,0)) -> 1,008 | R35: =IF($F$8<>70,ROUND(справочно!Q9*($F$8/70)^справочно!$Y$2,0),ROUND(справочно!Q9,0)) -> 1,176 | S35: =IF($F$8<>70,ROUND(справочно!R9*($F$8/70)^справочно!$Y$2,0),ROUND(справочно!R9,0)) -> 1,615 | T35: =IF($F$8<>70,ROUND(справочно!S9*($F$8/70)^справочно!$Y$2,0),ROUND(справочно!S9,0)) -> 953 | U35: =IF($F$8<>70,ROUND(справочно!T9*($F$8/70)^справочно!$Y$2,0),ROUND(справочно!T9,0)) -> 1,038 | V35: =IF($F$8<>70,ROUND(справочно!U9*($F$8/70)^справочно!$Y$2,0),ROUND(справочно!U9,0)) -> 1,521 | W35: =IF($F$8<>70,ROUND(справочно!V9*($F$8/70)^справочно!$Y$2,0),ROUND(справочно!V9,0)) -> 1,700
C36: 1600 | D36: =IF($F$8<>70,ROUND(справочно!C10*($F$8/70)^справочно!$Y$2,0),ROUND(справочно!C10,0)) -> 425 | E36: =IF($F$8<>70,ROUND(справочно!D10*($F$8/70)^справочно!$Y$2,0),ROUND(справочно!D10,0)) -> 525 | F36: =IF($F$8<>70,ROUND(справочно!E10*($F$8/70)^справочно!$Y$2,0),ROUND(справочно!E10,0)) -> 629 | G36: =IF($F$8<>70,ROUND(справочно!F10*($F$8/70)^справочно!$Y$2,0),ROUND(справочно!F10,0)) -> 854 | H36: =IF($F$8<>70,ROUND(справочно!G10*($F$8/70)^справочно!$Y$2,0),ROUND(справочно!G10,0)) -> 559 | I36: =IF($F$8<>70,ROUND(справочно!H10*($F$8/70)^справочно!$Y$2,0),ROUND(справочно!H10,0)) -> 680 | J36: =IF($F$8<>70,ROUND(справочно!I10*($F$8/70)^справочно!$Y$2,0),ROUND(справочно!I10,0)) -> 826 | K36: =IF($F$8<>70,ROUND(справочно!J10*($F$8/70)^справочно!$Y$2,0),ROUND(справочно!J10,0)) -> 1,135 | L36: =IF($F$8<>70,ROUND(справочно!K10*($F$8/70)^справочно!$Y$2,0),ROUND(справочно!K10,0)) -> 701 | M36: =IF($F$8<>70,ROUND(справочно!L10*($F$8/70)^справочно!$Y$2,0),ROUND(справочно!L10,0)) -> 834 | N36: =IF($F$8<>70,ROUND(справочно!M10*($F$8/70)^справочно!$Y$2,0),ROUND(справочно!M10,0)) -> 1,012 | O36: =IF($F$8<>70,ROUND(справочно!N10*($F$8/70)^справочно!$Y$2,0),ROUND(справочно!N10,0)) -> 1,449 | P36: =IF($F$8<>70,ROUND(справочно!O10*($F$8/70)^справочно!$Y$2,0),ROUND(справочно!O10,0)) -> 982 | Q36: =IF($F$8<>70,ROUND(справочно!P10*($F$8/70)^справочно!$Y$2,0),ROUND(справочно!P10,0)) -> 1,176 | R36: =IF($F$8<>70,ROUND(справочно!Q10*($F$8/70)^справочно!$Y$2,0),ROUND(справочно!Q10,0)) -> 1,356 | S36: =IF($F$8<>70,ROUND(справочно!R10*($F$8/70)^справочно!$Y$2,0),ROUND(справочно!R10,0)) -> 1,870 | T36: =IF($F$8<>70,ROUND(справочно!S10*($F$8/70)^справочно!$Y$2,0),ROUND(справочно!S10,0)) -> 1,124 | U36: =IF($F$8<>70,ROUND(справочно!T10*($F$8/70)^справочно!$Y$2,0),ROUND(справочно!T10,0)) -> 1,212 | V36: =IF($F$8<>70,ROUND(справочно!U10*($F$8/70)^справочно!$Y$2,0),ROUND(справочно!U10,0)) -> 1,758 | W36: =IF($F$8<>70,ROUND(справочно!V10*($F$8/70)^справочно!$Y$2,0),ROUND(справочно!V10,0)) -> 1,969
C37: 1800 | D37: =IF($F$8<>70,ROUND(справочно!C11*($F$8/70)^справочно!$Y$2,0),ROUND(справочно!C11,0)) -> 487 | E37: =IF($F$8<>70,ROUND(справочно!D11*($F$8/70)^справочно!$Y$2,0),ROUND(справочно!D11,0)) -> 602 | F37: =IF($F$8<>70,ROUND(справочно!E11*($F$8/70)^справочно!$Y$2,0),ROUND(справочно!E11,0)) -> 723 | G37: =IF($F$8<>70,ROUND(справочно!F11*($F$8/70)^справочно!$Y$2,0),ROUND(справочно!F11,0)) -> 980 | H37: =IF($F$8<>70,ROUND(справочно!G11*($F$8/70)^справочно!$Y$2,0),ROUND(справочно!G11,0)) -> 642 | I37: =IF($F$8<>70,ROUND(справочно!H11*($F$8/70)^справочно!$Y$2,0),ROUND(справочно!H11,0)) -> 778 | J37: =IF($F$8<>70,ROUND(справочно!I11*($F$8/70)^справочно!$Y$2,0),ROUND(справочно!I11,0)) -> 936 | K37: =IF($F$8<>70,ROUND(справочно!J11*($F$8/70)^справочно!$Y$2,0),ROUND(справочно!J11,0)) -> 1,290 | L37: =IF($F$8<>70,ROUND(справочно!K11*($F$8/70)^справочно!$Y$2,0),ROUND(справочно!K11,0)) -> 806 | M37: =IF($F$8<>70,ROUND(справочно!L11*($F$8/70)^справочно!$Y$2,0),ROUND(справочно!L11,0)) -> 954 | N37: =IF($F$8<>70,ROUND(справочно!M11*($F$8/70)^справочно!$Y$2,0),ROUND(справочно!M11,0)) -> 1,147 | O37: =IF($F$8<>70,ROUND(справочно!N11*($F$8/70)^справочно!$Y$2,0),ROUND(справочно!N11,0)) -> 1,647 | P37: =IF($F$8<>70,ROUND(справочно!O11*($F$8/70)^справочно!$Y$2,0),ROUND(справочно!O11,0)) -> 1,130 | Q37: =IF($F$8<>70,ROUND(справочно!P11*($F$8/70)^справочно!$Y$2,0),ROUND(справочно!P11,0)) -> 1,343 | R37: =IF($F$8<>70,ROUND(справочно!Q11*($F$8/70)^справочно!$Y$2,0),ROUND(справочно!Q11,0)) -> 1,539 | S37: =IF($F$8<>70,ROUND(справочно!R11*($F$8/70)^справочно!$Y$2,0),ROUND(справочно!R11,0)) -> 2,124 | T37: =IF($F$8<>70,ROUND(справочно!S11*($F$8/70)^справочно!$Y$2,0),ROUND(справочно!S11,0)) -> 1,291 | U37: =IF($F$8<>70,ROUND(справочно!T11*($F$8/70)^справочно!$Y$2,0),ROUND(справочно!T11,0)) -> 1,387 | V37: =IF($F$8<>70,ROUND(справочно!U11*($F$8/70)^справочно!$Y$2,0),ROUND(справочно!U11,0)) -> 1,994 | W37: =IF($F$8<>70,ROUND(справочно!V11*($F$8/70)^справочно!$Y$2,0),ROUND(справочно!V11,0)) -> 2,237
C38: 2000 | D38: =IF($F$8<>70,ROUND(справочно!C12*($F$8/70)^справочно!$Y$2,0),ROUND(справочно!C12,0)) -> 550 | E38: =IF($F$8<>70,ROUND(справочно!D12*($F$8/70)^справочно!$Y$2,0),ROUND(справочно!D12,0)) -> 680 | F38: =IF($F$8<>70,ROUND(справочно!E12*($F$8/70)^справочно!$Y$2,0),ROUND(справочно!E12,0)) -> 815 | G38: =IF($F$8<>70,ROUND(справочно!F12*($F$8/70)^справочно!$Y$2,0),ROUND(справочно!F12,0)) -> 1,106 | H38: =IF($F$8<>70,ROUND(справочно!G12*($F$8/70)^справочно!$Y$2,0),ROUND(справочно!G12,0)) -> 726 | I38: =IF($F$8<>70,ROUND(справочно!H12*($F$8/70)^справочно!$Y$2,0),ROUND(справочно!H12,0)) -> 875 | J38: =IF($F$8<>70,ROUND(справочно!I12*($F$8/70)^справочно!$Y$2,0),ROUND(справочно!I12,0)) -> 1,047 | K38: =IF($F$8<>70,ROUND(справочно!J12*($F$8/70)^справочно!$Y$2,0),ROUND(справочно!J12,0)) -> 1,445 | L38: =IF($F$8<>70,ROUND(справочно!K12*($F$8/70)^справочно!$Y$2,0),ROUND(справочно!K12,0)) -> 912 | M38: =IF($F$8<>70,ROUND(справочно!L12*($F$8/70)^справочно!$Y$2,0),ROUND(справочно!L12,0)) -> 1,073 | N38: =IF($F$8<>70,ROUND(справочно!M12*($F$8/70)^справочно!$Y$2,0),ROUND(справочно!M12,0)) -> 1,284 | O38: =IF($F$8<>70,ROUND(справочно!N12*($F$8/70)^справочно!$Y$2,0),ROUND(справочно!N12,0)) -> 1,845 | P38: =IF($F$8<>70,ROUND(справочно!O12*($F$8/70)^справочно!$Y$2,0),ROUND(справочно!O12,0)) -> 1,278 | Q38: =IF($F$8<>70,ROUND(справочно!P12*($F$8/70)^справочно!$Y$2,0),ROUND(справочно!P12,0)) -> 1,513 | R38: =IF($F$8<>70,ROUND(справочно!Q12*($F$8/70)^справочно!$Y$2,0),ROUND(справочно!Q12,0)) -> 1,719 | S38: =IF($F$8<>70,ROUND(справочно!R12*($F$8/70)^справочно!$Y$2,0),ROUND(справочно!R12,0)) -> 2,378 | T38: =IF($F$8<>70,ROUND(справочно!S12*($F$8/70)^справочно!$Y$2,0),ROUND(справочно!S12,0)) -> 1,461 | U38: =IF($F$8<>70,ROUND(справочно!T12*($F$8/70)^справочно!$Y$2,0),ROUND(справочно!T12,0)) -> 1,561 | V38: =IF($F$8<>70,ROUND(справочно!U12*($F$8/70)^справочно!$Y$2,0),ROUND(справочно!U12,0)) -> 2,228 | W38: =IF($F$8<>70,ROUND(справочно!V12*($F$8/70)^справочно!$Y$2,0),ROUND(справочно!V12,0)) -> 2,506
C39: 2200 | D39: =IF($F$8<>70,ROUND(справочно!C13*($F$8/70)^справочно!$Y$2,0),ROUND(справочно!C13,0)) -> 613 | E39: =IF($F$8<>70,ROUND(справочно!D13*($F$8/70)^справочно!$Y$2,0),ROUND(справочно!D13,0)) -> 757 | F39: =IF($F$8<>70,ROUND(справочно!E13*($F$8/70)^справочно!$Y$2,0),ROUND(справочно!E13,0)) -> 908 | G39: =IF($F$8<>70,ROUND(справочно!F13*($F$8/70)^справочно!$Y$2,0),ROUND(справочно!F13,0)) -> 1,232 | H39: =IF($F$8<>70,ROUND(справочно!G13*($F$8/70)^справочно!$Y$2,0),ROUND(справочно!G13,0)) -> 811 | I39: =IF($F$8<>70,ROUND(справочно!H13*($F$8/70)^справочно!$Y$2,0),ROUND(справочно!H13,0)) -> 971 | J39: =IF($F$8<>70,ROUND(справочно!I13*($F$8/70)^справочно!$Y$2,0),ROUND(справочно!I13,0)) -> 1,157 | K39: =IF($F$8<>70,ROUND(справочно!J13*($F$8/70)^справочно!$Y$2,0),ROUND(справочно!J13,0)) -> 1,599 | L39: =IF($F$8<>70,ROUND(справочно!K13*($F$8/70)^справочно!$Y$2,0),ROUND(справочно!K13,0)) -> 1,018 | M39: =IF($F$8<>70,ROUND(справочно!L13*($F$8/70)^справочно!$Y$2,0),ROUND(справочно!L13,0)) -> 1,191 | N39: =IF($F$8<>70,ROUND(справочно!M13*($F$8/70)^справочно!$Y$2,0),ROUND(справочно!M13,0)) -> 1,419 | O39: =IF($F$8<>70,ROUND(справочно!N13*($F$8/70)^справочно!$Y$2,0),ROUND(справочно!N13,0)) -> 2,042 | P39: =IF($F$8<>70,ROUND(справочно!O13*($F$8/70)^справочно!$Y$2,0),ROUND(справочно!O13,0)) -> 1,426 | Q39: =IF($F$8<>70,ROUND(справочно!P13*($F$8/70)^справочно!$Y$2,0),ROUND(справочно!P13,0)) -> 1,680 | R39: =IF($F$8<>70,ROUND(справочно!Q13*($F$8/70)^справочно!$Y$2,0),ROUND(справочно!Q13,0)) -> 1,902 | S39: =IF($F$8<>70,ROUND(справочно!R13*($F$8/70)^справочно!$Y$2,0),ROUND(справочно!R13,0)) -> 2,635 | T39: =IF($F$8<>70,ROUND(справочно!S13*($F$8/70)^справочно!$Y$2,0),ROUND(справочно!S13,0)) -> 1,631 | U39: =IF($F$8<>70,ROUND(справочно!T13*($F$8/70)^справочно!$Y$2,0),ROUND(справочно!T13,0)) -> 1,734 | V39: =IF($F$8<>70,ROUND(справочно!U13*($F$8/70)^справочно!$Y$2,0),ROUND(справочно!U13,0)) -> 2,463 | W39: =IF($F$8<>70,ROUND(справочно!V13*($F$8/70)^справочно!$Y$2,0),ROUND(справочно!V13,0)) -> 2,774
C40: 2400 | D40: =IF($F$8<>70,ROUND(справочно!C14*($F$8/70)^справочно!$Y$2,0),ROUND(справочно!C14,0)) -> 678 | E40: =IF($F$8<>70,ROUND(справочно!D14*($F$8/70)^справочно!$Y$2,0),ROUND(справочно!D14,0)) -> 836 | F40: =IF($F$8<>70,ROUND(справочно!E14*($F$8/70)^справочно!$Y$2,0),ROUND(справочно!E14,0)) -> 1,003 | G40: =IF($F$8<>70,ROUND(справочно!F14*($F$8/70)^справочно!$Y$2,0),ROUND(справочно!F14,0)) -> 1,362 | H40: =IF($F$8<>70,ROUND(справочно!G14*($F$8/70)^справочно!$Y$2,0),ROUND(справочно!G14,0)) -> 894 | I40: =IF($F$8<>70,ROUND(справочно!H14*($F$8/70)^справочно!$Y$2,0),ROUND(справочно!H14,0)) -> 1,091 | J40: =IF($F$8<>70,ROUND(справочно!I14*($F$8/70)^справочно!$Y$2,0),ROUND(справочно!I14,0)) -> 1,268 | K40: =IF($F$8<>70,ROUND(справочно!J14*($F$8/70)^справочно!$Y$2,0),ROUND(справочно!J14,0)) -> 1,755 | L40: =IF($F$8<>70,ROUND(справочно!K14*($F$8/70)^справочно!$Y$2,0),ROUND(справочно!K14,0)) -> 1,123 | M40: =IF($F$8<>70,ROUND(справочно!L14*($F$8/70)^справочно!$Y$2,0),ROUND(справочно!L14,0)) -> 1,338 | N40: =IF($F$8<>70,ROUND(справочно!M14*($F$8/70)^справочно!$Y$2,0),ROUND(справочно!M14,0)) -> 1,554 | O40: =IF($F$8<>70,ROUND(справочно!N14*($F$8/70)^справочно!$Y$2,0),ROUND(справочно!N14,0)) -> 2,239 | P40: =IF($F$8<>70,ROUND(справочно!O14*($F$8/70)^справочно!$Y$2,0),ROUND(справочно!O14,0)) -> 1,573 | Q40: =IF($F$8<>70,ROUND(справочно!P14*($F$8/70)^справочно!$Y$2,0),ROUND(справочно!P14,0)) -> 1,887 | R40: =IF($F$8<>70,ROUND(справочно!Q14*($F$8/70)^справочно!$Y$2,0),ROUND(справочно!Q14,0)) -> 2,083 | S40: =IF($F$8<>70,ROUND(справочно!R14*($F$8/70)^справочно!$Y$2,0),ROUND(справочно!R14,0)) -> 2,889 | T40: =IF($F$8<>70,ROUND(справочно!S14*($F$8/70)^справочно!$Y$2,0),ROUND(справочно!S14,0)) -> 1,799 | U40: =IF($F$8<>70,ROUND(справочно!T14*($F$8/70)^справочно!$Y$2,0),ROUND(справочно!T14,0)) -> 1,947 | V40: =IF($F$8<>70,ROUND(справочно!U14*($F$8/70)^справочно!$Y$2,0),ROUND(справочно!U14,0)) -> 2,699 | W40: =IF($F$8<>70,ROUND(справочно!V14*($F$8/70)^справочно!$Y$2,0),ROUND(справочно!V14,0)) -> 3,042
C41: 2600 | D41: =IF($F$8<>70,ROUND(справочно!C15*($F$8/70)^справочно!$Y$2,0),ROUND(справочно!C15,0)) -> 740 | E41: =IF($F$8<>70,ROUND(справочно!D15*($F$8/70)^справочно!$Y$2,0),ROUND(справочно!D15,0)) -> 914 | F41: =IF($F$8<>70,ROUND(справочно!E15*($F$8/70)^справочно!$Y$2,0),ROUND(справочно!E15,0)) -> 1,097 | G41: =IF($F$8<>70,ROUND(справочно!F15*($F$8/70)^справочно!$Y$2,0),ROUND(справочно!F15,0)) -> 1,487 | H41: =IF($F$8<>70,ROUND(справочно!G15*($F$8/70)^справочно!$Y$2,0),ROUND(справочно!G15,0)) -> 978 | I41: =IF($F$8<>70,ROUND(справочно!H15*($F$8/70)^справочно!$Y$2,0),ROUND(справочно!H15,0)) -> 1,205 | J41: =IF($F$8<>70,ROUND(справочно!I15*($F$8/70)^справочно!$Y$2,0),ROUND(справочно!I15,0)) -> 1,378 | K41: =IF($F$8<>70,ROUND(справочно!J15*($F$8/70)^справочно!$Y$2,0),ROUND(справочно!J15,0)) -> 1,910 | L41: =IF($F$8<>70,ROUND(справочно!K15*($F$8/70)^справочно!$Y$2,0),ROUND(справочно!K15,0)) -> 1,229 | M41: =IF($F$8<>70,ROUND(справочно!L15*($F$8/70)^справочно!$Y$2,0),ROUND(справочно!L15,0)) -> 1,458 | N41: =IF($F$8<>70,ROUND(справочно!M15*($F$8/70)^справочно!$Y$2,0),ROUND(справочно!M15,0)) -> 1,690 | O41: =IF($F$8<>70,ROUND(справочно!N15*($F$8/70)^справочно!$Y$2,0),ROUND(справочно!N15,0)) -> 2,437 | P41: =IF($F$8<>70,ROUND(справочно!O15*($F$8/70)^справочно!$Y$2,0),ROUND(справочно!O15,0)) -> 1,720 | Q41: =IF($F$8<>70,ROUND(справочно!P15*($F$8/70)^справочно!$Y$2,0),ROUND(справочно!P15,0)) -> 2,054 | R41: =IF($F$8<>70,ROUND(справочно!Q15*($F$8/70)^справочно!$Y$2,0),ROUND(справочно!Q15,0)) -> 2,265 | S41: =IF($F$8<>70,ROUND(справочно!R15*($F$8/70)^справочно!$Y$2,0),ROUND(справочно!R15,0)) -> 3,143 | T41: =IF($F$8<>70,ROUND(справочно!S15*($F$8/70)^справочно!$Y$2,0),ROUND(справочно!S15,0)) -> 1,968 | U41: =IF($F$8<>70,ROUND(справочно!T15*($F$8/70)^справочно!$Y$2,0),ROUND(справочно!T15,0)) -> 2,121 | V41: =IF($F$8<>70,ROUND(справочно!U15*($F$8/70)^справочно!$Y$2,0),ROUND(справочно!U15,0)) -> 2,935 | W41: =IF($F$8<>70,ROUND(справочно!V15*($F$8/70)^справочно!$Y$2,0),ROUND(справочно!V15,0)) -> 3,311
C42: 2800 | D42: =IF($F$8<>70,ROUND(справочно!C16*($F$8/70)^справочно!$Y$2,0),ROUND(справочно!C16,0)) -> 803 | E42: =IF($F$8<>70,ROUND(справочно!D16*($F$8/70)^справочно!$Y$2,0),ROUND(справочно!D16,0)) -> 991 | F42: =IF($F$8<>70,ROUND(справочно!E16*($F$8/70)^справочно!$Y$2,0),ROUND(справочно!E16,0)) -> 1,189 | G42: =IF($F$8<>70,ROUND(справочно!F16*($F$8/70)^справочно!$Y$2,0),ROUND(справочно!F16,0)) -> 1,614 | H42: =IF($F$8<>70,ROUND(справочно!G16*($F$8/70)^справочно!$Y$2,0),ROUND(справочно!G16,0)) -> 1,063 | I42: =IF($F$8<>70,ROUND(справочно!H16*($F$8/70)^справочно!$Y$2,0),ROUND(справочно!H16,0)) -> 1,286 | J42: =IF($F$8<>70,ROUND(справочно!I16*($F$8/70)^справочно!$Y$2,0),ROUND(справочно!I16,0)) -> 1,489 | K42: =IF($F$8<>70,ROUND(справочно!J16*($F$8/70)^справочно!$Y$2,0),ROUND(справочно!J16,0)) -> 2,064 | L42: =IF($F$8<>70,ROUND(справочно!K16*($F$8/70)^справочно!$Y$2,0),ROUND(справочно!K16,0)) -> 1,334 | M42: =IF($F$8<>70,ROUND(справочно!L16*($F$8/70)^справочно!$Y$2,0),ROUND(справочно!L16,0)) -> 1,576 | N42: =IF($F$8<>70,ROUND(справочно!M16*($F$8/70)^справочно!$Y$2,0),ROUND(справочно!M16,0)) -> 1,825 | O42: =IF($F$8<>70,ROUND(справочно!N16*($F$8/70)^справочно!$Y$2,0),ROUND(справочно!N16,0)) -> 2,635 | P42: =IF($F$8<>70,ROUND(справочно!O16*($F$8/70)^справочно!$Y$2,0),ROUND(справочно!O16,0)) -> 1,869 | Q42: =IF($F$8<>70,ROUND(справочно!P16*($F$8/70)^справочно!$Y$2,0),ROUND(справочно!P16,0)) -> 2,223 | R42: =IF($F$8<>70,ROUND(справочно!Q16*($F$8/70)^справочно!$Y$2,0),ROUND(справочно!Q16,0)) -> 2,446 | S42: =IF($F$8<>70,ROUND(справочно!R16*($F$8/70)^справочно!$Y$2,0),ROUND(справочно!R16,0)) -> 3,399 | T42: =IF($F$8<>70,ROUND(справочно!S16*($F$8/70)^справочно!$Y$2,0),ROUND(справочно!S16,0)) -> 2,137 | U42: =IF($F$8<>70,ROUND(справочно!T16*($F$8/70)^справочно!$Y$2,0),ROUND(справочно!T16,0)) -> 2,294 | V42: =IF($F$8<>70,ROUND(справочно!U16*($F$8/70)^справочно!$Y$2,0),ROUND(справочно!U16,0)) -> 3,169 | W42: =IF($F$8<>70,ROUND(справочно!V16*($F$8/70)^справочно!$Y$2,0),ROUND(справочно!V16,0)) -> 3,579
C43: 3000 | D43: =IF($F$8<>70,ROUND(справочно!C17*($F$8/70)^справочно!$Y$2,0),ROUND(справочно!C17,0)) -> 866 | E43: =IF($F$8<>70,ROUND(справочно!D17*($F$8/70)^справочно!$Y$2,0),ROUND(справочно!D17,0)) -> 1,068 | F43: =IF($F$8<>70,ROUND(справочно!E17*($F$8/70)^справочно!$Y$2,0),ROUND(справочно!E17,0)) -> 1,282 | G43: =IF($F$8<>70,ROUND(справочно!F17*($F$8/70)^справочно!$Y$2,0),ROUND(справочно!F17,0)) -> 1,739 | H43: =IF($F$8<>70,ROUND(справочно!G17*($F$8/70)^справочно!$Y$2,0),ROUND(справочно!G17,0)) -> 1,146 | I43: =IF($F$8<>70,ROUND(справочно!H17*($F$8/70)^справочно!$Y$2,0),ROUND(справочно!H17,0)) -> 1,383 | J43: =IF($F$8<>70,ROUND(справочно!I17*($F$8/70)^справочно!$Y$2,0),ROUND(справочно!I17,0)) -> 1,599 | K43: =IF($F$8<>70,ROUND(справочно!J17*($F$8/70)^справочно!$Y$2,0),ROUND(справочно!J17,0)) -> 2,219 | L43: =IF($F$8<>70,ROUND(справочно!K17*($F$8/70)^справочно!$Y$2,0),ROUND(справочно!K17,0)) -> 1,440 | M43: =IF($F$8<>70,ROUND(справочно!L17*($F$8/70)^справочно!$Y$2,0),ROUND(справочно!L17,0)) -> 1,695 | N43: =IF($F$8<>70,ROUND(справочно!M17*($F$8/70)^справочно!$Y$2,0),ROUND(справочно!M17,0)) -> 1,961 | O43: =IF($F$8<>70,ROUND(справочно!N17*($F$8/70)^справочно!$Y$2,0),ROUND(справочно!N17,0)) -> 2,831 | P43: =IF($F$8<>70,ROUND(справочно!O17*($F$8/70)^справочно!$Y$2,0),ROUND(справочно!O17,0)) -> 2,016 | Q43: =IF($F$8<>70,ROUND(справочно!P17*($F$8/70)^справочно!$Y$2,0),ROUND(справочно!P17,0)) -> 2,391 | R43: =IF($F$8<>70,ROUND(справочно!Q17*($F$8/70)^справочно!$Y$2,0),ROUND(справочно!Q17,0)) -> 2,629 | S43: =IF($F$8<>70,ROUND(справочно!R17*($F$8/70)^справочно!$Y$2,0),ROUND(справочно!R17,0)) -> 3,653 | T43: =IF($F$8<>70,ROUND(справочно!S17*($F$8/70)^справочно!$Y$2,0),ROUND(справочно!S17,0)) -> 2,306 | U43: =IF($F$8<>70,ROUND(справочно!T17*($F$8/70)^справочно!$Y$2,0),ROUND(справочно!T17,0)) -> 2,468 | V43: =IF($F$8<>70,ROUND(справочно!U17*($F$8/70)^справочно!$Y$2,0),ROUND(справочно!U17,0)) -> 3,405 | W43: =IF($F$8<>70,ROUND(справочно!V17*($F$8/70)^справочно!$Y$2,0),ROUND(справочно!V17,0)) -> 3,848
C47: № | E47: НС-код | G47: Артикул | J47: Наименование | P47: Складское оборудо- вание | Q47: ="Мощность при ΔT="&ROUND(F8,0)&", Вт" -> Мощность при ΔT=70, Вт | R47: ="Объемный расход при ΔT"&ROUND(F8,0)&", л/ч" -> Объемный расход при ΔT70, л/ч | S47: Базовая цена | T47: Цена клиента | U47: Валюта | V47: Кол-во | W47: ИТОГО
C48: ="Подобрано: "&справочно!$AW$1&" моделей" -> Подобрано: 0 моделей
D50: TRUE | S50: Скидка | T50: 15% | V50: =SUMIF($D$52:$D$86,TRUE,V52:V86) -> 0 | W50: =SUMIF($D$52:$D$86,TRUE,W52:W86) -> 0
D51: FALSE
C52: =IF(ISBLANK(C49),IF(справочно!$AV$1>0,IF(ISBLANK(C49),1,IF(C49+1>справочно!$AV$1,0,C49+1)),"-"),IF($C$52="-","",C49+1)) -> 1 | D52: FALSE | E52: =IFERROR(INDEX(справочно!AB:AB,MATCH(C52,справочно!AR:AR,0)),"") ->  | G52: =IFERROR(INDEX(справочно!AC:AC,MATCH(C52,справочно!AR:AR,0)),"") ->  | J52: =IFERROR(INDEX(справочно!AA:AA,MATCH(C52,справочно!AR:AR,0)),"") ->  | P52: =IFERROR(IF(VLOOKUP(E52,справочно!$AB:$AT,19,0)="ЗО","-","СО"),"") ->  | Q52: =IFERROR(VLOOKUP(E52,справочно!AB:AV,21,0),"") ->  | R52: =IFERROR(VLOOKUP(E52,справочно!$AB:$AU,20,0),"") ->  | S52: =IFERROR(INDEX(прайс!$1:$1048576,MATCH($E52,прайс!$C:$C,0),MATCH("БазоваяЦена",прайс!$1:$1,0)),"") ->  | T52: =IFERROR(S52*(1-$T$50),"") ->  | U52: =IFERROR(INDEX(прайс!$1:$1048576,MATCH($E52,прайс!$C:$C,0),MATCH("БазоваяВалюта",прайс!$1:$1,0)),"") ->  | W52: =IFERROR(V52*T52,"") -> 
C53: =IF(ISBLANK(C52),IF(справочно!$AV$1>0,IF(ISBLANK(C52),1,IF(MAX(C$52:C52)+1>справочно!$AV$1,0,MAX(C$52:C52)+1)),"нет подходящих моделей"),IF($C$52="нет подходящих моделей","",IF((MAX(C$52:C52)+1)>справочно!$AV$1,"",MAX(C$52:C52)+1))) -> 2 | D53: FALSE | E53: =IFERROR(INDEX(справочно!AB:AB,MATCH(C53,справочно!AR:AR,0)),"") ->  | G53: =IFERROR(INDEX(справочно!AC:AC,MATCH(C53,справочно!AR:AR,0)),"") ->  | J53: =IFERROR(INDEX(справочно!AA:AA,MATCH(C53,справочно!AR:AR,0)),"") ->  | P53: =IFERROR(IF(VLOOKUP(E53,справочно!$AB:$AT,19,0)="ЗО","-","СО"),"") ->  | Q53: =IFERROR(VLOOKUP(E53,справочно!AB:AV,21,0),"") ->  | R53: =IFERROR(VLOOKUP(E53,справочно!$AB:$AU,20,0),"") ->  | S53: =IFERROR(INDEX(прайс!$1:$1048576,MATCH($E53,прайс!$C:$C,0),MATCH("БазоваяЦена",прайс!$1:$1,0)),"") ->  | T53: =IFERROR(S53*(1-$T$50),"") ->  | U53: =IFERROR(INDEX(прайс!$1:$1048576,MATCH($E53,прайс!$C:$C,0),MATCH("БазоваяВалюта",прайс!$1:$1,0)),"") ->  | W53: =IFERROR(V53*T53,"") -> 
C54: =IF(ISBLANK(C53),IF(справочно!$AV$1>0,IF(ISBLANK(C53),1,IF(MAX(C$52:C53)+1>справочно!$AV$1,0,MAX(C$52:C53)+1)),"нет подходящих моделей"),IF($C$52="нет подходящих моделей","",IF((MAX(C$52:C53)+1)>справочно!$AV$1,"",MAX(C$52:C53)+1))) -> 3 | D54: FALSE | E54: =IFERROR(INDEX(справочно!AB:AB,MATCH(C54,справочно!AR:AR,0)),"") ->  | G54: =IFERROR(INDEX(справочно!AC:AC,MATCH(C54,справочно!AR:AR,0)),"") ->  | J54: =IFERROR(INDEX(справочно!AA:AA,MATCH(C54,справочно!AR:AR,0)),"") ->  | P54: =IFERROR(IF(VLOOKUP(E54,справочно!$AB:$AT,19,0)="ЗО","-","СО"),"") ->  | Q54: =IFERROR(VLOOKUP(E54,справочно!AB:AV,21,0),"") ->  | R54: =IFERROR(VLOOKUP(E54,справочно!$AB:$AU,20,0),"") ->  | S54: =IFERROR(INDEX(прайс!$1:$1048576,MATCH($E54,прайс!$C:$C,0),MATCH("БазоваяЦена",прайс!$1:$1,0)),"") ->  | U54: =IFERROR(INDEX(прайс!$1:$1048576,MATCH($E54,прайс!$C:$C,0),MATCH("БазоваяВалюта",прайс!$1:$1,0)),"") -> 
C55: =IF(ISBLANK(C54),IF(справочно!$AV$1>0,IF(ISBLANK(C54),1,IF(MAX(C$52:C54)+1>справочно!$AV$1,0,MAX(C$52:C54)+1)),"нет подходящих моделей"),IF($C$52="нет подходящих моделей","",IF((MAX(C$52:C54)+1)>справочно!$AV$1,"",MAX(C$52:C54)+1))) -> 4 | D55: FALSE | E55: =IFERROR(INDEX(справочно!AB:AB,MATCH(C55,справочно!AR:AR,0)),"") ->  | G55: =IFERROR(INDEX(справочно!AC:AC,MATCH(C55,справочно!AR:AR,0)),"") ->  | J55: =IFERROR(INDEX(справочно!AA:AA,MATCH(C55,справочно!AR:AR,0)),"") ->  | P55: =IFERROR(IF(VLOOKUP(E55,справочно!$AB:$AT,19,0)="ЗО","-","СО"),"") ->  | Q55: =IFERROR(VLOOKUP(E55,справочно!AB:AV,21,0),"") ->  | R55: =IFERROR(VLOOKUP(E55,справочно!$AB:$AU,20,0),"") ->  | S55: =IFERROR(INDEX(прайс!$1:$1048576,MATCH($E55,прайс!$C:$C,0),MATCH("БазоваяЦена",прайс!$1:$1,0)),"") ->  | U55: =IFERROR(INDEX(прайс!$1:$1048576,MATCH($E55,прайс!$C:$C,0),MATCH("БазоваяВалюта",прайс!$1:$1,0)),"") -> 
C56: =IF(ISBLANK(C55),IF(справочно!$AV$1>0,IF(ISBLANK(C55),1,IF(MAX(C$52:C55)+1>справочно!$AV$1,0,MAX(C$52:C55)+1)),"нет подходящих моделей"),IF($C$52="нет подходящих моделей","",IF((MAX(C$52:C55)+1)>справочно!$AV$1,"",MAX(C$52:C55)+1))) -> 5 | D56: FALSE | E56: =IFERROR(INDEX(справочно!AB:AB,MATCH(C56,справочно!AR:AR,0)),"") ->  | G56: =IFERROR(INDEX(справочно!AC:AC,MATCH(C56,справочно!AR:AR,0)),"") ->  | J56: =IFERROR(INDEX(справочно!AA:AA,MATCH(C56,справочно!AR:AR,0)),"") ->  | P56: =IFERROR(IF(VLOOKUP(E56,справочно!$AB:$AT,19,0)="ЗО","-","СО"),"") ->  | Q56: =IFERROR(VLOOKUP(E56,справочно!AB:AV,21,0),"") ->  | R56: =IFERROR(VLOOKUP(E56,справочно!$AB:$AU,20,0),"") ->  | S56: =IFERROR(INDEX(прайс!$1:$1048576,MATCH($E56,прайс!$C:$C,0),MATCH("БазоваяЦена",прайс!$1:$1,0)),"") ->  | U56: =IFERROR(INDEX(прайс!$1:$1048576,MATCH($E56,прайс!$C:$C,0),MATCH("БазоваяВалюта",прайс!$1:$1,0)),"") -> 
C57: =IF(ISBLANK(C56),IF(справочно!$AV$1>0,IF(ISBLANK(C56),1,IF(MAX(C$52:C56)+1>справочно!$AV$1,0,MAX(C$52:C56)+1)),"нет подходящих моделей"),IF($C$52="нет подходящих моделей","",IF((MAX(C$52:C56)+1)>справочно!$AV$1,"",MAX(C$52:C56)+1))) -> 6 | D57: FALSE | E57: =IFERROR(INDEX(справочно!AB:AB,MATCH(C57,справочно!AR:AR,0)),"") ->  | G57: =IFERROR(INDEX(справочно!AC:AC,MATCH(C57,справочно!AR:AR,0)),"") ->  | J57: =IFERROR(INDEX(справочно!AA:AA,MATCH(C57,справочно!AR:AR,0)),"") ->  | P57: =IFERROR(IF(VLOOKUP(E57,справочно!$AB:$AT,19,0)="ЗО","-","СО"),"") ->  | Q57: =IFERROR(VLOOKUP(E57,справочно!AB:AV,21,0),"") ->  | R57: =IFERROR(VLOOKUP(E57,справочно!$AB:$AU,20,0),"") ->  | S57: =IFERROR(INDEX(прайс!$1:$1048576,MATCH($E57,прайс!$C:$C,0),MATCH("БазоваяЦена",прайс!$1:$1,0)),"") ->  | U57: =IFERROR(INDEX(прайс!$1:$1048576,MATCH($E57,прайс!$C:$C,0),MATCH("БазоваяВалюта",прайс!$1:$1,0)),"") -> 
C58: =IF(ISBLANK(C57),IF(справочно!$AV$1>0,IF(ISBLANK(C57),1,IF(MAX(C$52:C57)+1>справочно!$AV$1,0,MAX(C$52:C57)+1)),"нет подходящих моделей"),IF($C$52="нет подходящих моделей","",IF((MAX(C$52:C57)+1)>справочно!$AV$1,"",MAX(C$52:C57)+1))) -> 7 | D58: FALSE | E58: =IFERROR(INDEX(справочно!AB:AB,MATCH(C58,справочно!AR:AR,0)),"") ->  | G58: =IFERROR(INDEX(справочно!AC:AC,MATCH(C58,справочно!AR:AR,0)),"") ->  | J58: =IFERROR(INDEX(справочно!AA:AA,MATCH(C58,справочно!AR:AR,0)),"") ->  | P58: =IFERROR(IF(VLOOKUP(E58,справочно!$AB:$AT,19,0)="ЗО","-","СО"),"") ->  | Q58: =IFERROR(VLOOKUP(E58,справочно!AB:AV,21,0),"") ->  | R58: =IFERROR(VLOOKUP(E58,справочно!$AB:$AU,20,0),"") ->  | S58: =IFERROR(INDEX(прайс!$1:$1048576,MATCH($E58,прайс!$C:$C,0),MATCH("БазоваяЦена",прайс!$1:$1,0)),"") ->  | U58: =IFERROR(INDEX(прайс!$1:$1048576,MATCH($E58,прайс!$C:$C,0),MATCH("БазоваяВалюта",прайс!$1:$1,0)),"") -> 
C59: =IF(ISBLANK(C58),IF(справочно!$AV$1>0,IF(ISBLANK(C58),1,IF(MAX(C$52:C58)+1>справочно!$AV$1,0,MAX(C$52:C58)+1)),"нет подходящих моделей"),IF($C$52="нет подходящих моделей","",IF((MAX(C$52:C58)+1)>справочно!$AV$1,"",MAX(C$52:C58)+1))) -> 8 | D59: FALSE | E59: =IFERROR(INDEX(справочно!AB:AB,MATCH(C59,справочно!AR:AR,0)),"") ->  | G59: =IFERROR(INDEX(справочно!AC:AC,MATCH(C59,справочно!AR:AR,0)),"") ->  | J59: =IFERROR(INDEX(справочно!AA:AA,MATCH(C59,справочно!AR:AR,0)),"") ->  | P59: =IFERROR(IF(VLOOKUP(E59,справочно!$AB:$AT,19,0)="ЗО","-","СО"),"") ->  | Q59: =IFERROR(VLOOKUP(E59,справочно!AB:AV,21,0),"") ->  | R59: =IFERROR(VLOOKUP(E59,справочно!$AB:$AU,20,0),"") ->  | S59: =IFERROR(INDEX(прайс!$1:$1048576,MATCH($E59,прайс!$C:$C,0),MATCH("БазоваяЦена",прайс!$1:$1,0)),"") ->  | U59: =IFERROR(INDEX(прайс!$1:$1048576,MATCH($E59,прайс!$C:$C,0),MATCH("БазоваяВалюта",прайс!$1:$1,0)),"") -> 
C60: =IF(ISBLANK(C59),IF(справочно!$AV$1>0,IF(ISBLANK(C59),1,IF(MAX(C$52:C59)+1>справочно!$AV$1,0,MAX(C$52:C59)+1)),"нет подходящих моделей"),IF($C$52="нет подходящих моделей","",IF((MAX(C$52:C59)+1)>справочно!$AV$1,"",MAX(C$52:C59)+1))) -> 9 | D60: FALSE | E60: =IFERROR(INDEX(справочно!AB:AB,MATCH(C60,справочно!AR:AR,0)),"") ->  | G60: =IFERROR(INDEX(справочно!AC:AC,MATCH(C60,справочно!AR:AR,0)),"") ->  | J60: =IFERROR(INDEX(справочно!AA:AA,MATCH(C60,справочно!AR:AR,0)),"") ->  | P60: =IFERROR(IF(VLOOKUP(E60,справочно!$AB:$AT,19,0)="ЗО","-","СО"),"") ->  | Q60: =IFERROR(VLOOKUP(E60,справочно!AB:AV,21,0),"") ->  | R60: =IFERROR(VLOOKUP(E60,справочно!$AB:$AU,20,0),"") ->  | S60: =IFERROR(INDEX(прайс!$1:$1048576,MATCH($E60,прайс!$C:$C,0),MATCH("БазоваяЦена",прайс!$1:$1,0)),"") ->  | U60: =IFERROR(INDEX(прайс!$1:$1048576,MATCH($E60,прайс!$C:$C,0),MATCH("БазоваяВалюта",прайс!$1:$1,0)),"") -> 
C61: =IF(ISBLANK(C60),IF(справочно!$AV$1>0,IF(ISBLANK(C60),1,IF(MAX(C$52:C60)+1>справочно!$AV$1,0,MAX(C$52:C60)+1)),"нет подходящих моделей"),IF($C$52="нет подходящих моделей","",IF((MAX(C$52:C60)+1)>справочно!$AV$1,"",MAX(C$52:C60)+1))) -> 10 | D61: FALSE | E61: =IFERROR(INDEX(справочно!AB:AB,MATCH(C61,справочно!AR:AR,0)),"") ->  | G61: =IFERROR(INDEX(справочно!AC:AC,MATCH(C61,справочно!AR:AR,0)),"") ->  | J61: =IFERROR(INDEX(справочно!AA:AA,MATCH(C61,справочно!AR:AR,0)),"") ->  | P61: =IFERROR(IF(VLOOKUP(E61,справочно!$AB:$AT,19,0)="ЗО","-","СО"),"") ->  | Q61: =IFERROR(VLOOKUP(E61,справочно!AB:AV,21,0),"") ->  | R61: =IFERROR(VLOOKUP(E61,справочно!$AB:$AU,20,0),"") ->  | S61: =IFERROR(INDEX(прайс!$1:$1048576,MATCH($E61,прайс!$C:$C,0),MATCH("БазоваяЦена",прайс!$1:$1,0)),"") ->  | U61: =IFERROR(INDEX(прайс!$1:$1048576,MATCH($E61,прайс!$C:$C,0),MATCH("БазоваяВалюта",прайс!$1:$1,0)),"") -> 
C62: =IF(ISBLANK(C61),IF(справочно!$AV$1>0,IF(ISBLANK(C61),1,IF(MAX(C$52:C61)+1>справочно!$AV$1,0,MAX(C$52:C61)+1)),"нет подходящих моделей"),IF($C$52="нет подходящих моделей","",IF((MAX(C$52:C61)+1)>справочно!$AV$1,"",MAX(C$52:C61)+1))) -> 11 | D62: FALSE | E62: =IFERROR(INDEX(справочно!AB:AB,MATCH(C62,справочно!AR:AR,0)),"") ->  | G62: =IFERROR(INDEX(справочно!AC:AC,MATCH(C62,справочно!AR:AR,0)),"") ->  | J62: =IFERROR(INDEX(справочно!AA:AA,MATCH(C62,справочно!AR:AR,0)),"") ->  | P62: =IFERROR(IF(VLOOKUP(E62,справочно!$AB:$AT,19,0)="ЗО","-","СО"),"") ->  | Q62: =IFERROR(VLOOKUP(E62,справочно!AB:AV,21,0),"") ->  | R62: =IFERROR(VLOOKUP(E62,справочно!$AB:$AU,20,0),"") ->  | S62: =IFERROR(INDEX(прайс!$1:$1048576,MATCH($E62,прайс!$C:$C,0),MATCH("БазоваяЦена",прайс!$1:$1,0)),"") ->  | U62: =IFERROR(INDEX(прайс!$1:$1048576,MATCH($E62,прайс!$C:$C,0),MATCH("БазоваяВалюта",прайс!$1:$1,0)),"") -> 
C63: =IF(ISBLANK(C62),IF(справочно!$AV$1>0,IF(ISBLANK(C62),1,IF(MAX(C$52:C62)+1>справочно!$AV$1,0,MAX(C$52:C62)+1)),"нет подходящих моделей"),IF($C$52="нет подходящих моделей","",IF((MAX(C$52:C62)+1)>справочно!$AV$1,"",MAX(C$52:C62)+1))) -> 12 | D63: FALSE | E63: =IFERROR(INDEX(справочно!AB:AB,MATCH(C63,справочно!AR:AR,0)),"") ->  | G63: =IFERROR(INDEX(справочно!AC:AC,MATCH(C63,справочно!AR:AR,0)),"") ->  | J63: =IFERROR(INDEX(справочно!AA:AA,MATCH(C63,справочно!AR:AR,0)),"") ->  | P63: =IFERROR(IF(VLOOKUP(E63,справочно!$AB:$AT,19,0)="ЗО","-","СО"),"") ->  | Q63: =IFERROR(VLOOKUP(E63,справочно!AB:AV,21,0),"") ->  | R63: =IFERROR(VLOOKUP(E63,справочно!$AB:$AU,20,0),"") ->  | S63: =IFERROR(INDEX(прайс!$1:$1048576,MATCH($E63,прайс!$C:$C,0),MATCH("БазоваяЦена",прайс!$1:$1,0)),"") ->  | U63: =IFERROR(INDEX(прайс!$1:$1048576,MATCH($E63,прайс!$C:$C,0),MATCH("БазоваяВалюта",прайс!$1:$1,0)),"") -> 
C64: =IF(ISBLANK(C63),IF(справочно!$AV$1>0,IF(ISBLANK(C63),1,IF(MAX(C$52:C63)+1>справочно!$AV$1,0,MAX(C$52:C63)+1)),"нет подходящих моделей"),IF($C$52="нет подходящих моделей","",IF((MAX(C$52:C63)+1)>справочно!$AV$1,"",MAX(C$52:C63)+1))) -> 13 | D64: FALSE | E64: =IFERROR(INDEX(справочно!AB:AB,MATCH(C64,справочно!AR:AR,0)),"") ->  | G64: =IFERROR(INDEX(справочно!AC:AC,MATCH(C64,справочно!AR:AR,0)),"") ->  | J64: =IFERROR(INDEX(справочно!AA:AA,MATCH(C64,справочно!AR:AR,0)),"") ->  | P64: =IFERROR(IF(VLOOKUP(E64,справочно!$AB:$AT,19,0)="ЗО","-","СО"),"") ->  | Q64: =IFERROR(VLOOKUP(E64,справочно!AB:AV,21,0),"") ->  | R64: =IFERROR(VLOOKUP(E64,справочно!$AB:$AU,20,0),"") ->  | S64: =IFERROR(INDEX(прайс!$1:$1048576,MATCH($E64,прайс!$C:$C,0),MATCH("БазоваяЦена",прайс!$1:$1,0)),"") ->  | U64: =IFERROR(INDEX(прайс!$1:$1048576,MATCH($E64,прайс!$C:$C,0),MATCH("БазоваяВалюта",прайс!$1:$1,0)),"") -> 
C65: =IF(ISBLANK(C64),IF(справочно!$AV$1>0,IF(ISBLANK(C64),1,IF(MAX(C$52:C64)+1>справочно!$AV$1,0,MAX(C$52:C64)+1)),"нет подходящих моделей"),IF($C$52="нет подходящих моделей","",IF((MAX(C$52:C64)+1)>справочно!$AV$1,"",MAX(C$52:C64)+1))) -> 14 | D65: FALSE | E65: =IFERROR(INDEX(справочно!AB:AB,MATCH(C65,справочно!AR:AR,0)),"") ->  | G65: =IFERROR(INDEX(справочно!AC:AC,MATCH(C65,справочно!AR:AR,0)),"") ->  | J65: =IFERROR(INDEX(справочно!AA:AA,MATCH(C65,справочно!AR:AR,0)),"") ->  | P65: =IFERROR(IF(VLOOKUP(E65,справочно!$AB:$AT,19,0)="ЗО","-","СО"),"") ->  | Q65: =IFERROR(VLOOKUP(E65,справочно!AB:AV,21,0),"") ->  | R65: =IFERROR(VLOOKUP(E65,справочно!$AB:$AU,20,0),"") ->  | S65: =IFERROR(INDEX(прайс!$1:$1048576,MATCH($E65,прайс!$C:$C,0),MATCH("БазоваяЦена",прайс!$1:$1,0)),"") ->  | U65: =IFERROR(INDEX(прайс!$1:$1048576,MATCH($E65,прайс!$C:$C,0),MATCH("БазоваяВалюта",прайс!$1:$1,0)),"") -> 
C66: =IF(ISBLANK(C65),IF(справочно!$AV$1>0,IF(ISBLANK(C65),1,IF(MAX(C$52:C65)+1>справочно!$AV$1,0,MAX(C$52:C65)+1)),"нет подходящих моделей"),IF($C$52="нет подходящих моделей","",IF((MAX(C$52:C65)+1)>справочно!$AV$1,"",MAX(C$52:C65)+1))) -> 15 | D66: FALSE | E66: =IFERROR(INDEX(справочно!AB:AB,MATCH(C66,справочно!AR:AR,0)),"") ->  | G66: =IFERROR(INDEX(справочно!AC:AC,MATCH(C66,справочно!AR:AR,0)),"") ->  | J66: =IFERROR(INDEX(справочно!AA:AA,MATCH(C66,справочно!AR:AR,0)),"") ->  | P66: =IFERROR(IF(VLOOKUP(E66,справочно!$AB:$AT,19,0)="ЗО","-","СО"),"") ->  | Q66: =IFERROR(VLOOKUP(E66,справочно!AB:AV,21,0),"") ->  | R66: =IFERROR(VLOOKUP(E66,справочно!$AB:$AU,20,0),"") ->  | S66: =IFERROR(INDEX(прайс!$1:$1048576,MATCH($E66,прайс!$C:$C,0),MATCH("БазоваяЦена",прайс!$1:$1,0)),"") ->  | U66: =IFERROR(INDEX(прайс!$1:$1048576,MATCH($E66,прайс!$C:$C,0),MATCH("БазоваяВалюта",прайс!$1:$1,0)),"") -> 
C67: =IF(ISBLANK(C66),IF(справочно!$AV$1>0,IF(ISBLANK(C66),1,IF(MAX(C$52:C66)+1>справочно!$AV$1,0,MAX(C$52:C66)+1)),"нет подходящих моделей"),IF($C$52="нет подходящих моделей","",IF((MAX(C$52:C66)+1)>справочно!$AV$1,"",MAX(C$52:C66)+1))) -> 16 | D67: FALSE | E67: =IFERROR(INDEX(справочно!AB:AB,MATCH(C67,справочно!AR:AR,0)),"") ->  | G67: =IFERROR(INDEX(справочно!AC:AC,MATCH(C67,справочно!AR:AR,0)),"") ->  | J67: =IFERROR(INDEX(справочно!AA:AA,MATCH(C67,справочно!AR:AR,0)),"") ->  | P67: =IFERROR(IF(VLOOKUP(E67,справочно!$AB:$AT,19,0)="ЗО","-","СО"),"") ->  | Q67: =IFERROR(VLOOKUP(E67,справочно!AB:AV,21,0),"") ->  | R67: =IFERROR(VLOOKUP(E67,справочно!$AB:$AU,20,0),"") ->  | S67: =IFERROR(INDEX(прайс!$1:$1048576,MATCH($E67,прайс!$C:$C,0),MATCH("БазоваяЦена",прайс!$1:$1,0)),"") ->  | U67: =IFERROR(INDEX(прайс!$1:$1048576,MATCH($E67,прайс!$C:$C,0),MATCH("БазоваяВалюта",прайс!$1:$1,0)),"") -> 
C68: =IF(ISBLANK(C67),IF(справочно!$AV$1>0,IF(ISBLANK(C67),1,IF(MAX(C$52:C67)+1>справочно!$AV$1,0,MAX(C$52:C67)+1)),"нет подходящих моделей"),IF($C$52="нет подходящих моделей","",IF((MAX(C$52:C67)+1)>справочно!$AV$1,"",MAX(C$52:C67)+1))) -> 17 | D68: FALSE | E68: =IFERROR(INDEX(справочно!AB:AB,MATCH(C68,справочно!AR:AR,0)),"") ->  | G68: =IFERROR(INDEX(справочно!AC:AC,MATCH(C68,справочно!AR:AR,0)),"") ->  | J68: =IFERROR(INDEX(справочно!AA:AA,MATCH(C68,справочно!AR:AR,0)),"") ->  | P68: =IFERROR(IF(VLOOKUP(E68,справочно!$AB:$AT,19,0)="ЗО","-","СО"),"") ->  | Q68: =IFERROR(VLOOKUP(E68,справочно!AB:AV,21,0),"") ->  | R68: =IFERROR(VLOOKUP(E68,справочно!$AB:$AU,20,0),"") ->  | S68: =IFERROR(INDEX(прайс!$1:$1048576,MATCH($E68,прайс!$C:$C,0),MATCH("БазоваяЦена",прайс!$1:$1,0)),"") ->  | U68: =IFERROR(INDEX(прайс!$1:$1048576,MATCH($E68,прайс!$C:$C,0),MATCH("БазоваяВалюта",прайс!$1:$1,0)),"") -> 
C69: =IF(ISBLANK(C68),IF(справочно!$AV$1>0,IF(ISBLANK(C68),1,IF(MAX(C$52:C68)+1>справочно!$AV$1,0,MAX(C$52:C68)+1)),"нет подходящих моделей"),IF($C$52="нет подходящих моделей","",IF((MAX(C$52:C68)+1)>справочно!$AV$1,"",MAX(C$52:C68)+1))) -> 18 | D69: FALSE | E69: =IFERROR(INDEX(справочно!AB:AB,MATCH(C69,справочно!AR:AR,0)),"") ->  | G69: =IFERROR(INDEX(справочно!AC:AC,MATCH(C69,справочно!AR:AR,0)),"") ->  | J69: =IFERROR(INDEX(справочно!AA:AA,MATCH(C69,справочно!AR:AR,0)),"") ->  | P69: =IFERROR(IF(VLOOKUP(E69,справочно!$AB:$AT,19,0)="ЗО","-","СО"),"") ->  | Q69: =IFERROR(VLOOKUP(E69,справочно!AB:AV,21,0),"") ->  | R69: =IFERROR(VLOOKUP(E69,справочно!$AB:$AU,20,0),"") ->  | S69: =IFERROR(INDEX(прайс!$1:$1048576,MATCH($E69,прайс!$C:$C,0),MATCH("БазоваяЦена",прайс!$1:$1,0)),"") ->  | U69: =IFERROR(INDEX(прайс!$1:$1048576,MATCH($E69,прайс!$C:$C,0),MATCH("БазоваяВалюта",прайс!$1:$1,0)),"") -> 
C70: =IF(ISBLANK(C69),IF(справочно!$AV$1>0,IF(ISBLANK(C69),1,IF(MAX(C$52:C69)+1>справочно!$AV$1,0,MAX(C$52:C69)+1)),"нет подходящих моделей"),IF($C$52="нет подходящих моделей","",IF((MAX(C$52:C69)+1)>справочно!$AV$1,"",MAX(C$52:C69)+1))) -> 19 | D70: FALSE | E70: =IFERROR(INDEX(справочно!AB:AB,MATCH(C70,справочно!AR:AR,0)),"") ->  | G70: =IFERROR(INDEX(справочно!AC:AC,MATCH(C70,справочно!AR:AR,0)),"") ->  | J70: =IFERROR(INDEX(справочно!AA:AA,MATCH(C70,справочно!AR:AR,0)),"") ->  | P70: =IFERROR(IF(VLOOKUP(E70,справочно!$AB:$AT,19,0)="ЗО","-","СО"),"") ->  | Q70: =IFERROR(VLOOKUP(E70,справочно!AB:AV,21,0),"") ->  | R70: =IFERROR(VLOOKUP(E70,справочно!$AB:$AU,20,0),"") ->  | S70: =IFERROR(INDEX(прайс!$1:$1048576,MATCH($E70,прайс!$C:$C,0),MATCH("БазоваяЦена",прайс!$1:$1,0)),"") ->  | U70: =IFERROR(INDEX(прайс!$1:$1048576,MATCH($E70,прайс!$C:$C,0),MATCH("БазоваяВалюта",прайс!$1:$1,0)),"") -> 
C71: =IF(ISBLANK(C70),IF(справочно!$AV$1>0,IF(ISBLANK(C70),1,IF(MAX(C$52:C70)+1>справочно!$AV$1,0,MAX(C$52:C70)+1)),"нет подходящих моделей"),IF($C$52="нет подходящих моделей","",IF((MAX(C$52:C70)+1)>справочно!$AV$1,"",MAX(C$52:C70)+1))) -> 20 | D71: FALSE | E71: =IFERROR(INDEX(справочно!AB:AB,MATCH(C71,справочно!AR:AR,0)),"") ->  | G71: =IFERROR(INDEX(справочно!AC:AC,MATCH(C71,справочно!AR:AR,0)),"") ->  | J71: =IFERROR(INDEX(справочно!AA:AA,MATCH(C71,справочно!AR:AR,0)),"") ->  | P71: =IFERROR(IF(VLOOKUP(E71,справочно!$AB:$AT,19,0)="ЗО","-","СО"),"") ->  | Q71: =IFERROR(VLOOKUP(E71,справочно!AB:AV,21,0),"") ->  | R71: =IFERROR(VLOOKUP(E71,справочно!$AB:$AU,20,0),"") ->  | S71: =IFERROR(INDEX(прайс!$1:$1048576,MATCH($E71,прайс!$C:$C,0),MATCH("БазоваяЦена",прайс!$1:$1,0)),"") ->  | U71: =IFERROR(INDEX(прайс!$1:$1048576,MATCH($E71,прайс!$C:$C,0),MATCH("БазоваяВалюта",прайс!$1:$1,0)),"") -> 
C72: =IF(ISBLANK(C71),IF(справочно!$AV$1>0,IF(ISBLANK(C71),1,IF(MAX(C$52:C71)+1>справочно!$AV$1,0,MAX(C$52:C71)+1)),"нет подходящих моделей"),IF($C$52="нет подходящих моделей","",IF((MAX(C$52:C71)+1)>справочно!$AV$1,"",MAX(C$52:C71)+1))) -> 21 | D72: FALSE | E72: =IFERROR(INDEX(справочно!AB:AB,MATCH(C72,справочно!AR:AR,0)),"") ->  | G72: =IFERROR(INDEX(справочно!AC:AC,MATCH(C72,справочно!AR:AR,0)),"") ->  | J72: =IFERROR(INDEX(справочно!AA:AA,MATCH(C72,справочно!AR:AR,0)),"") ->  | P72: =IFERROR(IF(VLOOKUP(E72,справочно!$AB:$AT,19,0)="ЗО","-","СО"),"") ->  | Q72: =IFERROR(VLOOKUP(E72,справочно!AB:AV,21,0),"") ->  | R72: =IFERROR(VLOOKUP(E72,справочно!$AB:$AU,20,0),"") ->  | S72: =IFERROR(INDEX(прайс!$1:$1048576,MATCH($E72,прайс!$C:$C,0),MATCH("БазоваяЦена",прайс!$1:$1,0)),"") ->  | U72: =IFERROR(INDEX(прайс!$1:$1048576,MATCH($E72,прайс!$C:$C,0),MATCH("БазоваяВалюта",прайс!$1:$1,0)),"") -> 
C73: =IF(ISBLANK(C72),IF(справочно!$AV$1>0,IF(ISBLANK(C72),1,IF(MAX(C$52:C72)+1>справочно!$AV$1,0,MAX(C$52:C72)+1)),"нет подходящих моделей"),IF($C$52="нет подходящих моделей","",IF((MAX(C$52:C72)+1)>справочно!$AV$1,"",MAX(C$52:C72)+1))) -> 22 | D73: FALSE | E73: =IFERROR(INDEX(справочно!AB:AB,MATCH(C73,справочно!AR:AR,0)),"") ->  | G73: =IFERROR(INDEX(справочно!AC:AC,MATCH(C73,справочно!AR:AR,0)),"") ->  | J73: =IFERROR(INDEX(справочно!AA:AA,MATCH(C73,справочно!AR:AR,0)),"") ->  | P73: =IFERROR(IF(VLOOKUP(E73,справочно!$AB:$AT,19,0)="ЗО","-","СО"),"") ->  | Q73: =IFERROR(VLOOKUP(E73,справочно!AB:AV,21,0),"") ->  | R73: =IFERROR(VLOOKUP(E73,справочно!$AB:$AU,20,0),"") ->  | S73: =IFERROR(INDEX(прайс!$1:$1048576,MATCH($E73,прайс!$C:$C,0),MATCH("БазоваяЦена",прайс!$1:$1,0)),"") ->  | U73: =IFERROR(INDEX(прайс!$1:$1048576,MATCH($E73,прайс!$C:$C,0),MATCH("БазоваяВалюта",прайс!$1:$1,0)),"") -> 
C74: =IF(ISBLANK(C73),IF(справочно!$AV$1>0,IF(ISBLANK(C73),1,IF(MAX(C$52:C73)+1>справочно!$AV$1,0,MAX(C$52:C73)+1)),"нет подходящих моделей"),IF($C$52="нет подходящих моделей","",IF((MAX(C$52:C73)+1)>справочно!$AV$1,"",MAX(C$52:C73)+1))) -> 23 | D74: FALSE | E74: =IFERROR(INDEX(справочно!AB:AB,MATCH(C74,справочно!AR:AR,0)),"") ->  | G74: =IFERROR(INDEX(справочно!AC:AC,MATCH(C74,справочно!AR:AR,0)),"") ->  | J74: =IFERROR(INDEX(справочно!AA:AA,MATCH(C74,справочно!AR:AR,0)),"") ->  | P74: =IFERROR(IF(VLOOKUP(E74,справочно!$AB:$AT,19,0)="ЗО","-","СО"),"") ->  | Q74: =IFERROR(VLOOKUP(E74,справочно!AB:AV,21,0),"") ->  | R74: =IFERROR(VLOOKUP(E74,справочно!$AB:$AU,20,0),"") ->  | S74: =IFERROR(INDEX(прайс!$1:$1048576,MATCH($E74,прайс!$C:$C,0),MATCH("БазоваяЦена",прайс!$1:$1,0)),"") ->  | U74: =IFERROR(INDEX(прайс!$1:$1048576,MATCH($E74,прайс!$C:$C,0),MATCH("БазоваяВалюта",прайс!$1:$1,0)),"") -> 
C75: =IF(ISBLANK(C74),IF(справочно!$AV$1>0,IF(ISBLANK(C74),1,IF(MAX(C$52:C74)+1>справочно!$AV$1,0,MAX(C$52:C74)+1)),"нет подходящих моделей"),IF($C$52="нет подходящих моделей","",IF((MAX(C$52:C74)+1)>справочно!$AV$1,"",MAX(C$52:C74)+1))) -> 24 | D75: FALSE | E75: =IFERROR(INDEX(справочно!AB:AB,MATCH(C75,справочно!AR:AR,0)),"") ->  | G75: =IFERROR(INDEX(справочно!AC:AC,MATCH(C75,справочно!AR:AR,0)),"") ->  | J75: =IFERROR(INDEX(справочно!AA:AA,MATCH(C75,справочно!AR:AR,0)),"") ->  | P75: =IFERROR(IF(VLOOKUP(E75,справочно!$AB:$AT,19,0)="ЗО","-","СО"),"") ->  | Q75: =IFERROR(VLOOKUP(E75,справочно!AB:AV,21,0),"") ->  | R75: =IFERROR(VLOOKUP(E75,справочно!$AB:$AU,20,0),"") ->  | S75: =IFERROR(INDEX(прайс!$1:$1048576,MATCH($E75,прайс!$C:$C,0),MATCH("БазоваяЦена",прайс!$1:$1,0)),"") ->  | U75: =IFERROR(INDEX(прайс!$1:$1048576,MATCH($E75,прайс!$C:$C,0),MATCH("БазоваяВалюта",прайс!$1:$1,0)),"") -> 
C76: =IF(ISBLANK(C75),IF(справочно!$AV$1>0,IF(ISBLANK(C75),1,IF(MAX(C$52:C75)+1>справочно!$AV$1,0,MAX(C$52:C75)+1)),"нет подходящих моделей"),IF($C$52="нет подходящих моделей","",IF((MAX(C$52:C75)+1)>справочно!$AV$1,"",MAX(C$52:C75)+1))) -> 25 | D76: FALSE | E76: =IFERROR(INDEX(справочно!AB:AB,MATCH(C76,справочно!AR:AR,0)),"") ->  | G76: =IFERROR(INDEX(справочно!AC:AC,MATCH(C76,справочно!AR:AR,0)),"") ->  | J76: =IFERROR(INDEX(справочно!AA:AA,MATCH(C76,справочно!AR:AR,0)),"") ->  | P76: =IFERROR(IF(VLOOKUP(E76,справочно!$AB:$AT,19,0)="ЗО","-","СО"),"") ->  | Q76: =IFERROR(VLOOKUP(E76,справочно!AB:AV,21,0),"") ->  | R76: =IFERROR(VLOOKUP(E76,справочно!$AB:$AU,20,0),"") ->  | S76: =IFERROR(INDEX(прайс!$1:$1048576,MATCH($E76,прайс!$C:$C,0),MATCH("БазоваяЦена",прайс!$1:$1,0)),"") ->  | U76: =IFERROR(INDEX(прайс!$1:$1048576,MATCH($E76,прайс!$C:$C,0),MATCH("БазоваяВалюта",прайс!$1:$1,0)),"") -> 
C77: =IF(ISBLANK(C76),IF(справочно!$AV$1>0,IF(ISBLANK(C76),1,IF(MAX(C$52:C76)+1>справочно!$AV$1,0,MAX(C$52:C76)+1)),"нет подходящих моделей"),IF($C$52="нет подходящих моделей","",IF((MAX(C$52:C76)+1)>справочно!$AV$1,"",MAX(C$52:C76)+1))) -> 26 | D77: FALSE | E77: =IFERROR(INDEX(справочно!AB:AB,MATCH(C77,справочно!AR:AR,0)),"") ->  | G77: =IFERROR(INDEX(справочно!AC:AC,MATCH(C77,справочно!AR:AR,0)),"") ->  | J77: =IFERROR(INDEX(справочно!AA:AA,MATCH(C77,справочно!AR:AR,0)),"") ->  | P77: =IFERROR(IF(VLOOKUP(E77,справочно!$AB:$AT,19,0)="ЗО","-","СО"),"") ->  | Q77: =IFERROR(VLOOKUP(E77,справочно!AB:AV,21,0),"") ->  | R77: =IFERROR(VLOOKUP(E77,справочно!$AB:$AU,20,0),"") ->  | S77: =IFERROR(INDEX(прайс!$1:$1048576,MATCH($E77,прайс!$C:$C,0),MATCH("БазоваяЦена",прайс!$1:$1,0)),"") ->  | U77: =IFERROR(INDEX(прайс!$1:$1048576,MATCH($E77,прайс!$C:$C,0),MATCH("БазоваяВалюта",прайс!$1:$1,0)),"") -> 
C78: =IF(ISBLANK(C77),IF(справочно!$AV$1>0,IF(ISBLANK(C77),1,IF(MAX(C$52:C77)+1>справочно!$AV$1,0,MAX(C$52:C77)+1)),"нет подходящих моделей"),IF($C$52="нет подходящих моделей","",IF((MAX(C$52:C77)+1)>справочно!$AV$1,"",MAX(C$52:C77)+1))) -> 27 | D78: FALSE | E78: =IFERROR(INDEX(справочно!AB:AB,MATCH(C78,справочно!AR:AR,0)),"") ->  | G78: =IFERROR(INDEX(справочно!AC:AC,MATCH(C78,справочно!AR:AR,0)),"") ->  | J78: =IFERROR(INDEX(справочно!AA:AA,MATCH(C78,справочно!AR:AR,0)),"") ->  | P78: =IFERROR(IF(VLOOKUP(E78,справочно!$AB:$AT,19,0)="ЗО","-","СО"),"") ->  | Q78: =IFERROR(VLOOKUP(E78,справочно!AB:AV,21,0),"") ->  | R78: =IFERROR(VLOOKUP(E78,справочно!$AB:$AU,20,0),"") ->  | S78: =IFERROR(INDEX(прайс!$1:$1048576,MATCH($E78,прайс!$C:$C,0),MATCH("БазоваяЦена",прайс!$1:$1,0)),"") ->  | U78: =IFERROR(INDEX(прайс!$1:$1048576,MATCH($E78,прайс!$C:$C,0),MATCH("БазоваяВалюта",прайс!$1:$1,0)),"") -> 
C79: =IF(ISBLANK(C78),IF(справочно!$AV$1>0,IF(ISBLANK(C78),1,IF(MAX(C$52:C78)+1>справочно!$AV$1,0,MAX(C$52:C78)+1)),"нет подходящих моделей"),IF($C$52="нет подходящих моделей","",IF((MAX(C$52:C78)+1)>справочно!$AV$1,"",MAX(C$52:C78)+1))) -> 28 | D79: FALSE | E79: =IFERROR(INDEX(справочно!AB:AB,MATCH(C79,справочно!AR:AR,0)),"") ->  | G79: =IFERROR(INDEX(справочно!AC:AC,MATCH(C79,справочно!AR:AR,0)),"") ->  | J79: =IFERROR(INDEX(справочно!AA:AA,MATCH(C79,справочно!AR:AR,0)),"") ->  | P79: =IFERROR(IF(VLOOKUP(E79,справочно!$AB:$AT,19,0)="ЗО","-","СО"),"") ->  | Q79: =IFERROR(VLOOKUP(E79,справочно!AB:AV,21,0),"") ->  | R79: =IFERROR(VLOOKUP(E79,справочно!$AB:$AU,20,0),"") ->  | S79: =IFERROR(INDEX(прайс!$1:$1048576,MATCH($E79,прайс!$C:$C,0),MATCH("БазоваяЦена",прайс!$1:$1,0)),"") ->  | U79: =IFERROR(INDEX(прайс!$1:$1048576,MATCH($E79,прайс!$C:$C,0),MATCH("БазоваяВалюта",прайс!$1:$1,0)),"") -> 
C80: =IF(ISBLANK(C79),IF(справочно!$AV$1>0,IF(ISBLANK(C79),1,IF(MAX(C$52:C79)+1>справочно!$AV$1,0,MAX(C$52:C79)+1)),"нет подходящих моделей"),IF($C$52="нет подходящих моделей","",IF((MAX(C$52:C79)+1)>справочно!$AV$1,"",MAX(C$52:C79)+1))) -> 29 | D80: FALSE | E80: =IFERROR(INDEX(справочно!AB:AB,MATCH(C80,справочно!AR:AR,0)),"") ->  | G80: =IFERROR(INDEX(справочно!AC:AC,MATCH(C80,справочно!AR:AR,0)),"") ->  | J80: =IFERROR(INDEX(справочно!AA:AA,MATCH(C80,справочно!AR:AR,0)),"") ->  | P80: =IFERROR(IF(VLOOKUP(E80,справочно!$AB:$AT,19,0)="ЗО","-","СО"),"") ->  | Q80: =IFERROR(VLOOKUP(E80,справочно!AB:AV,21,0),"") ->  | R80: =IFERROR(VLOOKUP(E80,справочно!$AB:$AU,20,0),"") ->  | S80: =IFERROR(INDEX(прайс!$1:$1048576,MATCH($E80,прайс!$C:$C,0),MATCH("БазоваяЦена",прайс!$1:$1,0)),"") ->  | U80: =IFERROR(INDEX(прайс!$1:$1048576,MATCH($E80,прайс!$C:$C,0),MATCH("БазоваяВалюта",прайс!$1:$1,0)),"") -> 
C81: =IF(ISBLANK(C80),IF(справочно!$AV$1>0,IF(ISBLANK(C80),1,IF(MAX(C$52:C80)+1>справочно!$AV$1,0,MAX(C$52:C80)+1)),"нет подходящих моделей"),IF($C$52="нет подходящих моделей","",IF((MAX(C$52:C80)+1)>справочно!$AV$1,"",MAX(C$52:C80)+1))) -> 30 | D81: FALSE | E81: =IFERROR(INDEX(справочно!AB:AB,MATCH(C81,справочно!AR:AR,0)),"") ->  | G81: =IFERROR(INDEX(справочно!AC:AC,MATCH(C81,справочно!AR:AR,0)),"") ->  | J81: =IFERROR(INDEX(справочно!AA:AA,MATCH(C81,справочно!AR:AR,0)),"") ->  | P81: =IFERROR(IF(VLOOKUP(E81,справочно!$AB:$AT,19,0)="ЗО","-","СО"),"") ->  | Q81: =IFERROR(VLOOKUP(E81,справочно!AB:AV,21,0),"") ->  | R81: =IFERROR(VLOOKUP(E81,справочно!$AB:$AU,20,0),"") ->  | S81: =IFERROR(INDEX(прайс!$1:$1048576,MATCH($E81,прайс!$C:$C,0),MATCH("БазоваяЦена",прайс!$1:$1,0)),"") ->  | U81: =IFERROR(INDEX(прайс!$1:$1048576,MATCH($E81,прайс!$C:$C,0),MATCH("БазоваяВалюта",прайс!$1:$1,0)),"") -> 
C82: =IF(ISBLANK(C81),IF(справочно!$AV$1>0,IF(ISBLANK(C81),1,IF(MAX(C$52:C81)+1>справочно!$AV$1,0,MAX(C$52:C81)+1)),"нет подходящих моделей"),IF($C$52="нет подходящих моделей","",IF((MAX(C$52:C81)+1)>справочно!$AV$1,"",MAX(C$52:C81)+1))) -> 31 | D82: FALSE | E82: =IFERROR(INDEX(справочно!AB:AB,MATCH(C82,справочно!AR:AR,0)),"") ->  | G82: =IFERROR(INDEX(справочно!AC:AC,MATCH(C82,справочно!AR:AR,0)),"") ->  | J82: =IFERROR(INDEX(справочно!AA:AA,MATCH(C82,справочно!AR:AR,0)),"") ->  | P82: =IFERROR(IF(VLOOKUP(E82,справочно!$AB:$AT,19,0)="ЗО","-","СО"),"") ->  | Q82: =IFERROR(VLOOKUP(E82,справочно!AB:AV,21,0),"") ->  | R82: =IFERROR(VLOOKUP(E82,справочно!$AB:$AU,20,0),"") ->  | S82: =IFERROR(INDEX(прайс!$1:$1048576,MATCH($E82,прайс!$C:$C,0),MATCH("БазоваяЦена",прайс!$1:$1,0)),"") ->  | U82: =IFERROR(INDEX(прайс!$1:$1048576,MATCH($E82,прайс!$C:$C,0),MATCH("БазоваяВалюта",прайс!$1:$1,0)),"") -> 
C83: =IF(ISBLANK(C82),IF(справочно!$AV$1>0,IF(ISBLANK(C82),1,IF(MAX(C$52:C82)+1>справочно!$AV$1,0,MAX(C$52:C82)+1)),"нет подходящих моделей"),IF($C$52="нет подходящих моделей","",IF((MAX(C$52:C82)+1)>справочно!$AV$1,"",MAX(C$52:C82)+1))) -> 32 | D83: FALSE | E83: =IFERROR(INDEX(справочно!AB:AB,MATCH(C83,справочно!AR:AR,0)),"") ->  | G83: =IFERROR(INDEX(справочно!AC:AC,MATCH(C83,справочно!AR:AR,0)),"") ->  | J83: =IFERROR(INDEX(справочно!AA:AA,MATCH(C83,справочно!AR:AR,0)),"") ->  | P83: =IFERROR(IF(VLOOKUP(E83,справочно!$AB:$AT,19,0)="ЗО","-","СО"),"") ->  | Q83: =IFERROR(VLOOKUP(E83,справочно!AB:AV,21,0),"") ->  | R83: =IFERROR(VLOOKUP(E83,справочно!$AB:$AU,20,0),"") ->  | S83: =IFERROR(INDEX(прайс!$1:$1048576,MATCH($E83,прайс!$C:$C,0),MATCH("БазоваяЦена",прайс!$1:$1,0)),"") ->  | U83: =IFERROR(INDEX(прайс!$1:$1048576,MATCH($E83,прайс!$C:$C,0),MATCH("БазоваяВалюта",прайс!$1:$1,0)),"") -> 
C84: =IF(ISBLANK(C83),IF(справочно!$AV$1>0,IF(ISBLANK(C83),1,IF(MAX(C$52:C83)+1>справочно!$AV$1,0,MAX(C$52:C83)+1)),"нет подходящих моделей"),IF($C$52="нет подходящих моделей","",IF((MAX(C$52:C83)+1)>справочно!$AV$1,"",MAX(C$52:C83)+1))) -> 33 | D84: FALSE | E84: =IFERROR(INDEX(справочно!AB:AB,MATCH(C84,справочно!AR:AR,0)),"") ->  | G84: =IFERROR(INDEX(справочно!AC:AC,MATCH(C84,справочно!AR:AR,0)),"") ->  | J84: =IFERROR(INDEX(справочно!AA:AA,MATCH(C84,справочно!AR:AR,0)),"") ->  | P84: =IFERROR(IF(VLOOKUP(E84,справочно!$AB:$AT,19,0)="ЗО","-","СО"),"") ->  | Q84: =IFERROR(VLOOKUP(E84,справочно!AB:AV,21,0),"") ->  | R84: =IFERROR(VLOOKUP(E84,справочно!$AB:$AU,20,0),"") ->  | S84: =IFERROR(INDEX(прайс!$1:$1048576,MATCH($E84,прайс!$C:$C,0),MATCH("БазоваяЦена",прайс!$1:$1,0)),"") ->  | U84: =IFERROR(INDEX(прайс!$1:$1048576,MATCH($E84,прайс!$C:$C,0),MATCH("БазоваяВалюта",прайс!$1:$1,0)),"") -> 
C85: =IF(ISBLANK(C84),IF(справочно!$AV$1>0,IF(ISBLANK(C84),1,IF(MAX(C$52:C84)+1>справочно!$AV$1,0,MAX(C$52:C84)+1)),"нет подходящих моделей"),IF($C$52="нет подходящих моделей","",IF((MAX(C$52:C84)+1)>справочно!$AV$1,"",MAX(C$52:C84)+1))) -> 34 | D85: FALSE | E85: =IFERROR(INDEX(справочно!AB:AB,MATCH(C85,справочно!AR:AR,0)),"") ->  | G85: =IFERROR(INDEX(справочно!AC:AC,MATCH(C85,справочно!AR:AR,0)),"") ->  | J85: =IFERROR(INDEX(справочно!AA:AA,MATCH(C85,справочно!AR:AR,0)),"") ->  | P85: =IFERROR(IF(VLOOKUP(E85,справочно!$AB:$AT,19,0)="ЗО","-","СО"),"") ->  | Q85: =IFERROR(VLOOKUP(E85,справочно!AB:AV,21,0),"") ->  | R85: =IFERROR(VLOOKUP(E85,справочно!$AB:$AU,20,0),"") ->  | S85: =IFERROR(INDEX(прайс!$1:$1048576,MATCH($E85,прайс!$C:$C,0),MATCH("БазоваяЦена",прайс!$1:$1,0)),"") ->  | U85: =IFERROR(INDEX(прайс!$1:$1048576,MATCH($E85,прайс!$C:$C,0),MATCH("БазоваяВалюта",прайс!$1:$1,0)),"") -> 
C86: =IF(ISBLANK(C85),IF(справочно!$AV$1>0,IF(ISBLANK(C85),1,IF(MAX(C$52:C85)+1>справочно!$AV$1,0,MAX(C$52:C85)+1)),"нет подходящих моделей"),IF($C$52="нет подходящих моделей","",IF((MAX(C$52:C85)+1)>справочно!$AV$1,"",MAX(C$52:C85)+1))) -> 35 | D86: FALSE | E86: =IFERROR(INDEX(справочно!AB:AB,MATCH(C86,справочно!AR:AR,0)),"") ->  | G86: =IFERROR(INDEX(справочно!AC:AC,MATCH(C86,справочно!AR:AR,0)),"") ->  | J86: =IFERROR(INDEX(справочно!AA:AA,MATCH(C86,справочно!AR:AR,0)),"") ->  | P86: =IFERROR(IF(VLOOKUP(E86,справочно!$AB:$AT,19,0)="ЗО","-","СО"),"") ->  | Q86: =IFERROR(VLOOKUP(E86,справочно!AB:AV,21,0),"") ->  | R86: =IFERROR(VLOOKUP(E86,справочно!$AB:$AU,20,0),"") ->  | S86: =IFERROR(INDEX(прайс!$1:$1048576,MATCH($E86,прайс!$C:$C,0),MATCH("БазоваяЦена",прайс!$1:$1,0)),"") ->  | U86: =IFERROR(INDEX(прайс!$1:$1048576,MATCH($E86,прайс!$C:$C,0),MATCH("БазоваяВалюта",прайс!$1:$1,0)),"") -> 

Sheet справочно (hidden)
AA1: Наименование | AB1: Код | AC1: Артикул | AK1: Глубина | AL1: Ширина | AM1: Длина | AN1: Тип решетки | AO1: Тип рамки | AP1: Цвет решетки | AQ1: Маркер | AR1: № | AS1: Мощность | AT1: ЗО | AU1: Объемный расход | AV1: Мощность точная | AW1: =SUM(AQ2:AQ1048576) -> 0
C2: =C3&C5 -> 75200 | D2: =D3&D5 -> 75250 | E2: 75300 | F2: 75400 | G2: 90200 | H2: 90250 | I2: 90300 | J2: 90400 | K2: 110200 | L2: 110250 | M2: 110300 | N2: 110400 | O2: 150200 | P2: 150250 | Q2: 150300 | R2: 150400 | S2: 190200 | T2: 190250 | U2: 190300 | V2: 190400 | X2: n | Y2: 1.32 | AA2: Конвектор внутрипольный Royal Thermo ATRIUM-75/200/800-DG-U-NA | AB2: НС-1477725 | AC2: RT-A-75/200/800-DG-U-NA | AD2: =SEARCH("-",AC2) -> 3 | AE2: =SEARCH("-",AC2,AD2+1) -> 5 | AF2: =SEARCH("/",AC2) -> 8 | AG2: =SEARCH("/",AC2,AF2+1) -> 12 | AH2: =SEARCH("-",AC2,AE2+1) -> 16 | AI2: =SEARCH("-",AC2,AH2+1) -> 19 | AJ2: =SEARCH("-",AC2,AI2+1) -> 21 | AK2: =MID($AC2,AE2+1,AF2-AE2-1)*1 -> 75 | AL2: =MID($AC2,AF2+1,AG2-AF2-1)*1 -> 200 | AM2: =MID($AC2,AG2+1,AH2-AG2-1)*1 -> 800 | AN2: =MID($AC2,AH2+1,AI2-AH2-1) -> DG | AO2: =MID($AC2,AI2+1,AJ2-AI2-1) -> U | AP2: =MID($AC2,AI2+3,LEN(AC2)-AI2-1) -> NA | AQ2: =IF((IFERROR(IF(VLOOKUP(AK2,X:Y,2,0)=TRUE,1,0),0)+IFERROR(IF(VLOOKUP(AL2,X:Y,2,0)=TRUE,1,0),0)+IFERROR(IF(VLOOKUP(AN2,X:Y,2,0)=TRUE,1,0),0)+IFERROR(IF(VLOOKUP(AO2,X:Y,2,0)=TRUE,1,0),0)+IFERROR(IF(VLOOKUP(AP2,X:Y,2,0)=TRUE,1,0),0)+IF(AND(AM2>=Калькулятор!$C$14,AM2<=Калькулятор!$E$14),1,0)+IF(OR(AND(AS2>=Калькулятор!$C$11,AS2<=IF(ISBLANK(Калькулятор!$E$11),100000,Калькулятор!$E$11)),Калькулятор!$C$11&Калькулятор!$E$11=""),1,0))=7,1,0) -> 0 | AR2: =SUM(AQ$2:AQ2) -> 0 | AS2: =IF(Калькулятор!$F$8<>70,ROUND(INDEX($C$6:$V$17,MATCH(AM2,$B$6:$B$17,0),MATCH(AK2&AL2,$C$2:$V$2,0))*(Калькулятор!$F$8/70)^справочно!$Y$2,0),ROUND(INDEX($C$6:$V$17,MATCH(AM2,$B$6:$B$17,0),MATCH(AK2&AL2,$C$2:$V$2,0)),0)) -> 175.00 | AT2: ЗО | AU2: =3.6*AV2/(4.19*(Калькулятор!$C$8-Калькулятор!$D$8)) -> 15.03 | AV2: =IF(Калькулятор!$F$8<>70,INDEX($C$6:$V$17,MATCH(AM2,$B$6:$B$17,0),MATCH(AK2&AL2,$C$2:$V$2,0))*(Калькулятор!$F$8/70)^справочно!$Y$2,INDEX($C$6:$V$17,MATCH(AM2,$B$6:$B$17,0),MATCH(AK2&AL2,$C$2:$V$2,0))) -> 174.90 | AW2: AU | BH2: U
C3: 75 | D3: 75 | E3: 75 | F3: 75 | G3: 90 | H3: 90 | I3: 90 | J3: 90 | K3: 110 | L3: 110 | M3: 110 | N3: 110 | O3: 150 | P3: 150 | Q3: 150 | R3: 150 | S3: 190 | T3: 190 | U3: 190 | V3: 190 | AA3: Конвектор внутрипольный Royal Thermo ATRIUM-75/200/1000-DG-U-NA | AB3: НС-1477692 | AC3: RT-A-75/200/1000-DG-U-NA | AD3: 3 | AE3: 5 | AF3: 8 | AG3: 12 | AH3: 17 | AI3: 20 | AJ3: 22 | AK3: 75 | AL3: 200 | AM3: 1000 | AN3: DG | AO3: U | AP3: NA | AQ3: =IF((IFERROR(IF(VLOOKUP(AK3,X:Y,2,0)=TRUE,1,0),0)+IFERROR(IF(VLOOKUP(AL3,X:Y,2,0)=TRUE,1,0),0)+IFERROR(IF(VLOOKUP(AN3,X:Y,2,0)=TRUE,1,0),0)+IFERROR(IF(VLOOKUP(AO3,X:Y,2,0)=TRUE,1,0),0)+IFERROR(IF(VLOOKUP(AP3,X:Y,2,0)=TRUE,1,0),0)+IF(AND(AM3>=Калькулятор!$C$14,AM3<=Калькулятор!$E$14),1,0)+IF(OR(AND(AS3>=Калькулятор!$C$11,AS3<=IF(ISBLANK(Калькулятор!$E$11),100000,Калькулятор!$E$11)),Калькулятор!$C$11&Калькулятор!$E$11=""),1,0))=7,1,0) -> 0 | AR3: =SUM(AQ$2:AQ3) -> 0 | AS3: =IF(Калькулятор!$F$8<>70,ROUND(INDEX($C$6:$V$17,MATCH(AM3,$B$6:$B$17,0),MATCH(AK3&AL3,$C$2:$V$2,0))*(Калькулятор!$F$8/70)^справочно!$Y$2,0),ROUND(INDEX($C$6:$V$17,MATCH(AM3,$B$6:$B$17,0),MATCH(AK3&AL3,$C$2:$V$2,0)),0)) -> 238.00 | AT3: - | AU3: =3.6*AV3/(4.19*(Калькулятор!$C$8-Калькулятор!$D$8)) -> 20.41 | AV3: =IF(Калькулятор!$F$8<>70,INDEX($C$6:$V$17,MATCH(AM3,$B$6:$B$17,0),MATCH(AK3&AL3,$C$2:$V$2,0))*(Калькулятор!$F$8/70)^справочно!$Y$2,INDEX($C$6:$V$17,MATCH(AM3,$B$6:$B$17,0),MATCH(AK3&AL3,$C$2:$V$2,0))) -> 237.60
B4: ширина/длина, мм | C4: Глубина 75мм | G4: Глубина 90мм | K4: Глубина 110мм | O4: Глубина 150мм | S4: Глубина 190мм | X4: 200 | Y4: FALSE | AA4: Конвектор внутрипольный Royal Thermo ATRIUM-75/200/1200-DG-U-NA | AB4: НС-1477695 | AC4: RT-A-75/200/1200-DG-U-NA | AD4: 3 | AE4: 5 | AF4: 8 | AG4: 12 | AH4: 17 | AI4: 20 | AJ4: 22 | AK4: 75 | AL4: 200 | AM4: 1200 | AN4: DG | AO4: U | AP4: NA | AQ4: =IF((IFERROR(IF(VLOOKUP(AK4,X:Y,2,0)=TRUE,1,0),0)+IFERROR(IF(VLOOKUP(AL4,X:Y,2,0)=TRUE,1,0),0)+IFERROR(IF(VLOOKUP(AN4,X:Y,2,0)=TRUE,1,0),0)+IFERROR(IF(VLOOKUP(AO4,X:Y,2,0)=TRUE,1,0),0)+IFERROR(IF(VLOOKUP(AP4,X:Y,2,0)=TRUE,1,0),0)+IF(AND(AM4>=Калькулятор!$C$14,AM4<=Калькулятор!$E$14),1,0)+IF(OR(AND(AS4>=Калькулятор!$C$11,AS4<=IF(ISBLANK(Калькулятор!$E$11),100000,Калькулятор!$E$11)),Калькулятор!$C$11&Калькулятор!$E$11=""),1,0))=7,1,0) -> 0 | AR4: =SUM(AQ$2:AQ4) -> 0 | AS4: =IF(Калькулятор!$F$8<>70,ROUND(INDEX($C$6:$V$17,MATCH(AM4,$B$6:$B$17,0),MATCH(AK4&AL4,$C$2:$V$2,0))*(Калькулятор!$F$8/70)^справочно!$Y$2,0),ROUND(INDEX($C$6:$V$17,MATCH(AM4,$B$6:$B$17,0),MATCH(AK4&AL4,$C$2:$V$2,0)),0)) -> 299.00 | AT4: - | AU4: =3.6*AV4/(4.19*(Калькулятор!$C$8-Калькулятор!$D$8)) -> 25.71 | AV4: =IF(Калькулятор!$F$8<>70,INDEX($C$6:$V$17,MATCH(AM4,$B$6:$B$17,0),MATCH(AK4&AL4,$C$2:$V$2,0))*(Калькулятор!$F$8/70)^справочно!$Y$2,INDEX($C$6:$V$17,MATCH(AM4,$B$6:$B$17,0),MATCH(AK4&AL4,$C$2:$V$2,0))) -> 299.20
C5: 200 | D5: 250 | E5: 300 | F5: 400 | G5: 200 | H5: 250 | I5: 300 | J5: 400 | K5: 200 | L5: 250 | M5: 300 | N5: 400 | O5: 200 | P5: 250 | Q5: 300 | R5: 400 | S5: 200 | T5: 250 | U5: 300 | V5: 400 | X5: 250 | Y5: FALSE | AA5: Конвектор внутрипольный Royal Thermo ATRIUM-75/200/1400-DG-U-NA | AB5: НС-1477698 | AC5: RT-A-75/200/1400-DG-U-NA | AD5: 3 | AE5: 5 | AF5: 8 | AG5: 12 | AH5: 17 | AI5: 20 | AJ5: 22 | AK5: 75 | AL5: 200 | AM5: 1400 | AN5: DG | AO5: U | AP5: NA | AQ5: =IF((IFERROR(IF(VLOOKUP(AK5,X:Y,2,0)=TRUE,1,0),0)+IFERROR(IF(VLOOKUP(AL5,X:Y,2,0)=TRUE,1,0),0)+IFERROR(IF(VLOOKUP(AN5,X:Y,2,0)=TRUE,1,0),0)+IFERROR(IF(VLOOKUP(AO5,X:Y,2,0)=TRUE,1,0),0)+IFERROR(IF(VLOOKUP(AP5,X:Y,2,0)=TRUE,1,0),0)+IF(AND(AM5>=Калькулятор!$C$14,AM5<=Калькулятор!$E$14),1,0)+IF(OR(AND(AS5>=Калькулятор!$C$11,AS5<=IF(ISBLANK(Калькулятор!$E$11),100000,Калькулятор!$E$11)),Калькулятор!$C$11&Калькулятор!$E$11=""),1,0))=7,1,0) -> 0 | AR5: =SUM(AQ$2:AQ5) -> 0 | AS5: =IF(Калькулятор!$F$8<>70,ROUND(INDEX($C$6:$V$17,MATCH(AM5,$B$6:$B$17,0),MATCH(AK5&AL5,$C$2:$V$2,0))*(Калькулятор!$F$8/70)^справочно!$Y$2,0),ROUND(INDEX($C$6:$V$17,MATCH(AM5,$B$6:$B$17,0),MATCH(AK5&AL5,$C$2:$V$2,0)),0)) -> 362.00 | AT5: - | AU5: =3.6*AV5/(4.19*(Калькулятор!$C$8-Калькулятор!$D$8)) -> 31.09 | AV5: =IF(Калькулятор!$F$8<>70,INDEX($C$6:$V$17,MATCH(AM5,$B$6:$B$17,0),MATCH(AK5&AL5,$C$2:$V$2,0))*(Калькулятор!$F$8/70)^справочно!$Y$2,INDEX($C$6:$V$17,MATCH(AM5,$B$6:$B$17,0),MATCH(AK5&AL5,$C$2:$V$2,0))) -> 361.90
B6: 800 | C6: 175 | D6: 216 | E6: 259 | F6: 351 | G6: 222 | H6: 290 | I6: 384 | J6: 516 | K6: 279 | L6: 356 | M6: 470 | N6: 659 | O6: 392 | P6: 503 | Q6: 630 | R6: 850 | S6: 446 | T6: 519 | U6: 817 | V6: 895 | X6: 300 | Y6: TRUE | AA6: Конвектор внутрипольный Royal Thermo ATRIUM-75/200/1600-DG-U-NA | AB6: НС-1477701 | AC6: RT-A-75/200/1600-DG-U-NA | AD6: 3 | AE6: 5 | AF6: 8 | AG6: 12 | AH6: 17 | AI6: 20 | AJ6: 22 | AK6: 75 | AL6: 200 | AM6: 1600 | AN6: DG | AO6: U | AP6: NA | AQ6: =IF((IFERROR(IF(VLOOKUP(AK6,X:Y,2,0)=TRUE,1,0),0)+IFERROR(IF(VLOOKUP(AL6,X:Y,2,0)=TRUE,1,0),0)+IFERROR(IF(VLOOKUP(AN6,X:Y,2,0)=TRUE,1,0),0)+IFERROR(IF(VLOOKUP(AO6,X:Y,2,0)=TRUE,1,0),0)+IFERROR(IF(VLOOKUP(AP6,X:Y,2,0)=TRUE,1,0),0)+IF(AND(AM6>=Калькулятор!$C$14,AM6<=Калькулятор!$E$14),1,0)+IF(OR(AND(AS6>=Калькулятор!$C$11,AS6<=IF(ISBLANK(Калькулятор!$E$11),100000,Калькулятор!$E$11)),Калькулятор!$C$11&Калькулятор!$E$11=""),1,0))=7,1,0) -> 0 | AR6: =SUM(AQ$2:AQ6) -> 0 | AS6: =IF(Калькулятор!$F$8<>70,ROUND(INDEX($C$6:$V$17,MATCH(AM6,$B$6:$B$17,0),MATCH(AK6&AL6,$C$2:$V$2,0))*(Калькулятор!$F$8/70)^справочно!$Y$2,0),ROUND(INDEX($C$6:$V$17,MATCH(AM6,$B$6:$B$17,0),MATCH(AK6&AL6,$C$2:$V$2,0)),0)) -> 425.00 | AT6: - | AU6: =3.6*AV6/(4.19*(Калькулятор!$C$8-Калькулятор!$D$8)) -> 36.48 | AV6: =IF(Калькулятор!$F$8<>70,INDEX($C$6:$V$17,MATCH(AM6,$B$6:$B$17,0),MATCH(AK6&AL6,$C$2:$V$2,0))*(Калькулятор!$F$8/70)^справочно!$Y$2,INDEX($C$6:$V$17,MATCH(AM6,$B$6:$B$17,0),MATCH(AK6&AL6,$C$2:$V$2,0))) -> 424.60
B7: 1000 | C7: 238 | D7: 293 | E7: 351 | F7: 476 | G7: 306 | H7: 388 | I7: 494 | J7: 671 | K7: 384 | L7: 475 | M7: 605 | N7: 857 | O7: 536 | P7: 671 | Q7: 812 | R7: 1,104 | S7: 616 | T7: 692 | U7: 1,052 | V7: 1,164 | X7: 400 | Y7: TRUE | AA7: Конвектор внутрипольный Royal Thermo ATRIUM-75/200/1800-DG-U-NA | AB7: НС-1477704 | AC7: RT-A-75/200/1800-DG-U-NA | AD7: 3 | AE7: 5 | AF7: 8 | AG7: 12 | AH7: 17 | AI7: 20 | AJ7: 22 | AK7: 75 | AL7: 200 | AM7: 1800 | AN7: DG | AO7: U | AP7: NA | AQ7: =IF((IFERROR(IF(VLOOKUP(AK7,X:Y,2,0)=TRUE,1,0),0)+IFERROR(IF(VLOOKUP(AL7,X:Y,2,0)=TRUE,1,0),0)+IFERROR(IF(VLOOKUP(AN7,X:Y,2,0)=TRUE,1,0),0)+IFERROR(IF(VLOOKUP(AO7,X:Y,2,0)=TRUE,1,0),0)+IFERROR(IF(VLOOKUP(AP7,X:Y,2,0)=TRUE,1,0),0)+IF(AND(AM7>=Калькулятор!$C$14,AM7<=Калькулятор!$E$14),1,0)+IF(OR(AND(AS7>=Калькулятор!$C$11,AS7<=IF(ISBLANK(Калькулятор!$E$11),100000,Калькулятор!$E$11)),Калькулятор!$C$11&Калькулятор!$E$11=""),1,0))=7,1,0) -> 0 | AR7: =SUM(AQ$2:AQ7) -> 0 | AS7: =IF(Калькулятор!$F$8<>70,ROUND(INDEX($C$6:$V$17,MATCH(AM7,$B$6:$B$17,0),MATCH(AK7&AL7,$C$2:$V$2,0))*(Калькулятор!$F$8/70)^справочно!$Y$2,0),ROUND(INDEX($C$6:$V$17,MATCH(AM7,$B$6:$B$17,0),MATCH(AK7&AL7,$C$2:$V$2,0)),0)) -> 487.00 | AT7: - | AU7: =3.6*AV7/(4.19*(Калькулятор!$C$8-Калькулятор!$D$8)) -> 41.87 | AV7: =IF(Калькулятор!$F$8<>70,INDEX($C$6:$V$17,MATCH(AM7,$B$6:$B$17,0),MATCH(AK7&AL7,$C$2:$V$2,0))*(Калькулятор!$F$8/70)^справочно!$Y$2,INDEX($C$6:$V$17,MATCH(AM7,$B$6:$B$17,0),MATCH(AK7&AL7,$C$2:$V$2,0))) -> 487.30
B8: 1200 | C8: 299 | D8: 370 | E8: 444 | F8: 603 | G8: 391 | H8: 485 | I8: 605 | J8: 826 | K8: 490 | L8: 595 | M8: 741 | N8: 1,054 | O8: 686 | P8: 839 | Q8: 993 | R8: 1,360 | S8: 784 | T8: 866 | U8: 1,287 | V8: 1,433 | AA8: Конвектор внутрипольный Royal Thermo ATRIUM-75/200/2000-DG-U-NA | AB8: НС-1477707 | AC8: RT-A-75/200/2000-DG-U-NA | AD8: 3 | AE8: 5 | AF8: 8 | AG8: 12 | AH8: 17 | AI8: 20 | AJ8: 22 | AK8: 75 | AL8: 200 | AM8: 2000 | AN8: DG | AO8: U | AP8: NA | AQ8: =IF((IFERROR(IF(VLOOKUP(AK8,X:Y,2,0)=TRUE,1,0),0)+IFERROR(IF(VLOOKUP(AL8,X:Y,2,0)=TRUE,1,0),0)+IFERROR(IF(VLOOKUP(AN8,X:Y,2,0)=TRUE,1,0),0)+IFERROR(IF(VLOOKUP(AO8,X:Y,2,0)=TRUE,1,0),0)+IFERROR(IF(VLOOKUP(AP8,X:Y,2,0)=TRUE,1,0),0)+IF(AND(AM8>=Калькулятор!$C$14,AM8<=Калькулятор!$E$14),1,0)+IF(OR(AND(AS8>=Калькулятор!$C$11,AS8<=IF(ISBLANK(Калькулятор!$E$11),100000,Калькулятор!$E$11)),Калькулятор!$C$11&Калькулятор!$E$11=""),1,0))=7,1,0) -> 0 | AR8: =SUM(AQ$2:AQ8) -> 0 | AS8: =IF(Калькулятор!$F$8<>70,ROUND(INDEX($C$6:$V$17,MATCH(AM8,$B$6:$B$17,0),MATCH(AK8&AL8,$C$2:$V$2,0))*(Калькулятор!$F$8/70)^справочно!$Y$2,0),ROUND(INDEX($C$6:$V$17,MATCH(AM8,$B$6:$B$17,0),MATCH(AK8&AL8,$C$2:$V$2,0)),0)) -> 550.00 | AT8: - | AU8: =3.6*AV8/(4.19*(Калькулятор!$C$8-Калькулятор!$D$8)) -> 47.26 | AV8: =IF(Калькулятор!$F$8<>70,INDEX($C$6:$V$17,MATCH(AM8,$B$6:$B$17,0),MATCH(AK8&AL8,$C$2:$V$2,0))*(Калькулятор!$F$8/70)^справочно!$Y$2,INDEX($C$6:$V$17,MATCH(AM8,$B$6:$B$17,0),MATCH(AK8&AL8,$C$2:$V$2,0))) -> 550.00
B9: 1400 | C9: 362 | D9: 448 | E9: 537 | F9: 728 | G9: 474 | H9: 580 | I9: 718 | J9: 977 | K9: 595 | L9: 714 | M9: 877 | N9: 1,251 | O9: 835 | P9: 1,008 | Q9: 1,176 | R9: 1,615 | S9: 953 | T9: 1,038 | U9: 1,521 | V9: 1,700 | AA9: Конвектор внутрипольный Royal Thermo ATRIUM-75/200/2200-DG-U-NA | AB9: НС-1477710 | AC9: RT-A-75/200/2200-DG-U-NA | AD9: 3 | AE9: 5 | AF9: 8 | AG9: 12 | AH9: 17 | AI9: 20 | AJ9: 22 | AK9: 75 | AL9: 200 | AM9: 2200 | AN9: DG | AO9: U | AP9: NA | AQ9: =IF((IFERROR(IF(VLOOKUP(AK9,X:Y,2,0)=TRUE,1,0),0)+IFERROR(IF(VLOOKUP(AL9,X:Y,2,0)=TRUE,1,0),0)+IFERROR(IF(VLOOKUP(AN9,X:Y,2,0)=TRUE,1,0),0)+IFERROR(IF(VLOOKUP(AO9,X:Y,2,0)=TRUE,1,0),0)+IFERROR(IF(VLOOKUP(AP9,X:Y,2,0)=TRUE,1,0),0)+IF(AND(AM9>=Калькулятор!$C$14,AM9<=Калькулятор!$E$14),1,0)+IF(OR(AND(AS9>=Калькулятор!$C$11,AS9<=IF(ISBLANK(Калькулятор!$E$11),100000,Калькулятор!$E$11)),Калькулятор!$C$11&Калькулятор!$E$11=""),1,0))=7,1,0) -> 0 | AR9: =SUM(AQ$2:AQ9) -> 0 | AS9: =IF(Калькулятор!$F$8<>70,ROUND(INDEX($C$6:$V$17,MATCH(AM9,$B$6:$B$17,0),MATCH(AK9&AL9,$C$2:$V$2,0))*(Калькулятор!$F$8/70)^справочно!$Y$2,0),ROUND(INDEX($C$6:$V$17,MATCH(AM9,$B$6:$B$17,0),MATCH(AK9&AL9,$C$2:$V$2,0)),0)) -> 613.00 | AT9: - | AU9: =3.6*AV9/(4.19*(Калькулятор!$C$8-Калькулятор!$D$8)) -> 52.64 | AV9: =IF(Калькулятор!$F$8<>70,INDEX($C$6:$V$17,MATCH(AM9,$B$6:$B$17,0),MATCH(AK9&AL9,$C$2:$V$2,0))*(Калькулятор!$F$8/70)^справочно!$Y$2,INDEX($C$6:$V$17,MATCH(AM9,$B$6:$B$17,0),MATCH(AK9&AL9,$C$2:$V$2,0))) -> 612.70
B10: 1600 | C10: 425 | D10: 525 | E10: 629 | F10: 854 | G10: 559 | H10: 680 | I10: 826 | J10: 1,135 | K10: 701 | L10: 834 | M10: 1,012 | N10: 1,449 | O10: 982 | P10: 1,176 | Q10: 1,356 | R10: 1,870 | S10: 1,124 | T10: 1,212 | U10: 1,758 | V10: 1,969 | AA10: Конвектор внутрипольный Royal Thermo ATRIUM-75/200/2400-DG-U-NA | AB10: НС-1477713 | AC10: RT-A-75/200/2400-DG-U-NA | AD10: 3 | AE10: 5 | AF10: 8 | AG10: 12 | AH10: 17 | AI10: 20 | AJ10: 22 | AK10: 75 | AL10: 200 | AM10: 2400 | AN10: DG | AO10: U | AP10: NA | AQ10: =IF((IFERROR(IF(VLOOKUP(AK10,X:Y,2,0)=TRUE,1,0),0)+IFERROR(IF(VLOOKUP(AL10,X:Y,2,0)=TRUE,1,0),0)+IFERROR(IF(VLOOKUP(AN10,X:Y,2,0)=TRUE,1,0),0)+IFERROR(IF(VLOOKUP(AO10,X:Y,2,0)=TRUE,1,0),0)+IFERROR(IF(VLOOKUP(AP10,X:Y,2,0)=TRUE,1,0),0)+IF(AND(AM10>=Калькулятор!$C$14,AM10<=Калькулятор!$E$14),1,0)+IF(OR(AND(AS10>=Калькулятор!$C$11,AS10<=IF(ISBLANK(Калькулятор!$E$11),100000,Калькулятор!$E$11)),Калькулятор!$C$11&Калькулятор!$E$11=""),1,0))=7,1,0) -> 0 | AR10: =SUM(AQ$2:AQ10) -> 0 | AS10: =IF(Калькулятор!$F$8<>70,ROUND(INDEX($C$6:$V$17,MATCH(AM10,$B$6:$B$17,0),MATCH(AK10&AL10,$C$2:$V$2,0))*(Калькулятор!$F$8/70)^справочно!$Y$2,0),ROUND(INDEX($C$6:$V$17,MATCH(AM10,$B$6:$B$17,0),MATCH(AK10&AL10,$C$2:$V$2,0)),0)) -> 678.00 | AT10: - | AU10: =3.6*AV10/(4.19*(Калькулятор!$C$8-Калькулятор!$D$8)) -> 58.22 | AV10: =IF(Калькулятор!$F$8<>70,INDEX($C$6:$V$17,MATCH(AM10,$B$6:$B$17,0),MATCH(AK10&AL10,$C$2:$V$2,0))*(Калькулятор!$F$8/70)^справочно!$Y$2,INDEX($C$6:$V$17,MATCH(AM10,$B$6:$B$17,0),MATCH(AK10&AL10,$C$2:$V$2,0))) -> 677.60
B11: 1800 | C11: 487 | D11: 602 | E11: 723 | F11: 980 | G11: 642 | H11: 778 | I11: 936 | J11: 1,290 | K11: 806 | L11: 954 | M11: 1,147 | N11: 1,647 | O11: 1,130 | P11: 1,343 | Q11: 1,539 | R11: 2,124 | S11: 1,291 | T11: 1,387 | U11: 1,994 | V11: 2,237 | X11: 75 | Y11: FALSE | AA11: Конвектор внутрипольный Royal Thermo ATRIUM-75/200/2600-DG-U-NA | AB11: НС-1477716 | AC11: RT-A-75/200/2600-DG-U-NA | AD11: 3 | AE11: 5 | AF11: 8 | AG11: 12 | AH11: 17 | AI11: 20 | AJ11: 22 | AK11: 75 | AL11: 200 | AM11: 2600 | AN11: DG | AO11: U | AP11: NA | AQ11: =IF((IFERROR(IF(VLOOKUP(AK11,X:Y,2,0)=TRUE,1,0),0)+IFERROR(IF(VLOOKUP(AL11,X:Y,2,0)=TRUE,1,0),0)+IFERROR(IF(VLOOKUP(AN11,X:Y,2,0)=TRUE,1,0),0)+IFERROR(IF(VLOOKUP(AO11,X:Y,2,0)=TRUE,1,0),0)+IFERROR(IF(VLOOKUP(AP11,X:Y,2,0)=TRUE,1,0),0)+IF(AND(AM11>=Калькулятор!$C$14,AM11<=Калькулятор!$E$14),1,0)+IF(OR(AND(AS11>=Калькулятор!$C$11,AS11<=IF(ISBLANK(Калькулятор!$E$11),100000,Калькулятор!$E$11)),Калькулятор!$C$11&Калькулятор!$E$11=""),1,0))=7,1,0) -> 0 | AR11: =SUM(AQ$2:AQ11) -> 0 | AS11: =IF(Калькулятор!$F$8<>70,ROUND(INDEX($C$6:$V$17,MATCH(AM11,$B$6:$B$17,0),MATCH(AK11&AL11,$C$2:$V$2,0))*(Калькулятор!$F$8/70)^справочно!$Y$2,0),ROUND(INDEX($C$6:$V$17,MATCH(AM11,$B$6:$B$17,0),MATCH(AK11&AL11,$C$2:$V$2,0)),0)) -> 740.00 | AT11: ЗО | AU11: =3.6*AV11/(4.19*(Калькулятор!$C$8-Калькулятор!$D$8)) -> 63.61 | AV11: =IF(Калькулятор!$F$8<>70,INDEX($C$6:$V$17,MATCH(AM11,$B$6:$B$17,0),MATCH(AK11&AL11,$C$2:$V$2,0))*(Калькулятор!$F$8/70)^справочно!$Y$2,INDEX($C$6:$V$17,MATCH(AM11,$B$6:$B$17,0),MATCH(AK11&AL11,$C$2:$V$2,0))) -> 740.30 | BH11: F
B12: 2000 | C12: 550 | D12: 680 | E12: 815 | F12: 1,106 | G12: 726 | H12: 875 | I12: 1,047 | J12: 1,445 | K12: 912 | L12: 1,073 | M12: 1,284 | N12: 1,845 | O12: 1,278 | P12: 1,513 | Q12: 1,719 | R12: 2,378 | S12: 1,461 | T12: 1,561 | U12: 2,228 | V12: 2,506 | X12: 90 | Y12: FALSE | AA12: Конвектор внутрипольный Royal Thermo ATRIUM-75/200/2800-DG-U-NA | AB12: НС-1477719 | AC12: RT-A-75/200/2800-DG-U-NA | AD12: 3 | AE12: 5 | AF12: 8 | AG12: 12 | AH12: 17 | AI12: 20 | AJ12: 22 | AK12: 75 | AL12: 200 | AM12: 2800 | AN12: DG | AO12: U | AP12: NA | AQ12: =IF((IFERROR(IF(VLOOKUP(AK12,X:Y,2,0)=TRUE,1,0),0)+IFERROR(IF(VLOOKUP(AL12,X:Y,2,0)=TRUE,1,0),0)+IFERROR(IF(VLOOKUP(AN12,X:Y,2,0)=TRUE,1,0),0)+IFERROR(IF(VLOOKUP(AO12,X:Y,2,0)=TRUE,1,0),0)+IFERROR(IF(VLOOKUP(AP12,X:Y,2,0)=TRUE,1,0),0)+IF(AND(AM12>=Калькулятор!$C$14,AM12<=Калькулятор!$E$14),1,0)+IF(OR(AND(AS12>=Калькулятор!$C$11,AS12<=IF(ISBLANK(Калькулятор!$E$11),100000,Калькулятор!$E$11)),Калькулятор!$C$11&Калькулятор!$E$11=""),1,0))=7,1,0) -> 0 | AR12: =SUM(AQ$2:AQ12) -> 0 | AS12: =IF(Калькулятор!$F$8<>70,ROUND(INDEX($C$6:$V$17,MATCH(AM12,$B$6:$B$17,0),MATCH(AK12&AL12,$C$2:$V$2,0))*(Калькулятор!$F$8/70)^справочно!$Y$2,0),ROUND(INDEX($C$6:$V$17,MATCH(AM12,$B$6:$B$17,0),MATCH(AK12&AL12,$C$2:$V$2,0)),0)) -> 803.00 | AT12: ЗО | AU12: =3.6*AV12/(4.19*(Калькулятор!$C$8-Калькулятор!$D$8)) -> 68.99 | AV12: =IF(Калькулятор!$F$8<>70,INDEX($C$6:$V$17,MATCH(AM12,$B$6:$B$17,0),MATCH(AK12&AL12,$C$2:$V$2,0))*(Калькулятор!$F$8/70)^справочно!$Y$2,INDEX($C$6:$V$17,MATCH(AM12,$B$6:$B$17,0),MATCH(AK12&AL12,$C$2:$V$2,0))) -> 803.00
B13: 2200 | C13: 613 | D13: 757 | E13: 908 | F13: 1,232 | G13: 811 | H13: 971 | I13: 1,157 | J13: 1,599 | K13: 1,018 | L13: 1,191 | M13: 1,419 | N13: 2,042 | O13: 1,426 | P13: 1,680 | Q13: 1,902 | R13: 2,635 | S13: 1,631 | T13: 1,734 | U13: 2,463 | V13: 2,774 | X13: 110 | Y13: TRUE | AA13: Конвектор внутрипольный Royal Thermo ATRIUM-75/200/3000-DG-U-NA | AB13: НС-1477722 | AC13: RT-A-75/200/3000-DG-U-NA | AD13: 3 | AE13: 5 | AF13: 8 | AG13: 12 | AH13: 17 | AI13: 20 | AJ13: 22 | AK13: 75 | AL13: 200 | AM13: 3000 | AN13: DG | AO13: U | AP13: NA | AQ13: =IF((IFERROR(IF(VLOOKUP(AK13,X:Y,2,0)=TRUE,1,0),0)+IFERROR(IF(VLOOKUP(AL13,X:Y,2,0)=TRUE,1,0),0)+IFERROR(IF(VLOOKUP(AN13,X:Y,2,0)=TRUE,1,0),0)+IFERROR(IF(VLOOKUP(AO13,X:Y,2,0)=TRUE,1,0),0)+IFERROR(IF(VLOOKUP(AP13,X:Y,2,0)=TRUE,1,0),0)+IF(AND(AM13>=Калькулятор!$C$14,AM13<=Калькулятор!$E$14),1,0)+IF(OR(AND(AS13>=Калькулятор!$C$11,AS13<=IF(ISBLANK(Калькулятор!$E$11),100000,Калькулятор!$E$11)),Калькулятор!$C$11&Калькулятор!$E$11=""),1,0))=7,1,0) -> 0 | AR13: =SUM(AQ$2:AQ13) -> 0 | AS13: =IF(Калькулятор!$F$8<>70,ROUND(INDEX($C$6:$V$17,MATCH(AM13,$B$6:$B$17,0),MATCH(AK13&AL13,$C$2:$V$2,0))*(Калькулятор!$F$8/70)^справочно!$Y$2,0),ROUND(INDEX($C$6:$V$17,MATCH(AM13,$B$6:$B$17,0),MATCH(AK13&AL13,$C$2:$V$2,0)),0)) -> 866.00 | AT13: ЗО | AU13: =3.6*AV13/(4.19*(Калькулятор!$C$8-Калькулятор!$D$8)) -> 74.38 | AV13: =IF(Калькулятор!$F$8<>70,INDEX($C$6:$V$17,MATCH(AM13,$B$6:$B$17,0),MATCH(AK13&AL13,$C$2:$V$2,0))*(Калькулятор!$F$8/70)^справочно!$Y$2,INDEX($C$6:$V$17,MATCH(AM13,$B$6:$B$17,0),MATCH(AK13&AL13,$C$2:$V$2,0))) -> 865.70
B14: 2400 | C14: 678 | D14: 836 | E14: 1,003 | F14: 1,362 | G14: 894 | H14: 1,091 | I14: 1,268 | J14: 1,755 | K14: 1,123 | L14: 1,338 | M14: 1,554 | N14: 2,239 | O14: 1,573 | P14: 1,887 | Q14: 2,083 | R14: 2,889 | S14: 1,799 | T14: 1,947 | U14: 2,699 | V14: 3,042 | X14: 150 | Y14: TRUE | AA14: Конвектор внутрипольный Royal Thermo ATRIUM-75/250/800-DG-U-NA | AB14: НС-1477764 | AC14: RT-A-75/250/800-DG-U-NA | AD14: 3 | AE14: 5 | AF14: 8 | AG14: 12 | AH14: 16 | AI14: 19 | AJ14: 21 | AK14: 75 | AL14: 250 | AM14: 800 | AN14: DG | AO14: U | AP14: NA | AQ14: =IF((IFERROR(IF(VLOOKUP(AK14,X:Y,2,0)=TRUE,1,0),0)+IFERROR(IF(VLOOKUP(AL14,X:Y,2,0)=TRUE,1,0),0)+IFERROR(IF(VLOOKUP(AN14,X:Y,2,0)=TRUE,1,0),0)+IFERROR(IF(VLOOKUP(AO14,X:Y,2,0)=TRUE,1,0),0)+IFERROR(IF(VLOOKUP(AP14,X:Y,2,0)=TRUE,1,0),0)+IF(AND(AM14>=Калькулятор!$C$14,AM14<=Калькулятор!$E$14),1,0)+IF(OR(AND(AS14>=Калькулятор!$C$11,AS14<=IF(ISBLANK(Калькулятор!$E$11),100000,Калькулятор!$E$11)),Калькулятор!$C$11&Калькулятор!$E$11=""),1,0))=7,1,0) -> 0 | AR14: =SUM(AQ$2:AQ14) -> 0 | AS14: =IF(Калькулятор!$F$8<>70,ROUND(INDEX($C$6:$V$17,MATCH(AM14,$B$6:$B$17,0),MATCH(AK14&AL14,$C$2:$V$2,0))*(Калькулятор!$F$8/70)^справочно!$Y$2,0),ROUND(INDEX($C$6:$V$17,MATCH(AM14,$B$6:$B$17,0),MATCH(AK14&AL14,$C$2:$V$2,0)),0)) -> 216.00 | AT14: ЗО | AU14: =3.6*AV14/(4.19*(Калькулятор!$C$8-Калькулятор!$D$8)) -> 18.52 | AV14: =IF(Калькулятор!$F$8<>70,INDEX($C$6:$V$17,MATCH(AM14,$B$6:$B$17,0),MATCH(AK14&AL14,$C$2:$V$2,0))*(Калькулятор!$F$8/70)^справочно!$Y$2,INDEX($C$6:$V$17,MATCH(AM14,$B$6:$B$17,0),MATCH(AK14&AL14,$C$2:$V$2,0))) -> 215.60
B15: 2600 | C15: 740 | D15: 914 | E15: 1,097 | F15: 1,487 | G15: 978 | H15: 1,205 | I15: 1,378 | J15: 1,910 | K15: 1,229 | L15: 1,458 | M15: 1,690 | N15: 2,437 | O15: 1,720 | P15: 2,054 | Q15: 2,265 | R15: 3,143 | S15: 1,968 | T15: 2,121 | U15: 2,935 | V15: 3,311 | X15: 190 | Y15: TRUE | AA15: Конвектор внутрипольный Royal Thermo ATRIUM-75/250/1000-DG-U-NA | AB15: НС-1477731 | AC15: RT-A-75/250/1000-DG-U-NA | AD15: 3 | AE15: 5 | AF15: 8 | AG15: 12 | AH15: 17 | AI15: 20 | AJ15: 22 | AK15: 75 | AL15: 250 | AM15: 1000 | AN15: DG | AO15: U | AP15: NA | AQ15: =IF((IFERROR(IF(VLOOKUP(AK15,X:Y,2,0)=TRUE,1,0),0)+IFERROR(IF(VLOOKUP(AL15,X:Y,2,0)=TRUE,1,0),0)+IFERROR(IF(VLOOKUP(AN15,X:Y,2,0)=TRUE,1,0),0)+IFERROR(IF(VLOOKUP(AO15,X:Y,2,0)=TRUE,1,0),0)+IFERROR(IF(VLOOKUP(AP15,X:Y,2,0)=TRUE,1,0),0)+IF(AND(AM15>=Калькулятор!$C$14,AM15<=Калькулятор!$E$14),1,0)+IF(OR(AND(AS15>=Калькулятор!$C$11,AS15<=IF(ISBLANK(Калькулятор!$E$11),100000,Калькулятор!$E$11)),Калькулятор!$C$11&Калькулятор!$E$11=""),1,0))=7,1,0) -> 0 | AR15: =SUM(AQ$2:AQ15) -> 0 | AS15: =IF(Калькулятор!$F$8<>70,ROUND(INDEX($C$6:$V$17,MATCH(AM15,$B$6:$B$17,0),MATCH(AK15&AL15,$C$2:$V$2,0))*(Калькулятор!$F$8/70)^справочно!$Y$2,0),ROUND(INDEX($C$6:$V$17,MATCH(AM15,$B$6:$B$17,0),MATCH(AK15&AL15,$C$2:$V$2,0)),0)) -> 293.00 | AT15: - | AU15: =3.6*AV15/(4.19*(Калькулятор!$C$8-Калькулятор!$D$8)) -> 25.14 | AV15: =IF(Калькулятор!$F$8<>70,INDEX($C$6:$V$17,MATCH(AM15,$B$6:$B$17,0),MATCH(AK15&AL15,$C$2:$V$2,0))*(Калькулятор!$F$8/70)^справочно!$Y$2,INDEX($C$6:$V$17,MATCH(AM15,$B$6:$B$17,0),MATCH(AK15&AL15,$C$2:$V$2,0))) -> 292.60
B16: 2800 | C16: 803 | D16: 991 | E16: 1,189 | F16: 1,614 | G16: 1,063 | H16: 1,286 | I16: 1,489 | J16: 2,064 | K16: 1,334 | L16: 1,576 | M16: 1,825 | N16: 2,635 | O16: 1,869 | P16: 2,223 | Q16: 2,446 | R16: 3,399 | S16: 2,137 | T16: 2,294 | U16: 3,169 | V16: 3,579 | AA16: Конвектор внутрипольный Royal Thermo ATRIUM-75/250/1200-DG-U-NA | AB16: НС-1477734 | AC16: RT-A-75/250/1200-DG-U-NA | AD16: 3 | AE16: 5 | AF16: 8 | AG16: 12 | AH16: 17 | AI16: 20 | AJ16: 22 | AK16: 75 | AL16: 250 | AM16: 1200 | AN16: DG | AO16: U | AP16: NA | AQ16: =IF((IFERROR(IF(VLOOKUP(AK16,X:Y,2,0)=TRUE,1,0),0)+IFERROR(IF(VLOOKUP(AL16,X:Y,2,0)=TRUE,1,0),0)+IFERROR(IF(VLOOKUP(AN16,X:Y,2,0)=TRUE,1,0),0)+IFERROR(IF(VLOOKUP(AO16,X:Y,2,0)=TRUE,1,0),0)+IFERROR(IF(VLOOKUP(AP16,X:Y,2,0)=TRUE,1,0),0)+IF(AND(AM16>=Калькулятор!$C$14,AM16<=Калькулятор!$E$14),1,0)+IF(OR(AND(AS16>=Калькулятор!$C$11,AS16<=IF(ISBLANK(Калькулятор!$E$11),100000,Калькулятор!$E$11)),Калькулятор!$C$11&Калькулятор!$E$11=""),1,0))=7,1,0) -> 0 | AR16: =SUM(AQ$2:AQ16) -> 0 | AS16: =IF(Калькулятор!$F$8<>70,ROUND(INDEX($C$6:$V$17,MATCH(AM16,$B$6:$B$17,0),MATCH(AK16&AL16,$C$2:$V$2,0))*(Калькулятор!$F$8/70)^справочно!$Y$2,0),ROUND(INDEX($C$6:$V$17,MATCH(AM16,$B$6:$B$17,0),MATCH(AK16&AL16,$C$2:$V$2,0)),0)) -> 370.00 | AT16: - | AU16: =3.6*AV16/(4.19*(Калькулятор!$C$8-Калькулятор!$D$8)) -> 31.76 | AV16: =IF(Калькулятор!$F$8<>70,INDEX($C$6:$V$17,MATCH(AM16,$B$6:$B$17,0),MATCH(AK16&AL16,$C$2:$V$2,0))*(Калькулятор!$F$8/70)^справочно!$Y$2,INDEX($C$6:$V$17,MATCH(AM16,$B$6:$B$17,0),MATCH(AK16&AL16,$C$2:$V$2,0))) -> 369.60
B17: 3000 | C17: 866 | D17: 1,068 | E17: 1,282 | F17: 1,739 | G17: 1,146 | H17: 1,383 | I17: 1,599 | J17: 2,219 | K17: 1,440 | L17: 1,695 | M17: 1,961 | N17: 2,831 | O17: 2,016 | P17: 2,391 | Q17: 2,629 | R17: 3,653 | S17: 2,306 | T17: 2,468 | U17: 3,405 | V17: 3,848 | X17: DG | Y17: FALSE | AA17: Конвектор внутрипольный Royal Thermo ATRIUM-75/250/1400-DG-U-NA | AB17: НС-1477737 | AC17: RT-A-75/250/1400-DG-U-NA | AD17: 3 | AE17: 5 | AF17: 8 | AG17: 12 | AH17: 17 | AI17: 20 | AJ17: 22 | AK17: 75 | AL17: 250 | AM17: 1400 | AN17: DG | AO17: U | AP17: NA | AQ17: =IF((IFERROR(IF(VLOOKUP(AK17,X:Y,2,0)=TRUE,1,0),0)+IFERROR(IF(VLOOKUP(AL17,X:Y,2,0)=TRUE,1,0),0)+IFERROR(IF(VLOOKUP(AN17,X:Y,2,0)=TRUE,1,0),0)+IFERROR(IF(VLOOKUP(AO17,X:Y,2,0)=TRUE,1,0),0)+IFERROR(IF(VLOOKUP(AP17,X:Y,2,0)=TRUE,1,0),0)+IF(AND(AM17>=Калькулятор!$C$14,AM17<=Калькулятор!$E$14),1,0)+IF(OR(AND(AS17>=Калькулятор!$C$11,AS17<=IF(ISBLANK(Калькулятор!$E$11),100000,Калькулятор!$E$11)),Калькулятор!$C$11&Калькулятор!$E$11=""),1,0))=7,1,0) -> 0 | AR17: =SUM(AQ$2:AQ17) -> 0 | AS17: =IF(Калькулятор!$F$8<>70,ROUND(INDEX($C$6:$V$17,MATCH(AM17,$B$6:$B$17,0),MATCH(AK17&AL17,$C$2:$V$2,0))*(Калькулятор!$F$8/70)^справочно!$Y$2,0),ROUND(INDEX($C$6:$V$17,MATCH(AM17,$B$6:$B$17,0),MATCH(AK17&AL17,$C$2:$V$2,0)),0)) -> 448.00 | AT17: - | AU17: =3.6*AV17/(4.19*(Калькулятор!$C$8-Калькулятор!$D$8)) -> 38.47 | AV17: =IF(Калькулятор!$F$8<>70,INDEX($C$6:$V$17,MATCH(AM17,$B$6:$B$17,0),MATCH(AK17&AL17,$C$2:$V$2,0))*(Калькулятор!$F$8/70)^справочно!$Y$2,INDEX($C$6:$V$17,MATCH(AM17,$B$6:$B$17,0),MATCH(AK17&AL17,$C$2:$V$2,0))) -> 447.70
X18: LG | Y18: FALSE | AA18: Конвектор внутрипольный Royal Thermo ATRIUM-75/250/1600-DG-U-NA | AB18: НС-1477740 | AC18: RT-A-75/250/1600-DG-U-NA | AD18: 3 | AE18: 5 | AF18: 8 | AG18: 12 | AH18: 17 | AI18: 20 | AJ18: 22 | AK18: 75 | AL18: 250 | AM18: 1600 | AN18: DG | AO18: U | AP18: NA | AQ18: =IF((IFERROR(IF(VLOOKUP(AK18,X:Y,2,0)=TRUE,1,0),0)+IFERROR(IF(VLOOKUP(AL18,X:Y,2,0)=TRUE,1,0),0)+IFERROR(IF(VLOOKUP(AN18,X:Y,2,0)=TRUE,1,0),0)+IFERROR(IF(VLOOKUP(AO18,X:Y,2,0)=TRUE,1,0),0)+IFERROR(IF(VLOOKUP(AP18,X:Y,2,0)=TRUE,1,0),0)+IF(AND(AM18>=Калькулятор!$C$14,AM18<=Калькулятор!$E$14),1,0)+IF(OR(AND(AS18>=Калькулятор!$C$11,AS18<=IF(ISBLANK(Калькулятор!$E$11),100000,Калькулятор!$E$11)),Калькулятор!$C$11&Калькулятор!$E$11=""),1,0))=7,1,0) -> 0 | AR18: =SUM(AQ$2:AQ18) -> 0 | AS18: =IF(Калькулятор!$F$8<>70,ROUND(INDEX($C$6:$V$17,MATCH(AM18,$B$6:$B$17,0),MATCH(AK18&AL18,$C$2:$V$2,0))*(Калькулятор!$F$8/70)^справочно!$Y$2,0),ROUND(INDEX($C$6:$V$17,MATCH(AM18,$B$6:$B$17,0),MATCH(AK18&AL18,$C$2:$V$2,0)),0)) -> 525.00 | AT18: - | AU18: =3.6*AV18/(4.19*(Калькулятор!$C$8-Калькулятор!$D$8)) -> 45.08 | AV18: =IF(Калькулятор!$F$8<>70,INDEX($C$6:$V$17,MATCH(AM18,$B$6:$B$17,0),MATCH(AK18&AL18,$C$2:$V$2,0))*(Калькулятор!$F$8/70)^справочно!$Y$2,INDEX($C$6:$V$17,MATCH(AM18,$B$6:$B$17,0),MATCH(AK18&AL18,$C$2:$V$2,0))) -> 524.70
X19: RG | Y19: FALSE | AA19: Конвектор внутрипольный Royal Thermo ATRIUM-75/250/1800-DG-U-NA | AB19: НС-1477743 | AC19: RT-A-75/250/1800-DG-U-NA | AD19: 3 | AE19: 5 | AF19: 8 | AG19: 12 | AH19: 17 | AI19: 20 | AJ19: 22 | AK19: 75 | AL19: 250 | AM19: 1800 | AN19: DG | AO19: U | AP19: NA | AQ19: =IF((IFERROR(IF(VLOOKUP(AK19,X:Y,2,0)=TRUE,1,0),0)+IFERROR(IF(VLOOKUP(AL19,X:Y,2,0)=TRUE,1,0),0)+IFERROR(IF(VLOOKUP(AN19,X:Y,2,0)=TRUE,1,0),0)+IFERROR(IF(VLOOKUP(AO19,X:Y,2,0)=TRUE,1,0),0)+IFERROR(IF(VLOOKUP(AP19,X:Y,2,0)=TRUE,1,0),0)+IF(AND(AM19>=Калькулятор!$C$14,AM19<=Калькулятор!$E$14),1,0)+IF(OR(AND(AS19>=Калькулятор!$C$11,AS19<=IF(ISBLANK(Калькулятор!$E$11),100000,Калькулятор!$E$11)),Калькулятор!$C$11&Калькулятор!$E$11=""),1,0))=7,1,0) -> 0 | AR19: =SUM(AQ$2:AQ19) -> 0 | AS19: =IF(Калькулятор!$F$8<>70,ROUND(INDEX($C$6:$V$17,MATCH(AM19,$B$6:$B$17,0),MATCH(AK19&AL19,$C$2:$V$2,0))*(Калькулятор!$F$8/70)^справочно!$Y$2,0),ROUND(INDEX($C$6:$V$17,MATCH(AM19,$B$6:$B$17,0),MATCH(AK19&AL19,$C$2:$V$2,0)),0)) -> 602.00 | AT19: - | AU19: =3.6*AV19/(4.19*(Калькулятор!$C$8-Калькулятор!$D$8)) -> 51.70 | AV19: =IF(Калькулятор!$F$8<>70,INDEX($C$6:$V$17,MATCH(AM19,$B$6:$B$17,0),MATCH(AK19&AL19,$C$2:$V$2,0))*(Калькулятор!$F$8/70)^справочно!$Y$2,INDEX($C$6:$V$17,MATCH(AM19,$B$6:$B$17,0),MATCH(AK19&AL19,$C$2:$V$2,0))) -> 601.70
X20: NG | Y20: FALSE | AA20: Конвектор внутрипольный Royal Thermo ATRIUM-75/250/2000-DG-U-NA | AB20: НС-1477746 | AC20: RT-A-75/250/2000-DG-U-NA | AD20: 3 | AE20: 5 | AF20: 8 | AG20: 12 | AH20: 17 | AI20: 20 | AJ20: 22 | AK20: 75 | AL20: 250 | AM20: 2000 | AN20: DG | AO20: U | AP20: NA | AQ20: =IF((IFERROR(IF(VLOOKUP(AK20,X:Y,2,0)=TRUE,1,0),0)+IFERROR(IF(VLOOKUP(AL20,X:Y,2,0)=TRUE,1,0),0)+IFERROR(IF(VLOOKUP(AN20,X:Y,2,0)=TRUE,1,0),0)+IFERROR(IF(VLOOKUP(AO20,X:Y,2,0)=TRUE,1,0),0)+IFERROR(IF(VLOOKUP(AP20,X:Y,2,0)=TRUE,1,0),0)+IF(AND(AM20>=Калькулятор!$C$14,AM20<=Калькулятор!$E$14),1,0)+IF(OR(AND(AS20>=Калькулятор!$C$11,AS20<=IF(ISBLANK(Калькулятор!$E$11),100000,Калькулятор!$E$11)),Калькулятор!$C$11&Калькулятор!$E$11=""),1,0))=7,1,0) -> 0 | AR20: =SUM(AQ$2:AQ20) -> 0 | AS20: =IF(Калькулятор!$F$8<>70,ROUND(INDEX($C$6:$V$17,MATCH(AM20,$B$6:$B$17,0),MATCH(AK20&AL20,$C$2:$V$2,0))*(Калькулятор!$F$8/70)^справочно!$Y$2,0),ROUND(INDEX($C$6:$V$17,MATCH(AM20,$B$6:$B$17,0),MATCH(AK20&AL20,$C$2:$V$2,0)),0)) -> 680.00 | AT20: - | AU20: =3.6*AV20/(4.19*(Калькулятор!$C$8-Калькулятор!$D$8)) -> 58.41 | AV20: =IF(Калькулятор!$F$8<>70,INDEX($C$6:$V$17,MATCH(AM20,$B$6:$B$17,0),MATCH(AK20&AL20,$C$2:$V$2,0))*(Калькулятор!$F$8/70)^справочно!$Y$2,INDEX($C$6:$V$17,MATCH(AM20,$B$6:$B$17,0),MATCH(AK20&AL20,$C$2:$V$2,0))) -> 679.80 | AW20: BL | BH20: null
AA21: Конвектор внутрипольный Royal Thermo ATRIUM-75/250/2200-DG-U-NA | AB21: НС-1477749 | AC21: RT-A-75/250/2200-DG-U-NA | AD21: 3 | AE21: 5 | AF21: 8 | AG21: 12 | AH21: 17 | AI21: 20 | AJ21: 22 | AK21: 75 | AL21: 250 | AM21: 2200 | AN21: DG | AO21: U | AP21: NA | AQ21: =IF((IFERROR(IF(VLOOKUP(AK21,X:Y,2,0)=TRUE,1,0),0)+IFERROR(IF(VLOOKUP(AL21,X:Y,2,0)=TRUE,1,0),0)+IFERROR(IF(VLOOKUP(AN21,X:Y,2,0)=TRUE,1,0),0)+IFERROR(IF(VLOOKUP(AO21,X:Y,2,0)=TRUE,1,0),0)+IFERROR(IF(VLOOKUP(AP21,X:Y,2,0)=TRUE,1,0),0)+IF(AND(AM21>=Калькулятор!$C$14,AM21<=Калькулятор!$E$14),1,0)+IF(OR(AND(AS21>=Калькулятор!$C$11,AS21<=IF(ISBLANK(Калькулятор!$E$11),100000,Калькулятор!$E$11)),Калькулятор!$C$11&Калькулятор!$E$11=""),1,0))=7,1,0) -> 0 | AR21: =SUM(AQ$2:AQ21) -> 0 | AS21: =IF(Калькулятор!$F$8<>70,ROUND(INDEX($C$6:$V$17,MATCH(AM21,$B$6:$B$17,0),MATCH(AK21&AL21,$C$2:$V$2,0))*(Калькулятор!$F$8/70)^справочно!$Y$2,0),ROUND(INDEX($C$6:$V$17,MATCH(AM21,$B$6:$B$17,0),MATCH(AK21&AL21,$C$2:$V$2,0)),0)) -> 757.00 | AT21: - | AU21: =3.6*AV21/(4.19*(Калькулятор!$C$8-Калькулятор!$D$8)) -> 65.02 | AV21: =IF(Калькулятор!$F$8<>70,INDEX($C$6:$V$17,MATCH(AM21,$B$6:$B$17,0),MATCH(AK21&AL21,$C$2:$V$2,0))*(Калькулятор!$F$8/70)^справочно!$Y$2,INDEX($C$6:$V$17,MATCH(AM21,$B$6:$B$17,0),MATCH(AK21&AL21,$C$2:$V$2,0))) -> 756.80
X22: NA | Y22: TRUE | AA22: Конвектор внутрипольный Royal Thermo ATRIUM-75/250/2400-DG-U-NA | AB22: НС-1477752 | AC22: RT-A-75/250/2400-DG-U-NA | AD22: 3 | AE22: 5 | AF22: 8 | AG22: 12 | AH22: 17 | AI22: 20 | AJ22: 22 | AK22: 75 | AL22: 250 | AM22: 2400 | AN22: DG | AO22: U | AP22: NA | AQ22: =IF((IFERROR(IF(VLOOKUP(AK22,X:Y,2,0)=TRUE,1,0),0)+IFERROR(IF(VLOOKUP(AL22,X:Y,2,0)=TRUE,1,0),0)+IFERROR(IF(VLOOKUP(AN22,X:Y,2,0)=TRUE,1,0),0)+IFERROR(IF(VLOOKUP(AO22,X:Y,2,0)=TRUE,1,0),0)+IFERROR(IF(VLOOKUP(AP22,X:Y,2,0)=TRUE,1,0),0)+IF(AND(AM22>=Калькулятор!$C$14,AM22<=Калькулятор!$E$14),1,0)+IF(OR(AND(AS22>=Калькулятор!$C$11,AS22<=IF(ISBLANK(Калькулятор!$E$11),100000,Калькулятор!$E$11)),Калькулятор!$C$11&Калькулятор!$E$11=""),1,0))=7,1,0) -> 0 | AR22: =SUM(AQ$2:AQ22) -> 0 | AS22: =IF(Калькулятор!$F$8<>70,ROUND(INDEX($C$6:$V$17,MATCH(AM22,$B$6:$B$17,0),MATCH(AK22&AL22,$C$2:$V$2,0))*(Калькулятор!$F$8/70)^справочно!$Y$2,0),ROUND(INDEX($C$6:$V$17,MATCH(AM22,$B$6:$B$17,0),MATCH(AK22&AL22,$C$2:$V$2,0)),0)) -> 836.00 | AT22: - | AU22: =3.6*AV22/(4.19*(Калькулятор!$C$8-Калькулятор!$D$8)) -> 71.83 | AV22: =IF(Калькулятор!$F$8<>70,INDEX($C$6:$V$17,MATCH(AM22,$B$6:$B$17,0),MATCH(AK22&AL22,$C$2:$V$2,0))*(Калькулятор!$F$8/70)^справочно!$Y$2,INDEX($C$6:$V$17,MATCH(AM22,$B$6:$B$17,0),MATCH(AK22&AL22,$C$2:$V$2,0))) -> 836.00
X23: BL | Y23: FALSE | AA23: Конвектор внутрипольный Royal Thermo ATRIUM-75/250/2600-DG-U-NA | AB23: НС-1477755 | AC23: RT-A-75/250/2600-DG-U-NA | AD23: 3 | AE23: 5 | AF23: 8 | AG23: 12 | AH23: 17 | AI23: 20 | AJ23: 22 | AK23: 75 | AL23: 250 | AM23: 2600 | AN23: DG | AO23: U | AP23: NA | AQ23: =IF((IFERROR(IF(VLOOKUP(AK23,X:Y,2,0)=TRUE,1,0),0)+IFERROR(IF(VLOOKUP(AL23,X:Y,2,0)=TRUE,1,0),0)+IFERROR(IF(VLOOKUP(AN23,X:Y,2,0)=TRUE,1,0),0)+IFERROR(IF(VLOOKUP(AO23,X:Y,2,0)=TRUE,1,0),0)+IFERROR(IF(VLOOKUP(AP23,X:Y,2,0)=TRUE,1,0),0)+IF(AND(AM23>=Калькулятор!$C$14,AM23<=Калькулятор!$E$14),1,0)+IF(OR(AND(AS23>=Калькулятор!$C$11,AS23<=IF(ISBLANK(Калькулятор!$E$11),100000,Калькулятор!$E$11)),Калькулятор!$C$11&Калькулятор!$E$11=""),1,0))=7,1,0) -> 0 | AR23: =SUM(AQ$2:AQ23) -> 0 | AS23: =IF(Калькулятор!$F$8<>70,ROUND(INDEX($C$6:$V$17,MATCH(AM23,$B$6:$B$17,0),MATCH(AK23&AL23,$C$2:$V$2,0))*(Калькулятор!$F$8/70)^справочно!$Y$2,0),ROUND(INDEX($C$6:$V$17,MATCH(AM23,$B$6:$B$17,0),MATCH(AK23&AL23,$C$2:$V$2,0)),0)) -> 914.00 | AT23: ЗО | AU23: =3.6*AV23/(4.19*(Калькулятор!$C$8-Калькулятор!$D$8)) -> 78.54 | AV23: =IF(Калькулятор!$F$8<>70,INDEX($C$6:$V$17,MATCH(AM23,$B$6:$B$17,0),MATCH(AK23&AL23,$C$2:$V$2,0))*(Калькулятор!$F$8/70)^справочно!$Y$2,INDEX($C$6:$V$17,MATCH(AM23,$B$6:$B$17,0),MATCH(AK23&AL23,$C$2:$V$2,0))) -> 914.10
X24: AU | Y24: FALSE | AA24: Конвектор внутрипольный Royal Thermo ATRIUM-75/250/2800-DG-U-NA | AB24: НС-1477758 | AC24: RT-A-75/250/2800-DG-U-NA | AD24: 3 | AE24: 5 | AF24: 8 | AG24: 12 | AH24: 17 | AI24: 20 | AJ24: 22 | AK24: 75 | AL24: 250 | AM24: 2800 | AN24: DG | AO24: U | AP24: NA | AQ24: =IF((IFERROR(IF(VLOOKUP(AK24,X:Y,2,0)=TRUE,1,0),0)+IFERROR(IF(VLOOKUP(AL24,X:Y,2,0)=TRUE,1,0),0)+IFERROR(IF(VLOOKUP(AN24,X:Y,2,0)=TRUE,1,0),0)+IFERROR(IF(VLOOKUP(AO24,X:Y,2,0)=TRUE,1,0),0)+IFERROR(IF(VLOOKUP(AP24,X:Y,2,0)=TRUE,1,0),0)+IF(AND(AM24>=Калькулятор!$C$14,AM24<=Калькулятор!$E$14),1,0)+IF(OR(AND(AS24>=Калькулятор!$C$11,AS24<=IF(ISBLANK(Калькулятор!$E$11),100000,Калькулятор!$E$11)),Калькулятор!$C$11&Калькулятор!$E$11=""),1,0))=7,1,0) -> 0 | AR24: =SUM(AQ$2:AQ24) -> 0 | AS24: =IF(Калькулятор!$F$8<>70,ROUND(INDEX($C$6:$V$17,MATCH(AM24,$B$6:$B$17,0),MATCH(AK24&AL24,$C$2:$V$2,0))*(Калькулятор!$F$8/70)^справочно!$Y$2,0),ROUND(INDEX($C$6:$V$17,MATCH(AM24,$B$6:$B$17,0),MATCH(AK24&AL24,$C$2:$V$2,0)),0)) -> 991.00 | AT24: ЗО | AU24: =3.6*AV24/(4.19*(Калькулятор!$C$8-Калькулятор!$D$8)) -> 85.15 | AV24: =IF(Калькулятор!$F$8<>70,INDEX($C$6:$V$17,MATCH(AM24,$B$6:$B$17,0),MATCH(AK24&AL24,$C$2:$V$2,0))*(Калькулятор!$F$8/70)^справочно!$Y$2,INDEX($C$6:$V$17,MATCH(AM24,$B$6:$B$17,0),MATCH(AK24&AL24,$C$2:$V$2,0))) -> 991.10
X25: LB | Y25: FALSE | AA25: Конвектор внутрипольный Royal Thermo ATRIUM-75/250/3000-DG-U-NA | AB25: НС-1477761 | AC25: RT-A-75/250/3000-DG-U-NA | AD25: 3 | AE25: 5 | AF25: 8 | AG25: 12 | AH25: 17 | AI25: 20 | AJ25: 22 | AK25: 75 | AL25: 250 | AM25: 3000 | AN25: DG | AO25: U | AP25: NA | AQ25: =IF((IFERROR(IF(VLOOKUP(AK25,X:Y,2,0)=TRUE,1,0),0)+IFERROR(IF(VLOOKUP(AL25,X:Y,2,0)=TRUE,1,0),0)+IFERROR(IF(VLOOKUP(AN25,X:Y,2,0)=TRUE,1,0),0)+IFERROR(IF(VLOOKUP(AO25,X:Y,2,0)=TRUE,1,0),0)+IFERROR(IF(VLOOKUP(AP25,X:Y,2,0)=TRUE,1,0),0)+IF(AND(AM25>=Калькулятор!$C$14,AM25<=Калькулятор!$E$14),1,0)+IF(OR(AND(AS25>=Калькулятор!$C$11,AS25<=IF(ISBLANK(Калькулятор!$E$11),100000,Калькулятор!$E$11)),Калькулятор!$C$11&Калькулятор!$E$11=""),1,0))=7,1,0) -> 0 | AR25: =SUM(AQ$2:AQ25) -> 0 | AS25: =IF(Калькулятор!$F$8<>70,ROUND(INDEX($C$6:$V$17,MATCH(AM25,$B$6:$B$17,0),MATCH(AK25&AL25,$C$2:$V$2,0))*(Калькулятор!$F$8/70)^справочно!$Y$2,0),ROUND(INDEX($C$6:$V$17,MATCH(AM25,$B$6:$B$17,0),MATCH(AK25&AL25,$C$2:$V$2,0)),0)) -> 1,068.00 | AT25: ЗО | AU25: =3.6*AV25/(4.19*(Калькулятор!$C$8-Калькулятор!$D$8)) -> 91.77 | AV25: =IF(Калькулятор!$F$8<>70,INDEX($C$6:$V$17,MATCH(AM25,$B$6:$B$17,0),MATCH(AK25&AL25,$C$2:$V$2,0))*(Калькулятор!$F$8/70)^справочно!$Y$2,INDEX($C$6:$V$17,MATCH(AM25,$B$6:$B$17,0),MATCH(AK25&AL25,$C$2:$V$2,0))) -> 1,068.10
X26: DB | Y26: FALSE | AA26: Конвектор внутрипольный Royal Thermo ATRIUM-75/300/800-DG-U-NA | AB26: НС-1477803 | AC26: RT-A-75/300/800-DG-U-NA | AD26: 3 | AE26: 5 | AF26: 8 | AG26: 12 | AH26: 16 | AI26: 19 | AJ26: 21 | AK26: 75 | AL26: 300 | AM26: 800 | AN26: DG | AO26: U | AP26: NA | AQ26: =IF((IFERROR(IF(VLOOKUP(AK26,X:Y,2,0)=TRUE,1,0),0)+IFERROR(IF(VLOOKUP(AL26,X:Y,2,0)=TRUE,1,0),0)+IFERROR(IF(VLOOKUP(AN26,X:Y,2,0)=TRUE,1,0),0)+IFERROR(IF(VLOOKUP(AO26,X:Y,2,0)=TRUE,1,0),0)+IFERROR(IF(VLOOKUP(AP26,X:Y,2,0)=TRUE,1,0),0)+IF(AND(AM26>=Калькулятор!$C$14,AM26<=Калькулятор!$E$14),1,0)+IF(OR(AND(AS26>=Калькулятор!$C$11,AS26<=IF(ISBLANK(Калькулятор!$E$11),100000,Калькулятор!$E$11)),Калькулятор!$C$11&Калькулятор!$E$11=""),1,0))=7,1,0) -> 0 | AR26: =SUM(AQ$2:AQ26) -> 0 | AS26: =IF(Калькулятор!$F$8<>70,ROUND(INDEX($C$6:$V$17,MATCH(AM26,$B$6:$B$17,0),MATCH(AK26&AL26,$C$2:$V$2,0))*(Калькулятор!$F$8/70)^справочно!$Y$2,0),ROUND(INDEX($C$6:$V$17,MATCH(AM26,$B$6:$B$17,0),MATCH(AK26&AL26,$C$2:$V$2,0)),0)) -> 259.00 | AT26: ЗО | AU26: =3.6*AV26/(4.19*(Калькулятор!$C$8-Калькулятор!$D$8)) -> 22.21 | AV26: =IF(Калькулятор!$F$8<>70,INDEX($C$6:$V$17,MATCH(AM26,$B$6:$B$17,0),MATCH(AK26&AL26,$C$2:$V$2,0))*(Калькулятор!$F$8/70)^справочно!$Y$2,INDEX($C$6:$V$17,MATCH(AM26,$B$6:$B$17,0),MATCH(AK26&AL26,$C$2:$V$2,0))) -> 258.50
X27: RAL | Y27: FALSE | AA27: Конвектор внутрипольный Royal Thermo ATRIUM-75/300/1000-DG-U-NA | AB27: НС-1477770 | AC27: RT-A-75/300/1000-DG-U-NA | AD27: 3 | AE27: 5 | AF27: 8 | AG27: 12 | AH27: 17 | AI27: 20 | AJ27: 22 | AK27: 75 | AL27: 300 | AM27: 1000 | AN27: DG | AO27: U | AP27: NA | AQ27: =IF((IFERROR(IF(VLOOKUP(AK27,X:Y,2,0)=TRUE,1,0),0)+IFERROR(IF(VLOOKUP(AL27,X:Y,2,0)=TRUE,1,0),0)+IFERROR(IF(VLOOKUP(AN27,X:Y,2,0)=TRUE,1,0),0)+IFERROR(IF(VLOOKUP(AO27,X:Y,2,0)=TRUE,1,0),0)+IFERROR(IF(VLOOKUP(AP27,X:Y,2,0)=TRUE,1,0),0)+IF(AND(AM27>=Калькулятор!$C$14,AM27<=Калькулятор!$E$14),1,0)+IF(OR(AND(AS27>=Калькулятор!$C$11,AS27<=IF(ISBLANK(Калькулятор!$E$11),100000,Калькулятор!$E$11)),Калькулятор!$C$11&Калькулятор!$E$11=""),1,0))=7,1,0) -> 0 | AR27: =SUM(AQ$2:AQ27) -> 0 | AS27: =IF(Калькулятор!$F$8<>70,ROUND(INDEX($C$6:$V$17,MATCH(AM27,$B$6:$B$17,0),MATCH(AK27&AL27,$C$2:$V$2,0))*(Калькулятор!$F$8/70)^справочно!$Y$2,0),ROUND(INDEX($C$6:$V$17,MATCH(AM27,$B$6:$B$17,0),MATCH(AK27&AL27,$C$2:$V$2,0)),0)) -> 351.00 | AT27: ЗО | AU27: =3.6*AV27/(4.19*(Калькулятор!$C$8-Калькулятор!$D$8)) -> 30.15 | AV27: =IF(Калькулятор!$F$8<>70,INDEX($C$6:$V$17,MATCH(AM27,$B$6:$B$17,0),MATCH(AK27&AL27,$C$2:$V$2,0))*(Калькулятор!$F$8/70)^справочно!$Y$2,INDEX($C$6:$V$17,MATCH(AM27,$B$6:$B$17,0),MATCH(AK27&AL27,$C$2:$V$2,0))) -> 350.90
AA28: Конвектор внутрипольный Royal Thermo ATRIUM-75/300/1200-DG-U-NA | AB28: НС-1477773 | AC28: RT-A-75/300/1200-DG-U-NA | AD28: 3 | AE28: 5 | AF28: 8 | AG28: 12 | AH28: 17 | AI28: 20 | AJ28: 22 | AK28: 75 | AL28: 300 | AM28: 1200 | AN28: DG | AO28: U | AP28: NA | AQ28: =IF((IFERROR(IF(VLOOKUP(AK28,X:Y,2,0)=TRUE,1,0),0)+IFERROR(IF(VLOOKUP(AL28,X:Y,2,0)=TRUE,1,0),0)+IFERROR(IF(VLOOKUP(AN28,X:Y,2,0)=TRUE,1,0),0)+IFERROR(IF(VLOOKUP(AO28,X:Y,2,0)=TRUE,1,0),0)+IFERROR(IF(VLOOKUP(AP28,X:Y,2,0)=TRUE,1,0),0)+IF(AND(AM28>=Калькулятор!$C$14,AM28<=Калькулятор!$E$14),1,0)+IF(OR(AND(AS28>=Калькулятор!$C$11,AS28<=IF(ISBLANK(Калькулятор!$E$11),100000,Калькулятор!$E$11)),Калькулятор!$C$11&Калькулятор!$E$11=""),1,0))=7,1,0) -> 0 | AR28: =SUM(AQ$2:AQ28) -> 0 | AS28: =IF(Калькулятор!$F$8<>70,ROUND(INDEX($C$6:$V$17,MATCH(AM28,$B$6:$B$17,0),MATCH(AK28&AL28,$C$2:$V$2,0))*(Калькулятор!$F$8/70)^справочно!$Y$2,0),ROUND(INDEX($C$6:$V$17,MATCH(AM28,$B$6:$B$17,0),MATCH(AK28&AL28,$C$2:$V$2,0)),0)) -> 444.00 | AT28: ЗО | AU28: =3.6*AV28/(4.19*(Калькулятор!$C$8-Калькулятор!$D$8)) -> 38.18 | AV28: =IF(Калькулятор!$F$8<>70,INDEX($C$6:$V$17,MATCH(AM28,$B$6:$B$17,0),MATCH(AK28&AL28,$C$2:$V$2,0))*(Калькулятор!$F$8/70)^справочно!$Y$2,INDEX($C$6:$V$17,MATCH(AM28,$B$6:$B$17,0),MATCH(AK28&AL28,$C$2:$V$2,0))) -> 444.40
X29: F | Y29: FALSE | AA29: Конвектор внутрипольный Royal Thermo ATRIUM-75/300/1400-DG-U-NA | AB29: НС-1477776 | AC29: RT-A-75/300/1400-DG-U-NA | AD29: 3 | AE29: 5 | AF29: 8 | AG29: 12 | AH29: 17 | AI29: 20 | AJ29: 22 | AK29: 75 | AL29: 300 | AM29: 1400 | AN29: DG | AO29: U | AP29: NA | AQ29: =IF((IFERROR(IF(VLOOKUP(AK29,X:Y,2,0)=TRUE,1,0),0)+IFERROR(IF(VLOOKUP(AL29,X:Y,2,0)=TRUE,1,0),0)+IFERROR(IF(VLOOKUP(AN29,X:Y,2,0)=TRUE,1,0),0)+IFERROR(IF(VLOOKUP(AO29,X:Y,2,0)=TRUE,1,0),0)+IFERROR(IF(VLOOKUP(AP29,X:Y,2,0)=TRUE,1,0),0)+IF(AND(AM29>=Калькулятор!$C$14,AM29<=Калькулятор!$E$14),1,0)+IF(OR(AND(AS29>=Калькулятор!$C$11,AS29<=IF(ISBLANK(Калькулятор!$E$11),100000,Калькулятор!$E$11)),Калькулятор!$C$11&Калькулятор!$E$11=""),1,0))=7,1,0) -> 0 | AR29: =SUM(AQ$2:AQ29) -> 0 | AS29: =IF(Калькулятор!$F$8<>70,ROUND(INDEX($C$6:$V$17,MATCH(AM29,$B$6:$B$17,0),MATCH(AK29&AL29,$C$2:$V$2,0))*(Калькулятор!$F$8/70)^справочно!$Y$2,0),ROUND(INDEX($C$6:$V$17,MATCH(AM29,$B$6:$B$17,0),MATCH(AK29&AL29,$C$2:$V$2,0)),0)) -> 537.00 | AT29: ЗО | AU29: =3.6*AV29/(4.19*(Калькулятор!$C$8-Калькулятор!$D$8)) -> 46.12 | AV29: =IF(Калькулятор!$F$8<>70,INDEX($C$6:$V$17,MATCH(AM29,$B$6:$B$17,0),MATCH(AK29&AL29,$C$2:$V$2,0))*(Калькулятор!$F$8/70)^справочно!$Y$2,INDEX($C$6:$V$17,MATCH(AM29,$B$6:$B$17,0),MATCH(AK29&AL29,$C$2:$V$2,0))) -> 536.80
X30: U | Y30: FALSE | AA30: Конвектор внутрипольный Royal Thermo ATRIUM-75/300/1600-DG-U-NA | AB30: НС-1477779 | AC30: RT-A-75/300/1600-DG-U-NA | AD30: 3 | AE30: 5 | AF30: 8 | AG30: 12 | AH30: 17 | AI30: 20 | AJ30: 22 | AK30: 75 | AL30: 300 | AM30: 1600 | AN30: DG | AO30: U | AP30: NA | AQ30: =IF((IFERROR(IF(VLOOKUP(AK30,X:Y,2,0)=TRUE,1,0),0)+IFERROR(IF(VLOOKUP(AL30,X:Y,2,0)=TRUE,1,0),0)+IFERROR(IF(VLOOKUP(AN30,X:Y,2,0)=TRUE,1,0),0)+IFERROR(IF(VLOOKUP(AO30,X:Y,2,0)=TRUE,1,0),0)+IFERROR(IF(VLOOKUP(AP30,X:Y,2,0)=TRUE,1,0),0)+IF(AND(AM30>=Калькулятор!$C$14,AM30<=Калькулятор!$E$14),1,0)+IF(OR(AND(AS30>=Калькулятор!$C$11,AS30<=IF(ISBLANK(Калькулятор!$E$11),100000,Калькулятор!$E$11)),Калькулятор!$C$11&Калькулятор!$E$11=""),1,0))=7,1,0) -> 0 | AR30: =SUM(AQ$2:AQ30) -> 0 | AS30: =IF(Калькулятор!$F$8<>70,ROUND(INDEX($C$6:$V$17,MATCH(AM30,$B$6:$B$17,0),MATCH(AK30&AL30,$C$2:$V$2,0))*(Калькулятор!$F$8/70)^справочно!$Y$2,0),ROUND(INDEX($C$6:$V$17,MATCH(AM30,$B$6:$B$17,0),MATCH(AK30&AL30,$C$2:$V$2,0)),0)) -> 629.00 | AT30: ЗО | AU30: =3.6*AV30/(4.19*(Калькулятор!$C$8-Калькулятор!$D$8)) -> 54.06 | AV30: =IF(Калькулятор!$F$8<>70,INDEX($C$6:$V$17,MATCH(AM30,$B$6:$B$17,0),MATCH(AK30&AL30,$C$2:$V$2,0))*(Калькулятор!$F$8/70)^справочно!$Y$2,INDEX($C$6:$V$17,MATCH(AM30,$B$6:$B$17,0),MATCH(AK30&AL30,$C$2:$V$2,0))) -> 629.20
AA31: Конвектор внутрипольный Royal Thermo ATRIUM-75/300/1800-DG-U-NA | AB31: НС-1477782 | AC31: RT-A-75/300/1800-DG-U-NA | AD31: 3 | AE31: 5 | AF31: 8 | AG31: 12 | AH31: 17 | AI31: 20 | AJ31: 22 | AK31: 75 | AL31: 300 | AM31: 1800 | AN31: DG | AO31: U | AP31: NA | AQ31: =IF((IFERROR(IF(VLOOKUP(AK31,X:Y,2,0)=TRUE,1,0),0)+IFERROR(IF(VLOOKUP(AL31,X:Y,2,0)=TRUE,1,0),0)+IFERROR(IF(VLOOKUP(AN31,X:Y,2,0)=TRUE,1,0),0)+IFERROR(IF(VLOOKUP(AO31,X:Y,2,0)=TRUE,1,0),0)+IFERROR(IF(VLOOKUP(AP31,X:Y,2,0)=TRUE,1,0),0)+IF(AND(AM31>=Калькулятор!$C$14,AM31<=Калькулятор!$E$14),1,0)+IF(OR(AND(AS31>=Калькулятор!$C$11,AS31<=IF(ISBLANK(Калькулятор!$E$11),100000,Калькулятор!$E$11)),Калькулятор!$C$11&Калькулятор!$E$11=""),1,0))=7,1,0) -> 0 | AR31: =SUM(AQ$2:AQ31) -> 0 | AS31: =IF(Калькулятор!$F$8<>70,ROUND(INDEX($C$6:$V$17,MATCH(AM31,$B$6:$B$17,0),MATCH(AK31&AL31,$C$2:$V$2,0))*(Калькулятор!$F$8/70)^справочно!$Y$2,0),ROUND(INDEX($C$6:$V$17,MATCH(AM31,$B$6:$B$17,0),MATCH(AK31&AL31,$C$2:$V$2,0)),0)) -> 723.00 | AT31: ЗО | AU31: =3.6*AV31/(4.19*(Калькулятор!$C$8-Калькулятор!$D$8)) -> 62.09 | AV31: =IF(Калькулятор!$F$8<>70,INDEX($C$6:$V$17,MATCH(AM31,$B$6:$B$17,0),MATCH(AK31&AL31,$C$2:$V$2,0))*(Калькулятор!$F$8/70)^справочно!$Y$2,INDEX($C$6:$V$17,MATCH(AM31,$B$6:$B$17,0),MATCH(AK31&AL31,$C$2:$V$2,0))) -> 722.70
X32: РИЦ | AA32: Конвектор внутрипольный Royal Thermo ATRIUM-75/300/2000-DG-U-NA | AB32: НС-1477785 | AC32: RT-A-75/300/2000-DG-U-NA | AD32: 3 | AE32: 5 | AF32: 8 | AG32: 12 | AH32: 17 | AI32: 20 | AJ32: 22 | AK32: 75 | AL32: 300 | AM32: 2000 | AN32: DG | AO32: U | AP32: NA | AQ32: =IF((IFERROR(IF(VLOOKUP(AK32,X:Y,2,0)=TRUE,1,0),0)+IFERROR(IF(VLOOKUP(AL32,X:Y,2,0)=TRUE,1,0),0)+IFERROR(IF(VLOOKUP(AN32,X:Y,2,0)=TRUE,1,0),0)+IFERROR(IF(VLOOKUP(AO32,X:Y,2,0)=TRUE,1,0),0)+IFERROR(IF(VLOOKUP(AP32,X:Y,2,0)=TRUE,1,0),0)+IF(AND(AM32>=Калькулятор!$C$14,AM32<=Калькулятор!$E$14),1,0)+IF(OR(AND(AS32>=Калькулятор!$C$11,AS32<=IF(ISBLANK(Калькулятор!$E$11),100000,Калькулятор!$E$11)),Калькулятор!$C$11&Калькулятор!$E$11=""),1,0))=7,1,0) -> 0 | AR32: =SUM(AQ$2:AQ32) -> 0 | AS32: =IF(Калькулятор!$F$8<>70,ROUND(INDEX($C$6:$V$17,MATCH(AM32,$B$6:$B$17,0),MATCH(AK32&AL32,$C$2:$V$2,0))*(Калькулятор!$F$8/70)^справочно!$Y$2,0),ROUND(INDEX($C$6:$V$17,MATCH(AM32,$B$6:$B$17,0),MATCH(AK32&AL32,$C$2:$V$2,0)),0)) -> 815.00 | AT32: ЗО | AU32: =3.6*AV32/(4.19*(Калькулятор!$C$8-Калькулятор!$D$8)) -> 70.03 | AV32: =IF(Калькулятор!$F$8<>70,INDEX($C$6:$V$17,MATCH(AM32,$B$6:$B$17,0),MATCH(AK32&AL32,$C$2:$V$2,0))*(Калькулятор!$F$8/70)^справочно!$Y$2,INDEX($C$6:$V$17,MATCH(AM32,$B$6:$B$17,0),MATCH(AK32&AL32,$C$2:$V$2,0))) -> 815.10
X33: BIG Дилер | AA33: Конвектор внутрипольный Royal Thermo ATRIUM-75/300/2200-DG-U-NA | AB33: НС-1477788 | AC33: RT-A-75/300/2200-DG-U-NA | AD33: 3 | AE33: 5 | AF33: 8 | AG33: 12 | AH33: 17 | AI33: 20 | AJ33: 22 | AK33: 75 | AL33: 300 | AM33: 2200 | AN33: DG | AO33: U | AP33: NA | AQ33: =IF((IFERROR(IF(VLOOKUP(AK33,X:Y,2,0)=TRUE,1,0),0)+IFERROR(IF(VLOOKUP(AL33,X:Y,2,0)=TRUE,1,0),0)+IFERROR(IF(VLOOKUP(AN33,X:Y,2,0)=TRUE,1,0),0)+IFERROR(IF(VLOOKUP(AO33,X:Y,2,0)=TRUE,1,0),0)+IFERROR(IF(VLOOKUP(AP33,X:Y,2,0)=TRUE,1,0),0)+IF(AND(AM33>=Калькулятор!$C$14,AM33<=Калькулятор!$E$14),1,0)+IF(OR(AND(AS33>=Калькулятор!$C$11,AS33<=IF(ISBLANK(Калькулятор!$E$11),100000,Калькулятор!$E$11)),Калькулятор!$C$11&Калькулятор!$E$11=""),1,0))=7,1,0) -> 0 | AR33: =SUM(AQ$2:AQ33) -> 0 | AS33: =IF(Калькулятор!$F$8<>70,ROUND(INDEX($C$6:$V$17,MATCH(AM33,$B$6:$B$17,0),MATCH(AK33&AL33,$C$2:$V$2,0))*(Калькулятор!$F$8/70)^справочно!$Y$2,0),ROUND(INDEX($C$6:$V$17,MATCH(AM33,$B$6:$B$17,0),MATCH(AK33&AL33,$C$2:$V$2,0)),0)) -> 908.00 | AT33: ЗО | AU33: =3.6*AV33/(4.19*(Калькулятор!$C$8-Калькулятор!$D$8)) -> 77.97 | AV33: =IF(Калькулятор!$F$8<>70,INDEX($C$6:$V$17,MATCH(AM33,$B$6:$B$17,0),MATCH(AK33&AL33,$C$2:$V$2,0))*(Калькулятор!$F$8/70)^справочно!$Y$2,INDEX($C$6:$V$17,MATCH(AM33,$B$6:$B$17,0),MATCH(AK33&AL33,$C$2:$V$2,0))) -> 907.50
X34: Базовая | AA34: Конвектор внутрипольный Royal Thermo ATRIUM-75/300/2400-DG-U-NA | AB34: НС-1477791 | AC34: RT-A-75/300/2400-DG-U-NA | AD34: 3 | AE34: 5 | AF34: 8 | AG34: 12 | AH34: 17 | AI34: 20 | AJ34: 22 | AK34: 75 | AL34: 300 | AM34: 2400 | AN34: DG | AO34: U | AP34: NA | AQ34: =IF((IFERROR(IF(VLOOKUP(AK34,X:Y,2,0)=TRUE,1,0),0)+IFERROR(IF(VLOOKUP(AL34,X:Y,2,0)=TRUE,1,0),0)+IFERROR(IF(VLOOKUP(AN34,X:Y,2,0)=TRUE,1,0),0)+IFERROR(IF(VLOOKUP(AO34,X:Y,2,0)=TRUE,1,0),0)+IFERROR(IF(VLOOKUP(AP34,X:Y,2,0)=TRUE,1,0),0)+IF(AND(AM34>=Калькулятор!$C$14,AM34<=Калькулятор!$E$14),1,0)+IF(OR(AND(AS34>=Калькулятор!$C$11,AS34<=IF(ISBLANK(Калькулятор!$E$11),100000,Калькулятор!$E$11)),Калькулятор!$C$11&Калькулятор!$E$11=""),1,0))=7,1,0) -> 0 | AR34: =SUM(AQ$2:AQ34) -> 0 | AS34: =IF(Калькулятор!$F$8<>70,ROUND(INDEX($C$6:$V$17,MATCH(AM34,$B$6:$B$17,0),MATCH(AK34&AL34,$C$2:$V$2,0))*(Калькулятор!$F$8/70)^справочно!$Y$2,0),ROUND(INDEX($C$6:$V$17,MATCH(AM34,$B$6:$B$17,0),MATCH(AK34&AL34,$C$2:$V$2,0)),0)) -> 1,003.00 | AT34: ЗО | AU34: =3.6*AV34/(4.19*(Калькулятор!$C$8-Калькулятор!$D$8)) -> 86.19 | AV34: =IF(Калькулятор!$F$8<>70,INDEX($C$6:$V$17,MATCH(AM34,$B$6:$B$17,0),MATCH(AK34&AL34,$C$2:$V$2,0))*(Калькулятор!$F$8/70)^справочно!$Y$2,INDEX($C$6:$V$17,MATCH(AM34,$B$6:$B$17,0),MATCH(AK34&AL34,$C$2:$V$2,0))) -> 1,003.20
X35: Дилер | AA35: Конвектор внутрипольный Royal Thermo ATRIUM-75/300/2600-DG-U-NA | AB35: НС-1477794 | AC35: RT-A-75/300/2600-DG-U-NA | AD35: 3 | AE35: 5 | AF35: 8 | AG35: 12 | AH35: 17 | AI35: 20 | AJ35: 22 | AK35: 75 | AL35: 300 | AM35: 2600 | AN35: DG | AO35: U | AP35: NA | AQ35: =IF((IFERROR(IF(VLOOKUP(AK35,X:Y,2,0)=TRUE,1,0),0)+IFERROR(IF(VLOOKUP(AL35,X:Y,2,0)=TRUE,1,0),0)+IFERROR(IF(VLOOKUP(AN35,X:Y,2,0)=TRUE,1,0),0)+IFERROR(IF(VLOOKUP(AO35,X:Y,2,0)=TRUE,1,0),0)+IFERROR(IF(VLOOKUP(AP35,X:Y,2,0)=TRUE,1,0),0)+IF(AND(AM35>=Калькулятор!$C$14,AM35<=Калькулятор!$E$14),1,0)+IF(OR(AND(AS35>=Калькулятор!$C$11,AS35<=IF(ISBLANK(Калькулятор!$E$11),100000,Калькулятор!$E$11)),Калькулятор!$C$11&Калькулятор!$E$11=""),1,0))=7,1,0) -> 0 | AR35: =SUM(AQ$2:AQ35) -> 0 | AS35: =IF(Калькулятор!$F$8<>70,ROUND(INDEX($C$6:$V$17,MATCH(AM35,$B$6:$B$17,0),MATCH(AK35&AL35,$C$2:$V$2,0))*(Калькулятор!$F$8/70)^справочно!$Y$2,0),ROUND(INDEX($C$6:$V$17,MATCH(AM35,$B$6:$B$17,0),MATCH(AK35&AL35,$C$2:$V$2,0)),0)) -> 1,097.00 | AT35: ЗО | AU35: =3.6*AV35/(4.19*(Калькулятор!$C$8-Калькулятор!$D$8)) -> 94.23 | AV35: =IF(Калькулятор!$F$8<>70,INDEX($C$6:$V$17,MATCH(AM35,$B$6:$B$17,0),MATCH(AK35&AL35,$C$2:$V$2,0))*(Калькулятор!$F$8/70)^справочно!$Y$2,INDEX($C$6:$V$17,MATCH(AM35,$B$6:$B$17,0),MATCH(AK35&AL35,$C$2:$V$2,0))) -> 1,096.70
X36: Дилер 1 | AA36: Конвектор внутрипольный Royal Thermo ATRIUM-75/300/2800-DG-U-NA | AB36: НС-1477797 | AC36: RT-A-75/300/2800-DG-U-NA | AD36: 3 | AE36: 5 | AF36: 8 | AG36: 12 | AH36: 17 | AI36: 20 | AJ36: 22 | AK36: 75 | AL36: 300 | AM36: 2800 | AN36: DG | AO36: U | AP36: NA | AQ36: =IF((IFERROR(IF(VLOOKUP(AK36,X:Y,2,0)=TRUE,1,0),0)+IFERROR(IF(VLOOKUP(AL36,X:Y,2,0)=TRUE,1,0),0)+IFERROR(IF(VLOOKUP(AN36,X:Y,2,0)=TRUE,1,0),0)+IFERROR(IF(VLOOKUP(AO36,X:Y,2,0)=TRUE,1,0),0)+IFERROR(IF(VLOOKUP(AP36,X:Y,2,0)=TRUE,1,0),0)+IF(AND(AM36>=Калькулятор!$C$14,AM36<=Калькулятор!$E$14),1,0)+IF(OR(AND(AS36>=Калькулятор!$C$11,AS36<=IF(ISBLANK(Калькулятор!$E$11),100000,Калькулятор!$E$11)),Калькулятор!$C$11&Калькулятор!$E$11=""),1,0))=7,1,0) -> 0 | AR36: =SUM(AQ$2:AQ36) -> 0 | AS36: =IF(Калькулятор!$F$8<>70,ROUND(INDEX($C$6:$V$17,MATCH(AM36,$B$6:$B$17,0),MATCH(AK36&AL36,$C$2:$V$2,0))*(Калькулятор!$F$8/70)^справочно!$Y$2,0),ROUND(INDEX($C$6:$V$17,MATCH(AM36,$B$6:$B$17,0),MATCH(AK36&AL36,$C$2:$V$2,0)),0)) -> 1,189.00 | AT36: ЗО | AU36: =3.6*AV36/(4.19*(Калькулятор!$C$8-Калькулятор!$D$8)) -> 102.17 | AV36: =IF(Калькулятор!$F$8<>70,INDEX($C$6:$V$17,MATCH(AM36,$B$6:$B$17,0),MATCH(AK36&AL36,$C$2:$V$2,0))*(Калькулятор!$F$8/70)^справочно!$Y$2,INDEX($C$6:$V$17,MATCH(AM36,$B$6:$B$17,0),MATCH(AK36&AL36,$C$2:$V$2,0))) -> 1,189.10
X37: Дилер 2 | AA37: Конвектор внутрипольный Royal Thermo ATRIUM-75/300/3000-DG-U-NA | AB37: НС-1477800 | AC37: RT-A-75/300/3000-DG-U-NA | AD37: 3 | AE37: 5 | AF37: 8 | AG37: 12 | AH37: 17 | AI37: 20 | AJ37: 22 | AK37: 75 | AL37: 300 | AM37: 3000 | AN37: DG | AO37: U | AP37: NA | AQ37: =IF((IFERROR(IF(VLOOKUP(AK37,X:Y,2,0)=TRUE,1,0),0)+IFERROR(IF(VLOOKUP(AL37,X:Y,2,0)=TRUE,1,0),0)+IFERROR(IF(VLOOKUP(AN37,X:Y,2,0)=TRUE,1,0),0)+IFERROR(IF(VLOOKUP(AO37,X:Y,2,0)=TRUE,1,0),0)+IFERROR(IF(VLOOKUP(AP37,X:Y,2,0)=TRUE,1,0),0)+IF(AND(AM37>=Калькулятор!$C$14,AM37<=Калькулятор!$E$14),1,0)+IF(OR(AND(AS37>=Калькулятор!$C$11,AS37<=IF(ISBLANK(Калькулятор!$E$11),100000,Калькулятор!$E$11)),Калькулятор!$C$11&Калькулятор!$E$11=""),1,0))=7,1,0) -> 0 | AR37: =SUM(AQ$2:AQ37) -> 0 | AS37: =IF(Калькулятор!$F$8<>70,ROUND(INDEX($C$6:$V$17,MATCH(AM37,$B$6:$B$17,0),MATCH(AK37&AL37,$C$2:$V$2,0))*(Калькулятор!$F$8/70)^справочно!$Y$2,0),ROUND(INDEX($C$6:$V$17,MATCH(AM37,$B$6:$B$17,0),MATCH(AK37&AL37,$C$2:$V$2,0)),0)) -> 1,282.00 | AT37: ЗО | AU37: =3.6*AV37/(4.19*(Калькулятор!$C$8-Калькулятор!$D$8)) -> 110.11 | AV37: =IF(Калькулятор!$F$8<>70,INDEX($C$6:$V$17,MATCH(AM37,$B$6:$B$17,0),MATCH(AK37&AL37,$C$2:$V$2,0))*(Калькулятор!$F$8/70)^справочно!$Y$2,INDEX($C$6:$V$17,MATCH(AM37,$B$6:$B$17,0),MATCH(AK37&AL37,$C$2:$V$2,0))) -> 1,281.50
X38: Дилер 3 | AA38: Конвектор внутрипольный Royal Thermo ATRIUM-75/400/800-DG-U-NA | AB38: НС-1477842 | AC38: RT-A-75/400/800-DG-U-NA | AD38: 3 | AE38: 5 | AF38: 8 | AG38: 12 | AH38: 16 | AI38: 19 | AJ38: 21 | AK38: 75 | AL38: 400 | AM38: 800 | AN38: DG | AO38: U | AP38: NA | AQ38: =IF((IFERROR(IF(VLOOKUP(AK38,X:Y,2,0)=TRUE,1,0),0)+IFERROR(IF(VLOOKUP(AL38,X:Y,2,0)=TRUE,1,0),0)+IFERROR(IF(VLOOKUP(AN38,X:Y,2,0)=TRUE,1,0),0)+IFERROR(IF(VLOOKUP(AO38,X:Y,2,0)=TRUE,1,0),0)+IFERROR(IF(VLOOKUP(AP38,X:Y,2,0)=TRUE,1,0),0)+IF(AND(AM38>=Калькулятор!$C$14,AM38<=Калькулятор!$E$14),1,0)+IF(OR(AND(AS38>=Калькулятор!$C$11,AS38<=IF(ISBLANK(Калькулятор!$E$11),100000,Калькулятор!$E$11)),Калькулятор!$C$11&Калькулятор!$E$11=""),1,0))=7,1,0) -> 0 | AR38: =SUM(AQ$2:AQ38) -> 0 | AS38: =IF(Калькулятор!$F$8<>70,ROUND(INDEX($C$6:$V$17,MATCH(AM38,$B$6:$B$17,0),MATCH(AK38&AL38,$C$2:$V$2,0))*(Калькулятор!$F$8/70)^справочно!$Y$2,0),ROUND(INDEX($C$6:$V$17,MATCH(AM38,$B$6:$B$17,0),MATCH(AK38&AL38,$C$2:$V$2,0)),0)) -> 351.00 | AT38: ЗО | AU38: =3.6*AV38/(4.19*(Калькулятор!$C$8-Калькулятор!$D$8)) -> 30.15 | AV38: =IF(Калькулятор!$F$8<>70,INDEX($C$6:$V$17,MATCH(AM38,$B$6:$B$17,0),MATCH(AK38&AL38,$C$2:$V$2,0))*(Калькулятор!$F$8/70)^справочно!$Y$2,INDEX($C$6:$V$17,MATCH(AM38,$B$6:$B$17,0),MATCH(AK38&AL38,$C$2:$V$2,0))) -> 350.90 | AW38: LB
X39: Дистрибьютор | AA39: Конвектор внутрипольный Royal Thermo ATRIUM-75/400/1000-DG-U-NA | AB39: НС-1477809 | AC39: RT-A-75/400/1000-DG-U-NA | AD39: 3 | AE39: 5 | AF39: 8 | AG39: 12 | AH39: 17 | AI39: 20 | AJ39: 22 | AK39: 75 | AL39: 400 | AM39: 1000 | AN39: DG | AO39: U | AP39: NA | AQ39: =IF((IFERROR(IF(VLOOKUP(AK39,X:Y,2,0)=TRUE,1,0),0)+IFERROR(IF(VLOOKUP(AL39,X:Y,2,0)=TRUE,1,0),0)+IFERROR(IF(VLOOKUP(AN39,X:Y,2,0)=TRUE,1,0),0)+IFERROR(IF(VLOOKUP(AO39,X:Y,2,0)=TRUE,1,0),0)+IFERROR(IF(VLOOKUP(AP39,X:Y,2,0)=TRUE,1,0),0)+IF(AND(AM39>=Калькулятор!$C$14,AM39<=Калькулятор!$E$14),1,0)+IF(OR(AND(AS39>=Калькулятор!$C$11,AS39<=IF(ISBLANK(Калькулятор!$E$11),100000,Калькулятор!$E$11)),Калькулятор!$C$11&Калькулятор!$E$11=""),1,0))=7,1,0) -> 0 | AR39: =SUM(AQ$2:AQ39) -> 0 | AS39: =IF(Калькулятор!$F$8<>70,ROUND(INDEX($C$6:$V$17,MATCH(AM39,$B$6:$B$17,0),MATCH(AK39&AL39,$C$2:$V$2,0))*(Калькулятор!$F$8/70)^справочно!$Y$2,0),ROUND(INDEX($C$6:$V$17,MATCH(AM39,$B$6:$B$17,0),MATCH(AK39&AL39,$C$2:$V$2,0)),0)) -> 476.00 | AT39: ЗО | AU39: =3.6*AV39/(4.19*(Калькулятор!$C$8-Калькулятор!$D$8)) -> 40.92 | AV39: =IF(Калькулятор!$F$8<>70,INDEX($C$6:$V$17,MATCH(AM39,$B$6:$B$17,0),MATCH(AK39&AL39,$C$2:$V$2,0))*(Калькулятор!$F$8/70)^справочно!$Y$2,INDEX($C$6:$V$17,MATCH(AM39,$B$6:$B$17,0),MATCH(AK39&AL39,$C$2:$V$2,0))) -> 476.30
X40: Филиалы | AA40: Конвектор внутрипольный Royal Thermo ATRIUM-75/400/1200-DG-U-NA | AB40: НС-1477812 | AC40: RT-A-75/400/1200-DG-U-NA | AD40: 3 | AE40: 5 | AF40: 8 | AG40: 12 | AH40: 17 | AI40: 20 | AJ40: 22 | AK40: 75 | AL40: 400 | AM40: 1200 | AN40: DG | AO40: U | AP40: NA | AQ40: =IF((IFERROR(IF(VLOOKUP(AK40,X:Y,2,0)=TRUE,1,0),0)+IFERROR(IF(VLOOKUP(AL40,X:Y,2,0)=TRUE,1,0),0)+IFERROR(IF(VLOOKUP(AN40,X:Y,2,0)=TRUE,1,0),0)+IFERROR(IF(VLOOKUP(AO40,X:Y,2,0)=TRUE,1,0),0)+IFERROR(IF(VLOOKUP(AP40,X:Y,2,0)=TRUE,1,0),0)+IF(AND(AM40>=Калькулятор!$C$14,AM40<=Калькулятор!$E$14),1,0)+IF(OR(AND(AS40>=Калькулятор!$C$11,AS40<=IF(ISBLANK(Калькулятор!$E$11),100000,Калькулятор!$E$11)),Калькулятор!$C$11&Калькулятор!$E$11=""),1,0))=7,1,0) -> 0 | AR40: =SUM(AQ$2:AQ40) -> 0 | AS40: =IF(Калькулятор!$F$8<>70,ROUND(INDEX($C$6:$V$17,MATCH(AM40,$B$6:$B$17,0),MATCH(AK40&AL40,$C$2:$V$2,0))*(Калькулятор!$F$8/70)^справочно!$Y$2,0),ROUND(INDEX($C$6:$V$17,MATCH(AM40,$B$6:$B$17,0),MATCH(AK40&AL40,$C$2:$V$2,0)),0)) -> 603.00 | AT40: ЗО | AU40: =3.6*AV40/(4.19*(Калькулятор!$C$8-Калькулятор!$D$8)) -> 51.79 | AV40: =IF(Калькулятор!$F$8<>70,INDEX($C$6:$V$17,MATCH(AM40,$B$6:$B$17,0),MATCH(AK40&AL40,$C$2:$V$2,0))*(Калькулятор!$F$8/70)^справочно!$Y$2,INDEX($C$6:$V$17,MATCH(AM40,$B$6:$B$17,0),MATCH(AK40&AL40,$C$2:$V$2,0))) -> 602.80
AA41: Конвектор внутрипольный Royal Thermo ATRIUM-75/400/1400-DG-U-NA | AB41: НС-1477815 | AC41: RT-A-75/400/1400-DG-U-NA | AD41: 3 | AE41: 5 | AF41: 8 | AG41: 12 | AH41: 17 | AI41: 20 | AJ41: 22 | AK41: 75 | AL41: 400 | AM41: 1400 | AN41: DG | AO41: U | AP41: NA | AQ41: =IF((IFERROR(IF(VLOOKUP(AK41,X:Y,2,0)=TRUE,1,0),0)+IFERROR(IF(VLOOKUP(AL41,X:Y,2,0)=TRUE,1,0),0)+IFERROR(IF(VLOOKUP(AN41,X:Y,2,0)=TRUE,1,0),0)+IFERROR(IF(VLOOKUP(AO41,X:Y,2,0)=TRUE,1,0),0)+IFERROR(IF(VLOOKUP(AP41,X:Y,2,0)=TRUE,1,0),0)+IF(AND(AM41>=Калькулятор!$C$14,AM41<=Калькулятор!$E$14),1,0)+IF(OR(AND(AS41>=Калькулятор!$C$11,AS41<=IF(ISBLANK(Калькулятор!$E$11),100000,Калькулятор!$E$11)),Калькулятор!$C$11&Калькулятор!$E$11=""),1,0))=7,1,0) -> 0 | AR41: =SUM(AQ$2:AQ41) -> 0 | AS41: =IF(Калькулятор!$F$8<>70,ROUND(INDEX($C$6:$V$17,MATCH(AM41,$B$6:$B$17,0),MATCH(AK41&AL41,$C$2:$V$2,0))*(Калькулятор!$F$8/70)^справочно!$Y$2,0),ROUND(INDEX($C$6:$V$17,MATCH(AM41,$B$6:$B$17,0),MATCH(AK41&AL41,$C$2:$V$2,0)),0)) -> 728.00 | AT41: ЗО | AU41: =3.6*AV41/(4.19*(Калькулятор!$C$8-Калькулятор!$D$8)) -> 62.57 | AV41: =IF(Калькулятор!$F$8<>70,INDEX($C$6:$V$17,MATCH(AM41,$B$6:$B$17,0),MATCH(AK41&AL41,$C$2:$V$2,0))*(Калькулятор!$F$8/70)^справочно!$Y$2,INDEX($C$6:$V$17,MATCH(AM41,$B$6:$B$17,0),MATCH(AK41&AL41,$C$2:$V$2,0))) -> 728.20
AA42: Конвектор внутрипольный Royal Thermo ATRIUM-75/400/1600-DG-U-NA | AB42: НС-1477818 | AC42: RT-A-75/400/1600-DG-U-NA | AD42: 3 | AE42: 5 | AF42: 8 | AG42: 12 | AH42: 17 | AI42: 20 | AJ42: 22 | AK42: 75 | AL42: 400 | AM42: 1600 | AN42: DG | AO42: U | AP42: NA | AQ42: =IF((IFERROR(IF(VLOOKUP(AK42,X:Y,2,0)=TRUE,1,0),0)+IFERROR(IF(VLOOKUP(AL42,X:Y,2,0)=TRUE,1,0),0)+IFERROR(IF(VLOOKUP(AN42,X:Y,2,0)=TRUE,1,0),0)+IFERROR(IF(VLOOKUP(AO42,X:Y,2,0)=TRUE,1,0),0)+IFERROR(IF(VLOOKUP(AP42,X:Y,2,0)=TRUE,1,0),0)+IF(AND(AM42>=Калькулятор!$C$14,AM42<=Калькулятор!$E$14),1,0)+IF(OR(AND(AS42>=Калькулятор!$C$11,AS42<=IF(ISBLANK(Калькулятор!$E$11),100000,Калькулятор!$E$11)),Калькулятор!$C$11&Калькулятор!$E$11=""),1,0))=7,1,0) -> 0 | AR42: =SUM(AQ$2:AQ42) -> 0 | AS42: =IF(Калькулятор!$F$8<>70,ROUND(INDEX($C$6:$V$17,MATCH(AM42,$B$6:$B$17,0),MATCH(AK42&AL42,$C$2:$V$2,0))*(Калькулятор!$F$8/70)^справочно!$Y$2,0),ROUND(INDEX($C$6:$V$17,MATCH(AM42,$B$6:$B$17,0),MATCH(AK42&AL42,$C$2:$V$2,0)),0)) -> 854.00 | AT42: ЗО | AU42: =3.6*AV42/(4.19*(Калькулятор!$C$8-Калькулятор!$D$8)) -> 73.34 | AV42: =IF(Калькулятор!$F$8<>70,INDEX($C$6:$V$17,MATCH(AM42,$B$6:$B$17,0),MATCH(AK42&AL42,$C$2:$V$2,0))*(Калькулятор!$F$8/70)^справочно!$Y$2,INDEX($C$6:$V$17,MATCH(AM42,$B$6:$B$17,0),MATCH(AK42&AL42,$C$2:$V$2,0))) -> 853.60
AA43: Конвектор внутрипольный Royal Thermo ATRIUM-75/400/1800-DG-U-NA | AB43: НС-1477821 | AC43: RT-A-75/400/1800-DG-U-NA | AD43: 3 | AE43: 5 | AF43: 8 | AG43: 12 | AH43: 17 | AI43: 20 | AJ43: 22 | AK43: 75 | AL43: 400 | AM43: 1800 | AN43: DG | AO43: U | AP43: NA | AQ43: =IF((IFERROR(IF(VLOOKUP(AK43,X:Y,2,0)=TRUE,1,0),0)+IFERROR(IF(VLOOKUP(AL43,X:Y,2,0)=TRUE,1,0),0)+IFERROR(IF(VLOOKUP(AN43,X:Y,2,0)=TRUE,1,0),0)+IFERROR(IF(VLOOKUP(AO43,X:Y,2,0)=TRUE,1,0),0)+IFERROR(IF(VLOOKUP(AP43,X:Y,2,0)=TRUE,1,0),0)+IF(AND(AM43>=Калькулятор!$C$14,AM43<=Калькулятор!$E$14),1,0)+IF(OR(AND(AS43>=Калькулятор!$C$11,AS43<=IF(ISBLANK(Калькулятор!$E$11),100000,Калькулятор!$E$11)),Калькулятор!$C$11&Калькулятор!$E$11=""),1,0))=7,1,0) -> 0 | AR43: =SUM(AQ$2:AQ43) -> 0 | AS43: =IF(Калькулятор!$F$8<>70,ROUND(INDEX($C$6:$V$17,MATCH(AM43,$B$6:$B$17,0),MATCH(AK43&AL43,$C$2:$V$2,0))*(Калькулятор!$F$8/70)^справочно!$Y$2,0),ROUND(INDEX($C$6:$V$17,MATCH(AM43,$B$6:$B$17,0),MATCH(AK43&AL43,$C$2:$V$2,0)),0)) -> 980.00 | AT43: ЗО | AU43: =3.6*AV43/(4.19*(Калькулятор!$C$8-Калькулятор!$D$8)) -> 84.21 | AV43: =IF(Калькулятор!$F$8<>70,INDEX($C$6:$V$17,MATCH(AM43,$B$6:$B$17,0),MATCH(AK43&AL43,$C$2:$V$2,0))*(Калькулятор!$F$8/70)^справочно!$Y$2,INDEX($C$6:$V$17,MATCH(AM43,$B$6:$B$17,0),MATCH(AK43&AL43,$C$2:$V$2,0))) -> 980.10
AA44: Конвектор внутрипольный Royal Thermo ATRIUM-75/400/2000-DG-U-NA | AB44: НС-1477824 | AC44: RT-A-75/400/2000-DG-U-NA | AD44: 3 | AE44: 5 | AF44: 8 | AG44: 12 | AH44: 17 | AI44: 20 | AJ44: 22 | AK44: 75 | AL44: 400 | AM44: 2000 | AN44: DG | AO44: U | AP44: NA | AQ44: =IF((IFERROR(IF(VLOOKUP(AK44,X:Y,2,0)=TRUE,1,0),0)+IFERROR(IF(VLOOKUP(AL44,X:Y,2,0)=TRUE,1,0),0)+IFERROR(IF(VLOOKUP(AN44,X:Y,2,0)=TRUE,1,0),0)+IFERROR(IF(VLOOKUP(AO44,X:Y,2,0)=TRUE,1,0),0)+IFERROR(IF(VLOOKUP(AP44,X:Y,2,0)=TRUE,1,0),0)+IF(AND(AM44>=Калькулятор!$C$14,AM44<=Калькулятор!$E$14),1,0)+IF(OR(AND(AS44>=Калькулятор!$C$11,AS44<=IF(ISBLANK(Калькулятор!$E$11),100000,Калькулятор!$E$11)),Калькулятор!$C$11&Калькулятор!$E$11=""),1,0))=7,1,0) -> 0 | AR44: =SUM(AQ$2:AQ44) -> 0 | AS44: =IF(Калькулятор!$F$8<>70,ROUND(INDEX($C$6:$V$17,MATCH(AM44,$B$6:$B$17,0),MATCH(AK44&AL44,$C$2:$V$2,0))*(Калькулятор!$F$8/70)^справочно!$Y$2,0),ROUND(INDEX($C$6:$V$17,MATCH(AM44,$B$6:$B$17,0),MATCH(AK44&AL44,$C$2:$V$2,0)),0)) -> 1,106.00 | AT44: ЗО | AU44: =3.6*AV44/(4.19*(Калькулятор!$C$8-Калькулятор!$D$8)) -> 94.98 | AV44: =IF(Калькулятор!$F$8<>70,INDEX($C$6:$V$17,MATCH(AM44,$B$6:$B$17,0),MATCH(AK44&AL44,$C$2:$V$2,0))*(Калькулятор!$F$8/70)^справочно!$Y$2,INDEX($C$6:$V$17,MATCH(AM44,$B$6:$B$17,0),MATCH(AK44&AL44,$C$2:$V$2,0))) -> 1,105.50
AA45: Конвектор внутрипольный Royal Thermo ATRIUM-75/400/2200-DG-U-NA | AB45: НС-1477827 | AC45: RT-A-75/400/2200-DG-U-NA | AD45: 3 | AE45: 5 | AF45: 8 | AG45: 12 | AH45: 17 | AI45: 20 | AJ45: 22 | AK45: 75 | AL45: 400 | AM45: 2200 | AN45: DG | AO45: U | AP45: NA | AQ45: =IF((IFERROR(IF(VLOOKUP(AK45,X:Y,2,0)=TRUE,1,0),0)+IFERROR(IF(VLOOKUP(AL45,X:Y,2,0)=TRUE,1,0),0)+IFERROR(IF(VLOOKUP(AN45,X:Y,2,0)=TRUE,1,0),0)+IFERROR(IF(VLOOKUP(AO45,X:Y,2,0)=TRUE,1,0),0)+IFERROR(IF(VLOOKUP(AP45,X:Y,2,0)=TRUE,1,0),0)+IF(AND(AM45>=Калькулятор!$C$14,AM45<=Калькулятор!$E$14),1,0)+IF(OR(AND(AS45>=Калькулятор!$C$11,AS45<=IF(ISBLANK(Калькулятор!$E$11),100000,Калькулятор!$E$11)),Калькулятор!$C$11&Калькулятор!$E$11=""),1,0))=7,1,0) -> 0 | AR45: =SUM(AQ$2:AQ45) -> 0 | AS45: =IF(Калькулятор!$F$8<>70,ROUND(INDEX($C$6:$V$17,MATCH(AM45,$B$6:$B$17,0),MATCH(AK45&AL45,$C$2:$V$2,0))*(Калькулятор!$F$8/70)^справочно!$Y$2,0),ROUND(INDEX($C$6:$V$17,MATCH(AM45,$B$6:$B$17,0),MATCH(AK45&AL45,$C$2:$V$2,0)),0)) -> 1,232.00 | AT45: ЗО | AU45: =3.6*AV45/(4.19*(Калькулятор!$C$8-Калькулятор!$D$8)) -> 105.85 | AV45: =IF(Калькулятор!$F$8<>70,INDEX($C$6:$V$17,MATCH(AM45,$B$6:$B$17,0),MATCH(AK45&AL45,$C$2:$V$2,0))*(Калькулятор!$F$8/70)^справочно!$Y$2,INDEX($C$6:$V$17,MATCH(AM45,$B$6:$B$17,0),MATCH(AK45&AL45,$C$2:$V$2,0))) -> 1,232.00
AA46: Конвектор внутрипольный Royal Thermo ATRIUM-75/400/2400-DG-U-NA | AB46: НС-1477830 | AC46: RT-A-75/400/2400-DG-U-NA | AD46: 3 | AE46: 5 | AF46: 8 | AG46: 12 | AH46: 17 | AI46: 20 | AJ46: 22 | AK46: 75 | AL46: 400 | AM46: 2400 | AN46: DG | AO46: U | AP46: NA | AQ46: =IF((IFERROR(IF(VLOOKUP(AK46,X:Y,2,0)=TRUE,1,0),0)+IFERROR(IF(VLOOKUP(AL46,X:Y,2,0)=TRUE,1,0),0)+IFERROR(IF(VLOOKUP(AN46,X:Y,2,0)=TRUE,1,0),0)+IFERROR(IF(VLOOKUP(AO46,X:Y,2,0)=TRUE,1,0),0)+IFERROR(IF(VLOOKUP(AP46,X:Y,2,0)=TRUE,1,0),0)+IF(AND(AM46>=Калькулятор!$C$14,AM46<=Калькулятор!$E$14),1,0)+IF(OR(AND(AS46>=Калькулятор!$C$11,AS46<=IF(ISBLANK(Калькулятор!$E$11),100000,Калькулятор!$E$11)),Калькулятор!$C$11&Калькулятор!$E$11=""),1,0))=7,1,0) -> 0 | AR46: =SUM(AQ$2:AQ46) -> 0 | AS46: =IF(Калькулятор!$F$8<>70,ROUND(INDEX($C$6:$V$17,MATCH(AM46,$B$6:$B$17,0),MATCH(AK46&AL46,$C$2:$V$2,0))*(Калькулятор!$F$8/70)^справочно!$Y$2,0),ROUND(INDEX($C$6:$V$17,MATCH(AM46,$B$6:$B$17,0),MATCH(AK46&AL46,$C$2:$V$2,0)),0)) -> 1,362.00 | AT46: ЗО | AU46: =3.6*AV46/(4.19*(Калькулятор!$C$8-Калькулятор!$D$8)) -> 117.00 | AV46: =IF(Калькулятор!$F$8<>70,INDEX($C$6:$V$17,MATCH(AM46,$B$6:$B$17,0),MATCH(AK46&AL46,$C$2:$V$2,0))*(Калькулятор!$F$8/70)^справочно!$Y$2,INDEX($C$6:$V$17,MATCH(AM46,$B$6:$B$17,0),MATCH(AK46&AL46,$C$2:$V$2,0))) -> 1,361.80
AA47: Конвектор внутрипольный Royal Thermo ATRIUM-75/400/2600-DG-U-NA | AB47: НС-1477833 | AC47: RT-A-75/400/2600-DG-U-NA | AD47: 3 | AE47: 5 | AF47: 8 | AG47: 12 | AH47: 17 | AI47: 20 | AJ47: 22 | AK47: 75 | AL47: 400 | AM47: 2600 | AN47: DG | AO47: U | AP47: NA | AQ47: =IF((IFERROR(IF(VLOOKUP(AK47,X:Y,2,0)=TRUE,1,0),0)+IFERROR(IF(VLOOKUP(AL47,X:Y,2,0)=TRUE,1,0),0)+IFERROR(IF(VLOOKUP(AN47,X:Y,2,0)=TRUE,1,0),0)+IFERROR(IF(VLOOKUP(AO47,X:Y,2,0)=TRUE,1,0),0)+IFERROR(IF(VLOOKUP(AP47,X:Y,2,0)=TRUE,1,0),0)+IF(AND(AM47>=Калькулятор!$C$14,AM47<=Калькулятор!$E$14),1,0)+IF(OR(AND(AS47>=Калькулятор!$C$11,AS47<=IF(ISBLANK(Калькулятор!$E$11),100000,Калькулятор!$E$11)),Калькулятор!$C$11&Калькулятор!$E$11=""),1,0))=7,1,0) -> 0 | AR47: =SUM(AQ$2:AQ47) -> 0 | AS47: =IF(Калькулятор!$F$8<>70,ROUND(INDEX($C$6:$V$17,MATCH(AM47,$B$6:$B$17,0),MATCH(AK47&AL47,$C$2:$V$2,0))*(Калькулятор!$F$8/70)^справочно!$Y$2,0),ROUND(INDEX($C$6:$V$17,MATCH(AM47,$B$6:$B$17,0),MATCH(AK47&AL47,$C$2:$V$2,0)),0)) -> 1,487.00 | AT47: ЗО | AU47: =3.6*AV47/(4.19*(Калькулятор!$C$8-Калькулятор!$D$8)) -> 127.78 | AV47: =IF(Калькулятор!$F$8<>70,INDEX($C$6:$V$17,MATCH(AM47,$B$6:$B$17,0),MATCH(AK47&AL47,$C$2:$V$2,0))*(Калькулятор!$F$8/70)^справочно!$Y$2,INDEX($C$6:$V$17,MATCH(AM47,$B$6:$B$17,0),MATCH(AK47&AL47,$C$2:$V$2,0))) -> 1,487.20
AA48: Конвектор внутрипольный Royal Thermo ATRIUM-75/400/2800-DG-U-NA | AB48: НС-1477836 | AC48: RT-A-75/400/2800-DG-U-NA | AD48: 3 | AE48: 5 | AF48: 8 | AG48: 12 | AH48: 17 | AI48: 20 | AJ48: 22 | AK48: 75 | AL48: 400 | AM48: 2800 | AN48: DG | AO48: U | AP48: NA | AQ48: =IF((IFERROR(IF(VLOOKUP(AK48,X:Y,2,0)=TRUE,1,0),0)+IFERROR(IF(VLOOKUP(AL48,X:Y,2,0)=TRUE,1,0),0)+IFERROR(IF(VLOOKUP(AN48,X:Y,2,0)=TRUE,1,0),0)+IFERROR(IF(VLOOKUP(AO48,X:Y,2,0)=TRUE,1,0),0)+IFERROR(IF(VLOOKUP(AP48,X:Y,2,0)=TRUE,1,0),0)+IF(AND(AM48>=Калькулятор!$C$14,AM48<=Калькулятор!$E$14),1,0)+IF(OR(AND(AS48>=Калькулятор!$C$11,AS48<=IF(ISBLANK(Калькулятор!$E$11),100000,Калькулятор!$E$11)),Калькулятор!$C$11&Калькулятор!$E$11=""),1,0))=7,1,0) -> 0 | AR48: =SUM(AQ$2:AQ48) -> 0 | AS48: =IF(Калькулятор!$F$8<>70,ROUND(INDEX($C$6:$V$17,MATCH(AM48,$B$6:$B$17,0),MATCH(AK48&AL48,$C$2:$V$2,0))*(Калькулятор!$F$8/70)^справочно!$Y$2,0),ROUND(INDEX($C$6:$V$17,MATCH(AM48,$B$6:$B$17,0),MATCH(AK48&AL48,$C$2:$V$2,0)),0)) -> 1,614.00 | AT48: ЗО | AU48: =3.6*AV48/(4.19*(Калькулятор!$C$8-Калькулятор!$D$8)) -> 138.65 | AV48: =IF(Калькулятор!$F$8<>70,INDEX($C$6:$V$17,MATCH(AM48,$B$6:$B$17,0),MATCH(AK48&AL48,$C$2:$V$2,0))*(Калькулятор!$F$8/70)^справочно!$Y$2,INDEX($C$6:$V$17,MATCH(AM48,$B$6:$B$17,0),MATCH(AK48&AL48,$C$2:$V$2,0))) -> 1,613.70
AA49: Конвектор внутрипольный Royal Thermo ATRIUM-75/400/3000-DG-U-NA | AB49: НС-1477839 | AC49: RT-A-75/400/3000-DG-U-NA | AD49: 3 | AE49: 5 | AF49: 8 | AG49: 12 | AH49: 17 | AI49: 20 | AJ49: 22 | AK49: 75 | AL49: 400 | AM49: 3000 | AN49: DG | AO49: U | AP49: NA | AQ49: =IF((IFERROR(IF(VLOOKUP(AK49,X:Y,2,0)=TRUE,1,0),0)+IFERROR(IF(VLOOKUP(AL49,X:Y,2,0)=TRUE,1,0),0)+IFERROR(IF(VLOOKUP(AN49,X:Y,2,0)=TRUE,1,0),0)+IFERROR(IF(VLOOKUP(AO49,X:Y,2,0)=TRUE,1,0),0)+IFERROR(IF(VLOOKUP(AP49,X:Y,2,0)=TRUE,1,0),0)+IF(AND(AM49>=Калькулятор!$C$14,AM49<=Калькулятор!$E$14),1,0)+IF(OR(AND(AS49>=Калькулятор!$C$11,AS49<=IF(ISBLANK(Калькулятор!$E$11),100000,Калькулятор!$E$11)),Калькулятор!$C$11&Калькулятор!$E$11=""),1,0))=7,1,0) -> 0 | AR49: =SUM(AQ$2:AQ49) -> 0 | AS49: =IF(Калькулятор!$F$8<>70,ROUND(INDEX($C$6:$V$17,MATCH(AM49,$B$6:$B$17,0),MATCH(AK49&AL49,$C$2:$V$2,0))*(Калькулятор!$F$8/70)^справочно!$Y$2,0),ROUND(INDEX($C$6:$V$17,MATCH(AM49,$B$6:$B$17,0),MATCH(AK49&AL49,$C$2:$V$2,0)),0)) -> 1,739.00 | AT49: ЗО | AU49: =3.6*AV49/(4.19*(Калькулятор!$C$8-Калькулятор!$D$8)) -> 149.42 | AV49: =IF(Калькулятор!$F$8<>70,INDEX($C$6:$V$17,MATCH(AM49,$B$6:$B$17,0),MATCH(AK49&AL49,$C$2:$V$2,0))*(Калькулятор!$F$8/70)^справочно!$Y$2,INDEX($C$6:$V$17,MATCH(AM49,$B$6:$B$17,0),MATCH(AK49&AL49,$C$2:$V$2,0))) -> 1,739.10
AA50: Конвектор внутрипольный Royal Thermo ATRIUM-90/200/800-DG-U-NA | AB50: НС-1477881 | AC50: RT-A-90/200/800-DG-U-NA | AD50: 3 | AE50: 5 | AF50: 8 | AG50: 12 | AH50: 16 | AI50: 19 | AJ50: 21 | AK50: 90 | AL50: 200 | AM50: 800 | AN50: DG | AO50: U | AP50: NA | AQ50: =IF((IFERROR(IF(VLOOKUP(AK50,X:Y,2,0)=TRUE,1,0),0)+IFERROR(IF(VLOOKUP(AL50,X:Y,2,0)=TRUE,1,0),0)+IFERROR(IF(VLOOKUP(AN50,X:Y,2,0)=TRUE,1,0),0)+IFERROR(IF(VLOOKUP(AO50,X:Y,2,0)=TRUE,1,0),0)+IFERROR(IF(VLOOKUP(AP50,X:Y,2,0)=TRUE,1,0),0)+IF(AND(AM50>=Калькулятор!$C$14,AM50<=Калькулятор!$E$14),1,0)+IF(OR(AND(AS50>=Калькулятор!$C$11,AS50<=IF(ISBLANK(Калькулятор!$E$11),100000,Калькулятор!$E$11)),Калькулятор!$C$11&Калькулятор!$E$11=""),1,0))=7,1,0) -> 0 | AR50: =SUM(AQ$2:AQ50) -> 0 | AS50: =IF(Калькулятор!$F$8<>70,ROUND(INDEX($C$6:$V$17,MATCH(AM50,$B$6:$B$17,0),MATCH(AK50&AL50,$C$2:$V$2,0))*(Калькулятор!$F$8/70)^справочно!$Y$2,0),ROUND(INDEX($C$6:$V$17,MATCH(AM50,$B$6:$B$17,0),MATCH(AK50&AL50,$C$2:$V$2,0)),0)) -> 222.00 | AT50: ЗО | AU50: =3.6*AV50/(4.19*(Калькулятор!$C$8-Калькулятор!$D$8)) -> 19.09 | AV50: =IF(Калькулятор!$F$8<>70,INDEX($C$6:$V$17,MATCH(AM50,$B$6:$B$17,0),MATCH(AK50&AL50,$C$2:$V$2,0))*(Калькулятор!$F$8/70)^справочно!$Y$2,INDEX($C$6:$V$17,MATCH(AM50,$B$6:$B$17,0),MATCH(AK50&AL50,$C$2:$V$2,0))) -> 222.20
AA51: Конвектор внутрипольный Royal Thermo ATRIUM-90/200/1000-DG-U-NA | AB51: НС-1430109 | AC51: RT-A-90/200/1000-DG-U-NA | AD51: 3 | AE51: 5 | AF51: 8 | AG51: 12 | AH51: 17 | AI51: 20 | AJ51: 22 | AK51: 90 | AL51: 200 | AM51: 1000 | AN51: DG | AO51: U | AP51: NA | AQ51: =IF((IFERROR(IF(VLOOKUP(AK51,X:Y,2,0)=TRUE,1,0),0)+IFERROR(IF(VLOOKUP(AL51,X:Y,2,0)=TRUE,1,0),0)+IFERROR(IF(VLOOKUP(AN51,X:Y,2,0)=TRUE,1,0),0)+IFERROR(IF(VLOOKUP(AO51,X:Y,2,0)=TRUE,1,0),0)+IFERROR(IF(VLOOKUP(AP51,X:Y,2,0)=TRUE,1,0),0)+IF(AND(AM51>=Калькулятор!$C$14,AM51<=Калькулятор!$E$14),1,0)+IF(OR(AND(AS51>=Калькулятор!$C$11,AS51<=IF(ISBLANK(Калькулятор!$E$11),100000,Калькулятор!$E$11)),Калькулятор!$C$11&Калькулятор!$E$11=""),1,0))=7,1,0) -> 0 | AR51: =SUM(AQ$2:AQ51) -> 0 | AS51: =IF(Калькулятор!$F$8<>70,ROUND(INDEX($C$6:$V$17,MATCH(AM51,$B$6:$B$17,0),MATCH(AK51&AL51,$C$2:$V$2,0))*(Калькулятор!$F$8/70)^справочно!$Y$2,0),ROUND(INDEX($C$6:$V$17,MATCH(AM51,$B$6:$B$17,0),MATCH(AK51&AL51,$C$2:$V$2,0)),0)) -> 306.00 | AT51: - | AU51: =3.6*AV51/(4.19*(Калькулятор!$C$8-Калькулятор!$D$8)) -> 26.27 | AV51: =IF(Калькулятор!$F$8<>70,INDEX($C$6:$V$17,MATCH(AM51,$B$6:$B$17,0),MATCH(AK51&AL51,$C$2:$V$2,0))*(Калькулятор!$F$8/70)^справочно!$Y$2,INDEX($C$6:$V$17,MATCH(AM51,$B$6:$B$17,0),MATCH(AK51&AL51,$C$2:$V$2,0))) -> 305.80
AA52: Конвектор внутрипольный Royal Thermo ATRIUM-90/200/1200-DG-U-NA | AB52: НС-1430110 | AC52: RT-A-90/200/1200-DG-U-NA | AD52: 3 | AE52: 5 | AF52: 8 | AG52: 12 | AH52: 17 | AI52: 20 | AJ52: 22 | AK52: 90 | AL52: 200 | AM52: 1200 | AN52: DG | AO52: U | AP52: NA | AQ52: =IF((IFERROR(IF(VLOOKUP(AK52,X:Y,2,0)=TRUE,1,0),0)+IFERROR(IF(VLOOKUP(AL52,X:Y,2,0)=TRUE,1,0),0)+IFERROR(IF(VLOOKUP(AN52,X:Y,2,0)=TRUE,1,0),0)+IFERROR(IF(VLOOKUP(AO52,X:Y,2,0)=TRUE,1,0),0)+IFERROR(IF(VLOOKUP(AP52,X:Y,2,0)=TRUE,1,0),0)+IF(AND(AM52>=Калькулятор!$C$14,AM52<=Калькулятор!$E$14),1,0)+IF(OR(AND(AS52>=Калькулятор!$C$11,AS52<=IF(ISBLANK(Калькулятор!$E$11),100000,Калькулятор!$E$11)),Калькулятор!$C$11&Калькулятор!$E$11=""),1,0))=7,1,0) -> 0 | AR52: =SUM(AQ$2:AQ52) -> 0 | AS52: =IF(Калькулятор!$F$8<>70,ROUND(INDEX($C$6:$V$17,MATCH(AM52,$B$6:$B$17,0),MATCH(AK52&AL52,$C$2:$V$2,0))*(Калькулятор!$F$8/70)^справочно!$Y$2,0),ROUND(INDEX($C$6:$V$17,MATCH(AM52,$B$6:$B$17,0),MATCH(AK52&AL52,$C$2:$V$2,0)),0)) -> 391.00 | AT52: - | AU52: =3.6*AV52/(4.19*(Калькулятор!$C$8-Калькулятор!$D$8)) -> 33.55 | AV52: =IF(Калькулятор!$F$8<>70,INDEX($C$6:$V$17,MATCH(AM52,$B$6:$B$17,0),MATCH(AK52&AL52,$C$2:$V$2,0))*(Калькулятор!$F$8/70)^справочно!$Y$2,INDEX($C$6:$V$17,MATCH(AM52,$B$6:$B$17,0),MATCH(AK52&AL52,$C$2:$V$2,0))) -> 390.50
AA53: Конвектор внутрипольный Royal Thermo ATRIUM-90/200/1400-DG-U-NA | AB53: НС-1430111 | AC53: RT-A-90/200/1400-DG-U-NA | AD53: 3 | AE53: 5 | AF53: 8 | AG53: 12 | AH53: 17 | AI53: 20 | AJ53: 22 | AK53: 90 | AL53: 200 | AM53: 1400 | AN53: DG | AO53: U | AP53: NA | AQ53: =IF((IFERROR(IF(VLOOKUP(AK53,X:Y,2,0)=TRUE,1,0),0)+IFERROR(IF(VLOOKUP(AL53,X:Y,2,0)=TRUE,1,0),0)+IFERROR(IF(VLOOKUP(AN53,X:Y,2,0)=TRUE,1,0),0)+IFERROR(IF(VLOOKUP(AO53,X:Y,2,0)=TRUE,1,0),0)+IFERROR(IF(VLOOKUP(AP53,X:Y,2,0)=TRUE,1,0),0)+IF(AND(AM53>=Калькулятор!$C$14,AM53<=Калькулятор!$E$14),1,0)+IF(OR(AND(AS53>=Калькулятор!$C$11,AS53<=IF(ISBLANK(Калькулятор!$E$11),100000,Калькулятор!$E$11)),Калькулятор!$C$11&Калькулятор!$E$11=""),1,0))=7,1,0) -> 0 | AR53: =SUM(AQ$2:AQ53) -> 0 | AS53: =IF(Калькулятор!$F$8<>70,ROUND(INDEX($C$6:$V$17,MATCH(AM53,$B$6:$B$17,0),MATCH(AK53&AL53,$C$2:$V$2,0))*(Калькулятор!$F$8/70)^справочно!$Y$2,0),ROUND(INDEX($C$6:$V$17,MATCH(AM53,$B$6:$B$17,0),MATCH(AK53&AL53,$C$2:$V$2,0)),0)) -> 474.00 | AT53: - | AU53: =3.6*AV53/(4.19*(Калькулятор!$C$8-Калькулятор!$D$8)) -> 40.73 | AV53: =IF(Калькулятор!$F$8<>70,INDEX($C$6:$V$17,MATCH(AM53,$B$6:$B$17,0),MATCH(AK53&AL53,$C$2:$V$2,0))*(Калькулятор!$F$8/70)^справочно!$Y$2,INDEX($C$6:$V$17,MATCH(AM53,$B$6:$B$17,0),MATCH(AK53&AL53,$C$2:$V$2,0))) -> 474.10
AA54: Конвектор внутрипольный Royal Thermo ATRIUM-90/200/1600-DG-U-NA | AB54: НС-1430112 | AC54: RT-A-90/200/1600-DG-U-NA | AD54: 3 | AE54: 5 | AF54: 8 | AG54: 12 | AH54: 17 | AI54: 20 | AJ54: 22 | AK54: 90 | AL54: 200 | AM54: 1600 | AN54: DG | AO54: U | AP54: NA | AQ54: =IF((IFERROR(IF(VLOOKUP(AK54,X:Y,2,0)=TRUE,1,0),0)+IFERROR(IF(VLOOKUP(AL54,X:Y,2,0)=TRUE,1,0),0)+IFERROR(IF(VLOOKUP(AN54,X:Y,2,0)=TRUE,1,0),0)+IFERROR(IF(VLOOKUP(AO54,X:Y,2,0)=TRUE,1,0),0)+IFERROR(IF(VLOOKUP(AP54,X:Y,2,0)=TRUE,1,0),0)+IF(AND(AM54>=Калькулятор!$C$14,AM54<=Калькулятор!$E$14),1,0)+IF(OR(AND(AS54>=Калькулятор!$C$11,AS54<=IF(ISBLANK(Калькулятор!$E$11),100000,Калькулятор!$E$11)),Калькулятор!$C$11&Калькулятор!$E$11=""),1,0))=7,1,0) -> 0 | AR54: =SUM(AQ$2:AQ54) -> 0 | AS54: =IF(Калькулятор!$F$8<>70,ROUND(INDEX($C$6:$V$17,MATCH(AM54,$B$6:$B$17,0),MATCH(AK54&AL54,$C$2:$V$2,0))*(Калькулятор!$F$8/70)^справочно!$Y$2,0),ROUND(INDEX($C$6:$V$17,MATCH(AM54,$B$6:$B$17,0),MATCH(AK54&AL54,$C$2:$V$2,0)),0)) -> 559.00 | AT54: - | AU54: =3.6*AV54/(4.19*(Калькулятор!$C$8-Калькулятор!$D$8)) -> 48.01 | AV54: =IF(Калькулятор!$F$8<>70,INDEX($C$6:$V$17,MATCH(AM54,$B$6:$B$17,0),MATCH(AK54&AL54,$C$2:$V$2,0))*(Калькулятор!$F$8/70)^справочно!$Y$2,INDEX($C$6:$V$17,MATCH(AM54,$B$6:$B$17,0),MATCH(AK54&AL54,$C$2:$V$2,0))) -> 558.80
AA55: Конвектор внутрипольный Royal Thermo ATRIUM-90/200/1800-DG-U-NA | AB55: НС-1430113 | AC55: RT-A-90/200/1800-DG-U-NA | AD55: 3 | AE55: 5 | AF55: 8 | AG55: 12 | AH55: 17 | AI55: 20 | AJ55: 22 | AK55: 90 | AL55: 200 | AM55: 1800 | AN55: DG | AO55: U | AP55: NA | AQ55: =IF((IFERROR(IF(VLOOKUP(AK55,X:Y,2,0)=TRUE,1,0),0)+IFERROR(IF(VLOOKUP(AL55,X:Y,2,0)=TRUE,1,0),0)+IFERROR(IF(VLOOKUP(AN55,X:Y,2,0)=TRUE,1,0),0)+IFERROR(IF(VLOOKUP(AO55,X:Y,2,0)=TRUE,1,0),0)+IFERROR(IF(VLOOKUP(AP55,X:Y,2,0)=TRUE,1,0),0)+IF(AND(AM55>=Калькулятор!$C$14,AM55<=Калькулятор!$E$14),1,0)+IF(OR(AND(AS55>=Калькулятор!$C$11,AS55<=IF(ISBLANK(Калькулятор!$E$11),100000,Калькулятор!$E$11)),Калькулятор!$C$11&Калькулятор!$E$11=""),1,0))=7,1,0) -> 0 | AR55: =SUM(AQ$2:AQ55) -> 0 | AS55: =IF(Калькулятор!$F$8<>70,ROUND(INDEX($C$6:$V$17,MATCH(AM55,$B$6:$B$17,0),MATCH(AK55&AL55,$C$2:$V$2,0))*(Калькулятор!$F$8/70)^справочно!$Y$2,0),ROUND(INDEX($C$6:$V$17,MATCH(AM55,$B$6:$B$17,0),MATCH(AK55&AL55,$C$2:$V$2,0)),0)) -> 642.00 | AT55: - | AU55: =3.6*AV55/(4.19*(Калькулятор!$C$8-Калькулятор!$D$8)) -> 55.19 | AV55: =IF(Калькулятор!$F$8<>70,INDEX($C$6:$V$17,MATCH(AM55,$B$6:$B$17,0),MATCH(AK55&AL55,$C$2:$V$2,0))*(Калькулятор!$F$8/70)^справочно!$Y$2,INDEX($C$6:$V$17,MATCH(AM55,$B$6:$B$17,0),MATCH(AK55&AL55,$C$2:$V$2,0))) -> 642.40
AA56: Конвектор внутрипольный Royal Thermo ATRIUM-90/200/2000-DG-U-NA | AB56: НС-1430114 | AC56: RT-A-90/200/2000-DG-U-NA | AD56: 3 | AE56: 5 | AF56: 8 | AG56: 12 | AH56: 17 | AI56: 20 | AJ56: 22 | AK56: 90 | AL56: 200 | AM56: 2000 | AN56: DG | AO56: U | AP56: NA | AQ56: =IF((IFERROR(IF(VLOOKUP(AK56,X:Y,2,0)=TRUE,1,0),0)+IFERROR(IF(VLOOKUP(AL56,X:Y,2,0)=TRUE,1,0),0)+IFERROR(IF(VLOOKUP(AN56,X:Y,2,0)=TRUE,1,0),0)+IFERROR(IF(VLOOKUP(AO56,X:Y,2,0)=TRUE,1,0),0)+IFERROR(IF(VLOOKUP(AP56,X:Y,2,0)=TRUE,1,0),0)+IF(AND(AM56>=Калькулятор!$C$14,AM56<=Калькулятор!$E$14),1,0)+IF(OR(AND(AS56>=Калькулятор!$C$11,AS56<=IF(ISBLANK(Калькулятор!$E$11),100000,Калькулятор!$E$11)),Калькулятор!$C$11&Калькулятор!$E$11=""),1,0))=7,1,0) -> 0 | AR56: =SUM(AQ$2:AQ56) -> 0 | AS56: =IF(Калькулятор!$F$8<>70,ROUND(INDEX($C$6:$V$17,MATCH(AM56,$B$6:$B$17,0),MATCH(AK56&AL56,$C$2:$V$2,0))*(Калькулятор!$F$8/70)^справочно!$Y$2,0),ROUND(INDEX($C$6:$V$17,MATCH(AM56,$B$6:$B$17,0),MATCH(AK56&AL56,$C$2:$V$2,0)),0)) -> 726.00 | AT56: - | AU56: =3.6*AV56/(4.19*(Калькулятор!$C$8-Калькулятор!$D$8)) -> 62.38 | AV56: =IF(Калькулятор!$F$8<>70,INDEX($C$6:$V$17,MATCH(AM56,$B$6:$B$17,0),MATCH(AK56&AL56,$C$2:$V$2,0))*(Калькулятор!$F$8/70)^справочно!$Y$2,INDEX($C$6:$V$17,MATCH(AM56,$B$6:$B$17,0),MATCH(AK56&AL56,$C$2:$V$2,0))) -> 726.00 | AW56: NA
AA57: Конвектор внутрипольный Royal Thermo ATRIUM-90/200/2200-DG-U-NA | AB57: НС-1477866 | AC57: RT-A-90/200/2200-DG-U-NA | AD57: 3 | AE57: 5 | AF57: 8 | AG57: 12 | AH57: 17 | AI57: 20 | AJ57: 22 | AK57: 90 | AL57: 200 | AM57: 2200 | AN57: DG | AO57: U | AP57: NA | AQ57: =IF((IFERROR(IF(VLOOKUP(AK57,X:Y,2,0)=TRUE,1,0),0)+IFERROR(IF(VLOOKUP(AL57,X:Y,2,0)=TRUE,1,0),0)+IFERROR(IF(VLOOKUP(AN57,X:Y,2,0)=TRUE,1,0),0)+IFERROR(IF(VLOOKUP(AO57,X:Y,2,0)=TRUE,1,0),0)+IFERROR(IF(VLOOKUP(AP57,X:Y,2,0)=TRUE,1,0),0)+IF(AND(AM57>=Калькулятор!$C$14,AM57<=Калькулятор!$E$14),1,0)+IF(OR(AND(AS57>=Калькулятор!$C$11,AS57<=IF(ISBLANK(Калькулятор!$E$11),100000,Калькулятор!$E$11)),Калькулятор!$C$11&Калькулятор!$E$11=""),1,0))=7,1,0) -> 0 | AR57: =SUM(AQ$2:AQ57) -> 0 | AS57: =IF(Калькулятор!$F$8<>70,ROUND(INDEX($C$6:$V$17,MATCH(AM57,$B$6:$B$17,0),MATCH(AK57&AL57,$C$2:$V$2,0))*(Калькулятор!$F$8/70)^справочно!$Y$2,0),ROUND(INDEX($C$6:$V$17,MATCH(AM57,$B$6:$B$17,0),MATCH(AK57&AL57,$C$2:$V$2,0)),0)) -> 811.00 | AT57: - | AU57: =3.6*AV57/(4.19*(Калькулятор!$C$8-Калькулятор!$D$8)) -> 69.65 | AV57: =IF(Калькулятор!$F$8<>70,INDEX($C$6:$V$17,MATCH(AM57,$B$6:$B$17,0),MATCH(AK57&AL57,$C$2:$V$2,0))*(Калькулятор!$F$8/70)^справочно!$Y$2,INDEX($C$6:$V$17,MATCH(AM57,$B$6:$B$17,0),MATCH(AK57&AL57,$C$2:$V$2,0))) -> 810.70
AA58: Конвектор внутрипольный Royal Thermo ATRIUM-90/200/2400-DG-U-NA | AB58: НС-1477869 | AC58: RT-A-90/200/2400-DG-U-NA | AD58: 3 | AE58: 5 | AF58: 8 | AG58: 12 | AH58: 17 | AI58: 20 | AJ58: 22 | AK58: 90 | AL58: 200 | AM58: 2400 | AN58: DG | AO58: U | AP58: NA | AQ58: =IF((IFERROR(IF(VLOOKUP(AK58,X:Y,2,0)=TRUE,1,0),0)+IFERROR(IF(VLOOKUP(AL58,X:Y,2,0)=TRUE,1,0),0)+IFERROR(IF(VLOOKUP(AN58,X:Y,2,0)=TRUE,1,0),0)+IFERROR(IF(VLOOKUP(AO58,X:Y,2,0)=TRUE,1,0),0)+IFERROR(IF(VLOOKUP(AP58,X:Y,2,0)=TRUE,1,0),0)+IF(AND(AM58>=Калькулятор!$C$14,AM58<=Калькулятор!$E$14),1,0)+IF(OR(AND(AS58>=Калькулятор!$C$11,AS58<=IF(ISBLANK(Калькулятор!$E$11),100000,Калькулятор!$E$11)),Калькулятор!$C$11&Калькулятор!$E$11=""),1,0))=7,1,0) -> 0 | AR58: =SUM(AQ$2:AQ58) -> 0 | AS58: =IF(Калькулятор!$F$8<>70,ROUND(INDEX($C$6:$V$17,MATCH(AM58,$B$6:$B$17,0),MATCH(AK58&AL58,$C$2:$V$2,0))*(Калькулятор!$F$8/70)^справочно!$Y$2,0),ROUND(INDEX($C$6:$V$17,MATCH(AM58,$B$6:$B$17,0),MATCH(AK58&AL58,$C$2:$V$2,0)),0)) -> 894.00 | AT58: - | AU58: =3.6*AV58/(4.19*(Калькулятор!$C$8-Калькулятор!$D$8)) -> 76.84 | AV58: =IF(Калькулятор!$F$8<>70,INDEX($C$6:$V$17,MATCH(AM58,$B$6:$B$17,0),MATCH(AK58&AL58,$C$2:$V$2,0))*(Калькулятор!$F$8/70)^справочно!$Y$2,INDEX($C$6:$V$17,MATCH(AM58,$B$6:$B$17,0),MATCH(AK58&AL58,$C$2:$V$2,0))) -> 894.30
AA59: Конвектор внутрипольный Royal Thermo ATRIUM-90/200/2600-DG-U-NA | AB59: НС-1477872 | AC59: RT-A-90/200/2600-DG-U-NA | AD59: 3 | AE59: 5 | AF59: 8 | AG59: 12 | AH59: 17 | AI59: 20 | AJ59: 22 | AK59: 90 | AL59: 200 | AM59: 2600 | AN59: DG | AO59: U | AP59: NA | AQ59: =IF((IFERROR(IF(VLOOKUP(AK59,X:Y,2,0)=TRUE,1,0),0)+IFERROR(IF(VLOOKUP(AL59,X:Y,2,0)=TRUE,1,0),0)+IFERROR(IF(VLOOKUP(AN59,X:Y,2,0)=TRUE,1,0),0)+IFERROR(IF(VLOOKUP(AO59,X:Y,2,0)=TRUE,1,0),0)+IFERROR(IF(VLOOKUP(AP59,X:Y,2,0)=TRUE,1,0),0)+IF(AND(AM59>=Калькулятор!$C$14,AM59<=Калькулятор!$E$14),1,0)+IF(OR(AND(AS59>=Калькулятор!$C$11,AS59<=IF(ISBLANK(Калькулятор!$E$11),100000,Калькулятор!$E$11)),Калькулятор!$C$11&Калькулятор!$E$11=""),1,0))=7,1,0) -> 0 | AR59: =SUM(AQ$2:AQ59) -> 0 | AS59: =IF(Калькулятор!$F$8<>70,ROUND(INDEX($C$6:$V$17,MATCH(AM59,$B$6:$B$17,0),MATCH(AK59&AL59,$C$2:$V$2,0))*(Калькулятор!$F$8/70)^справочно!$Y$2,0),ROUND(INDEX($C$6:$V$17,MATCH(AM59,$B$6:$B$17,0),MATCH(AK59&AL59,$C$2:$V$2,0)),0)) -> 978.00 | AT59: ЗО | AU59: =3.6*AV59/(4.19*(Калькулятор!$C$8-Калькулятор!$D$8)) -> 84.02 | AV59: =IF(Калькулятор!$F$8<>70,INDEX($C$6:$V$17,MATCH(AM59,$B$6:$B$17,0),MATCH(AK59&AL59,$C$2:$V$2,0))*(Калькулятор!$F$8/70)^справочно!$Y$2,INDEX($C$6:$V$17,MATCH(AM59,$B$6:$B$17,0),MATCH(AK59&AL59,$C$2:$V$2,0))) -> 977.90
AA60: Конвектор внутрипольный Royal Thermo ATRIUM-90/200/2800-DG-U-NA | AB60: НС-1477875 | AC60: RT-A-90/200/2800-DG-U-NA | AD60: 3 | AE60: 5 | AF60: 8 | AG60: 12 | AH60: 17 | AI60: 20 | AJ60: 22 | AK60: 90 | AL60: 200 | AM60: 2800 | AN60: DG | AO60: U | AP60: NA | AQ60: =IF((IFERROR(IF(VLOOKUP(AK60,X:Y,2,0)=TRUE,1,0),0)+IFERROR(IF(VLOOKUP(AL60,X:Y,2,0)=TRUE,1,0),0)+IFERROR(IF(VLOOKUP(AN60,X:Y,2,0)=TRUE,1,0),0)+IFERROR(IF(VLOOKUP(AO60,X:Y,2,0)=TRUE,1,0),0)+IFERROR(IF(VLOOKUP(AP60,X:Y,2,0)=TRUE,1,0),0)+IF(AND(AM60>=Калькулятор!$C$14,AM60<=Калькулятор!$E$14),1,0)+IF(OR(AND(AS60>=Калькулятор!$C$11,AS60<=IF(ISBLANK(Калькулятор!$E$11),100000,Калькулятор!$E$11)),Калькулятор!$C$11&Калькулятор!$E$11=""),1,0))=7,1,0) -> 0 | AR60: =SUM(AQ$2:AQ60) -> 0 | AS60: =IF(Калькулятор!$F$8<>70,ROUND(INDEX($C$6:$V$17,MATCH(AM60,$B$6:$B$17,0),MATCH(AK60&AL60,$C$2:$V$2,0))*(Калькулятор!$F$8/70)^справочно!$Y$2,0),ROUND(INDEX($C$6:$V$17,MATCH(AM60,$B$6:$B$17,0),MATCH(AK60&AL60,$C$2:$V$2,0)),0)) -> 1,063.00 | AT60: ЗО | AU60: =3.6*AV60/(4.19*(Калькулятор!$C$8-Калькулятор!$D$8)) -> 91.30 | AV60: =IF(Калькулятор!$F$8<>70,INDEX($C$6:$V$17,MATCH(AM60,$B$6:$B$17,0),MATCH(AK60&AL60,$C$2:$V$2,0))*(Калькулятор!$F$8/70)^справочно!$Y$2,INDEX($C$6:$V$17,MATCH(AM60,$B$6:$B$17,0),MATCH(AK60&AL60,$C$2:$V$2,0))) -> 1,062.60
AA61: Конвектор внутрипольный Royal Thermo ATRIUM-90/200/3000-DG-U-NA | AB61: НС-1477878 | AC61: RT-A-90/200/3000-DG-U-NA | AD61: 3 | AE61: 5 | AF61: 8 | AG61: 12 | AH61: 17 | AI61: 20 | AJ61: 22 | AK61: 90 | AL61: 200 | AM61: 3000 | AN61: DG | AO61: U | AP61: NA | AQ61: =IF((IFERROR(IF(VLOOKUP(AK61,X:Y,2,0)=TRUE,1,0),0)+IFERROR(IF(VLOOKUP(AL61,X:Y,2,0)=TRUE,1,0),0)+IFERROR(IF(VLOOKUP(AN61,X:Y,2,0)=TRUE,1,0),0)+IFERROR(IF(VLOOKUP(AO61,X:Y,2,0)=TRUE,1,0),0)+IFERROR(IF(VLOOKUP(AP61,X:Y,2,0)=TRUE,1,0),0)+IF(AND(AM61>=Калькулятор!$C$14,AM61<=Калькулятор!$E$14),1,0)+IF(OR(AND(AS61>=Калькулятор!$C$11,AS61<=IF(ISBLANK(Калькулятор!$E$11),100000,Калькулятор!$E$11)),Калькулятор!$C$11&Калькулятор!$E$11=""),1,0))=7,1,0) -> 0 | AR61: =SUM(AQ$2:AQ61) -> 0 | AS61: =IF(Калькулятор!$F$8<>70,ROUND(INDEX($C$6:$V$17,MATCH(AM61,$B$6:$B$17,0),MATCH(AK61&AL61,$C$2:$V$2,0))*(Калькулятор!$F$8/70)^справочно!$Y$2,0),ROUND(INDEX($C$6:$V$17,MATCH(AM61,$B$6:$B$17,0),MATCH(AK61&AL61,$C$2:$V$2,0)),0)) -> 1,146.00 | AT61: ЗО | AU61: =3.6*AV61/(4.19*(Калькулятор!$C$8-Калькулятор!$D$8)) -> 98.48 | AV61: =IF(Калькулятор!$F$8<>70,INDEX($C$6:$V$17,MATCH(AM61,$B$6:$B$17,0),MATCH(AK61&AL61,$C$2:$V$2,0))*(Калькулятор!$F$8/70)^справочно!$Y$2,INDEX($C$6:$V$17,MATCH(AM61,$B$6:$B$17,0),MATCH(AK61&AL61,$C$2:$V$2,0))) -> 1,146.20
AA62: Конвектор внутрипольный Royal Thermo ATRIUM-90/250/800-DG-U-NA | AB62: НС-1477920 | AC62: RT-A-90/250/800-DG-U-NA | AD62: 3 | AE62: 5 | AF62: 8 | AG62: 12 | AH62: 16 | AI62: 19 | AJ62: 21 | AK62: 90 | AL62: 250 | AM62: 800 | AN62: DG | AO62: U | AP62: NA | AQ62: =IF((IFERROR(IF(VLOOKUP(AK62,X:Y,2,0)=TRUE,1,0),0)+IFERROR(IF(VLOOKUP(AL62,X:Y,2,0)=TRUE,1,0),0)+IFERROR(IF(VLOOKUP(AN62,X:Y,2,0)=TRUE,1,0),0)+IFERROR(IF(VLOOKUP(AO62,X:Y,2,0)=TRUE,1,0),0)+IFERROR(IF(VLOOKUP(AP62,X:Y,2,0)=TRUE,1,0),0)+IF(AND(AM62>=Калькулятор!$C$14,AM62<=Калькулятор!$E$14),1,0)+IF(OR(AND(AS62>=Калькулятор!$C$11,AS62<=IF(ISBLANK(Калькулятор!$E$11),100000,Калькулятор!$E$11)),Калькулятор!$C$11&Калькулятор!$E$11=""),1,0))=7,1,0) -> 0 | AR62: =SUM(AQ$2:AQ62) -> 0 | AS62: =IF(Калькулятор!$F$8<>70,ROUND(INDEX($C$6:$V$17,MATCH(AM62,$B$6:$B$17,0),MATCH(AK62&AL62,$C$2:$V$2,0))*(Калькулятор!$F$8/70)^справочно!$Y$2,0),ROUND(INDEX($C$6:$V$17,MATCH(AM62,$B$6:$B$17,0),MATCH(AK62&AL62,$C$2:$V$2,0)),0)) -> 290.00 | AT62: ЗО | AU62: =3.6*AV62/(4.19*(Калькулятор!$C$8-Калькулятор!$D$8)) -> 24.95 | AV62: =IF(Калькулятор!$F$8<>70,INDEX($C$6:$V$17,MATCH(AM62,$B$6:$B$17,0),MATCH(AK62&AL62,$C$2:$V$2,0))*(Калькулятор!$F$8/70)^справочно!$Y$2,INDEX($C$6:$V$17,MATCH(AM62,$B$6:$B$17,0),MATCH(AK62&AL62,$C$2:$V$2,0))) -> 290.40
AA63: Конвектор внутрипольный Royal Thermo ATRIUM-90/250/1000-DG-U-NA | AB63: НС-1430121 | AC63: RT-A-90/250/1000-DG-U-NA | AD63: 3 | AE63: 5 | AF63: 8 | AG63: 12 | AH63: 17 | AI63: 20 | AJ63: 22 | AK63: 90 | AL63: 250 | AM63: 1000 | AN63: DG | AO63: U | AP63: NA | AQ63: =IF((IFERROR(IF(VLOOKUP(AK63,X:Y,2,0)=TRUE,1,0),0)+IFERROR(IF(VLOOKUP(AL63,X:Y,2,0)=TRUE,1,0),0)+IFERROR(IF(VLOOKUP(AN63,X:Y,2,0)=TRUE,1,0),0)+IFERROR(IF(VLOOKUP(AO63,X:Y,2,0)=TRUE,1,0),0)+IFERROR(IF(VLOOKUP(AP63,X:Y,2,0)=TRUE,1,0),0)+IF(AND(AM63>=Калькулятор!$C$14,AM63<=Калькулятор!$E$14),1,0)+IF(OR(AND(AS63>=Калькулятор!$C$11,AS63<=IF(ISBLANK(Калькулятор!$E$11),100000,Калькулятор!$E$11)),Калькулятор!$C$11&Калькулятор!$E$11=""),1,0))=7,1,0) -> 0 | AR63: =SUM(AQ$2:AQ63) -> 0 | AS63: =IF(Калькулятор!$F$8<>70,ROUND(INDEX($C$6:$V$17,MATCH(AM63,$B$6:$B$17,0),MATCH(AK63&AL63,$C$2:$V$2,0))*(Калькулятор!$F$8/70)^справочно!$Y$2,0),ROUND(INDEX($C$6:$V$17,MATCH(AM63,$B$6:$B$17,0),MATCH(AK63&AL63,$C$2:$V$2,0)),0)) -> 388.00 | AT63: - | AU63: =3.6*AV63/(4.19*(Калькулятор!$C$8-Калькулятор!$D$8)) -> 33.36 | AV63: =IF(Калькулятор!$F$8<>70,INDEX($C$6:$V$17,MATCH(AM63,$B$6:$B$17,0),MATCH(AK63&AL63,$C$2:$V$2,0))*(Калькулятор!$F$8/70)^справочно!$Y$2,INDEX($C$6:$V$17,MATCH(AM63,$B$6:$B$17,0),MATCH(AK63&AL63,$C$2:$V$2,0))) -> 388.30
AA64: Конвектор внутрипольный Royal Thermo ATRIUM-90/250/1200-DG-U-NA | AB64: НС-1430122 | AC64: RT-A-90/250/1200-DG-U-NA | AD64: 3 | AE64: 5 | AF64: 8 | AG64: 12 | AH64: 17 | AI64: 20 | AJ64: 22 | AK64: 90 | AL64: 250 | AM64: 1200 | AN64: DG | AO64: U | AP64: NA | AQ64: =IF((IFERROR(IF(VLOOKUP(AK64,X:Y,2,0)=TRUE,1,0),0)+IFERROR(IF(VLOOKUP(AL64,X:Y,2,0)=TRUE,1,0),0)+IFERROR(IF(VLOOKUP(AN64,X:Y,2,0)=TRUE,1,0),0)+IFERROR(IF(VLOOKUP(AO64,X:Y,2,0)=TRUE,1,0),0)+IFERROR(IF(VLOOKUP(AP64,X:Y,2,0)=TRUE,1,0),0)+IF(AND(AM64>=Калькулятор!$C$14,AM64<=Калькулятор!$E$14),1,0)+IF(OR(AND(AS64>=Калькулятор!$C$11,AS64<=IF(ISBLANK(Калькулятор!$E$11),100000,Калькулятор!$E$11)),Калькулятор!$C$11&Калькулятор!$E$11=""),1,0))=7,1,0) -> 0 | AR64: =SUM(AQ$2:AQ64) -> 0 | AS64: =IF(Калькулятор!$F$8<>70,ROUND(INDEX($C$6:$V$17,MATCH(AM64,$B$6:$B$17,0),MATCH(AK64&AL64,$C$2:$V$2,0))*(Калькулятор!$F$8/70)^справочно!$Y$2,0),ROUND(INDEX($C$6:$V$17,MATCH(AM64,$B$6:$B$17,0),MATCH(AK64&AL64,$C$2:$V$2,0)),0)) -> 485.00 | AT64: - | AU64: =3.6*AV64/(4.19*(Калькулятор!$C$8-Калькулятор!$D$8)) -> 41.68 | AV64: =IF(Калькулятор!$F$8<>70,INDEX($C$6:$V$17,MATCH(AM64,$B$6:$B$17,0),MATCH(AK64&AL64,$C$2:$V$2,0))*(Калькулятор!$F$8/70)^справочно!$Y$2,INDEX($C$6:$V$17,MATCH(AM64,$B$6:$B$17,0),MATCH(AK64&AL64,$C$2:$V$2,0))) -> 485.10
AA65: Конвектор внутрипольный Royal Thermo ATRIUM-90/250/1400-DG-U-NA | AB65: НС-1430123 | AC65: RT-A-90/250/1400-DG-U-NA | AD65: 3 | AE65: 5 | AF65: 8 | AG65: 12 | AH65: 17 | AI65: 20 | AJ65: 22 | AK65: 90 | AL65: 250 | AM65: 1400 | AN65: DG | AO65: U | AP65: NA | AQ65: =IF((IFERROR(IF(VLOOKUP(AK65,X:Y,2,0)=TRUE,1,0),0)+IFERROR(IF(VLOOKUP(AL65,X:Y,2,0)=TRUE,1,0),0)+IFERROR(IF(VLOOKUP(AN65,X:Y,2,0)=TRUE,1,0),0)+IFERROR(IF(VLOOKUP(AO65,X:Y,2,0)=TRUE,1,0),0)+IFERROR(IF(VLOOKUP(AP65,X:Y,2,0)=TRUE,1,0),0)+IF(AND(AM65>=Калькулятор!$C$14,AM65<=Калькулятор!$E$14),1,0)+IF(OR(AND(AS65>=Калькулятор!$C$11,AS65<=IF(ISBLANK(Калькулятор!$E$11),100000,Калькулятор!$E$11)),Калькулятор!$C$11&Калькулятор!$E$11=""),1,0))=7,1,0) -> 0 | AR65: =SUM(AQ$2:AQ65) -> 0 | AS65: =IF(Калькулятор!$F$8<>70,ROUND(INDEX($C$6:$V$17,MATCH(AM65,$B$6:$B$17,0),MATCH(AK65&AL65,$C$2:$V$2,0))*(Калькулятор!$F$8/70)^справочно!$Y$2,0),ROUND(INDEX($C$6:$V$17,MATCH(AM65,$B$6:$B$17,0),MATCH(AK65&AL65,$C$2:$V$2,0)),0)) -> 580.00 | AT65: - | AU65: =3.6*AV65/(4.19*(Калькулятор!$C$8-Калькулятор!$D$8)) -> 49.81 | AV65: =IF(Калькулятор!$F$8<>70,INDEX($C$6:$V$17,MATCH(AM65,$B$6:$B$17,0),MATCH(AK65&AL65,$C$2:$V$2,0))*(Калькулятор!$F$8/70)^справочно!$Y$2,INDEX($C$6:$V$17,MATCH(AM65,$B$6:$B$17,0),MATCH(AK65&AL65,$C$2:$V$2,0))) -> 579.70
AA66: Конвектор внутрипольный Royal Thermo ATRIUM-90/250/1600-DG-U-NA | AB66: НС-1430124 | AC66: RT-A-90/250/1600-DG-U-NA | AD66: =SEARCH("-",AC66) -> 3 | AE66: =SEARCH("-",AC66,AD66+1) -> 5 | AF66: =SEARCH("/",AC66) -> 8 | AG66: =SEARCH("/",AC66,AF66+1) -> 12 | AH66: =SEARCH("-",AC66,AE66+1) -> 17 | AI66: =SEARCH("-",AC66,AH66+1) -> 20 | AJ66: =SEARCH("-",AC66,AI66+1) -> 22 | AK66: =MID($AC66,AE66+1,AF66-AE66-1)*1 -> 90 | AL66: =MID($AC66,AF66+1,AG66-AF66-1)*1 -> 250 | AM66: =MID($AC66,AG66+1,AH66-AG66-1)*1 -> 1600 | AN66: =MID($AC66,AH66+1,AI66-AH66-1) -> DG | AO66: =MID($AC66,AI66+1,AJ66-AI66-1) -> U | AP66: =MID($AC66,AI66+3,LEN(AC66)-AI66-1) -> NA | AQ66: =IF((IFERROR(IF(VLOOKUP(AK66,X:Y,2,0)=TRUE,1,0),0)+IFERROR(IF(VLOOKUP(AL66,X:Y,2,0)=TRUE,1,0),0)+IFERROR(IF(VLOOKUP(AN66,X:Y,2,0)=TRUE,1,0),0)+IFERROR(IF(VLOOKUP(AO66,X:Y,2,0)=TRUE,1,0),0)+IFERROR(IF(VLOOKUP(AP66,X:Y,2,0)=TRUE,1,0),0)+IF(AND(AM66>=Калькулятор!$C$14,AM66<=Калькулятор!$E$14),1,0)+IF(OR(AND(AS66>=Калькулятор!$C$11,AS66<=IF(ISBLANK(Калькулятор!$E$11),100000,Калькулятор!$E$11)),Калькулятор!$C$11&Калькулятор!$E$11=""),1,0))=7,1,0) -> 0 | AR66: =SUM(AQ$2:AQ66) -> 0 | AS66: =IF(Калькулятор!$F$8<>70,ROUND(INDEX($C$6:$V$17,MATCH(AM66,$B$6:$B$17,0),MATCH(AK66&AL66,$C$2:$V$2,0))*(Калькулятор!$F$8/70)^справочно!$Y$2,0),ROUND(INDEX($C$6:$V$17,MATCH(AM66,$B$6:$B$17,0),MATCH(AK66&AL66,$C$2:$V$2,0)),0)) -> 680.00 | AT66: - | AU66: =3.6*AV66/(4.19*(Калькулятор!$C$8-Калькулятор!$D$8)) -> 58.41 | AV66: =IF(Калькулятор!$F$8<>70,INDEX($C$6:$V$17,MATCH(AM66,$B$6:$B$17,0),MATCH(AK66&AL66,$C$2:$V$2,0))*(Калькулятор!$F$8/70)^справочно!$Y$2,INDEX($C$6:$V$17,MATCH(AM66,$B$6:$B$17,0),MATCH(AK66&AL66,$C$2:$V$2,0))) -> 679.80
AA67: Конвектор внутрипольный Royal Thermo ATRIUM-90/250/1800-DG-U-NA | AB67: НС-1430125 | AC67: RT-A-90/250/1800-DG-U-NA | AD67: 3 | AE67: 5 | AF67: 8 | AG67: 12 | AH67: 17 | AI67: 20 | AJ67: 22 | AK67: 90 | AL67: 250 | AM67: 1800 | AN67: DG | AO67: U | AP67: NA | AQ67: =IF((IFERROR(IF(VLOOKUP(AK67,X:Y,2,0)=TRUE,1,0),0)+IFERROR(IF(VLOOKUP(AL67,X:Y,2,0)=TRUE,1,0),0)+IFERROR(IF(VLOOKUP(AN67,X:Y,2,0)=TRUE,1,0),0)+IFERROR(IF(VLOOKUP(AO67,X:Y,2,0)=TRUE,1,0),0)+IFERROR(IF(VLOOKUP(AP67,X:Y,2,0)=TRUE,1,0),0)+IF(AND(AM67>=Калькулятор!$C$14,AM67<=Калькулятор!$E$14),1,0)+IF(OR(AND(AS67>=Калькулятор!$C$11,AS67<=IF(ISBLANK(Калькулятор!$E$11),100000,Калькулятор!$E$11)),Калькулятор!$C$11&Калькулятор!$E$11=""),1,0))=7,1,0) -> 0 | AR67: =SUM(AQ$2:AQ67) -> 0 | AS67: =IF(Калькулятор!$F$8<>70,ROUND(INDEX($C$6:$V$17,MATCH(AM67,$B$6:$B$17,0),MATCH(AK67&AL67,$C$2:$V$2,0))*(Калькулятор!$F$8/70)^справочно!$Y$2,0),ROUND(INDEX($C$6:$V$17,MATCH(AM67,$B$6:$B$17,0),MATCH(AK67&AL67,$C$2:$V$2,0)),0)) -> 778.00 | AT67: - | AU67: =3.6*AV67/(4.19*(Калькулятор!$C$8-Калькулятор!$D$8)) -> 66.82 | AV67: =IF(Калькулятор!$F$8<>70,INDEX($C$6:$V$17,MATCH(AM67,$B$6:$B$17,0),MATCH(AK67&AL67,$C$2:$V$2,0))*(Калькулятор!$F$8/70)^справочно!$Y$2,INDEX($C$6:$V$17,MATCH(AM67,$B$6:$B$17,0),MATCH(AK67&AL67,$C$2:$V$2,0))) -> 777.70
AA68: Конвектор внутрипольный Royal Thermo ATRIUM-90/250/2000-DG-U-NA | AB68: НС-1430126 | AC68: RT-A-90/250/2000-DG-U-NA | AD68: 3 | AE68: 5 | AF68: 8 | AG68: 12 | AH68: 17 | AI68: 20 | AJ68: 22 | AK68: 90 | AL68: 250 | AM68: 2000 | AN68: DG | AO68: U | AP68: NA | AQ68: =IF((IFERROR(IF(VLOOKUP(AK68,X:Y,2,0)=TRUE,1,0),0)+IFERROR(IF(VLOOKUP(AL68,X:Y,2,0)=TRUE,1,0),0)+IFERROR(IF(VLOOKUP(AN68,X:Y,2,0)=TRUE,1,0),0)+IFERROR(IF(VLOOKUP(AO68,X:Y,2,0)=TRUE,1,0),0)+IFERROR(IF(VLOOKUP(AP68,X:Y,2,0)=TRUE,1,0),0)+IF(AND(AM68>=Калькулятор!$C$14,AM68<=Калькулятор!$E$14),1,0)+IF(OR(AND(AS68>=Калькулятор!$C$11,AS68<=IF(ISBLANK(Калькулятор!$E$11),100000,Калькулятор!$E$11)),Калькулятор!$C$11&Калькулятор!$E$11=""),1,0))=7,1,0) -> 0 | AR68: =SUM(AQ$2:AQ68) -> 0 | AS68: =IF(Калькулятор!$F$8<>70,ROUND(INDEX($C$6:$V$17,MATCH(AM68,$B$6:$B$17,0),MATCH(AK68&AL68,$C$2:$V$2,0))*(Калькулятор!$F$8/70)^справочно!$Y$2,0),ROUND(INDEX($C$6:$V$17,MATCH(AM68,$B$6:$B$17,0),MATCH(AK68&AL68,$C$2:$V$2,0)),0)) -> 875.00 | AT68: - | AU68: =3.6*AV68/(4.19*(Калькулятор!$C$8-Калькулятор!$D$8)) -> 75.14 | AV68: =IF(Калькулятор!$F$8<>70,INDEX($C$6:$V$17,MATCH(AM68,$B$6:$B$17,0),MATCH(AK68&AL68,$C$2:$V$2,0))*(Калькулятор!$F$8/70)^справочно!$Y$2,INDEX($C$6:$V$17,MATCH(AM68,$B$6:$B$17,0),MATCH(AK68&AL68,$C$2:$V$2,0))) -> 874.50
AA69: Конвектор внутрипольный Royal Thermo ATRIUM-90/250/2200-DG-U-NA | AB69: НС-1477905 | AC69: RT-A-90/250/2200-DG-U-NA | AD69: 3 | AE69: 5 | AF69: 8 | AG69: 12 | AH69: 17 | AI69: 20 | AJ69: 22 | AK69: 90 | AL69: 250 | AM69: 2200 | AN69: DG | AO69: U | AP69: NA | AQ69: =IF((IFERROR(IF(VLOOKUP(AK69,X:Y,2,0)=TRUE,1,0),0)+IFERROR(IF(VLOOKUP(AL69,X:Y,2,0)=TRUE,1,0),0)+IFERROR(IF(VLOOKUP(AN69,X:Y,2,0)=TRUE,1,0),0)+IFERROR(IF(VLOOKUP(AO69,X:Y,2,0)=TRUE,1,0),0)+IFERROR(IF(VLOOKUP(AP69,X:Y,2,0)=TRUE,1,0),0)+IF(AND(AM69>=Калькулятор!$C$14,AM69<=Калькулятор!$E$14),1,0)+IF(OR(AND(AS69>=Калькулятор!$C$11,AS69<=IF(ISBLANK(Калькулятор!$E$11),100000,Калькулятор!$E$11)),Калькулятор!$C$11&Калькулятор!$E$11=""),1,0))=7,1,0) -> 0 | AR69: =SUM(AQ$2:AQ69) -> 0 | AS69: =IF(Калькулятор!$F$8<>70,ROUND(INDEX($C$6:$V$17,MATCH(AM69,$B$6:$B$17,0),MATCH(AK69&AL69,$C$2:$V$2,0))*(Калькулятор!$F$8/70)^справочно!$Y$2,0),ROUND(INDEX($C$6:$V$17,MATCH(AM69,$B$6:$B$17,0),MATCH(AK69&AL69,$C$2:$V$2,0)),0)) -> 971.00 | AT69: - | AU69: =3.6*AV69/(4.19*(Калькулятор!$C$8-Калькулятор!$D$8)) -> 83.45 | AV69: =IF(Калькулятор!$F$8<>70,INDEX($C$6:$V$17,MATCH(AM69,$B$6:$B$17,0),MATCH(AK69&AL69,$C$2:$V$2,0))*(Калькулятор!$F$8/70)^справочно!$Y$2,INDEX($C$6:$V$17,MATCH(AM69,$B$6:$B$17,0),MATCH(AK69&AL69,$C$2:$V$2,0))) -> 971.30
AA70: Конвектор внутрипольный Royal Thermo ATRIUM-90/250/2400-DG-U-NA | AB70: НС-1477908 | AC70: RT-A-90/250/2400-DG-U-NA | AD70: 3 | AE70: 5 | AF70: 8 | AG70: 12 | AH70: 17 | AI70: 20 | AJ70: 22 | AK70: 90 | AL70: 250 | AM70: 2400 | AN70: DG | AO70: U | AP70: NA | AQ70: =IF((IFERROR(IF(VLOOKUP(AK70,X:Y,2,0)=TRUE,1,0),0)+IFERROR(IF(VLOOKUP(AL70,X:Y,2,0)=TRUE,1,0),0)+IFERROR(IF(VLOOKUP(AN70,X:Y,2,0)=TRUE,1,0),0)+IFERROR(IF(VLOOKUP(AO70,X:Y,2,0)=TRUE,1,0),0)+IFERROR(IF(VLOOKUP(AP70,X:Y,2,0)=TRUE,1,0),0)+IF(AND(AM70>=Калькулятор!$C$14,AM70<=Калькулятор!$E$14),1,0)+IF(OR(AND(AS70>=Калькулятор!$C$11,AS70<=IF(ISBLANK(Калькулятор!$E$11),100000,Калькулятор!$E$11)),Калькулятор!$C$11&Калькулятор!$E$11=""),1,0))=7,1,0) -> 0 | AR70: =SUM(AQ$2:AQ70) -> 0 | AS70: =IF(Калькулятор!$F$8<>70,ROUND(INDEX($C$6:$V$17,MATCH(AM70,$B$6:$B$17,0),MATCH(AK70&AL70,$C$2:$V$2,0))*(Калькулятор!$F$8/70)^справочно!$Y$2,0),ROUND(INDEX($C$6:$V$17,MATCH(AM70,$B$6:$B$17,0),MATCH(AK70&AL70,$C$2:$V$2,0)),0)) -> 1,091.00 | AT70: - | AU70: =3.6*AV70/(4.19*(Калькулятор!$C$8-Калькулятор!$D$8)) -> 93.75 | AV70: =IF(Калькулятор!$F$8<>70,INDEX($C$6:$V$17,MATCH(AM70,$B$6:$B$17,0),MATCH(AK70&AL70,$C$2:$V$2,0))*(Калькулятор!$F$8/70)^справочно!$Y$2,INDEX($C$6:$V$17,MATCH(AM70,$B$6:$B$17,0),MATCH(AK70&AL70,$C$2:$V$2,0))) -> 1,091.20
AA71: Конвектор внутрипольный Royal Thermo ATRIUM-90/250/2600-DG-U-NA | AB71: НС-1477911 | AC71: RT-A-90/250/2600-DG-U-NA | AD71: 3 | AE71: 5 | AF71: 8 | AG71: 12 | AH71: 17 | AI71: 20 | AJ71: 22 | AK71: 90 | AL71: 250 | AM71: 2600 | AN71: DG | AO71: U | AP71: NA | AQ71: =IF((IFERROR(IF(VLOOKUP(AK71,X:Y,2,0)=TRUE,1,0),0)+IFERROR(IF(VLOOKUP(AL71,X:Y,2,0)=TRUE,1,0),0)+IFERROR(IF(VLOOKUP(AN71,X:Y,2,0)=TRUE,1,0),0)+IFERROR(IF(VLOOKUP(AO71,X:Y,2,0)=TRUE,1,0),0)+IFERROR(IF(VLOOKUP(AP71,X:Y,2,0)=TRUE,1,0),0)+IF(AND(AM71>=Калькулятор!$C$14,AM71<=Калькулятор!$E$14),1,0)+IF(OR(AND(AS71>=Калькулятор!$C$11,AS71<=IF(ISBLANK(Калькулятор!$E$11),100000,Калькулятор!$E$11)),Калькулятор!$C$11&Калькулятор!$E$11=""),1,0))=7,1,0) -> 0 | AR71: =SUM(AQ$2:AQ71) -> 0 | AS71: =IF(Калькулятор!$F$8<>70,ROUND(INDEX($C$6:$V$17,MATCH(AM71,$B$6:$B$17,0),MATCH(AK71&AL71,$C$2:$V$2,0))*(Калькулятор!$F$8/70)^справочно!$Y$2,0),ROUND(INDEX($C$6:$V$17,MATCH(AM71,$B$6:$B$17,0),MATCH(AK71&AL71,$C$2:$V$2,0)),0)) -> 1,205.00 | AT71: ЗО | AU71: =3.6*AV71/(4.19*(Калькулятор!$C$8-Калькулятор!$D$8)) -> 103.49 | AV71: =IF(Калькулятор!$F$8<>70,INDEX($C$6:$V$17,MATCH(AM71,$B$6:$B$17,0),MATCH(AK71&AL71,$C$2:$V$2,0))*(Калькулятор!$F$8/70)^справочно!$Y$2,INDEX($C$6:$V$17,MATCH(AM71,$B$6:$B$17,0),MATCH(AK71&AL71,$C$2:$V$2,0))) -> 1,204.50
AA72: Конвектор внутрипольный Royal Thermo ATRIUM-90/250/2800-DG-U-NA | AB72: НС-1477914 | AC72: RT-A-90/250/2800-DG-U-NA | AD72: 3 | AE72: 5 | AF72: 8 | AG72: 12 | AH72: 17 | AI72: 20 | AJ72: 22 | AK72: 90 | AL72: 250 | AM72: 2800 | AN72: DG | AO72: U | AP72: NA | AQ72: =IF((IFERROR(IF(VLOOKUP(AK72,X:Y,2,0)=TRUE,1,0),0)+IFERROR(IF(VLOOKUP(AL72,X:Y,2,0)=TRUE,1,0),0)+IFERROR(IF(VLOOKUP(AN72,X:Y,2,0)=TRUE,1,0),0)+IFERROR(IF(VLOOKUP(AO72,X:Y,2,0)=TRUE,1,0),0)+IFERROR(IF(VLOOKUP(AP72,X:Y,2,0)=TRUE,1,0),0)+IF(AND(AM72>=Калькулятор!$C$14,AM72<=Калькулятор!$E$14),1,0)+IF(OR(AND(AS72>=Калькулятор!$C$11,AS72<=IF(ISBLANK(Калькулятор!$E$11),100000,Калькулятор!$E$11)),Калькулятор!$C$11&Калькулятор!$E$11=""),1,0))=7,1,0) -> 0 | AR72: =SUM(AQ$2:AQ72) -> 0 | AS72: =IF(Калькулятор!$F$8<>70,ROUND(INDEX($C$6:$V$17,MATCH(AM72,$B$6:$B$17,0),MATCH(AK72&AL72,$C$2:$V$2,0))*(Калькулятор!$F$8/70)^справочно!$Y$2,0),ROUND(INDEX($C$6:$V$17,MATCH(AM72,$B$6:$B$17,0),MATCH(AK72&AL72,$C$2:$V$2,0)),0)) -> 1,286.00 | AT72: ЗО | AU72: =3.6*AV72/(4.19*(Калькулятор!$C$8-Калькулятор!$D$8)) -> 110.48 | AV72: =IF(Калькулятор!$F$8<>70,INDEX($C$6:$V$17,MATCH(AM72,$B$6:$B$17,0),MATCH(AK72&AL72,$C$2:$V$2,0))*(Калькулятор!$F$8/70)^справочно!$Y$2,INDEX($C$6:$V$17,MATCH(AM72,$B$6:$B$17,0),MATCH(AK72&AL72,$C$2:$V$2,0))) -> 1,285.90
AA73: Конвектор внутрипольный Royal Thermo ATRIUM-90/250/3000-DG-U-NA | AB73: НС-1477917 | AC73: RT-A-90/250/3000-DG-U-NA | AD73: 3 | AE73: 5 | AF73: 8 | AG73: 12 | AH73: 17 | AI73: 20 | AJ73: 22 | AK73: 90 | AL73: 250 | AM73: 3000 | AN73: DG | AO73: U | AP73: NA | AQ73: =IF((IFERROR(IF(VLOOKUP(AK73,X:Y,2,0)=TRUE,1,0),0)+IFERROR(IF(VLOOKUP(AL73,X:Y,2,0)=TRUE,1,0),0)+IFERROR(IF(VLOOKUP(AN73,X:Y,2,0)=TRUE,1,0),0)+IFERROR(IF(VLOOKUP(AO73,X:Y,2,0)=TRUE,1,0),0)+IFERROR(IF(VLOOKUP(AP73,X:Y,2,0)=TRUE,1,0),0)+IF(AND(AM73>=Калькулятор!$C$14,AM73<=Калькулятор!$E$14),1,0)+IF(OR(AND(AS73>=Калькулятор!$C$11,AS73<=IF(ISBLANK(Калькулятор!$E$11),100000,Калькулятор!$E$11)),Калькулятор!$C$11&Калькулятор!$E$11=""),1,0))=7,1,0) -> 0 | AR73: =SUM(AQ$2:AQ73) -> 0 | AS73: =IF(Калькулятор!$F$8<>70,ROUND(INDEX($C$6:$V$17,MATCH(AM73,$B$6:$B$17,0),MATCH(AK73&AL73,$C$2:$V$2,0))*(Калькулятор!$F$8/70)^справочно!$Y$2,0),ROUND(INDEX($C$6:$V$17,MATCH(AM73,$B$6:$B$17,0),MATCH(AK73&AL73,$C$2:$V$2,0)),0)) -> 1,383.00 | AT73: ЗО | AU73: =3.6*AV73/(4.19*(Калькулятор!$C$8-Калькулятор!$D$8)) -> 118.80 | AV73: =IF(Калькулятор!$F$8<>70,INDEX($C$6:$V$17,MATCH(AM73,$B$6:$B$17,0),MATCH(AK73&AL73,$C$2:$V$2,0))*(Калькулятор!$F$8/70)^справочно!$Y$2,INDEX($C$6:$V$17,MATCH(AM73,$B$6:$B$17,0),MATCH(AK73&AL73,$C$2:$V$2,0))) -> 1,382.70
AA74: Конвектор внутрипольный Royal Thermo ATRIUM-90/300/800-DG-U-NA | AB74: НС-1477957 | AC74: RT-A-90/300/800-DG-U-NA | AD74: 3 | AE74: 5 | AF74: 8 | AG74: 12 | AH74: 16 | AI74: 19 | AJ74: 21 | AK74: 90 | AL74: 300 | AM74: 800 | AN74: DG | AO74: U | AP74: NA | AQ74: =IF((IFERROR(IF(VLOOKUP(AK74,X:Y,2,0)=TRUE,1,0),0)+IFERROR(IF(VLOOKUP(AL74,X:Y,2,0)=TRUE,1,0),0)+IFERROR(IF(VLOOKUP(AN74,X:Y,2,0)=TRUE,1,0),0)+IFERROR(IF(VLOOKUP(AO74,X:Y,2,0)=TRUE,1,0),0)+IFERROR(IF(VLOOKUP(AP74,X:Y,2,0)=TRUE,1,0),0)+IF(AND(AM74>=Калькулятор!$C$14,AM74<=Калькулятор!$E$14),1,0)+IF(OR(AND(AS74>=Калькулятор!$C$11,AS74<=IF(ISBLANK(Калькулятор!$E$11),100000,Калькулятор!$E$11)),Калькулятор!$C$11&Калькулятор!$E$11=""),1,0))=7,1,0) -> 0 | AR74: =SUM(AQ$2:AQ74) -> 0 | AS74: =IF(Калькулятор!$F$8<>70,ROUND(INDEX($C$6:$V$17,MATCH(AM74,$B$6:$B$17,0),MATCH(AK74&AL74,$C$2:$V$2,0))*(Калькулятор!$F$8/70)^справочно!$Y$2,0),ROUND(INDEX($C$6:$V$17,MATCH(AM74,$B$6:$B$17,0),MATCH(AK74&AL74,$C$2:$V$2,0)),0)) -> 384.00 | AT74: ЗО | AU74: =3.6*AV74/(4.19*(Калькулятор!$C$8-Калькулятор!$D$8)) -> 32.98 | AV74: =IF(Калькулятор!$F$8<>70,INDEX($C$6:$V$17,MATCH(AM74,$B$6:$B$17,0),MATCH(AK74&AL74,$C$2:$V$2,0))*(Калькулятор!$F$8/70)^справочно!$Y$2,INDEX($C$6:$V$17,MATCH(AM74,$B$6:$B$17,0),MATCH(AK74&AL74,$C$2:$V$2,0))) -> 383.90 | AW74: DB
AA75: Конвектор внутрипольный Royal Thermo ATRIUM-90/300/1000-DG-U-NA | AB75: НС-1430133 | AC75: RT-A-90/300/1000-DG-U-NA | AD75: 3 | AE75: 5 | AF75: 8 | AG75: 12 | AH75: 17 | AI75: 20 | AJ75: 22 | AK75: 90 | AL75: 300 | AM75: 1000 | AN75: DG | AO75: U | AP75: NA | AQ75: =IF((IFERROR(IF(VLOOKUP(AK75,X:Y,2,0)=TRUE,1,0),0)+IFERROR(IF(VLOOKUP(AL75,X:Y,2,0)=TRUE,1,0),0)+IFERROR(IF(VLOOKUP(AN75,X:Y,2,0)=TRUE,1,0),0)+IFERROR(IF(VLOOKUP(AO75,X:Y,2,0)=TRUE,1,0),0)+IFERROR(IF(VLOOKUP(AP75,X:Y,2,0)=TRUE,1,0),0)+IF(AND(AM75>=Калькулятор!$C$14,AM75<=Калькулятор!$E$14),1,0)+IF(OR(AND(AS75>=Калькулятор!$C$11,AS75<=IF(ISBLANK(Калькулятор!$E$11),100000,Калькулятор!$E$11)),Калькулятор!$C$11&Калькулятор!$E$11=""),1,0))=7,1,0) -> 0 | AR75: =SUM(AQ$2:AQ75) -> 0 | AS75: =IF(Калькулятор!$F$8<>70,ROUND(INDEX($C$6:$V$17,MATCH(AM75,$B$6:$B$17,0),MATCH(AK75&AL75,$C$2:$V$2,0))*(Калькулятор!$F$8/70)^справочно!$Y$2,0),ROUND(INDEX($C$6:$V$17,MATCH(AM75,$B$6:$B$17,0),MATCH(AK75&AL75,$C$2:$V$2,0)),0)) -> 494.00 | AT75: ЗО | AU75: =3.6*AV75/(4.19*(Калькулятор!$C$8-Калькулятор!$D$8)) -> 42.44 | AV75: =IF(Калькулятор!$F$8<>70,INDEX($C$6:$V$17,MATCH(AM75,$B$6:$B$17,0),MATCH(AK75&AL75,$C$2:$V$2,0))*(Калькулятор!$F$8/70)^справочно!$Y$2,INDEX($C$6:$V$17,MATCH(AM75,$B$6:$B$17,0),MATCH(AK75&AL75,$C$2:$V$2,0))) -> 493.90
AA76: Конвектор внутрипольный Royal Thermo ATRIUM-90/300/1200-DG-U-NA | AB76: НС-1430134 | AC76: RT-A-90/300/1200-DG-U-NA | AD76: 3 | AE76: 5 | AF76: 8 | AG76: 12 | AH76: 17 | AI76: 20 | AJ76: 22 | AK76: 90 | AL76: 300 | AM76: 1200 | AN76: DG | AO76: U | AP76: NA | AQ76: =IF((IFERROR(IF(VLOOKUP(AK76,X:Y,2,0)=TRUE,1,0),0)+IFERROR(IF(VLOOKUP(AL76,X:Y,2,0)=TRUE,1,0),0)+IFERROR(IF(VLOOKUP(AN76,X:Y,2,0)=TRUE,1,0),0)+IFERROR(IF(VLOOKUP(AO76,X:Y,2,0)=TRUE,1,0),0)+IFERROR(IF(VLOOKUP(AP76,X:Y,2,0)=TRUE,1,0),0)+IF(AND(AM76>=Калькулятор!$C$14,AM76<=Калькулятор!$E$14),1,0)+IF(OR(AND(AS76>=Калькулятор!$C$11,AS76<=IF(ISBLANK(Калькулятор!$E$11),100000,Калькулятор!$E$11)),Калькулятор!$C$11&Калькулятор!$E$11=""),1,0))=7,1,0) -> 0 | AR76: =SUM(AQ$2:AQ76) -> 0 | AS76: =IF(Калькулятор!$F$8<>70,ROUND(INDEX($C$6:$V$17,MATCH(AM76,$B$6:$B$17,0),MATCH(AK76&AL76,$C$2:$V$2,0))*(Калькулятор!$F$8/70)^справочно!$Y$2,0),ROUND(INDEX($C$6:$V$17,MATCH(AM76,$B$6:$B$17,0),MATCH(AK76&AL76,$C$2:$V$2,0)),0)) -> 605.00 | AT76: ЗО | AU76: =3.6*AV76/(4.19*(Калькулятор!$C$8-Калькулятор!$D$8)) -> 51.98 | AV76: =IF(Калькулятор!$F$8<>70,INDEX($C$6:$V$17,MATCH(AM76,$B$6:$B$17,0),MATCH(AK76&AL76,$C$2:$V$2,0))*(Калькулятор!$F$8/70)^справочно!$Y$2,INDEX($C$6:$V$17,MATCH(AM76,$B$6:$B$17,0),MATCH(AK76&AL76,$C$2:$V$2,0))) -> 605.00
AA77: Конвектор внутрипольный Royal Thermo ATRIUM-90/300/1400-DG-U-NA | AB77: НС-1430135 | AC77: RT-A-90/300/1400-DG-U-NA | AD77: 3 | AE77: 5 | AF77: 8 | AG77: 12 | AH77: 17 | AI77: 20 | AJ77: 22 | AK77: 90 | AL77: 300 | AM77: 1400 | AN77: DG | AO77: U | AP77: NA | AQ77: =IF((IFERROR(IF(VLOOKUP(AK77,X:Y,2,0)=TRUE,1,0),0)+IFERROR(IF(VLOOKUP(AL77,X:Y,2,0)=TRUE,1,0),0)+IFERROR(IF(VLOOKUP(AN77,X:Y,2,0)=TRUE,1,0),0)+IFERROR(IF(VLOOKUP(AO77,X:Y,2,0)=TRUE,1,0),0)+IFERROR(IF(VLOOKUP(AP77,X:Y,2,0)=TRUE,1,0),0)+IF(AND(AM77>=Калькулятор!$C$14,AM77<=Калькулятор!$E$14),1,0)+IF(OR(AND(AS77>=Калькулятор!$C$11,AS77<=IF(ISBLANK(Калькулятор!$E$11),100000,Калькулятор!$E$11)),Калькулятор!$C$11&Калькулятор!$E$11=""),1,0))=7,1,0) -> 0 | AR77: =SUM(AQ$2:AQ77) -> 0 | AS77: =IF(Калькулятор!$F$8<>70,ROUND(INDEX($C$6:$V$17,MATCH(AM77,$B$6:$B$17,0),MATCH(AK77&AL77,$C$2:$V$2,0))*(Калькулятор!$F$8/70)^справочно!$Y$2,0),ROUND(INDEX($C$6:$V$17,MATCH(AM77,$B$6:$B$17,0),MATCH(AK77&AL77,$C$2:$V$2,0)),0)) -> 718.00 | AT77: ЗО | AU77: =3.6*AV77/(4.19*(Калькулятор!$C$8-Калькулятор!$D$8)) -> 61.72 | AV77: =IF(Калькулятор!$F$8<>70,INDEX($C$6:$V$17,MATCH(AM77,$B$6:$B$17,0),MATCH(AK77&AL77,$C$2:$V$2,0))*(Калькулятор!$F$8/70)^справочно!$Y$2,INDEX($C$6:$V$17,MATCH(AM77,$B$6:$B$17,0),MATCH(AK77&AL77,$C$2:$V$2,0))) -> 718.30
AA78: Конвектор внутрипольный Royal Thermo ATRIUM-90/300/1600-DG-U-NA | AB78: НС-1430136 | AC78: RT-A-90/300/1600-DG-U-NA | AD78: 3 | AE78: 5 | AF78: 8 | AG78: 12 | AH78: 17 | AI78: 20 | AJ78: 22 | AK78: 90 | AL78: 300 | AM78: 1600 | AN78: DG | AO78: U | AP78: NA | AQ78: =IF((IFERROR(IF(VLOOKUP(AK78,X:Y,2,0)=TRUE,1,0),0)+IFERROR(IF(VLOOKUP(AL78,X:Y,2,0)=TRUE,1,0),0)+IFERROR(IF(VLOOKUP(AN78,X:Y,2,0)=TRUE,1,0),0)+IFERROR(IF(VLOOKUP(AO78,X:Y,2,0)=TRUE,1,0),0)+IFERROR(IF(VLOOKUP(AP78,X:Y,2,0)=TRUE,1,0),0)+IF(AND(AM78>=Калькулятор!$C$14,AM78<=Калькулятор!$E$14),1,0)+IF(OR(AND(AS78>=Калькулятор!$C$11,AS78<=IF(ISBLANK(Калькулятор!$E$11),100000,Калькулятор!$E$11)),Калькулятор!$C$11&Калькулятор!$E$11=""),1,0))=7,1,0) -> 0 | AR78: =SUM(AQ$2:AQ78) -> 0 | AS78: =IF(Калькулятор!$F$8<>70,ROUND(INDEX($C$6:$V$17,MATCH(AM78,$B$6:$B$17,0),MATCH(AK78&AL78,$C$2:$V$2,0))*(Калькулятор!$F$8/70)^справочно!$Y$2,0),ROUND(INDEX($C$6:$V$17,MATCH(AM78,$B$6:$B$17,0),MATCH(AK78&AL78,$C$2:$V$2,0)),0)) -> 826.00 | AT78: ЗО | AU78: =3.6*AV78/(4.19*(Калькулятор!$C$8-Калькулятор!$D$8)) -> 70.98 | AV78: =IF(Калькулятор!$F$8<>70,INDEX($C$6:$V$17,MATCH(AM78,$B$6:$B$17,0),MATCH(AK78&AL78,$C$2:$V$2,0))*(Калькулятор!$F$8/70)^справочно!$Y$2,INDEX($C$6:$V$17,MATCH(AM78,$B$6:$B$17,0),MATCH(AK78&AL78,$C$2:$V$2,0))) -> 826.10
AA79: Конвектор внутрипольный Royal Thermo ATRIUM-90/300/1800-DG-U-NA | AB79: НС-1430137 | AC79: RT-A-90/300/1800-DG-U-NA | AD79: 3 | AE79: 5 | AF79: 8 | AG79: 12 | AH79: 17 | AI79: 20 | AJ79: 22 | AK79: 90 | AL79: 300 | AM79: 1800 | AN79: DG | AO79: U | AP79: NA | AQ79: =IF((IFERROR(IF(VLOOKUP(AK79,X:Y,2,0)=TRUE,1,0),0)+IFERROR(IF(VLOOKUP(AL79,X:Y,2,0)=TRUE,1,0),0)+IFERROR(IF(VLOOKUP(AN79,X:Y,2,0)=TRUE,1,0),0)+IFERROR(IF(VLOOKUP(AO79,X:Y,2,0)=TRUE,1,0),0)+IFERROR(IF(VLOOKUP(AP79,X:Y,2,0)=TRUE,1,0),0)+IF(AND(AM79>=Калькулятор!$C$14,AM79<=Калькулятор!$E$14),1,0)+IF(OR(AND(AS79>=Калькулятор!$C$11,AS79<=IF(ISBLANK(Калькулятор!$E$11),100000,Калькулятор!$E$11)),Калькулятор!$C$11&Калькулятор!$E$11=""),1,0))=7,1,0) -> 0 | AR79: =SUM(AQ$2:AQ79) -> 0 | AS79: =IF(Калькулятор!$F$8<>70,ROUND(INDEX($C$6:$V$17,MATCH(AM79,$B$6:$B$17,0),MATCH(AK79&AL79,$C$2:$V$2,0))*(Калькулятор!$F$8/70)^справочно!$Y$2,0),ROUND(INDEX($C$6:$V$17,MATCH(AM79,$B$6:$B$17,0),MATCH(AK79&AL79,$C$2:$V$2,0)),0)) -> 936.00 | AT79: ЗО | AU79: =3.6*AV79/(4.19*(Калькулятор!$C$8-Калькулятор!$D$8)) -> 80.43 | AV79: =IF(Калькулятор!$F$8<>70,INDEX($C$6:$V$17,MATCH(AM79,$B$6:$B$17,0),MATCH(AK79&AL79,$C$2:$V$2,0))*(Калькулятор!$F$8/70)^справочно!$Y$2,INDEX($C$6:$V$17,MATCH(AM79,$B$6:$B$17,0),MATCH(AK79&AL79,$C$2:$V$2,0))) -> 936.10
AA80: Конвектор внутрипольный Royal Thermo ATRIUM-90/300/2000-DG-U-NA | AB80: НС-1430138 | AC80: RT-A-90/300/2000-DG-U-NA | AD80: 3 | AE80: 5 | AF80: 8 | AG80: 12 | AH80: 17 | AI80: 20 | AJ80: 22 | AK80: 90 | AL80: 300 | AM80: 2000 | AN80: DG | AO80: U | AP80: NA | AQ80: =IF((IFERROR(IF(VLOOKUP(AK80,X:Y,2,0)=TRUE,1,0),0)+IFERROR(IF(VLOOKUP(AL80,X:Y,2,0)=TRUE,1,0),0)+IFERROR(IF(VLOOKUP(AN80,X:Y,2,0)=TRUE,1,0),0)+IFERROR(IF(VLOOKUP(AO80,X:Y,2,0)=TRUE,1,0),0)+IFERROR(IF(VLOOKUP(AP80,X:Y,2,0)=TRUE,1,0),0)+IF(AND(AM80>=Калькулятор!$C$14,AM80<=Калькулятор!$E$14),1,0)+IF(OR(AND(AS80>=Калькулятор!$C$11,AS80<=IF(ISBLANK(Калькулятор!$E$11),100000,Калькулятор!$E$11)),Калькулятор!$C$11&Калькулятор!$E$11=""),1,0))=7,1,0) -> 0 | AR80: =SUM(AQ$2:AQ80) -> 0 | AS80: =IF(Калькулятор!$F$8<>70,ROUND(INDEX($C$6:$V$17,MATCH(AM80,$B$6:$B$17,0),MATCH(AK80&AL80,$C$2:$V$2,0))*(Калькулятор!$F$8/70)^справочно!$Y$2,0),ROUND(INDEX($C$6:$V$17,MATCH(AM80,$B$6:$B$17,0),MATCH(AK80&AL80,$C$2:$V$2,0)),0)) -> 1,047.00 | AT80: ЗО | AU80: =3.6*AV80/(4.19*(Калькулятор!$C$8-Калькулятор!$D$8)) -> 89.97 | AV80: =IF(Калькулятор!$F$8<>70,INDEX($C$6:$V$17,MATCH(AM80,$B$6:$B$17,0),MATCH(AK80&AL80,$C$2:$V$2,0))*(Калькулятор!$F$8/70)^справочно!$Y$2,INDEX($C$6:$V$17,MATCH(AM80,$B$6:$B$17,0),MATCH(AK80&AL80,$C$2:$V$2,0))) -> 1,047.20
AA81: Конвектор внутрипольный Royal Thermo ATRIUM-90/300/2200-DG-U-NA | AB81: НС-1477942 | AC81: RT-A-90/300/2200-DG-U-NA | AD81: 3 | AE81: 5 | AF81: 8 | AG81: 12 | AH81: 17 | AI81: 20 | AJ81: 22 | AK81: 90 | AL81: 300 | AM81: 2200 | AN81: DG | AO81: U | AP81: NA | AQ81: =IF((IFERROR(IF(VLOOKUP(AK81,X:Y,2,0)=TRUE,1,0),0)+IFERROR(IF(VLOOKUP(AL81,X:Y,2,0)=TRUE,1,0),0)+IFERROR(IF(VLOOKUP(AN81,X:Y,2,0)=TRUE,1,0),0)+IFERROR(IF(VLOOKUP(AO81,X:Y,2,0)=TRUE,1,0),0)+IFERROR(IF(VLOOKUP(AP81,X:Y,2,0)=TRUE,1,0),0)+IF(AND(AM81>=Калькулятор!$C$14,AM81<=Калькулятор!$E$14),1,0)+IF(OR(AND(AS81>=Калькулятор!$C$11,AS81<=IF(ISBLANK(Калькулятор!$E$11),100000,Калькулятор!$E$11)),Калькулятор!$C$11&Калькулятор!$E$11=""),1,0))=7,1,0) -> 0 | AR81: =SUM(AQ$2:AQ81) -> 0 | AS81: =IF(Калькулятор!$F$8<>70,ROUND(INDEX($C$6:$V$17,MATCH(AM81,$B$6:$B$17,0),MATCH(AK81&AL81,$C$2:$V$2,0))*(Калькулятор!$F$8/70)^справочно!$Y$2,0),ROUND(INDEX($C$6:$V$17,MATCH(AM81,$B$6:$B$17,0),MATCH(AK81&AL81,$C$2:$V$2,0)),0)) -> 1,157.00 | AT81: ЗО | AU81: =3.6*AV81/(4.19*(Калькулятор!$C$8-Калькулятор!$D$8)) -> 99.43 | AV81: =IF(Калькулятор!$F$8<>70,INDEX($C$6:$V$17,MATCH(AM81,$B$6:$B$17,0),MATCH(AK81&AL81,$C$2:$V$2,0))*(Калькулятор!$F$8/70)^справочно!$Y$2,INDEX($C$6:$V$17,MATCH(AM81,$B$6:$B$17,0),MATCH(AK81&AL81,$C$2:$V$2,0))) -> 1,157.20
AA82: Конвектор внутрипольный Royal Thermo ATRIUM-90/300/2400-DG-U-NA | AB82: НС-1477945 | AC82: RT-A-90/300/2400-DG-U-NA | AD82: 3 | AE82: 5 | AF82: 8 | AG82: 12 | AH82: 17 | AI82: 20 | AJ82: 22 | AK82: 90 | AL82: 300 | AM82: 2400 | AN82: DG | AO82: U | AP82: NA | AQ82: =IF((IFERROR(IF(VLOOKUP(AK82,X:Y,2,0)=TRUE,1,0),0)+IFERROR(IF(VLOOKUP(AL82,X:Y,2,0)=TRUE,1,0),0)+IFERROR(IF(VLOOKUP(AN82,X:Y,2,0)=TRUE,1,0),0)+IFERROR(IF(VLOOKUP(AO82,X:Y,2,0)=TRUE,1,0),0)+IFERROR(IF(VLOOKUP(AP82,X:Y,2,0)=TRUE,1,0),0)+IF(AND(AM82>=Калькулятор!$C$14,AM82<=Калькулятор!$E$14),1,0)+IF(OR(AND(AS82>=Калькулятор!$C$11,AS82<=IF(ISBLANK(Калькулятор!$E$11),100000,Калькулятор!$E$11)),Калькулятор!$C$11&Калькулятор!$E$11=""),1,0))=7,1,0) -> 0 | AR82: =SUM(AQ$2:AQ82) -> 0 | AS82: =IF(Калькулятор!$F$8<>70,ROUND(INDEX($C$6:$V$17,MATCH(AM82,$B$6:$B$17,0),MATCH(AK82&AL82,$C$2:$V$2,0))*(Калькулятор!$F$8/70)^справочно!$Y$2,0),ROUND(INDEX($C$6:$V$17,MATCH(AM82,$B$6:$B$17,0),MATCH(AK82&AL82,$C$2:$V$2,0)),0)) -> 1,268.00 | AT82: ЗО | AU82: =3.6*AV82/(4.19*(Калькулятор!$C$8-Калькулятор!$D$8)) -> 108.97 | AV82: =IF(Калькулятор!$F$8<>70,INDEX($C$6:$V$17,MATCH(AM82,$B$6:$B$17,0),MATCH(AK82&AL82,$C$2:$V$2,0))*(Калькулятор!$F$8/70)^справочно!$Y$2,INDEX($C$6:$V$17,MATCH(AM82,$B$6:$B$17,0),MATCH(AK82&AL82,$C$2:$V$2,0))) -> 1,268.30
AA83: Конвектор внутрипольный Royal Thermo ATRIUM-90/300/2600-DG-U-NA | AB83: НС-1477948 | AC83: RT-A-90/300/2600-DG-U-NA | AD83: 3 | AE83: 5 | AF83: 8 | AG83: 12 | AH83: 17 | AI83: 20 | AJ83: 22 | AK83: 90 | AL83: 300 | AM83: 2600 | AN83: DG | AO83: U | AP83: NA | AQ83: =IF((IFERROR(IF(VLOOKUP(AK83,X:Y,2,0)=TRUE,1,0),0)+IFERROR(IF(VLOOKUP(AL83,X:Y,2,0)=TRUE,1,0),0)+IFERROR(IF(VLOOKUP(AN83,X:Y,2,0)=TRUE,1,0),0)+IFERROR(IF(VLOOKUP(AO83,X:Y,2,0)=TRUE,1,0),0)+IFERROR(IF(VLOOKUP(AP83,X:Y,2,0)=TRUE,1,0),0)+IF(AND(AM83>=Калькулятор!$C$14,AM83<=Калькулятор!$E$14),1,0)+IF(OR(AND(AS83>=Калькулятор!$C$11,AS83<=IF(ISBLANK(Калькулятор!$E$11),100000,Калькулятор!$E$11)),Калькулятор!$C$11&Калькулятор!$E$11=""),1,0))=7,1,0) -> 0 | AR83: =SUM(AQ$2:AQ83) -> 0 | AS83: =IF(Калькулятор!$F$8<>70,ROUND(INDEX($C$6:$V$17,MATCH(AM83,$B$6:$B$17,0),MATCH(AK83&AL83,$C$2:$V$2,0))*(Калькулятор!$F$8/70)^справочно!$Y$2,0),ROUND(INDEX($C$6:$V$17,MATCH(AM83,$B$6:$B$17,0),MATCH(AK83&AL83,$C$2:$V$2,0)),0)) -> 1,378.00 | AT83: ЗО | AU83: =3.6*AV83/(4.19*(Калькулятор!$C$8-Калькулятор!$D$8)) -> 118.42 | AV83: =IF(Калькулятор!$F$8<>70,INDEX($C$6:$V$17,MATCH(AM83,$B$6:$B$17,0),MATCH(AK83&AL83,$C$2:$V$2,0))*(Калькулятор!$F$8/70)^справочно!$Y$2,INDEX($C$6:$V$17,MATCH(AM83,$B$6:$B$17,0),MATCH(AK83&AL83,$C$2:$V$2,0))) -> 1,378.30
AA84: Конвектор внутрипольный Royal Thermo ATRIUM-90/300/2800-DG-U-NA | AB84: НС-1477951 | AC84: RT-A-90/300/2800-DG-U-NA | AD84: 3 | AE84: 5 | AF84: 8 | AG84: 12 | AH84: 17 | AI84: 20 | AJ84: 22 | AK84: 90 | AL84: 300 | AM84: 2800 | AN84: DG | AO84: U | AP84: NA | AQ84: =IF((IFERROR(IF(VLOOKUP(AK84,X:Y,2,0)=TRUE,1,0),0)+IFERROR(IF(VLOOKUP(AL84,X:Y,2,0)=TRUE,1,0),0)+IFERROR(IF(VLOOKUP(AN84,X:Y,2,0)=TRUE,1,0),0)+IFERROR(IF(VLOOKUP(AO84,X:Y,2,0)=TRUE,1,0),0)+IFERROR(IF(VLOOKUP(AP84,X:Y,2,0)=TRUE,1,0),0)+IF(AND(AM84>=Калькулятор!$C$14,AM84<=Калькулятор!$E$14),1,0)+IF(OR(AND(AS84>=Калькулятор!$C$11,AS84<=IF(ISBLANK(Калькулятор!$E$11),100000,Калькулятор!$E$11)),Калькулятор!$C$11&Калькулятор!$E$11=""),1,0))=7,1,0) -> 0 | AR84: =SUM(AQ$2:AQ84) -> 0 | AS84: =IF(Калькулятор!$F$8<>70,ROUND(INDEX($C$6:$V$17,MATCH(AM84,$B$6:$B$17,0),MATCH(AK84&AL84,$C$2:$V$2,0))*(Калькулятор!$F$8/70)^справочно!$Y$2,0),ROUND(INDEX($C$6:$V$17,MATCH(AM84,$B$6:$B$17,0),MATCH(AK84&AL84,$C$2:$V$2,0)),0)) -> 1,489.00 | AT84: ЗО | AU84: =3.6*AV84/(4.19*(Калькулятор!$C$8-Калькулятор!$D$8)) -> 127.97 | AV84: =IF(Калькулятор!$F$8<>70,INDEX($C$6:$V$17,MATCH(AM84,$B$6:$B$17,0),MATCH(AK84&AL84,$C$2:$V$2,0))*(Калькулятор!$F$8/70)^справочно!$Y$2,INDEX($C$6:$V$17,MATCH(AM84,$B$6:$B$17,0),MATCH(AK84&AL84,$C$2:$V$2,0))) -> 1,489.40
AA85: Конвектор внутрипольный Royal Thermo ATRIUM-90/300/3000-DG-U-NA | AB85: НС-1477954 | AC85: RT-A-90/300/3000-DG-U-NA | AD85: 3 | AE85: 5 | AF85: 8 | AG85: 12 | AH85: 17 | AI85: 20 | AJ85: 22 | AK85: 90 | AL85: 300 | AM85: 3000 | AN85: DG | AO85: U | AP85: NA | AQ85: =IF((IFERROR(IF(VLOOKUP(AK85,X:Y,2,0)=TRUE,1,0),0)+IFERROR(IF(VLOOKUP(AL85,X:Y,2,0)=TRUE,1,0),0)+IFERROR(IF(VLOOKUP(AN85,X:Y,2,0)=TRUE,1,0),0)+IFERROR(IF(VLOOKUP(AO85,X:Y,2,0)=TRUE,1,0),0)+IFERROR(IF(VLOOKUP(AP85,X:Y,2,0)=TRUE,1,0),0)+IF(AND(AM85>=Калькулятор!$C$14,AM85<=Калькулятор!$E$14),1,0)+IF(OR(AND(AS85>=Калькулятор!$C$11,AS85<=IF(ISBLANK(Калькулятор!$E$11),100000,Калькулятор!$E$11)),Калькулятор!$C$11&Калькулятор!$E$11=""),1,0))=7,1,0) -> 0 | AR85: =SUM(AQ$2:AQ85) -> 0 | AS85: =IF(Калькулятор!$F$8<>70,ROUND(INDEX($C$6:$V$17,MATCH(AM85,$B$6:$B$17,0),MATCH(AK85&AL85,$C$2:$V$2,0))*(Калькулятор!$F$8/70)^справочно!$Y$2,0),ROUND(INDEX($C$6:$V$17,MATCH(AM85,$B$6:$B$17,0),MATCH(AK85&AL85,$C$2:$V$2,0)),0)) -> 1,599.00 | AT85: ЗО | AU85: =3.6*AV85/(4.19*(Калькулятор!$C$8-Калькулятор!$D$8)) -> 137.42 | AV85: =IF(Калькулятор!$F$8<>70,INDEX($C$6:$V$17,MATCH(AM85,$B$6:$B$17,0),MATCH(AK85&AL85,$C$2:$V$2,0))*(Калькулятор!$F$8/70)^справочно!$Y$2,INDEX($C$6:$V$17,MATCH(AM85,$B$6:$B$17,0),MATCH(AK85&AL85,$C$2:$V$2,0))) -> 1,599.40
AA86: Конвектор внутрипольный Royal Thermo ATRIUM-90/400/800-DG-U-NA | AB86: НС-1477991 | AC86: RT-A-90/400/800-DG-U-NA | AD86: 3 | AE86: 5 | AF86: 8 | AG86: 12 | AH86: 16 | AI86: 19 | AJ86: 21 | AK86: 90 | AL86: 400 | AM86: 800 | AN86: DG | AO86: U | AP86: NA | AQ86: =IF((IFERROR(IF(VLOOKUP(AK86,X:Y,2,0)=TRUE,1,0),0)+IFERROR(IF(VLOOKUP(AL86,X:Y,2,0)=TRUE,1,0),0)+IFERROR(IF(VLOOKUP(AN86,X:Y,2,0)=TRUE,1,0),0)+IFERROR(IF(VLOOKUP(AO86,X:Y,2,0)=TRUE,1,0),0)+IFERROR(IF(VLOOKUP(AP86,X:Y,2,0)=TRUE,1,0),0)+IF(AND(AM86>=Калькулятор!$C$14,AM86<=Калькулятор!$E$14),1,0)+IF(OR(AND(AS86>=Калькулятор!$C$11,AS86<=IF(ISBLANK(Калькулятор!$E$11),100000,Калькулятор!$E$11)),Калькулятор!$C$11&Калькулятор!$E$11=""),1,0))=7,1,0) -> 0 | AR86: =SUM(AQ$2:AQ86) -> 0 | AS86: =IF(Калькулятор!$F$8<>70,ROUND(INDEX($C$6:$V$17,MATCH(AM86,$B$6:$B$17,0),MATCH(AK86&AL86,$C$2:$V$2,0))*(Калькулятор!$F$8/70)^справочно!$Y$2,0),ROUND(INDEX($C$6:$V$17,MATCH(AM86,$B$6:$B$17,0),MATCH(AK86&AL86,$C$2:$V$2,0)),0)) -> 516.00 | AT86: ЗО | AU86: =3.6*AV86/(4.19*(Калькулятор!$C$8-Калькулятор!$D$8)) -> 44.33 | AV86: =IF(Калькулятор!$F$8<>70,INDEX($C$6:$V$17,MATCH(AM86,$B$6:$B$17,0),MATCH(AK86&AL86,$C$2:$V$2,0))*(Калькулятор!$F$8/70)^справочно!$Y$2,INDEX($C$6:$V$17,MATCH(AM86,$B$6:$B$17,0),MATCH(AK86&AL86,$C$2:$V$2,0))) -> 515.90
AA87: Конвектор внутрипольный Royal Thermo ATRIUM-90/400/1000-DG-U-NA | AB87: НС-1477963 | AC87: RT-A-90/400/1000-DG-U-NA | AD87: 3 | AE87: 5 | AF87: 8 | AG87: 12 | AH87: 17 | AI87: 20 | AJ87: 22 | AK87: 90 | AL87: 400 | AM87: 1000 | AN87: DG | AO87: U | AP87: NA | AQ87: =IF((IFERROR(IF(VLOOKUP(AK87,X:Y,2,0)=TRUE,1,0),0)+IFERROR(IF(VLOOKUP(AL87,X:Y,2,0)=TRUE,1,0),0)+IFERROR(IF(VLOOKUP(AN87,X:Y,2,0)=TRUE,1,0),0)+IFERROR(IF(VLOOKUP(AO87,X:Y,2,0)=TRUE,1,0),0)+IFERROR(IF(VLOOKUP(AP87,X:Y,2,0)=TRUE,1,0),0)+IF(AND(AM87>=Калькулятор!$C$14,AM87<=Калькулятор!$E$14),1,0)+IF(OR(AND(AS87>=Калькулятор!$C$11,AS87<=IF(ISBLANK(Калькулятор!$E$11),100000,Калькулятор!$E$11)),Калькулятор!$C$11&Калькулятор!$E$11=""),1,0))=7,1,0) -> 0 | AR87: =SUM(AQ$2:AQ87) -> 0 | AS87: =IF(Калькулятор!$F$8<>70,ROUND(INDEX($C$6:$V$17,MATCH(AM87,$B$6:$B$17,0),MATCH(AK87&AL87,$C$2:$V$2,0))*(Калькулятор!$F$8/70)^справочно!$Y$2,0),ROUND(INDEX($C$6:$V$17,MATCH(AM87,$B$6:$B$17,0),MATCH(AK87&AL87,$C$2:$V$2,0)),0)) -> 671.00 | AT87: ЗО | AU87: =3.6*AV87/(4.19*(Калькулятор!$C$8-Калькулятор!$D$8)) -> 57.65 | AV87: =IF(Калькулятор!$F$8<>70,INDEX($C$6:$V$17,MATCH(AM87,$B$6:$B$17,0),MATCH(AK87&AL87,$C$2:$V$2,0))*(Калькулятор!$F$8/70)^справочно!$Y$2,INDEX($C$6:$V$17,MATCH(AM87,$B$6:$B$17,0),MATCH(AK87&AL87,$C$2:$V$2,0))) -> 671.00
AA88: Конвектор внутрипольный Royal Thermo ATRIUM-90/400/1200-DG-U-NA | AB88: НС-1477966 | AC88: RT-A-90/400/1200-DG-U-NA | AD88: 3 | AE88: 5 | AF88: 8 | AG88: 12 | AH88: 17 | AI88: 20 | AJ88: 22 | AK88: 90 | AL88: 400 | AM88: 1200 | AN88: DG | AO88: U | AP88: NA | AQ88: =IF((IFERROR(IF(VLOOKUP(AK88,X:Y,2,0)=TRUE,1,0),0)+IFERROR(IF(VLOOKUP(AL88,X:Y,2,0)=TRUE,1,0),0)+IFERROR(IF(VLOOKUP(AN88,X:Y,2,0)=TRUE,1,0),0)+IFERROR(IF(VLOOKUP(AO88,X:Y,2,0)=TRUE,1,0),0)+IFERROR(IF(VLOOKUP(AP88,X:Y,2,0)=TRUE,1,0),0)+IF(AND(AM88>=Калькулятор!$C$14,AM88<=Калькулятор!$E$14),1,0)+IF(OR(AND(AS88>=Калькулятор!$C$11,AS88<=IF(ISBLANK(Калькулятор!$E$11),100000,Калькулятор!$E$11)),Калькулятор!$C$11&Калькулятор!$E$11=""),1,0))=7,1,0) -> 0 | AR88: =SUM(AQ$2:AQ88) -> 0 | AS88: =IF(Калькулятор!$F$8<>70,ROUND(INDEX($C$6:$V$17,MATCH(AM88,$B$6:$B$17,0),MATCH(AK88&AL88,$C$2:$V$2,0))*(Калькулятор!$F$8/70)^справочно!$Y$2,0),ROUND(INDEX($C$6:$V$17,MATCH(AM88,$B$6:$B$17,0),MATCH(AK88&AL88,$C$2:$V$2,0)),0)) -> 826.00 | AT88: ЗО | AU88: =3.6*AV88/(4.19*(Калькулятор!$C$8-Калькулятор!$D$8)) -> 70.98 | AV88: =IF(Калькулятор!$F$8<>70,INDEX($C$6:$V$17,MATCH(AM88,$B$6:$B$17,0),MATCH(AK88&AL88,$C$2:$V$2,0))*(Калькулятор!$F$8/70)^справочно!$Y$2,INDEX($C$6:$V$17,MATCH(AM88,$B$6:$B$17,0),MATCH(AK88&AL88,$C$2:$V$2,0))) -> 826.10
AA89: Конвектор внутрипольный Royal Thermo ATRIUM-90/400/1400-DG-U-NA | AB89: НС-1477969 | AC89: RT-A-90/400/1400-DG-U-NA | AD89: 3 | AE89: 5 | AF89: 8 | AG89: 12 | AH89: 17 | AI89: 20 | AJ89: 22 | AK89: 90 | AL89: 400 | AM89: 1400 | AN89: DG | AO89: U | AP89: NA | AQ89: =IF((IFERROR(IF(VLOOKUP(AK89,X:Y,2,0)=TRUE,1,0),0)+IFERROR(IF(VLOOKUP(AL89,X:Y,2,0)=TRUE,1,0),0)+IFERROR(IF(VLOOKUP(AN89,X:Y,2,0)=TRUE,1,0),0)+IFERROR(IF(VLOOKUP(AO89,X:Y,2,0)=TRUE,1,0),0)+IFERROR(IF(VLOOKUP(AP89,X:Y,2,0)=TRUE,1,0),0)+IF(AND(AM89>=Калькулятор!$C$14,AM89<=Калькулятор!$E$14),1,0)+IF(OR(AND(AS89>=Калькулятор!$C$11,AS89<=IF(ISBLANK(Калькулятор!$E$11),100000,Калькулятор!$E$11)),Калькулятор!$C$11&Калькулятор!$E$11=""),1,0))=7,1,0) -> 0 | AR89: =SUM(AQ$2:AQ89) -> 0 | AS89: =IF(Калькулятор!$F$8<>70,ROUND(INDEX($C$6:$V$17,MATCH(AM89,$B$6:$B$17,0),MATCH(AK89&AL89,$C$2:$V$2,0))*(Калькулятор!$F$8/70)^справочно!$Y$2,0),ROUND(INDEX($C$6:$V$17,MATCH(AM89,$B$6:$B$17,0),MATCH(AK89&AL89,$C$2:$V$2,0)),0)) -> 977.00 | AT89: ЗО | AU89: =3.6*AV89/(4.19*(Калькулятор!$C$8-Калькулятор!$D$8)) -> 83.93 | AV89: =IF(Калькулятор!$F$8<>70,INDEX($C$6:$V$17,MATCH(AM89,$B$6:$B$17,0),MATCH(AK89&AL89,$C$2:$V$2,0))*(Калькулятор!$F$8/70)^справочно!$Y$2,INDEX($C$6:$V$17,MATCH(AM89,$B$6:$B$17,0),MATCH(AK89&AL89,$C$2:$V$2,0))) -> 976.80
AA90: Конвектор внутрипольный Royal Thermo ATRIUM-90/400/1600-DG-U-NA | AB90: НС-1477972 | AC90: RT-A-90/400/1600-DG-U-NA | AD90: 3 | AE90: 5 | AF90: 8 | AG90: 12 | AH90: 17 | AI90: 20 | AJ90: 22 | AK90: 90 | AL90: 400 | AM90: 1600 | AN90: DG | AO90: U | AP90: NA | AQ90: =IF((IFERROR(IF(VLOOKUP(AK90,X:Y,2,0)=TRUE,1,0),0)+IFERROR(IF(VLOOKUP(AL90,X:Y,2,0)=TRUE,1,0),0)+IFERROR(IF(VLOOKUP(AN90,X:Y,2,0)=TRUE,1,0),0)+IFERROR(IF(VLOOKUP(AO90,X:Y,2,0)=TRUE,1,0),0)+IFERROR(IF(VLOOKUP(AP90,X:Y,2,0)=TRUE,1,0),0)+IF(AND(AM90>=Калькулятор!$C$14,AM90<=Калькулятор!$E$14),1,0)+IF(OR(AND(AS90>=Калькулятор!$C$11,AS90<=IF(ISBLANK(Калькулятор!$E$11),100000,Калькулятор!$E$11)),Калькулятор!$C$11&Калькулятор!$E$11=""),1,0))=7,1,0) -> 0 | AR90: =SUM(AQ$2:AQ90) -> 0 | AS90: =IF(Калькулятор!$F$8<>70,ROUND(INDEX($C$6:$V$17,MATCH(AM90,$B$6:$B$17,0),MATCH(AK90&AL90,$C$2:$V$2,0))*(Калькулятор!$F$8/70)^справочно!$Y$2,0),ROUND(INDEX($C$6:$V$17,MATCH(AM90,$B$6:$B$17,0),MATCH(AK90&AL90,$C$2:$V$2,0)),0)) -> 1,135.00 | AT90: ЗО | AU90: =3.6*AV90/(4.19*(Калькулятор!$C$8-Калькулятор!$D$8)) -> 97.54 | AV90: =IF(Калькулятор!$F$8<>70,INDEX($C$6:$V$17,MATCH(AM90,$B$6:$B$17,0),MATCH(AK90&AL90,$C$2:$V$2,0))*(Калькулятор!$F$8/70)^справочно!$Y$2,INDEX($C$6:$V$17,MATCH(AM90,$B$6:$B$17,0),MATCH(AK90&AL90,$C$2:$V$2,0))) -> 1,135.20
AA91: Конвектор внутрипольный Royal Thermo ATRIUM-90/400/1800-DG-U-NA | AB91: НС-1477975 | AC91: RT-A-90/400/1800-DG-U-NA | AD91: 3 | AE91: 5 | AF91: 8 | AG91: 12 | AH91: 17 | AI91: 20 | AJ91: 22 | AK91: 90 | AL91: 400 | AM91: 1800 | AN91: DG | AO91: U | AP91: NA | AQ91: =IF((IFERROR(IF(VLOOKUP(AK91,X:Y,2,0)=TRUE,1,0),0)+IFERROR(IF(VLOOKUP(AL91,X:Y,2,0)=TRUE,1,0),0)+IFERROR(IF(VLOOKUP(AN91,X:Y,2,0)=TRUE,1,0),0)+IFERROR(IF(VLOOKUP(AO91,X:Y,2,0)=TRUE,1,0),0)+IFERROR(IF(VLOOKUP(AP91,X:Y,2,0)=TRUE,1,0),0)+IF(AND(AM91>=Калькулятор!$C$14,AM91<=Калькулятор!$E$14),1,0)+IF(OR(AND(AS91>=Калькулятор!$C$11,AS91<=IF(ISBLANK(Калькулятор!$E$11),100000,Калькулятор!$E$11)),Калькулятор!$C$11&Калькулятор!$E$11=""),1,0))=7,1,0) -> 0 | AR91: =SUM(AQ$2:AQ91) -> 0 | AS91: =IF(Калькулятор!$F$8<>70,ROUND(INDEX($C$6:$V$17,MATCH(AM91,$B$6:$B$17,0),MATCH(AK91&AL91,$C$2:$V$2,0))*(Калькулятор!$F$8/70)^справочно!$Y$2,0),ROUND(INDEX($C$6:$V$17,MATCH(AM91,$B$6:$B$17,0),MATCH(AK91&AL91,$C$2:$V$2,0)),0)) -> 1,290.00 | AT91: ЗО | AU91: =3.6*AV91/(4.19*(Калькулятор!$C$8-Калькулятор!$D$8)) -> 110.86 | AV91: =IF(Калькулятор!$F$8<>70,INDEX($C$6:$V$17,MATCH(AM91,$B$6:$B$17,0),MATCH(AK91&AL91,$C$2:$V$2,0))*(Калькулятор!$F$8/70)^справочно!$Y$2,INDEX($C$6:$V$17,MATCH(AM91,$B$6:$B$17,0),MATCH(AK91&AL91,$C$2:$V$2,0))) -> 1,290.30
AA92: Конвектор внутрипольный Royal Thermo ATRIUM-90/400/2000-DG-U-NA | AB92: НС-1477995 | AC92: RT-A-90/400/2000-DG-U-NA | AD92: 3 | AE92: 5 | AF92: 8 | AG92: 12 | AH92: 17 | AI92: 20 | AJ92: 22 | AK92: 90 | AL92: 400 | AM92: 2000 | AN92: DG | AO92: U | AP92: NA | AQ92: =IF((IFERROR(IF(VLOOKUP(AK92,X:Y,2,0)=TRUE,1,0),0)+IFERROR(IF(VLOOKUP(AL92,X:Y,2,0)=TRUE,1,0),0)+IFERROR(IF(VLOOKUP(AN92,X:Y,2,0)=TRUE,1,0),0)+IFERROR(IF(VLOOKUP(AO92,X:Y,2,0)=TRUE,1,0),0)+IFERROR(IF(VLOOKUP(AP92,X:Y,2,0)=TRUE,1,0),0)+IF(AND(AM92>=Калькулятор!$C$14,AM92<=Калькулятор!$E$14),1,0)+IF(OR(AND(AS92>=Калькулятор!$C$11,AS92<=IF(ISBLANK(Калькулятор!$E$11),100000,Калькулятор!$E$11)),Калькулятор!$C$11&Калькулятор!$E$11=""),1,0))=7,1,0) -> 0 | AR92: =SUM(AQ$2:AQ92) -> 0 | AS92: =IF(Калькулятор!$F$8<>70,ROUND(INDEX($C$6:$V$17,MATCH(AM92,$B$6:$B$17,0),MATCH(AK92&AL92,$C$2:$V$2,0))*(Калькулятор!$F$8/70)^справочно!$Y$2,0),ROUND(INDEX($C$6:$V$17,MATCH(AM92,$B$6:$B$17,0),MATCH(AK92&AL92,$C$2:$V$2,0)),0)) -> 1,445.00 | AT92: ЗО | AU92: =3.6*AV92/(4.19*(Калькулятор!$C$8-Калькулятор!$D$8)) -> 124.19 | AV92: =IF(Калькулятор!$F$8<>70,INDEX($C$6:$V$17,MATCH(AM92,$B$6:$B$17,0),MATCH(AK92&AL92,$C$2:$V$2,0))*(Калькулятор!$F$8/70)^справочно!$Y$2,INDEX($C$6:$V$17,MATCH(AM92,$B$6:$B$17,0),MATCH(AK92&AL92,$C$2:$V$2,0))) -> 1,445.40 | AW92: RAL
AA93: Конвектор внутрипольный Royal Thermo ATRIUM-90/400/2200-DG-U-NA | AB93: НС-1477996 | AC93: RT-A-90/400/2200-DG-U-NA | AD93: 3 | AE93: 5 | AF93: 8 | AG93: 12 | AH93: 17 | AI93: 20 | AJ93: 22 | AK93: 90 | AL93: 400 | AM93: 2200 | AN93: DG | AO93: U | AP93: NA | AQ93: =IF((IFERROR(IF(VLOOKUP(AK93,X:Y,2,0)=TRUE,1,0),0)+IFERROR(IF(VLOOKUP(AL93,X:Y,2,0)=TRUE,1,0),0)+IFERROR(IF(VLOOKUP(AN93,X:Y,2,0)=TRUE,1,0),0)+IFERROR(IF(VLOOKUP(AO93,X:Y,2,0)=TRUE,1,0),0)+IFERROR(IF(VLOOKUP(AP93,X:Y,2,0)=TRUE,1,0),0)+IF(AND(AM93>=Калькулятор!$C$14,AM93<=Калькулятор!$E$14),1,0)+IF(OR(AND(AS93>=Калькулятор!$C$11,AS93<=IF(ISBLANK(Калькулятор!$E$11),100000,Калькулятор!$E$11)),Калькулятор!$C$11&Калькулятор!$E$11=""),1,0))=7,1,0) -> 0 | AR93: =SUM(AQ$2:AQ93) -> 0 | AS93: =IF(Калькулятор!$F$8<>70,ROUND(INDEX($C$6:$V$17,MATCH(AM93,$B$6:$B$17,0),MATCH(AK93&AL93,$C$2:$V$2,0))*(Калькулятор!$F$8/70)^справочно!$Y$2,0),ROUND(INDEX($C$6:$V$17,MATCH(AM93,$B$6:$B$17,0),MATCH(AK93&AL93,$C$2:$V$2,0)),0)) -> 1,599.00 | AT93: ЗО | AU93: =3.6*AV93/(4.19*(Калькулятор!$C$8-Калькулятор!$D$8)) -> 137.42 | AV93: =IF(Калькулятор!$F$8<>70,INDEX($C$6:$V$17,MATCH(AM93,$B$6:$B$17,0),MATCH(AK93&AL93,$C$2:$V$2,0))*(Калькулятор!$F$8/70)^справочно!$Y$2,INDEX($C$6:$V$17,MATCH(AM93,$B$6:$B$17,0),MATCH(AK93&AL93,$C$2:$V$2,0))) -> 1,599.40
AA94: Конвектор внутрипольный Royal Thermo ATRIUM-90/400/2400-DG-U-NA | AB94: НС-1477997 | AC94: RT-A-90/400/2400-DG-U-NA | AD94: 3 | AE94: 5 | AF94: 8 | AG94: 12 | AH94: 17 | AI94: 20 | AJ94: 22 | AK94: 90 | AL94: 400 | AM94: 2400 | AN94: DG | AO94: U | AP94: NA | AQ94: =IF((IFERROR(IF(VLOOKUP(AK94,X:Y,2,0)=TRUE,1,0),0)+IFERROR(IF(VLOOKUP(AL94,X:Y,2,0)=TRUE,1,0),0)+IFERROR(IF(VLOOKUP(AN94,X:Y,2,0)=TRUE,1,0),0)+IFERROR(IF(VLOOKUP(AO94,X:Y,2,0)=TRUE,1,0),0)+IFERROR(IF(VLOOKUP(AP94,X:Y,2,0)=TRUE,1,0),0)+IF(AND(AM94>=Калькулятор!$C$14,AM94<=Калькулятор!$E$14),1,0)+IF(OR(AND(AS94>=Калькулятор!$C$11,AS94<=IF(ISBLANK(Калькулятор!$E$11),100000,Калькулятор!$E$11)),Калькулятор!$C$11&Калькулятор!$E$11=""),1,0))=7,1,0) -> 0 | AR94: =SUM(AQ$2:AQ94) -> 0 | AS94: =IF(Калькулятор!$F$8<>70,ROUND(INDEX($C$6:$V$17,MATCH(AM94,$B$6:$B$17,0),MATCH(AK94&AL94,$C$2:$V$2,0))*(Калькулятор!$F$8/70)^справочно!$Y$2,0),ROUND(INDEX($C$6:$V$17,MATCH(AM94,$B$6:$B$17,0),MATCH(AK94&AL94,$C$2:$V$2,0)),0)) -> 1,755.00 | AT94: ЗО | AU94: =3.6*AV94/(4.19*(Калькулятор!$C$8-Калькулятор!$D$8)) -> 150.74 | AV94: =IF(Калькулятор!$F$8<>70,INDEX($C$6:$V$17,MATCH(AM94,$B$6:$B$17,0),MATCH(AK94&AL94,$C$2:$V$2,0))*(Калькулятор!$F$8/70)^справочно!$Y$2,INDEX($C$6:$V$17,MATCH(AM94,$B$6:$B$17,0),MATCH(AK94&AL94,$C$2:$V$2,0))) -> 1,754.50
AA95: Конвектор внутрипольный Royal Thermo ATRIUM-90/400/2600-DG-U-NA | AB95: НС-1477998 | AC95: RT-A-90/400/2600-DG-U-NA | AD95: 3 | AE95: 5 | AF95: 8 | AG95: 12 | AH95: 17 | AI95: 20 | AJ95: 22 | AK95: 90 | AL95: 400 | AM95: 2600 | AN95: DG | AO95: U | AP95: NA | AQ95: =IF((IFERROR(IF(VLOOKUP(AK95,X:Y,2,0)=TRUE,1,0),0)+IFERROR(IF(VLOOKUP(AL95,X:Y,2,0)=TRUE,1,0),0)+IFERROR(IF(VLOOKUP(AN95,X:Y,2,0)=TRUE,1,0),0)+IFERROR(IF(VLOOKUP(AO95,X:Y,2,0)=TRUE,1,0),0)+IFERROR(IF(VLOOKUP(AP95,X:Y,2,0)=TRUE,1,0),0)+IF(AND(AM95>=Калькулятор!$C$14,AM95<=Калькулятор!$E$14),1,0)+IF(OR(AND(AS95>=Калькулятор!$C$11,AS95<=IF(ISBLANK(Калькулятор!$E$11),100000,Калькулятор!$E$11)),Калькулятор!$C$11&Калькулятор!$E$11=""),1,0))=7,1,0) -> 0 | AR95: =SUM(AQ$2:AQ95) -> 0 | AS95: =IF(Калькулятор!$F$8<>70,ROUND(INDEX($C$6:$V$17,MATCH(AM95,$B$6:$B$17,0),MATCH(AK95&AL95,$C$2:$V$2,0))*(Калькулятор!$F$8/70)^справочно!$Y$2,0),ROUND(INDEX($C$6:$V$17,MATCH(AM95,$B$6:$B$17,0),MATCH(AK95&AL95,$C$2:$V$2,0)),0)) -> 1,910.00 | AT95: ЗО | AU95: =3.6*AV95/(4.19*(Калькулятор!$C$8-Калькулятор!$D$8)) -> 164.07 | AV95: =IF(Калькулятор!$F$8<>70,INDEX($C$6:$V$17,MATCH(AM95,$B$6:$B$17,0),MATCH(AK95&AL95,$C$2:$V$2,0))*(Калькулятор!$F$8/70)^справочно!$Y$2,INDEX($C$6:$V$17,MATCH(AM95,$B$6:$B$17,0),MATCH(AK95&AL95,$C$2:$V$2,0))) -> 1,909.60
AA96: Конвектор внутрипольный Royal Thermo ATRIUM-90/400/2800-DG-U-NA | AB96: НС-1477999 | AC96: RT-A-90/400/2800-DG-U-NA | AD96: 3 | AE96: 5 | AF96: 8 | AG96: 12 | AH96: 17 | AI96: 20 | AJ96: 22 | AK96: 90 | AL96: 400 | AM96: 2800 | AN96: DG | AO96: U | AP96: NA | AQ96: =IF((IFERROR(IF(VLOOKUP(AK96,X:Y,2,0)=TRUE,1,0),0)+IFERROR(IF(VLOOKUP(AL96,X:Y,2,0)=TRUE,1,0),0)+IFERROR(IF(VLOOKUP(AN96,X:Y,2,0)=TRUE,1,0),0)+IFERROR(IF(VLOOKUP(AO96,X:Y,2,0)=TRUE,1,0),0)+IFERROR(IF(VLOOKUP(AP96,X:Y,2,0)=TRUE,1,0),0)+IF(AND(AM96>=Калькулятор!$C$14,AM96<=Калькулятор!$E$14),1,0)+IF(OR(AND(AS96>=Калькулятор!$C$11,AS96<=IF(ISBLANK(Калькулятор!$E$11),100000,Калькулятор!$E$11)),Калькулятор!$C$11&Калькулятор!$E$11=""),1,0))=7,1,0) -> 0 | AR96: =SUM(AQ$2:AQ96) -> 0 | AS96: =IF(Калькулятор!$F$8<>70,ROUND(INDEX($C$6:$V$17,MATCH(AM96,$B$6:$B$17,0),MATCH(AK96&AL96,$C$2:$V$2,0))*(Калькулятор!$F$8/70)^справочно!$Y$2,0),ROUND(INDEX($C$6:$V$17,MATCH(AM96,$B$6:$B$17,0),MATCH(AK96&AL96,$C$2:$V$2,0)),0)) -> 2,064.00 | AT96: ЗО | AU96: =3.6*AV96/(4.19*(Калькулятор!$C$8-Калькулятор!$D$8)) -> 177.30 | AV96: =IF(Калькулятор!$F$8<>70,INDEX($C$6:$V$17,MATCH(AM96,$B$6:$B$17,0),MATCH(AK96&AL96,$C$2:$V$2,0))*(Калькулятор!$F$8/70)^справочно!$Y$2,INDEX($C$6:$V$17,MATCH(AM96,$B$6:$B$17,0),MATCH(AK96&AL96,$C$2:$V$2,0))) -> 2,063.60
AA97: Конвектор внутрипольный Royal Thermo ATRIUM-90/400/3000-DG-U-NA | AB97: НС-1477988 | AC97: RT-A-90/400/3000-DG-U-NA | AD97: 3 | AE97: 5 | AF97: 8 | AG97: 12 | AH97: 17 | AI97: 20 | AJ97: 22 | AK97: 90 | AL97: 400 | AM97: 3000 | AN97: DG | AO97: U | AP97: NA | AQ97: =IF((IFERROR(IF(VLOOKUP(AK97,X:Y,2,0)=TRUE,1,0),0)+IFERROR(IF(VLOOKUP(AL97,X:Y,2,0)=TRUE,1,0),0)+IFERROR(IF(VLOOKUP(AN97,X:Y,2,0)=TRUE,1,0),0)+IFERROR(IF(VLOOKUP(AO97,X:Y,2,0)=TRUE,1,0),0)+IFERROR(IF(VLOOKUP(AP97,X:Y,2,0)=TRUE,1,0),0)+IF(AND(AM97>=Калькулятор!$C$14,AM97<=Калькулятор!$E$14),1,0)+IF(OR(AND(AS97>=Калькулятор!$C$11,AS97<=IF(ISBLANK(Калькулятор!$E$11),100000,Калькулятор!$E$11)),Калькулятор!$C$11&Калькулятор!$E$11=""),1,0))=7,1,0) -> 0 | AR97: =SUM(AQ$2:AQ97) -> 0 | AS97: =IF(Калькулятор!$F$8<>70,ROUND(INDEX($C$6:$V$17,MATCH(AM97,$B$6:$B$17,0),MATCH(AK97&AL97,$C$2:$V$2,0))*(Калькулятор!$F$8/70)^справочно!$Y$2,0),ROUND(INDEX($C$6:$V$17,MATCH(AM97,$B$6:$B$17,0),MATCH(AK97&AL97,$C$2:$V$2,0)),0)) -> 2,219.00 | AT97: ЗО | AU97: =3.6*AV97/(4.19*(Калькулятор!$C$8-Калькулятор!$D$8)) -> 190.63 | AV97: =IF(Калькулятор!$F$8<>70,INDEX($C$6:$V$17,MATCH(AM97,$B$6:$B$17,0),MATCH(AK97&AL97,$C$2:$V$2,0))*(Калькулятор!$F$8/70)^справочно!$Y$2,INDEX($C$6:$V$17,MATCH(AM97,$B$6:$B$17,0),MATCH(AK97&AL97,$C$2:$V$2,0))) -> 2,218.70
AA98: Конвектор внутрипольный Royal Thermo ATRIUM-110/200/800-DG-U-NA | AB98: НС-1477259 | AC98: RT-A-110/200/800-DG-U-NA | AD98: 3 | AE98: 5 | AF98: 9 | AG98: 13 | AH98: 17 | AI98: 20 | AJ98: 22 | AK98: 110 | AL98: 200 | AM98: 800 | AN98: DG | AO98: U | AP98: NA | AQ98: =IF((IFERROR(IF(VLOOKUP(AK98,X:Y,2,0)=TRUE,1,0),0)+IFERROR(IF(VLOOKUP(AL98,X:Y,2,0)=TRUE,1,0),0)+IFERROR(IF(VLOOKUP(AN98,X:Y,2,0)=TRUE,1,0),0)+IFERROR(IF(VLOOKUP(AO98,X:Y,2,0)=TRUE,1,0),0)+IFERROR(IF(VLOOKUP(AP98,X:Y,2,0)=TRUE,1,0),0)+IF(AND(AM98>=Калькулятор!$C$14,AM98<=Калькулятор!$E$14),1,0)+IF(OR(AND(AS98>=Калькулятор!$C$11,AS98<=IF(ISBLANK(Калькулятор!$E$11),100000,Калькулятор!$E$11)),Калькулятор!$C$11&Калькулятор!$E$11=""),1,0))=7,1,0) -> 0 | AR98: =SUM(AQ$2:AQ98) -> 0 | AS98: =IF(Калькулятор!$F$8<>70,ROUND(INDEX($C$6:$V$17,MATCH(AM98,$B$6:$B$17,0),MATCH(AK98&AL98,$C$2:$V$2,0))*(Калькулятор!$F$8/70)^справочно!$Y$2,0),ROUND(INDEX($C$6:$V$17,MATCH(AM98,$B$6:$B$17,0),MATCH(AK98&AL98,$C$2:$V$2,0)),0)) -> 279.00 | AT98: ЗО | AU98: =3.6*AV98/(4.19*(Калькулятор!$C$8-Калькулятор!$D$8)) -> 24.01 | AV98: =IF(Калькулятор!$F$8<>70,INDEX($C$6:$V$17,MATCH(AM98,$B$6:$B$17,0),MATCH(AK98&AL98,$C$2:$V$2,0))*(Калькулятор!$F$8/70)^справочно!$Y$2,INDEX($C$6:$V$17,MATCH(AM98,$B$6:$B$17,0),MATCH(AK98&AL98,$C$2:$V$2,0))) -> 279.40
AA99: Конвектор внутрипольный Royal Thermo ATRIUM-110/200/1000-DG-U-NA | AB99: НС-1477226 | AC99: RT-A-110/200/1000-DG-U-NA | AD99: 3 | AE99: 5 | AF99: 9 | AG99: 13 | AH99: 18 | AI99: 21 | AJ99: 23 | AK99: 110 | AL99: 200 | AM99: 1000 | AN99: DG | AO99: U | AP99: NA | AQ99: =IF((IFERROR(IF(VLOOKUP(AK99,X:Y,2,0)=TRUE,1,0),0)+IFERROR(IF(VLOOKUP(AL99,X:Y,2,0)=TRUE,1,0),0)+IFERROR(IF(VLOOKUP(AN99,X:Y,2,0)=TRUE,1,0),0)+IFERROR(IF(VLOOKUP(AO99,X:Y,2,0)=TRUE,1,0),0)+IFERROR(IF(VLOOKUP(AP99,X:Y,2,0)=TRUE,1,0),0)+IF(AND(AM99>=Калькулятор!$C$14,AM99<=Калькулятор!$E$14),1,0)+IF(OR(AND(AS99>=Калькулятор!$C$11,AS99<=IF(ISBLANK(Калькулятор!$E$11),100000,Калькулятор!$E$11)),Калькулятор!$C$11&Калькулятор!$E$11=""),1,0))=7,1,0) -> 0 | AR99: =SUM(AQ$2:AQ99) -> 0 | AS99: =IF(Калькулятор!$F$8<>70,ROUND(INDEX($C$6:$V$17,MATCH(AM99,$B$6:$B$17,0),MATCH(AK99&AL99,$C$2:$V$2,0))*(Калькулятор!$F$8/70)^справочно!$Y$2,0),ROUND(INDEX($C$6:$V$17,MATCH(AM99,$B$6:$B$17,0),MATCH(AK99&AL99,$C$2:$V$2,0)),0)) -> 384.00 | AT99: - | AU99: =3.6*AV99/(4.19*(Калькулятор!$C$8-Калькулятор!$D$8)) -> 32.98 | AV99: =IF(Калькулятор!$F$8<>70,INDEX($C$6:$V$17,MATCH(AM99,$B$6:$B$17,0),MATCH(AK99&AL99,$C$2:$V$2,0))*(Калькулятор!$F$8/70)^справочно!$Y$2,INDEX($C$6:$V$17,MATCH(AM99,$B$6:$B$17,0),MATCH(AK99&AL99,$C$2:$V$2,0))) -> 383.90
AA100: Конвектор внутрипольный Royal Thermo ATRIUM-110/200/1200-DG-U-NA | AB100: НС-1477229 | AC100: RT-A-110/200/1200-DG-U-NA | AD100: 3 | AE100: 5 | AF100: 9 | AG100: 13 | AH100: 18 | AI100: 21 | AJ100: 23 | AK100: 110 | AL100: 200 | AM100: 1200 | AN100: DG | AO100: U | AP100: NA | AQ100: =IF((IFERROR(IF(VLOOKUP(AK100,X:Y,2,0)=TRUE,1,0),0)+IFERROR(IF(VLOOKUP(AL100,X:Y,2,0)=TRUE,1,0),0)+IFERROR(IF(VLOOKUP(AN100,X:Y,2,0)=TRUE,1,0),0)+IFERROR(IF(VLOOKUP(AO100,X:Y,2,0)=TRUE,1,0),0)+IFERROR(IF(VLOOKUP(AP100,X:Y,2,0)=TRUE,1,0),0)+IF(AND(AM100>=Калькулятор!$C$14,AM100<=Калькулятор!$E$14),1,0)+IF(OR(AND(AS100>=Калькулятор!$C$11,AS100<=IF(ISBLANK(Калькулятор!$E$11),100000,Калькулятор!$E$11)),Калькулятор!$C$11&Калькулятор!$E$11=""),1,0))=7,1,0) -> 0 | AR100: =SUM(AQ$2:AQ100) -> 0 | AS100: =IF(Калькулятор!$F$8<>70,ROUND(INDEX($C$6:$V$17,MATCH(AM100,$B$6:$B$17,0),MATCH(AK100&AL100,$C$2:$V$2,0))*(Калькулятор!$F$8/70)^справочно!$Y$2,0),ROUND(INDEX($C$6:$V$17,MATCH(AM100,$B$6:$B$17,0),MATCH(AK100&AL100,$C$2:$V$2,0)),0)) -> 490.00 | AT100: - | AU100: =3.6*AV100/(4.19*(Калькулятор!$C$8-Калькулятор!$D$8)) -> 42.06 | AV100: =IF(Калькулятор!$F$8<>70,INDEX($C$6:$V$17,MATCH(AM100,$B$6:$B$17,0),MATCH(AK100&AL100,$C$2:$V$2,0))*(Калькулятор!$F$8/70)^справочно!$Y$2,INDEX($C$6:$V$17,MATCH(AM100,$B$6:$B$17,0),MATCH(AK100&AL100,$C$2:$V$2,0))) -> 489.50
AA101: Конвектор внутрипольный Royal Thermo ATRIUM-110/200/1400-DG-U-NA | AB101: НС-1477232 | AC101: RT-A-110/200/1400-DG-U-NA | AD101: 3 | AE101: 5 | AF101: 9 | AG101: 13 | AH101: 18 | AI101: 21 | AJ101: 23 | AK101: 110 | AL101: 200 | AM101: 1400 | AN101: DG | AO101: U | AP101: NA | AQ101: =IF((IFERROR(IF(VLOOKUP(AK101,X:Y,2,0)=TRUE,1,0),0)+IFERROR(IF(VLOOKUP(AL101,X:Y,2,0)=TRUE,1,0),0)+IFERROR(IF(VLOOKUP(AN101,X:Y,2,0)=TRUE,1,0),0)+IFERROR(IF(VLOOKUP(AO101,X:Y,2,0)=TRUE,1,0),0)+IFERROR(IF(VLOOKUP(AP101,X:Y,2,0)=TRUE,1,0),0)+IF(AND(AM101>=Калькулятор!$C$14,AM101<=Калькулятор!$E$14),1,0)+IF(OR(AND(AS101>=Калькулятор!$C$11,AS101<=IF(ISBLANK(Калькулятор!$E$11),100000,Калькулятор!$E$11)),Калькулятор!$C$11&Калькулятор!$E$11=""),1,0))=7,1,0) -> 0 | AR101: =SUM(AQ$2:AQ101) -> 0 | AS101: =IF(Калькулятор!$F$8<>70,ROUND(INDEX($C$6:$V$17,MATCH(AM101,$B$6:$B$17,0),MATCH(AK101&AL101,$C$2:$V$2,0))*(Калькулятор!$F$8/70)^справочно!$Y$2,0),ROUND(INDEX($C$6:$V$17,MATCH(AM101,$B$6:$B$17,0),MATCH(AK101&AL101,$C$2:$V$2,0)),0)) -> 595.00 | AT101: - | AU101: =3.6*AV101/(4.19*(Калькулятор!$C$8-Калькулятор!$D$8)) -> 51.13 | AV101: =IF(Калькулятор!$F$8<>70,INDEX($C$6:$V$17,MATCH(AM101,$B$6:$B$17,0),MATCH(AK101&AL101,$C$2:$V$2,0))*(Калькулятор!$F$8/70)^справочно!$Y$2,INDEX($C$6:$V$17,MATCH(AM101,$B$6:$B$17,0),MATCH(AK101&AL101,$C$2:$V$2,0))) -> 595.10
AA102: Конвектор внутрипольный Royal Thermo ATRIUM-110/200/1600-DG-U-NA | AB102: НС-1477235 | AC102: RT-A-110/200/1600-DG-U-NA | AD102: 3 | AE102: 5 | AF102: 9 | AG102: 13 | AH102: 18 | AI102: 21 | AJ102: 23 | AK102: 110 | AL102: 200 | AM102: 1600 | AN102: DG | AO102: U | AP102: NA | AQ102: =IF((IFERROR(IF(VLOOKUP(AK102,X:Y,2,0)=TRUE,1,0),0)+IFERROR(IF(VLOOKUP(AL102,X:Y,2,0)=TRUE,1,0),0)+IFERROR(IF(VLOOKUP(AN102,X:Y,2,0)=TRUE,1,0),0)+IFERROR(IF(VLOOKUP(AO102,X:Y,2,0)=TRUE,1,0),0)+IFERROR(IF(VLOOKUP(AP102,X:Y,2,0)=TRUE,1,0),0)+IF(AND(AM102>=Калькулятор!$C$14,AM102<=Калькулятор!$E$14),1,0)+IF(OR(AND(AS102>=Калькулятор!$C$11,AS102<=IF(ISBLANK(Калькулятор!$E$11),100000,Калькулятор!$E$11)),Калькулятор!$C$11&Калькулятор!$E$11=""),1,0))=7,1,0) -> 0 | AR102: =SUM(AQ$2:AQ102) -> 0 | AS102: =IF(Калькулятор!$F$8<>70,ROUND(INDEX($C$6:$V$17,MATCH(AM102,$B$6:$B$17,0),MATCH(AK102&AL102,$C$2:$V$2,0))*(Калькулятор!$F$8/70)^справочно!$Y$2,0),ROUND(INDEX($C$6:$V$17,MATCH(AM102,$B$6:$B$17,0),MATCH(AK102&AL102,$C$2:$V$2,0)),0)) -> 701.00 | AT102: - | AU102: =3.6*AV102/(4.19*(Калькулятор!$C$8-Калькулятор!$D$8)) -> 60.20 | AV102: =IF(Калькулятор!$F$8<>70,INDEX($C$6:$V$17,MATCH(AM102,$B$6:$B$17,0),MATCH(AK102&AL102,$C$2:$V$2,0))*(Калькулятор!$F$8/70)^справочно!$Y$2,INDEX($C$6:$V$17,MATCH(AM102,$B$6:$B$17,0),MATCH(AK102&AL102,$C$2:$V$2,0))) -> 700.70
AA103: Конвектор внутрипольный Royal Thermo ATRIUM-110/200/1800-DG-U-NA | AB103: НС-1477238 | AC103: RT-A-110/200/1800-DG-U-NA | AD103: 3 | AE103: 5 | AF103: 9 | AG103: 13 | AH103: 18 | AI103: 21 | AJ103: 23 | AK103: 110 | AL103: 200 | AM103: 1800 | AN103: DG | AO103: U | AP103: NA | AQ103: =IF((IFERROR(IF(VLOOKUP(AK103,X:Y,2,0)=TRUE,1,0),0)+IFERROR(IF(VLOOKUP(AL103,X:Y,2,0)=TRUE,1,0),0)+IFERROR(IF(VLOOKUP(AN103,X:Y,2,0)=TRUE,1,0),0)+IFERROR(IF(VLOOKUP(AO103,X:Y,2,0)=TRUE,1,0),0)+IFERROR(IF(VLOOKUP(AP103,X:Y,2,0)=TRUE,1,0),0)+IF(AND(AM103>=Калькулятор!$C$14,AM103<=Калькулятор!$E$14),1,0)+IF(OR(AND(AS103>=Калькулятор!$C$11,AS103<=IF(ISBLANK(Калькулятор!$E$11),100000,Калькулятор!$E$11)),Калькулятор!$C$11&Калькулятор!$E$11=""),1,0))=7,1,0) -> 0 | AR103: =SUM(AQ$2:AQ103) -> 0 | AS103: =IF(Калькулятор!$F$8<>70,ROUND(INDEX($C$6:$V$17,MATCH(AM103,$B$6:$B$17,0),MATCH(AK103&AL103,$C$2:$V$2,0))*(Калькулятор!$F$8/70)^справочно!$Y$2,0),ROUND(INDEX($C$6:$V$17,MATCH(AM103,$B$6:$B$17,0),MATCH(AK103&AL103,$C$2:$V$2,0)),0)) -> 806.00 | AT103: - | AU103: =3.6*AV103/(4.19*(Калькулятор!$C$8-Калькулятор!$D$8)) -> 69.28 | AV103: =IF(Калькулятор!$F$8<>70,INDEX($C$6:$V$17,MATCH(AM103,$B$6:$B$17,0),MATCH(AK103&AL103,$C$2:$V$2,0))*(Калькулятор!$F$8/70)^справочно!$Y$2,INDEX($C$6:$V$17,MATCH(AM103,$B$6:$B$17,0),MATCH(AK103&AL103,$C$2:$V$2,0))) -> 806.30
AA104: Конвектор внутрипольный Royal Thermo ATRIUM-110/200/2000-DG-U-NA | AB104: НС-1477241 | AC104: RT-A-110/200/2000-DG-U-NA | AD104: 3 | AE104: 5 | AF104: 9 | AG104: 13 | AH104: 18 | AI104: 21 | AJ104: 23 | AK104: 110 | AL104: 200 | AM104: 2000 | AN104: DG | AO104: U | AP104: NA | AQ104: =IF((IFERROR(IF(VLOOKUP(AK104,X:Y,2,0)=TRUE,1,0),0)+IFERROR(IF(VLOOKUP(AL104,X:Y,2,0)=TRUE,1,0),0)+IFERROR(IF(VLOOKUP(AN104,X:Y,2,0)=TRUE,1,0),0)+IFERROR(IF(VLOOKUP(AO104,X:Y,2,0)=TRUE,1,0),0)+IFERROR(IF(VLOOKUP(AP104,X:Y,2,0)=TRUE,1,0),0)+IF(AND(AM104>=Калькулятор!$C$14,AM104<=Калькулятор!$E$14),1,0)+IF(OR(AND(AS104>=Калькулятор!$C$11,AS104<=IF(ISBLANK(Калькулятор!$E$11),100000,Калькулятор!$E$11)),Калькулятор!$C$11&Калькулятор!$E$11=""),1,0))=7,1,0) -> 0 | AR104: =SUM(AQ$2:AQ104) -> 0 | AS104: =IF(Калькулятор!$F$8<>70,ROUND(INDEX($C$6:$V$17,MATCH(AM104,$B$6:$B$17,0),MATCH(AK104&AL104,$C$2:$V$2,0))*(Калькулятор!$F$8/70)^справочно!$Y$2,0),ROUND(INDEX($C$6:$V$17,MATCH(AM104,$B$6:$B$17,0),MATCH(AK104&AL104,$C$2:$V$2,0)),0)) -> 912.00 | AT104: - | AU104: =3.6*AV104/(4.19*(Калькулятор!$C$8-Калькулятор!$D$8)) -> 78.35 | AV104: =IF(Калькулятор!$F$8<>70,INDEX($C$6:$V$17,MATCH(AM104,$B$6:$B$17,0),MATCH(AK104&AL104,$C$2:$V$2,0))*(Калькулятор!$F$8/70)^справочно!$Y$2,INDEX($C$6:$V$17,MATCH(AM104,$B$6:$B$17,0),MATCH(AK104&AL104,$C$2:$V$2,0))) -> 911.90
AA105: Конвектор внутрипольный Royal Thermo ATRIUM-110/200/2200-DG-U-NA | AB105: НС-1477244 | AC105: RT-A-110/200/2200-DG-U-NA | AD105: 3 | AE105: 5 | AF105: 9 | AG105: 13 | AH105: 18 | AI105: 21 | AJ105: 23 | AK105: 110 | AL105: 200 | AM105: 2200 | AN105: DG | AO105: U | AP105: NA | AQ105: =IF((IFERROR(IF(VLOOKUP(AK105,X:Y,2,0)=TRUE,1,0),0)+IFERROR(IF(VLOOKUP(AL105,X:Y,2,0)=TRUE,1,0),0)+IFERROR(IF(VLOOKUP(AN105,X:Y,2,0)=TRUE,1,0),0)+IFERROR(IF(VLOOKUP(AO105,X:Y,2,0)=TRUE,1,0),0)+IFERROR(IF(VLOOKUP(AP105,X:Y,2,0)=TRUE,1,0),0)+IF(AND(AM105>=Калькулятор!$C$14,AM105<=Калькулятор!$E$14),1,0)+IF(OR(AND(AS105>=Калькулятор!$C$11,AS105<=IF(ISBLANK(Калькулятор!$E$11),100000,Калькулятор!$E$11)),Калькулятор!$C$11&Калькулятор!$E$11=""),1,0))=7,1,0) -> 0 | AR105: =SUM(AQ$2:AQ105) -> 0 | AS105: =IF(Калькулятор!$F$8<>70,ROUND(INDEX($C$6:$V$17,MATCH(AM105,$B$6:$B$17,0),MATCH(AK105&AL105,$C$2:$V$2,0))*(Калькулятор!$F$8/70)^справочно!$Y$2,0),ROUND(INDEX($C$6:$V$17,MATCH(AM105,$B$6:$B$17,0),MATCH(AK105&AL105,$C$2:$V$2,0)),0)) -> 1,018.00 | AT105: - | AU105: =3.6*AV105/(4.19*(Калькулятор!$C$8-Калькулятор!$D$8)) -> 87.42 | AV105: =IF(Калькулятор!$F$8<>70,INDEX($C$6:$V$17,MATCH(AM105,$B$6:$B$17,0),MATCH(AK105&AL105,$C$2:$V$2,0))*(Калькулятор!$F$8/70)^справочно!$Y$2,INDEX($C$6:$V$17,MATCH(AM105,$B$6:$B$17,0),MATCH(AK105&AL105,$C$2:$V$2,0))) -> 1,017.50
AA106: Конвектор внутрипольный Royal Thermo ATRIUM-110/200/2400-DG-U-NA | AB106: НС-1477247 | AC106: RT-A-110/200/2400-DG-U-NA | AD106: 3 | AE106: 5 | AF106: 9 | AG106: 13 | AH106: 18 | AI106: 21 | AJ106: 23 | AK106: 110 | AL106: 200 | AM106: 2400 | AN106: DG | AO106: U | AP106: NA | AQ106: =IF((IFERROR(IF(VLOOKUP(AK106,X:Y,2,0)=TRUE,1,0),0)+IFERROR(IF(VLOOKUP(AL106,X:Y,2,0)=TRUE,1,0),0)+IFERROR(IF(VLOOKUP(AN106,X:Y,2,0)=TRUE,1,0),0)+IFERROR(IF(VLOOKUP(AO106,X:Y,2,0)=TRUE,1,0),0)+IFERROR(IF(VLOOKUP(AP106,X:Y,2,0)=TRUE,1,0),0)+IF(AND(AM106>=Калькулятор!$C$14,AM106<=Калькулятор!$E$14),1,0)+IF(OR(AND(AS106>=Калькулятор!$C$11,AS106<=IF(ISBLANK(Калькулятор!$E$11),100000,Калькулятор!$E$11)),Калькулятор!$C$11&Калькулятор!$E$11=""),1,0))=7,1,0) -> 0 | AR106: =SUM(AQ$2:AQ106) -> 0 | AS106: =IF(Калькулятор!$F$8<>70,ROUND(INDEX($C$6:$V$17,MATCH(AM106,$B$6:$B$17,0),MATCH(AK106&AL106,$C$2:$V$2,0))*(Калькулятор!$F$8/70)^справочно!$Y$2,0),ROUND(INDEX($C$6:$V$17,MATCH(AM106,$B$6:$B$17,0),MATCH(AK106&AL106,$C$2:$V$2,0)),0)) -> 1,123.00 | AT106: - | AU106: =3.6*AV106/(4.19*(Калькулятор!$C$8-Калькулятор!$D$8)) -> 96.50 | AV106: =IF(Калькулятор!$F$8<>70,INDEX($C$6:$V$17,MATCH(AM106,$B$6:$B$17,0),MATCH(AK106&AL106,$C$2:$V$2,0))*(Калькулятор!$F$8/70)^справочно!$Y$2,INDEX($C$6:$V$17,MATCH(AM106,$B$6:$B$17,0),MATCH(AK106&AL106,$C$2:$V$2,0))) -> 1,123.10
AA107: Конвектор внутрипольный Royal Thermo ATRIUM-110/200/2600-DG-U-NA | AB107: НС-1477250 | AC107: RT-A-110/200/2600-DG-U-NA | AD107: 3 | AE107: 5 | AF107: 9 | AG107: 13 | AH107: 18 | AI107: 21 | AJ107: 23 | AK107: 110 | AL107: 200 | AM107: 2600 | AN107: DG | AO107: U | AP107: NA | AQ107: =IF((IFERROR(IF(VLOOKUP(AK107,X:Y,2,0)=TRUE,1,0),0)+IFERROR(IF(VLOOKUP(AL107,X:Y,2,0)=TRUE,1,0),0)+IFERROR(IF(VLOOKUP(AN107,X:Y,2,0)=TRUE,1,0),0)+IFERROR(IF(VLOOKUP(AO107,X:Y,2,0)=TRUE,1,0),0)+IFERROR(IF(VLOOKUP(AP107,X:Y,2,0)=TRUE,1,0),0)+IF(AND(AM107>=Калькулятор!$C$14,AM107<=Калькулятор!$E$14),1,0)+IF(OR(AND(AS107>=Калькулятор!$C$11,AS107<=IF(ISBLANK(Калькулятор!$E$11),100000,Калькулятор!$E$11)),Калькулятор!$C$11&Калькулятор!$E$11=""),1,0))=7,1,0) -> 0 | AR107: =SUM(AQ$2:AQ107) -> 0 | AS107: =IF(Калькулятор!$F$8<>70,ROUND(INDEX($C$6:$V$17,MATCH(AM107,$B$6:$B$17,0),MATCH(AK107&AL107,$C$2:$V$2,0))*(Калькулятор!$F$8/70)^справочно!$Y$2,0),ROUND(INDEX($C$6:$V$17,MATCH(AM107,$B$6:$B$17,0),MATCH(AK107&AL107,$C$2:$V$2,0)),0)) -> 1,229.00 | AT107: ЗО | AU107: =3.6*AV107/(4.19*(Калькулятор!$C$8-Калькулятор!$D$8)) -> 105.57 | AV107: =IF(Калькулятор!$F$8<>70,INDEX($C$6:$V$17,MATCH(AM107,$B$6:$B$17,0),MATCH(AK107&AL107,$C$2:$V$2,0))*(Калькулятор!$F$8/70)^справочно!$Y$2,INDEX($C$6:$V$17,MATCH(AM107,$B$6:$B$17,0),MATCH(AK107&AL107,$C$2:$V$2,0))) -> 1,228.70
AA108: Конвектор внутрипольный Royal Thermo ATRIUM-110/200/2800-DG-U-NA | AB108: НС-1477253 | AC108: RT-A-110/200/2800-DG-U-NA | AD108: 3 | AE108: 5 | AF108: 9 | AG108: 13 | AH108: 18 | AI108: 21 | AJ108: 23 | AK108: 110 | AL108: 200 | AM108: 2800 | AN108: DG | AO108: U | AP108: NA | AQ108: =IF((IFERROR(IF(VLOOKUP(AK108,X:Y,2,0)=TRUE,1,0),0)+IFERROR(IF(VLOOKUP(AL108,X:Y,2,0)=TRUE,1,0),0)+IFERROR(IF(VLOOKUP(AN108,X:Y,2,0)=TRUE,1,0),0)+IFERROR(IF(VLOOKUP(AO108,X:Y,2,0)=TRUE,1,0),0)+IFERROR(IF(VLOOKUP(AP108,X:Y,2,0)=TRUE,1,0),0)+IF(AND(AM108>=Калькулятор!$C$14,AM108<=Калькулятор!$E$14),1,0)+IF(OR(AND(AS108>=Калькулятор!$C$11,AS108<=IF(ISBLANK(Калькулятор!$E$11),100000,Калькулятор!$E$11)),Калькулятор!$C$11&Калькулятор!$E$11=""),1,0))=7,1,0) -> 0 | AR108: =SUM(AQ$2:AQ108) -> 0 | AS108: =IF(Калькулятор!$F$8<>70,ROUND(INDEX($C$6:$V$17,MATCH(AM108,$B$6:$B$17,0),MATCH(AK108&AL108,$C$2:$V$2,0))*(Калькулятор!$F$8/70)^справочно!$Y$2,0),ROUND(INDEX($C$6:$V$17,MATCH(AM108,$B$6:$B$17,0),MATCH(AK108&AL108,$C$2:$V$2,0)),0)) -> 1,334.00 | AT108: ЗО | AU108: =3.6*AV108/(4.19*(Калькулятор!$C$8-Калькулятор!$D$8)) -> 114.64 | AV108: =IF(Калькулятор!$F$8<>70,INDEX($C$6:$V$17,MATCH(AM108,$B$6:$B$17,0),MATCH(AK108&AL108,$C$2:$V$2,0))*(Калькулятор!$F$8/70)^справочно!$Y$2,INDEX($C$6:$V$17,MATCH(AM108,$B$6:$B$17,0),MATCH(AK108&AL108,$C$2:$V$2,0))) -> 1,334.30
AA109: Конвектор внутрипольный Royal Thermo ATRIUM-110/200/3000-DG-U-NA | AB109: НС-1477256 | AC109: RT-A-110/200/3000-DG-U-NA | AD109: 3 | AE109: 5 | AF109: 9 | AG109: 13 | AH109: 18 | AI109: 21 | AJ109: 23 | AK109: 110 | AL109: 200 | AM109: 3000 | AN109: DG | AO109: U | AP109: NA | AQ109: =IF((IFERROR(IF(VLOOKUP(AK109,X:Y,2,0)=TRUE,1,0),0)+IFERROR(IF(VLOOKUP(AL109,X:Y,2,0)=TRUE,1,0),0)+IFERROR(IF(VLOOKUP(AN109,X:Y,2,0)=TRUE,1,0),0)+IFERROR(IF(VLOOKUP(AO109,X:Y,2,0)=TRUE,1,0),0)+IFERROR(IF(VLOOKUP(AP109,X:Y,2,0)=TRUE,1,0),0)+IF(AND(AM109>=Калькулятор!$C$14,AM109<=Калькулятор!$E$14),1,0)+IF(OR(AND(AS109>=Калькулятор!$C$11,AS109<=IF(ISBLANK(Калькулятор!$E$11),100000,Калькулятор!$E$11)),Калькулятор!$C$11&Калькулятор!$E$11=""),1,0))=7,1,0) -> 0 | AR109: =SUM(AQ$2:AQ109) -> 0 | AS109: =IF(Калькулятор!$F$8<>70,ROUND(INDEX($C$6:$V$17,MATCH(AM109,$B$6:$B$17,0),MATCH(AK109&AL109,$C$2:$V$2,0))*(Калькулятор!$F$8/70)^справочно!$Y$2,0),ROUND(INDEX($C$6:$V$17,MATCH(AM109,$B$6:$B$17,0),MATCH(AK109&AL109,$C$2:$V$2,0)),0)) -> 1,440.00 | AT109: ЗО | AU109: =3.6*AV109/(4.19*(Калькулятор!$C$8-Калькулятор!$D$8)) -> 123.71 | AV109: =IF(Калькулятор!$F$8<>70,INDEX($C$6:$V$17,MATCH(AM109,$B$6:$B$17,0),MATCH(AK109&AL109,$C$2:$V$2,0))*(Калькулятор!$F$8/70)^справочно!$Y$2,INDEX($C$6:$V$17,MATCH(AM109,$B$6:$B$17,0),MATCH(AK109&AL109,$C$2:$V$2,0))) -> 1,439.90
AA110: Конвектор внутрипольный Royal Thermo ATRIUM-110/250/800-DG-U-NA | AB110: НС-1477298 | AC110: RT-A-110/250/800-DG-U-NA | AD110: 3 | AE110: 5 | AF110: 9 | AG110: 13 | AH110: 17 | AI110: 20 | AJ110: 22 | AK110: 110 | AL110: 250 | AM110: 800 | AN110: DG | AO110: U | AP110: NA | AQ110: =IF((IFERROR(IF(VLOOKUP(AK110,X:Y,2,0)=TRUE,1,0),0)+IFERROR(IF(VLOOKUP(AL110,X:Y,2,0)=TRUE,1,0),0)+IFERROR(IF(VLOOKUP(AN110,X:Y,2,0)=TRUE,1,0),0)+IFERROR(IF(VLOOKUP(AO110,X:Y,2,0)=TRUE,1,0),0)+IFERROR(IF(VLOOKUP(AP110,X:Y,2,0)=TRUE,1,0),0)+IF(AND(AM110>=Калькулятор!$C$14,AM110<=Калькулятор!$E$14),1,0)+IF(OR(AND(AS110>=Калькулятор!$C$11,AS110<=IF(ISBLANK(Калькулятор!$E$11),100000,Калькулятор!$E$11)),Калькулятор!$C$11&Калькулятор!$E$11=""),1,0))=7,1,0) -> 0 | AR110: =SUM(AQ$2:AQ110) -> 0 | AS110: =IF(Калькулятор!$F$8<>70,ROUND(INDEX($C$6:$V$17,MATCH(AM110,$B$6:$B$17,0),MATCH(AK110&AL110,$C$2:$V$2,0))*(Калькулятор!$F$8/70)^справочно!$Y$2,0),ROUND(INDEX($C$6:$V$17,MATCH(AM110,$B$6:$B$17,0),MATCH(AK110&AL110,$C$2:$V$2,0)),0)) -> 356.00 | AT110: ЗО | AU110: =3.6*AV110/(4.19*(Калькулятор!$C$8-Калькулятор!$D$8)) -> 30.62 | AV110: =IF(Калькулятор!$F$8<>70,INDEX($C$6:$V$17,MATCH(AM110,$B$6:$B$17,0),MATCH(AK110&AL110,$C$2:$V$2,0))*(Калькулятор!$F$8/70)^справочно!$Y$2,INDEX($C$6:$V$17,MATCH(AM110,$B$6:$B$17,0),MATCH(AK110&AL110,$C$2:$V$2,0))) -> 356.40
AA111: Конвектор внутрипольный Royal Thermo ATRIUM-110/250/1000-DG-U-NA | AB111: НС-1430169 | AC111: RT-A-110/250/1000-DG-U-NA | AD111: 3 | AE111: 5 | AF111: 9 | AG111: 13 | AH111: 18 | AI111: 21 | AJ111: 23 | AK111: 110 | AL111: 250 | AM111: 1000 | AN111: DG | AO111: U | AP111: NA | AQ111: =IF((IFERROR(IF(VLOOKUP(AK111,X:Y,2,0)=TRUE,1,0),0)+IFERROR(IF(VLOOKUP(AL111,X:Y,2,0)=TRUE,1,0),0)+IFERROR(IF(VLOOKUP(AN111,X:Y,2,0)=TRUE,1,0),0)+IFERROR(IF(VLOOKUP(AO111,X:Y,2,0)=TRUE,1,0),0)+IFERROR(IF(VLOOKUP(AP111,X:Y,2,0)=TRUE,1,0),0)+IF(AND(AM111>=Калькулятор!$C$14,AM111<=Калькулятор!$E$14),1,0)+IF(OR(AND(AS111>=Калькулятор!$C$11,AS111<=IF(ISBLANK(Калькулятор!$E$11),100000,Калькулятор!$E$11)),Калькулятор!$C$11&Калькулятор!$E$11=""),1,0))=7,1,0) -> 0 | AR111: =SUM(AQ$2:AQ111) -> 0 | AS111: =IF(Калькулятор!$F$8<>70,ROUND(INDEX($C$6:$V$17,MATCH(AM111,$B$6:$B$17,0),MATCH(AK111&AL111,$C$2:$V$2,0))*(Калькулятор!$F$8/70)^справочно!$Y$2,0),ROUND(INDEX($C$6:$V$17,MATCH(AM111,$B$6:$B$17,0),MATCH(AK111&AL111,$C$2:$V$2,0)),0)) -> 475.00 | AT111: - | AU111: =3.6*AV111/(4.19*(Калькулятор!$C$8-Калькулятор!$D$8)) -> 40.83 | AV111: =IF(Калькулятор!$F$8<>70,INDEX($C$6:$V$17,MATCH(AM111,$B$6:$B$17,0),MATCH(AK111&AL111,$C$2:$V$2,0))*(Калькулятор!$F$8/70)^справочно!$Y$2,INDEX($C$6:$V$17,MATCH(AM111,$B$6:$B$17,0),MATCH(AK111&AL111,$C$2:$V$2,0))) -> 475.20
AA112: Конвектор внутрипольный Royal Thermo ATRIUM-110/250/1200-DG-U-NA | AB112: НС-1430170 | AC112: RT-A-110/250/1200-DG-U-NA | AD112: 3 | AE112: 5 | AF112: 9 | AG112: 13 | AH112: 18 | AI112: 21 | AJ112: 23 | AK112: 110 | AL112: 250 | AM112: 1200 | AN112: DG | AO112: U | AP112: NA | AQ112: =IF((IFERROR(IF(VLOOKUP(AK112,X:Y,2,0)=TRUE,1,0),0)+IFERROR(IF(VLOOKUP(AL112,X:Y,2,0)=TRUE,1,0),0)+IFERROR(IF(VLOOKUP(AN112,X:Y,2,0)=TRUE,1,0),0)+IFERROR(IF(VLOOKUP(AO112,X:Y,2,0)=TRUE,1,0),0)+IFERROR(IF(VLOOKUP(AP112,X:Y,2,0)=TRUE,1,0),0)+IF(AND(AM112>=Калькулятор!$C$14,AM112<=Калькулятор!$E$14),1,0)+IF(OR(AND(AS112>=Калькулятор!$C$11,AS112<=IF(ISBLANK(Калькулятор!$E$11),100000,Калькулятор!$E$11)),Калькулятор!$C$11&Калькулятор!$E$11=""),1,0))=7,1,0) -> 0 | AR112: =SUM(AQ$2:AQ112) -> 0 | AS112: =IF(Калькулятор!$F$8<>70,ROUND(INDEX($C$6:$V$17,MATCH(AM112,$B$6:$B$17,0),MATCH(AK112&AL112,$C$2:$V$2,0))*(Калькулятор!$F$8/70)^справочно!$Y$2,0),ROUND(INDEX($C$6:$V$17,MATCH(AM112,$B$6:$B$17,0),MATCH(AK112&AL112,$C$2:$V$2,0)),0)) -> 595.00 | AT112: - | AU112: =3.6*AV112/(4.19*(Калькулятор!$C$8-Калькулятор!$D$8)) -> 51.13 | AV112: =IF(Калькулятор!$F$8<>70,INDEX($C$6:$V$17,MATCH(AM112,$B$6:$B$17,0),MATCH(AK112&AL112,$C$2:$V$2,0))*(Калькулятор!$F$8/70)^справочно!$Y$2,INDEX($C$6:$V$17,MATCH(AM112,$B$6:$B$17,0),MATCH(AK112&AL112,$C$2:$V$2,0))) -> 595.10
AA113: Конвектор внутрипольный Royal Thermo ATRIUM-110/250/1400-DG-U-NA | AB113: НС-1430171 | AC113: RT-A-110/250/1400-DG-U-NA | AD113: 3 | AE113: 5 | AF113: 9 | AG113: 13 | AH113: 18 | AI113: 21 | AJ113: 23 | AK113: 110 | AL113: 250 | AM113: 1400 | AN113: DG | AO113: U | AP113: NA | AQ113: =IF((IFERROR(IF(VLOOKUP(AK113,X:Y,2,0)=TRUE,1,0),0)+IFERROR(IF(VLOOKUP(AL113,X:Y,2,0)=TRUE,1,0),0)+IFERROR(IF(VLOOKUP(AN113,X:Y,2,0)=TRUE,1,0),0)+IFERROR(IF(VLOOKUP(AO113,X:Y,2,0)=TRUE,1,0),0)+IFERROR(IF(VLOOKUP(AP113,X:Y,2,0)=TRUE,1,0),0)+IF(AND(AM113>=Калькулятор!$C$14,AM113<=Калькулятор!$E$14),1,0)+IF(OR(AND(AS113>=Калькулятор!$C$11,AS113<=IF(ISBLANK(Калькулятор!$E$11),100000,Калькулятор!$E$11)),Калькулятор!$C$11&Калькулятор!$E$11=""),1,0))=7,1,0) -> 0 | AR113: =SUM(AQ$2:AQ113) -> 0 | AS113: =IF(Калькулятор!$F$8<>70,ROUND(INDEX($C$6:$V$17,MATCH(AM113,$B$6:$B$17,0),MATCH(AK113&AL113,$C$2:$V$2,0))*(Калькулятор!$F$8/70)^справочно!$Y$2,0),ROUND(INDEX($C$6:$V$17,MATCH(AM113,$B$6:$B$17,0),MATCH(AK113&AL113,$C$2:$V$2,0)),0)) -> 714.00 | AT113: - | AU113: =3.6*AV113/(4.19*(Калькулятор!$C$8-Калькулятор!$D$8)) -> 61.34 | AV113: =IF(Калькулятор!$F$8<>70,INDEX($C$6:$V$17,MATCH(AM113,$B$6:$B$17,0),MATCH(AK113&AL113,$C$2:$V$2,0))*(Калькулятор!$F$8/70)^справочно!$Y$2,INDEX($C$6:$V$17,MATCH(AM113,$B$6:$B$17,0),MATCH(AK113&AL113,$C$2:$V$2,0))) -> 713.90
AA114: Конвектор внутрипольный Royal Thermo ATRIUM-110/250/1600-DG-U-NA | AB114: НС-1430172 | AC114: RT-A-110/250/1600-DG-U-NA | AD114: 3 | AE114: 5 | AF114: 9 | AG114: 13 | AH114: 18 | AI114: 21 | AJ114: 23 | AK114: 110 | AL114: 250 | AM114: 1600 | AN114: DG | AO114: U | AP114: NA | AQ114: =IF((IFERROR(IF(VLOOKUP(AK114,X:Y,2,0)=TRUE,1,0),0)+IFERROR(IF(VLOOKUP(AL114,X:Y,2,0)=TRUE,1,0),0)+IFERROR(IF(VLOOKUP(AN114,X:Y,2,0)=TRUE,1,0),0)+IFERROR(IF(VLOOKUP(AO114,X:Y,2,0)=TRUE,1,0),0)+IFERROR(IF(VLOOKUP(AP114,X:Y,2,0)=TRUE,1,0),0)+IF(AND(AM114>=Калькулятор!$C$14,AM114<=Калькулятор!$E$14),1,0)+IF(OR(AND(AS114>=Калькулятор!$C$11,AS114<=IF(ISBLANK(Калькулятор!$E$11),100000,Калькулятор!$E$11)),Калькулятор!$C$11&Калькулятор!$E$11=""),1,0))=7,1,0) -> 0 | AR114: =SUM(AQ$2:AQ114) -> 0 | AS114: =IF(Калькулятор!$F$8<>70,ROUND(INDEX($C$6:$V$17,MATCH(AM114,$B$6:$B$17,0),MATCH(AK114&AL114,$C$2:$V$2,0))*(Калькулятор!$F$8/70)^справочно!$Y$2,0),ROUND(INDEX($C$6:$V$17,MATCH(AM114,$B$6:$B$17,0),MATCH(AK114&AL114,$C$2:$V$2,0)),0)) -> 834.00 | AT114: - | AU114: =3.6*AV114/(4.19*(Калькулятор!$C$8-Калькулятор!$D$8)) -> 71.64 | AV114: =IF(Калькулятор!$F$8<>70,INDEX($C$6:$V$17,MATCH(AM114,$B$6:$B$17,0),MATCH(AK114&AL114,$C$2:$V$2,0))*(Калькулятор!$F$8/70)^справочно!$Y$2,INDEX($C$6:$V$17,MATCH(AM114,$B$6:$B$17,0),MATCH(AK114&AL114,$C$2:$V$2,0))) -> 833.80
AA115: Конвектор внутрипольный Royal Thermo ATRIUM-110/250/1800-DG-U-NA | AB115: НС-1430173 | AC115: RT-A-110/250/1800-DG-U-NA | AD115: 3 | AE115: 5 | AF115: 9 | AG115: 13 | AH115: 18 | AI115: 21 | AJ115: 23 | AK115: 110 | AL115: 250 | AM115: 1800 | AN115: DG | AO115: U | AP115: NA | AQ115: =IF((IFERROR(IF(VLOOKUP(AK115,X:Y,2,0)=TRUE,1,0),0)+IFERROR(IF(VLOOKUP(AL115,X:Y,2,0)=TRUE,1,0),0)+IFERROR(IF(VLOOKUP(AN115,X:Y,2,0)=TRUE,1,0),0)+IFERROR(IF(VLOOKUP(AO115,X:Y,2,0)=TRUE,1,0),0)+IFERROR(IF(VLOOKUP(AP115,X:Y,2,0)=TRUE,1,0),0)+IF(AND(AM115>=Калькулятор!$C$14,AM115<=Калькулятор!$E$14),1,0)+IF(OR(AND(AS115>=Калькулятор!$C$11,AS115<=IF(ISBLANK(Калькулятор!$E$11),100000,Калькулятор!$E$11)),Калькулятор!$C$11&Калькулятор!$E$11=""),1,0))=7,1,0) -> 0 | AR115: =SUM(AQ$2:AQ115) -> 0 | AS115: =IF(Калькулятор!$F$8<>70,ROUND(INDEX($C$6:$V$17,MATCH(AM115,$B$6:$B$17,0),MATCH(AK115&AL115,$C$2:$V$2,0))*(Калькулятор!$F$8/70)^справочно!$Y$2,0),ROUND(INDEX($C$6:$V$17,MATCH(AM115,$B$6:$B$17,0),MATCH(AK115&AL115,$C$2:$V$2,0)),0)) -> 954.00 | AT115: - | AU115: =3.6*AV115/(4.19*(Калькулятор!$C$8-Калькулятор!$D$8)) -> 81.94 | AV115: =IF(Калькулятор!$F$8<>70,INDEX($C$6:$V$17,MATCH(AM115,$B$6:$B$17,0),MATCH(AK115&AL115,$C$2:$V$2,0))*(Калькулятор!$F$8/70)^справочно!$Y$2,INDEX($C$6:$V$17,MATCH(AM115,$B$6:$B$17,0),MATCH(AK115&AL115,$C$2:$V$2,0))) -> 953.70
AA116: Конвектор внутрипольный Royal Thermo ATRIUM-110/250/2000-DG-U-NA | AB116: НС-1430174 | AC116: RT-A-110/250/2000-DG-U-NA | AD116: 3 | AE116: 5 | AF116: 9 | AG116: 13 | AH116: 18 | AI116: 21 | AJ116: 23 | AK116: 110 | AL116: 250 | AM116: 2000 | AN116: DG | AO116: U | AP116: NA | AQ116: =IF((IFERROR(IF(VLOOKUP(AK116,X:Y,2,0)=TRUE,1,0),0)+IFERROR(IF(VLOOKUP(AL116,X:Y,2,0)=TRUE,1,0),0)+IFERROR(IF(VLOOKUP(AN116,X:Y,2,0)=TRUE,1,0),0)+IFERROR(IF(VLOOKUP(AO116,X:Y,2,0)=TRUE,1,0),0)+IFERROR(IF(VLOOKUP(AP116,X:Y,2,0)=TRUE,1,0),0)+IF(AND(AM116>=Калькулятор!$C$14,AM116<=Калькулятор!$E$14),1,0)+IF(OR(AND(AS116>=Калькулятор!$C$11,AS116<=IF(ISBLANK(Калькулятор!$E$11),100000,Калькулятор!$E$11)),Калькулятор!$C$11&Калькулятор!$E$11=""),1,0))=7,1,0) -> 0 | AR116: =SUM(AQ$2:AQ116) -> 0 | AS116: =IF(Калькулятор!$F$8<>70,ROUND(INDEX($C$6:$V$17,MATCH(AM116,$B$6:$B$17,0),MATCH(AK116&AL116,$C$2:$V$2,0))*(Калькулятор!$F$8/70)^справочно!$Y$2,0),ROUND(INDEX($C$6:$V$17,MATCH(AM116,$B$6:$B$17,0),MATCH(AK116&AL116,$C$2:$V$2,0)),0)) -> 1,073.00 | AT116: - | AU116: =3.6*AV116/(4.19*(Калькулятор!$C$8-Калькулятор!$D$8)) -> 92.15 | AV116: =IF(Калькулятор!$F$8<>70,INDEX($C$6:$V$17,MATCH(AM116,$B$6:$B$17,0),MATCH(AK116&AL116,$C$2:$V$2,0))*(Калькулятор!$F$8/70)^справочно!$Y$2,INDEX($C$6:$V$17,MATCH(AM116,$B$6:$B$17,0),MATCH(AK116&AL116,$C$2:$V$2,0))) -> 1,072.50
AA117: Конвектор внутрипольный Royal Thermo ATRIUM-110/250/2200-DG-U-NA | AB117: НС-1477283 | AC117: RT-A-110/250/2200-DG-U-NA | AD117: 3 | AE117: 5 | AF117: 9 | AG117: 13 | AH117: 18 | AI117: 21 | AJ117: 23 | AK117: 110 | AL117: 250 | AM117: 2200 | AN117: DG | AO117: U | AP117: NA | AQ117: =IF((IFERROR(IF(VLOOKUP(AK117,X:Y,2,0)=TRUE,1,0),0)+IFERROR(IF(VLOOKUP(AL117,X:Y,2,0)=TRUE,1,0),0)+IFERROR(IF(VLOOKUP(AN117,X:Y,2,0)=TRUE,1,0),0)+IFERROR(IF(VLOOKUP(AO117,X:Y,2,0)=TRUE,1,0),0)+IFERROR(IF(VLOOKUP(AP117,X:Y,2,0)=TRUE,1,0),0)+IF(AND(AM117>=Калькулятор!$C$14,AM117<=Калькулятор!$E$14),1,0)+IF(OR(AND(AS117>=Калькулятор!$C$11,AS117<=IF(ISBLANK(Калькулятор!$E$11),100000,Калькулятор!$E$11)),Калькулятор!$C$11&Калькулятор!$E$11=""),1,0))=7,1,0) -> 0 | AR117: =SUM(AQ$2:AQ117) -> 0 | AS117: =IF(Калькулятор!$F$8<>70,ROUND(INDEX($C$6:$V$17,MATCH(AM117,$B$6:$B$17,0),MATCH(AK117&AL117,$C$2:$V$2,0))*(Калькулятор!$F$8/70)^справочно!$Y$2,0),ROUND(INDEX($C$6:$V$17,MATCH(AM117,$B$6:$B$17,0),MATCH(AK117&AL117,$C$2:$V$2,0)),0)) -> 1,191.00 | AT117: - | AU117: =3.6*AV117/(4.19*(Калькулятор!$C$8-Калькулятор!$D$8)) -> 102.36 | AV117: =IF(Калькулятор!$F$8<>70,INDEX($C$6:$V$17,MATCH(AM117,$B$6:$B$17,0),MATCH(AK117&AL117,$C$2:$V$2,0))*(Калькулятор!$F$8/70)^справочно!$Y$2,INDEX($C$6:$V$17,MATCH(AM117,$B$6:$B$17,0),MATCH(AK117&AL117,$C$2:$V$2,0))) -> 1,191.30
AA118: Конвектор внутрипольный Royal Thermo ATRIUM-110/250/2400-DG-U-NA | AB118: НС-1477286 | AC118: RT-A-110/250/2400-DG-U-NA | AD118: 3 | AE118: 5 | AF118: 9 | AG118: 13 | AH118: 18 | AI118: 21 | AJ118: 23 | AK118: 110 | AL118: 250 | AM118: 2400 | AN118: DG | AO118: U | AP118: NA | AQ118: =IF((IFERROR(IF(VLOOKUP(AK118,X:Y,2,0)=TRUE,1,0),0)+IFERROR(IF(VLOOKUP(AL118,X:Y,2,0)=TRUE,1,0),0)+IFERROR(IF(VLOOKUP(AN118,X:Y,2,0)=TRUE,1,0),0)+IFERROR(IF(VLOOKUP(AO118,X:Y,2,0)=TRUE,1,0),0)+IFERROR(IF(VLOOKUP(AP118,X:Y,2,0)=TRUE,1,0),0)+IF(AND(AM118>=Калькулятор!$C$14,AM118<=Калькулятор!$E$14),1,0)+IF(OR(AND(AS118>=Калькулятор!$C$11,AS118<=IF(ISBLANK(Калькулятор!$E$11),100000,Калькулятор!$E$11)),Калькулятор!$C$11&Калькулятор!$E$11=""),1,0))=7,1,0) -> 0 | AR118: =SUM(AQ$2:AQ118) -> 0 | AS118: =IF(Калькулятор!$F$8<>70,ROUND(INDEX($C$6:$V$17,MATCH(AM118,$B$6:$B$17,0),MATCH(AK118&AL118,$C$2:$V$2,0))*(Калькулятор!$F$8/70)^справочно!$Y$2,0),ROUND(INDEX($C$6:$V$17,MATCH(AM118,$B$6:$B$17,0),MATCH(AK118&AL118,$C$2:$V$2,0)),0)) -> 1,338.00 | AT118: - | AU118: =3.6*AV118/(4.19*(Калькулятор!$C$8-Калькулятор!$D$8)) -> 114.93 | AV118: =IF(Калькулятор!$F$8<>70,INDEX($C$6:$V$17,MATCH(AM118,$B$6:$B$17,0),MATCH(AK118&AL118,$C$2:$V$2,0))*(Калькулятор!$F$8/70)^справочно!$Y$2,INDEX($C$6:$V$17,MATCH(AM118,$B$6:$B$17,0),MATCH(AK118&AL118,$C$2:$V$2,0))) -> 1,337.60
AA119: Конвектор внутрипольный Royal Thermo ATRIUM-110/250/2600-DG-U-NA | AB119: НС-1477289 | AC119: RT-A-110/250/2600-DG-U-NA | AD119: 3 | AE119: 5 | AF119: 9 | AG119: 13 | AH119: 18 | AI119: 21 | AJ119: 23 | AK119: 110 | AL119: 250 | AM119: 2600 | AN119: DG | AO119: U | AP119: NA | AQ119: =IF((IFERROR(IF(VLOOKUP(AK119,X:Y,2,0)=TRUE,1,0),0)+IFERROR(IF(VLOOKUP(AL119,X:Y,2,0)=TRUE,1,0),0)+IFERROR(IF(VLOOKUP(AN119,X:Y,2,0)=TRUE,1,0),0)+IFERROR(IF(VLOOKUP(AO119,X:Y,2,0)=TRUE,1,0),0)+IFERROR(IF(VLOOKUP(AP119,X:Y,2,0)=TRUE,1,0),0)+IF(AND(AM119>=Калькулятор!$C$14,AM119<=Калькулятор!$E$14),1,0)+IF(OR(AND(AS119>=Калькулятор!$C$11,AS119<=IF(ISBLANK(Калькулятор!$E$11),100000,Калькулятор!$E$11)),Калькулятор!$C$11&Калькулятор!$E$11=""),1,0))=7,1,0) -> 0 | AR119: =SUM(AQ$2:AQ119) -> 0 | AS119: =IF(Калькулятор!$F$8<>70,ROUND(INDEX($C$6:$V$17,MATCH(AM119,$B$6:$B$17,0),MATCH(AK119&AL119,$C$2:$V$2,0))*(Калькулятор!$F$8/70)^справочно!$Y$2,0),ROUND(INDEX($C$6:$V$17,MATCH(AM119,$B$6:$B$17,0),MATCH(AK119&AL119,$C$2:$V$2,0)),0)) -> 1,458.00 | AT119: ЗО | AU119: =3.6*AV119/(4.19*(Калькулятор!$C$8-Калькулятор!$D$8)) -> 125.23 | AV119: =IF(Калькулятор!$F$8<>70,INDEX($C$6:$V$17,MATCH(AM119,$B$6:$B$17,0),MATCH(AK119&AL119,$C$2:$V$2,0))*(Калькулятор!$F$8/70)^справочно!$Y$2,INDEX($C$6:$V$17,MATCH(AM119,$B$6:$B$17,0),MATCH(AK119&AL119,$C$2:$V$2,0))) -> 1,457.50
AA120: Конвектор внутрипольный Royal Thermo ATRIUM-110/250/2800-DG-U-NA | AB120: НС-1477292 | AC120: RT-A-110/250/2800-DG-U-NA | AD120: 3 | AE120: 5 | AF120: 9 | AG120: 13 | AH120: 18 | AI120: 21 | AJ120: 23 | AK120: 110 | AL120: 250 | AM120: 2800 | AN120: DG | AO120: U | AP120: NA | AQ120: =IF((IFERROR(IF(VLOOKUP(AK120,X:Y,2,0)=TRUE,1,0),0)+IFERROR(IF(VLOOKUP(AL120,X:Y,2,0)=TRUE,1,0),0)+IFERROR(IF(VLOOKUP(AN120,X:Y,2,0)=TRUE,1,0),0)+IFERROR(IF(VLOOKUP(AO120,X:Y,2,0)=TRUE,1,0),0)+IFERROR(IF(VLOOKUP(AP120,X:Y,2,0)=TRUE,1,0),0)+IF(AND(AM120>=Калькулятор!$C$14,AM120<=Калькулятор!$E$14),1,0)+IF(OR(AND(AS120>=Калькулятор!$C$11,AS120<=IF(ISBLANK(Калькулятор!$E$11),100000,Калькулятор!$E$11)),Калькулятор!$C$11&Калькулятор!$E$11=""),1,0))=7,1,0) -> 0 | AR120: =SUM(AQ$2:AQ120) -> 0 | AS120: =IF(Калькулятор!$F$8<>70,ROUND(INDEX($C$6:$V$17,MATCH(AM120,$B$6:$B$17,0),MATCH(AK120&AL120,$C$2:$V$2,0))*(Калькулятор!$F$8/70)^справочно!$Y$2,0),ROUND(INDEX($C$6:$V$17,MATCH(AM120,$B$6:$B$17,0),MATCH(AK120&AL120,$C$2:$V$2,0)),0)) -> 1,576.00 | AT120: ЗО | AU120: =3.6*AV120/(4.19*(Калькулятор!$C$8-Калькулятор!$D$8)) -> 135.43 | AV120: =IF(Калькулятор!$F$8<>70,INDEX($C$6:$V$17,MATCH(AM120,$B$6:$B$17,0),MATCH(AK120&AL120,$C$2:$V$2,0))*(Калькулятор!$F$8/70)^справочно!$Y$2,INDEX($C$6:$V$17,MATCH(AM120,$B$6:$B$17,0),MATCH(AK120&AL120,$C$2:$V$2,0))) -> 1,576.30
AA121: Конвектор внутрипольный Royal Thermo ATRIUM-110/250/3000-DG-U-NA | AB121: НС-1477295 | AC121: RT-A-110/250/3000-DG-U-NA | AD121: 3 | AE121: 5 | AF121: 9 | AG121: 13 | AH121: 18 | AI121: 21 | AJ121: 23 | AK121: 110 | AL121: 250 | AM121: 3000 | AN121: DG | AO121: U | AP121: NA | AQ121: =IF((IFERROR(IF(VLOOKUP(AK121,X:Y,2,0)=TRUE,1,0),0)+IFERROR(IF(VLOOKUP(AL121,X:Y,2,0)=TRUE,1,0),0)+IFERROR(IF(VLOOKUP(AN121,X:Y,2,0)=TRUE,1,0),0)+IFERROR(IF(VLOOKUP(AO121,X:Y,2,0)=TRUE,1,0),0)+IFERROR(IF(VLOOKUP(AP121,X:Y,2,0)=TRUE,1,0),0)+IF(AND(AM121>=Калькулятор!$C$14,AM121<=Калькулятор!$E$14),1,0)+IF(OR(AND(AS121>=Калькулятор!$C$11,AS121<=IF(ISBLANK(Калькулятор!$E$11),100000,Калькулятор!$E$11)),Калькулятор!$C$11&Калькулятор!$E$11=""),1,0))=7,1,0) -> 0 | AR121: =SUM(AQ$2:AQ121) -> 0 | AS121: =IF(Калькулятор!$F$8<>70,ROUND(INDEX($C$6:$V$17,MATCH(AM121,$B$6:$B$17,0),MATCH(AK121&AL121,$C$2:$V$2,0))*(Калькулятор!$F$8/70)^справочно!$Y$2,0),ROUND(INDEX($C$6:$V$17,MATCH(AM121,$B$6:$B$17,0),MATCH(AK121&AL121,$C$2:$V$2,0)),0)) -> 1,695.00 | AT121: ЗО | AU121: =3.6*AV121/(4.19*(Калькулятор!$C$8-Калькулятор!$D$8)) -> 145.64 | AV121: =IF(Калькулятор!$F$8<>70,INDEX($C$6:$V$17,MATCH(AM121,$B$6:$B$17,0),MATCH(AK121&AL121,$C$2:$V$2,0))*(Калькулятор!$F$8/70)^справочно!$Y$2,INDEX($C$6:$V$17,MATCH(AM121,$B$6:$B$17,0),MATCH(AK121&AL121,$C$2:$V$2,0))) -> 1,695.10
AA122: Конвектор внутрипольный Royal Thermo ATRIUM-110/300/800-DG-U-NA | AB122: НС-1477337 | AC122: RT-A-110/300/800-DG-U-NA | AD122: 3 | AE122: 5 | AF122: 9 | AG122: 13 | AH122: 17 | AI122: 20 | AJ122: 22 | AK122: 110 | AL122: 300 | AM122: 800 | AN122: DG | AO122: U | AP122: NA | AQ122: =IF((IFERROR(IF(VLOOKUP(AK122,X:Y,2,0)=TRUE,1,0),0)+IFERROR(IF(VLOOKUP(AL122,X:Y,2,0)=TRUE,1,0),0)+IFERROR(IF(VLOOKUP(AN122,X:Y,2,0)=TRUE,1,0),0)+IFERROR(IF(VLOOKUP(AO122,X:Y,2,0)=TRUE,1,0),0)+IFERROR(IF(VLOOKUP(AP122,X:Y,2,0)=TRUE,1,0),0)+IF(AND(AM122>=Калькулятор!$C$14,AM122<=Калькулятор!$E$14),1,0)+IF(OR(AND(AS122>=Калькулятор!$C$11,AS122<=IF(ISBLANK(Калькулятор!$E$11),100000,Калькулятор!$E$11)),Калькулятор!$C$11&Калькулятор!$E$11=""),1,0))=7,1,0) -> 0 | AR122: =SUM(AQ$2:AQ122) -> 0 | AS122: =IF(Калькулятор!$F$8<>70,ROUND(INDEX($C$6:$V$17,MATCH(AM122,$B$6:$B$17,0),MATCH(AK122&AL122,$C$2:$V$2,0))*(Калькулятор!$F$8/70)^справочно!$Y$2,0),ROUND(INDEX($C$6:$V$17,MATCH(AM122,$B$6:$B$17,0),MATCH(AK122&AL122,$C$2:$V$2,0)),0)) -> 470.00 | AT122: ЗО | AU122: =3.6*AV122/(4.19*(Калькулятор!$C$8-Калькулятор!$D$8)) -> 40.36 | AV122: =IF(Калькулятор!$F$8<>70,INDEX($C$6:$V$17,MATCH(AM122,$B$6:$B$17,0),MATCH(AK122&AL122,$C$2:$V$2,0))*(Калькулятор!$F$8/70)^справочно!$Y$2,INDEX($C$6:$V$17,MATCH(AM122,$B$6:$B$17,0),MATCH(AK122&AL122,$C$2:$V$2,0))) -> 469.70
AA123: Конвектор внутрипольный Royal Thermo ATRIUM-110/300/1000-DG-U-NA | AB123: НС-1477304 | AC123: RT-A-110/300/1000-DG-U-NA | AD123: 3 | AE123: 5 | AF123: 9 | AG123: 13 | AH123: 18 | AI123: 21 | AJ123: 23 | AK123: 110 | AL123: 300 | AM123: 1000 | AN123: DG | AO123: U | AP123: NA | AQ123: =IF((IFERROR(IF(VLOOKUP(AK123,X:Y,2,0)=TRUE,1,0),0)+IFERROR(IF(VLOOKUP(AL123,X:Y,2,0)=TRUE,1,0),0)+IFERROR(IF(VLOOKUP(AN123,X:Y,2,0)=TRUE,1,0),0)+IFERROR(IF(VLOOKUP(AO123,X:Y,2,0)=TRUE,1,0),0)+IFERROR(IF(VLOOKUP(AP123,X:Y,2,0)=TRUE,1,0),0)+IF(AND(AM123>=Калькулятор!$C$14,AM123<=Калькулятор!$E$14),1,0)+IF(OR(AND(AS123>=Калькулятор!$C$11,AS123<=IF(ISBLANK(Калькулятор!$E$11),100000,Калькулятор!$E$11)),Калькулятор!$C$11&Калькулятор!$E$11=""),1,0))=7,1,0) -> 0 | AR123: =SUM(AQ$2:AQ123) -> 0 | AS123: =IF(Калькулятор!$F$8<>70,ROUND(INDEX($C$6:$V$17,MATCH(AM123,$B$6:$B$17,0),MATCH(AK123&AL123,$C$2:$V$2,0))*(Калькулятор!$F$8/70)^справочно!$Y$2,0),ROUND(INDEX($C$6:$V$17,MATCH(AM123,$B$6:$B$17,0),MATCH(AK123&AL123,$C$2:$V$2,0)),0)) -> 605.00 | AT123: ЗО | AU123: =3.6*AV123/(4.19*(Калькулятор!$C$8-Калькулятор!$D$8)) -> 51.98 | AV123: =IF(Калькулятор!$F$8<>70,INDEX($C$6:$V$17,MATCH(AM123,$B$6:$B$17,0),MATCH(AK123&AL123,$C$2:$V$2,0))*(Калькулятор!$F$8/70)^справочно!$Y$2,INDEX($C$6:$V$17,MATCH(AM123,$B$6:$B$17,0),MATCH(AK123&AL123,$C$2:$V$2,0))) -> 605.00
AA124: Конвектор внутрипольный Royal Thermo ATRIUM-110/300/1200-DG-U-NA | AB124: НС-1477307 | AC124: RT-A-110/300/1200-DG-U-NA | AD124: 3 | AE124: 5 | AF124: 9 | AG124: 13 | AH124: 18 | AI124: 21 | AJ124: 23 | AK124: 110 | AL124: 300 | AM124: 1200 | AN124: DG | AO124: U | AP124: NA | AQ124: =IF((IFERROR(IF(VLOOKUP(AK124,X:Y,2,0)=TRUE,1,0),0)+IFERROR(IF(VLOOKUP(AL124,X:Y,2,0)=TRUE,1,0),0)+IFERROR(IF(VLOOKUP(AN124,X:Y,2,0)=TRUE,1,0),0)+IFERROR(IF(VLOOKUP(AO124,X:Y,2,0)=TRUE,1,0),0)+IFERROR(IF(VLOOKUP(AP124,X:Y,2,0)=TRUE,1,0),0)+IF(AND(AM124>=Калькулятор!$C$14,AM124<=Калькулятор!$E$14),1,0)+IF(OR(AND(AS124>=Калькулятор!$C$11,AS124<=IF(ISBLANK(Калькулятор!$E$11),100000,Калькулятор!$E$11)),Калькулятор!$C$11&Калькулятор!$E$11=""),1,0))=7,1,0) -> 0 | AR124: =SUM(AQ$2:AQ124) -> 0 | AS124: =IF(Калькулятор!$F$8<>70,ROUND(INDEX($C$6:$V$17,MATCH(AM124,$B$6:$B$17,0),MATCH(AK124&AL124,$C$2:$V$2,0))*(Калькулятор!$F$8/70)^справочно!$Y$2,0),ROUND(INDEX($C$6:$V$17,MATCH(AM124,$B$6:$B$17,0),MATCH(AK124&AL124,$C$2:$V$2,0)),0)) -> 741.00 | AT124: ЗО | AU124: =3.6*AV124/(4.19*(Калькулятор!$C$8-Калькулятор!$D$8)) -> 63.70 | AV124: =IF(Калькулятор!$F$8<>70,INDEX($C$6:$V$17,MATCH(AM124,$B$6:$B$17,0),MATCH(AK124&AL124,$C$2:$V$2,0))*(Калькулятор!$F$8/70)^справочно!$Y$2,INDEX($C$6:$V$17,MATCH(AM124,$B$6:$B$17,0),MATCH(AK124&AL124,$C$2:$V$2,0))) -> 741.40
AA125: Конвектор внутрипольный Royal Thermo ATRIUM-110/300/1400-DG-U-NA | AB125: НС-1477310 | AC125: RT-A-110/300/1400-DG-U-NA | AD125: 3 | AE125: 5 | AF125: 9 | AG125: 13 | AH125: 18 | AI125: 21 | AJ125: 23 | AK125: 110 | AL125: 300 | AM125: 1400 | AN125: DG | AO125: U | AP125: NA | AQ125: =IF((IFERROR(IF(VLOOKUP(AK125,X:Y,2,0)=TRUE,1,0),0)+IFERROR(IF(VLOOKUP(AL125,X:Y,2,0)=TRUE,1,0),0)+IFERROR(IF(VLOOKUP(AN125,X:Y,2,0)=TRUE,1,0),0)+IFERROR(IF(VLOOKUP(AO125,X:Y,2,0)=TRUE,1,0),0)+IFERROR(IF(VLOOKUP(AP125,X:Y,2,0)=TRUE,1,0),0)+IF(AND(AM125>=Калькулятор!$C$14,AM125<=Калькулятор!$E$14),1,0)+IF(OR(AND(AS125>=Калькулятор!$C$11,AS125<=IF(ISBLANK(Калькулятор!$E$11),100000,Калькулятор!$E$11)),Калькулятор!$C$11&Калькулятор!$E$11=""),1,0))=7,1,0) -> 0 | AR125: =SUM(AQ$2:AQ125) -> 0 | AS125: =IF(Калькулятор!$F$8<>70,ROUND(INDEX($C$6:$V$17,MATCH(AM125,$B$6:$B$17,0),MATCH(AK125&AL125,$C$2:$V$2,0))*(Калькулятор!$F$8/70)^справочно!$Y$2,0),ROUND(INDEX($C$6:$V$17,MATCH(AM125,$B$6:$B$17,0),MATCH(AK125&AL125,$C$2:$V$2,0)),0)) -> 877.00 | AT125: ЗО | AU125: =3.6*AV125/(4.19*(Калькулятор!$C$8-Калькулятор!$D$8)) -> 75.33 | AV125: =IF(Калькулятор!$F$8<>70,INDEX($C$6:$V$17,MATCH(AM125,$B$6:$B$17,0),MATCH(AK125&AL125,$C$2:$V$2,0))*(Калькулятор!$F$8/70)^справочно!$Y$2,INDEX($C$6:$V$17,MATCH(AM125,$B$6:$B$17,0),MATCH(AK125&AL125,$C$2:$V$2,0))) -> 876.70
AA126: Конвектор внутрипольный Royal Thermo ATRIUM-110/300/1600-DG-U-NA | AB126: НС-1477313 | AC126: RT-A-110/300/1600-DG-U-NA | AD126: 3 | AE126: 5 | AF126: 9 | AG126: 13 | AH126: 18 | AI126: 21 | AJ126: 23 | AK126: 110 | AL126: 300 | AM126: 1600 | AN126: DG | AO126: U | AP126: NA | AQ126: =IF((IFERROR(IF(VLOOKUP(AK126,X:Y,2,0)=TRUE,1,0),0)+IFERROR(IF(VLOOKUP(AL126,X:Y,2,0)=TRUE,1,0),0)+IFERROR(IF(VLOOKUP(AN126,X:Y,2,0)=TRUE,1,0),0)+IFERROR(IF(VLOOKUP(AO126,X:Y,2,0)=TRUE,1,0),0)+IFERROR(IF(VLOOKUP(AP126,X:Y,2,0)=TRUE,1,0),0)+IF(AND(AM126>=Калькулятор!$C$14,AM126<=Калькулятор!$E$14),1,0)+IF(OR(AND(AS126>=Калькулятор!$C$11,AS126<=IF(ISBLANK(Калькулятор!$E$11),100000,Калькулятор!$E$11)),Калькулятор!$C$11&Калькулятор!$E$11=""),1,0))=7,1,0) -> 0 | AR126: =SUM(AQ$2:AQ126) -> 0 | AS126: =IF(Калькулятор!$F$8<>70,ROUND(INDEX($C$6:$V$17,MATCH(AM126,$B$6:$B$17,0),MATCH(AK126&AL126,$C$2:$V$2,0))*(Калькулятор!$F$8/70)^справочно!$Y$2,0),ROUND(INDEX($C$6:$V$17,MATCH(AM126,$B$6:$B$17,0),MATCH(AK126&AL126,$C$2:$V$2,0)),0)) -> 1,012.00 | AT126: ЗО | AU126: =3.6*AV126/(4.19*(Калькулятор!$C$8-Калькулятор!$D$8)) -> 86.95 | AV126: =IF(Калькулятор!$F$8<>70,INDEX($C$6:$V$17,MATCH(AM126,$B$6:$B$17,0),MATCH(AK126&AL126,$C$2:$V$2,0))*(Калькулятор!$F$8/70)^справочно!$Y$2,INDEX($C$6:$V$17,MATCH(AM126,$B$6:$B$17,0),MATCH(AK126&AL126,$C$2:$V$2,0))) -> 1,012.00
AA127: Конвектор внутрипольный Royal Thermo ATRIUM-110/300/1800-DG-U-NA | AB127: НС-1477316 | AC127: RT-A-110/300/1800-DG-U-NA | AD127: 3 | AE127: 5 | AF127: 9 | AG127: 13 | AH127: 18 | AI127: 21 | AJ127: 23 | AK127: 110 | AL127: 300 | AM127: 1800 | AN127: DG | AO127: U | AP127: NA | AQ127: =IF((IFERROR(IF(VLOOKUP(AK127,X:Y,2,0)=TRUE,1,0),0)+IFERROR(IF(VLOOKUP(AL127,X:Y,2,0)=TRUE,1,0),0)+IFERROR(IF(VLOOKUP(AN127,X:Y,2,0)=TRUE,1,0),0)+IFERROR(IF(VLOOKUP(AO127,X:Y,2,0)=TRUE,1,0),0)+IFERROR(IF(VLOOKUP(AP127,X:Y,2,0)=TRUE,1,0),0)+IF(AND(AM127>=Калькулятор!$C$14,AM127<=Калькулятор!$E$14),1,0)+IF(OR(AND(AS127>=Калькулятор!$C$11,AS127<=IF(ISBLANK(Калькулятор!$E$11),100000,Калькулятор!$E$11)),Калькулятор!$C$11&Калькулятор!$E$11=""),1,0))=7,1,0) -> 0 | AR127: =SUM(AQ$2:AQ127) -> 0 | AS127: =IF(Калькулятор!$F$8<>70,ROUND(INDEX($C$6:$V$17,MATCH(AM127,$B$6:$B$17,0),MATCH(AK127&AL127,$C$2:$V$2,0))*(Калькулятор!$F$8/70)^справочно!$Y$2,0),ROUND(INDEX($C$6:$V$17,MATCH(AM127,$B$6:$B$17,0),MATCH(AK127&AL127,$C$2:$V$2,0)),0)) -> 1,147.00 | AT127: ЗО | AU127: =3.6*AV127/(4.19*(Калькулятор!$C$8-Калькулятор!$D$8)) -> 98.57 | AV127: =IF(Калькулятор!$F$8<>70,INDEX($C$6:$V$17,MATCH(AM127,$B$6:$B$17,0),MATCH(AK127&AL127,$C$2:$V$2,0))*(Калькулятор!$F$8/70)^справочно!$Y$2,INDEX($C$6:$V$17,MATCH(AM127,$B$6:$B$17,0),MATCH(AK127&AL127,$C$2:$V$2,0))) -> 1,147.30
AA128: Конвектор внутрипольный Royal Thermo ATRIUM-110/300/2000-DG-U-NA | AB128: НС-1477319 | AC128: RT-A-110/300/2000-DG-U-NA | AD128: 3 | AE128: 5 | AF128: 9 | AG128: 13 | AH128: 18 | AI128: 21 | AJ128: 23 | AK128: 110 | AL128: 300 | AM128: 2000 | AN128: DG | AO128: U | AP128: NA | AQ128: =IF((IFERROR(IF(VLOOKUP(AK128,X:Y,2,0)=TRUE,1,0),0)+IFERROR(IF(VLOOKUP(AL128,X:Y,2,0)=TRUE,1,0),0)+IFERROR(IF(VLOOKUP(AN128,X:Y,2,0)=TRUE,1,0),0)+IFERROR(IF(VLOOKUP(AO128,X:Y,2,0)=TRUE,1,0),0)+IFERROR(IF(VLOOKUP(AP128,X:Y,2,0)=TRUE,1,0),0)+IF(AND(AM128>=Калькулятор!$C$14,AM128<=Калькулятор!$E$14),1,0)+IF(OR(AND(AS128>=Калькулятор!$C$11,AS128<=IF(ISBLANK(Калькулятор!$E$11),100000,Калькулятор!$E$11)),Калькулятор!$C$11&Калькулятор!$E$11=""),1,0))=7,1,0) -> 0 | AR128: =SUM(AQ$2:AQ128) -> 0 | AS128: =IF(Калькулятор!$F$8<>70,ROUND(INDEX($C$6:$V$17,MATCH(AM128,$B$6:$B$17,0),MATCH(AK128&AL128,$C$2:$V$2,0))*(Калькулятор!$F$8/70)^справочно!$Y$2,0),ROUND(INDEX($C$6:$V$17,MATCH(AM128,$B$6:$B$17,0),MATCH(AK128&AL128,$C$2:$V$2,0)),0)) -> 1,284.00 | AT128: ЗО | AU128: =3.6*AV128/(4.19*(Калькулятор!$C$8-Калькулятор!$D$8)) -> 110.29 | AV128: =IF(Калькулятор!$F$8<>70,INDEX($C$6:$V$17,MATCH(AM128,$B$6:$B$17,0),MATCH(AK128&AL128,$C$2:$V$2,0))*(Калькулятор!$F$8/70)^справочно!$Y$2,INDEX($C$6:$V$17,MATCH(AM128,$B$6:$B$17,0),MATCH(AK128&AL128,$C$2:$V$2,0))) -> 1,283.70
AA129: Конвектор внутрипольный Royal Thermo ATRIUM-110/300/2200-DG-U-NA | AB129: НС-1477322 | AC129: RT-A-110/300/2200-DG-U-NA | AD129: 3 | AE129: 5 | AF129: 9 | AG129: 13 | AH129: 18 | AI129: 21 | AJ129: 23 | AK129: 110 | AL129: 300 | AM129: 2200 | AN129: DG | AO129: U | AP129: NA | AQ129: =IF((IFERROR(IF(VLOOKUP(AK129,X:Y,2,0)=TRUE,1,0),0)+IFERROR(IF(VLOOKUP(AL129,X:Y,2,0)=TRUE,1,0),0)+IFERROR(IF(VLOOKUP(AN129,X:Y,2,0)=TRUE,1,0),0)+IFERROR(IF(VLOOKUP(AO129,X:Y,2,0)=TRUE,1,0),0)+IFERROR(IF(VLOOKUP(AP129,X:Y,2,0)=TRUE,1,0),0)+IF(AND(AM129>=Калькулятор!$C$14,AM129<=Калькулятор!$E$14),1,0)+IF(OR(AND(AS129>=Калькулятор!$C$11,AS129<=IF(ISBLANK(Калькулятор!$E$11),100000,Калькулятор!$E$11)),Калькулятор!$C$11&Калькулятор!$E$11=""),1,0))=7,1,0) -> 0 | AR129: =SUM(AQ$2:AQ129) -> 0 | AS129: =IF(Калькулятор!$F$8<>70,ROUND(INDEX($C$6:$V$17,MATCH(AM129,$B$6:$B$17,0),MATCH(AK129&AL129,$C$2:$V$2,0))*(Калькулятор!$F$8/70)^справочно!$Y$2,0),ROUND(INDEX($C$6:$V$17,MATCH(AM129,$B$6:$B$17,0),MATCH(AK129&AL129,$C$2:$V$2,0)),0)) -> 1,419.00 | AT129: ЗО | AU129: =3.6*AV129/(4.19*(Калькулятор!$C$8-Калькулятор!$D$8)) -> 121.92 | AV129: =IF(Калькулятор!$F$8<>70,INDEX($C$6:$V$17,MATCH(AM129,$B$6:$B$17,0),MATCH(AK129&AL129,$C$2:$V$2,0))*(Калькулятор!$F$8/70)^справочно!$Y$2,INDEX($C$6:$V$17,MATCH(AM129,$B$6:$B$17,0),MATCH(AK129&AL129,$C$2:$V$2,0))) -> 1,419.00
AA130: Конвектор внутрипольный Royal Thermo ATRIUM-110/300/2400-DG-U-NA | AB130: НС-1477325 | AC130: RT-A-110/300/2400-DG-U-NA | AD130: =SEARCH("-",AC130) -> 3 | AE130: =SEARCH("-",AC130,AD130+1) -> 5 | AF130: =SEARCH("/",AC130) -> 9 | AG130: =SEARCH("/",AC130,AF130+1) -> 13 | AH130: =SEARCH("-",AC130,AE130+1) -> 18 | AI130: =SEARCH("-",AC130,AH130+1) -> 21 | AJ130: =SEARCH("-",AC130,AI130+1) -> 23 | AK130: =MID($AC130,AE130+1,AF130-AE130-1)*1 -> 110 | AL130: =MID($AC130,AF130+1,AG130-AF130-1)*1 -> 300 | AM130: =MID($AC130,AG130+1,AH130-AG130-1)*1 -> 2400 | AN130: =MID($AC130,AH130+1,AI130-AH130-1) -> DG | AO130: =MID($AC130,AI130+1,AJ130-AI130-1) -> U | AP130: =MID($AC130,AI130+3,LEN(AC130)-AI130-1) -> NA | AQ130: =IF((IFERROR(IF(VLOOKUP(AK130,X:Y,2,0)=TRUE,1,0),0)+IFERROR(IF(VLOOKUP(AL130,X:Y,2,0)=TRUE,1,0),0)+IFERROR(IF(VLOOKUP(AN130,X:Y,2,0)=TRUE,1,0),0)+IFERROR(IF(VLOOKUP(AO130,X:Y,2,0)=TRUE,1,0),0)+IFERROR(IF(VLOOKUP(AP130,X:Y,2,0)=TRUE,1,0),0)+IF(AND(AM130>=Калькулятор!$C$14,AM130<=Калькулятор!$E$14),1,0)+IF(OR(AND(AS130>=Калькулятор!$C$11,AS130<=IF(ISBLANK(Калькулятор!$E$11),100000,Калькулятор!$E$11)),Калькулятор!$C$11&Калькулятор!$E$11=""),1,0))=7,1,0) -> 0 | AR130: =SUM(AQ$2:AQ130) -> 0 | AS130: =IF(Калькулятор!$F$8<>70,ROUND(INDEX($C$6:$V$17,MATCH(AM130,$B$6:$B$17,0),MATCH(AK130&AL130,$C$2:$V$2,0))*(Калькулятор!$F$8/70)^справочно!$Y$2,0),ROUND(INDEX($C$6:$V$17,MATCH(AM130,$B$6:$B$17,0),MATCH(AK130&AL130,$C$2:$V$2,0)),0)) -> 1,554.00 | AT130: ЗО | AU130: =3.6*AV130/(4.19*(Калькулятор!$C$8-Калькулятор!$D$8)) -> 133.54 | AV130: =IF(Калькулятор!$F$8<>70,INDEX($C$6:$V$17,MATCH(AM130,$B$6:$B$17,0),MATCH(AK130&AL130,$C$2:$V$2,0))*(Калькулятор!$F$8/70)^справочно!$Y$2,INDEX($C$6:$V$17,MATCH(AM130,$B$6:$B$17,0),MATCH(AK130&AL130,$C$2:$V$2,0))) -> 1,554.30
AA131: Конвектор внутрипольный Royal Thermo ATRIUM-110/300/2600-DG-U-NA | AB131: НС-1477328 | AC131: RT-A-110/300/2600-DG-U-NA | AD131: 3 | AE131: 5 | AF131: 9 | AG131: 13 | AH131: 18 | AI131: 21 | AJ131: 23 | AK131: 110 | AL131: 300 | AM131: 2600 | AN131: DG | AO131: U | AP131: NA | AQ131: =IF((IFERROR(IF(VLOOKUP(AK131,X:Y,2,0)=TRUE,1,0),0)+IFERROR(IF(VLOOKUP(AL131,X:Y,2,0)=TRUE,1,0),0)+IFERROR(IF(VLOOKUP(AN131,X:Y,2,0)=TRUE,1,0),0)+IFERROR(IF(VLOOKUP(AO131,X:Y,2,0)=TRUE,1,0),0)+IFERROR(IF(VLOOKUP(AP131,X:Y,2,0)=TRUE,1,0),0)+IF(AND(AM131>=Калькулятор!$C$14,AM131<=Калькулятор!$E$14),1,0)+IF(OR(AND(AS131>=Калькулятор!$C$11,AS131<=IF(ISBLANK(Калькулятор!$E$11),100000,Калькулятор!$E$11)),Калькулятор!$C$11&Калькулятор!$E$11=""),1,0))=7,1,0) -> 0 | AR131: =SUM(AQ$2:AQ131) -> 0 | AS131: =IF(Калькулятор!$F$8<>70,ROUND(INDEX($C$6:$V$17,MATCH(AM131,$B$6:$B$17,0),MATCH(AK131&AL131,$C$2:$V$2,0))*(Калькулятор!$F$8/70)^справочно!$Y$2,0),ROUND(INDEX($C$6:$V$17,MATCH(AM131,$B$6:$B$17,0),MATCH(AK131&AL131,$C$2:$V$2,0)),0)) -> 1,690.00 | AT131: ЗО | AU131: =3.6*AV131/(4.19*(Калькулятор!$C$8-Калькулятор!$D$8)) -> 145.17 | AV131: =IF(Калькулятор!$F$8<>70,INDEX($C$6:$V$17,MATCH(AM131,$B$6:$B$17,0),MATCH(AK131&AL131,$C$2:$V$2,0))*(Калькулятор!$F$8/70)^справочно!$Y$2,INDEX($C$6:$V$17,MATCH(AM131,$B$6:$B$17,0),MATCH(AK131&AL131,$C$2:$V$2,0))) -> 1,689.60
AA132: Конвектор внутрипольный Royal Thermo ATRIUM-110/300/2800-DG-U-NA | AB132: НС-1477331 | AC132: RT-A-110/300/2800-DG-U-NA | AD132: 3 | AE132: 5 | AF132: 9 | AG132: 13 | AH132: 18 | AI132: 21 | AJ132: 23 | AK132: 110 | AL132: 300 | AM132: 2800 | AN132: DG | AO132: U | AP132: NA | AQ132: =IF((IFERROR(IF(VLOOKUP(AK132,X:Y,2,0)=TRUE,1,0),0)+IFERROR(IF(VLOOKUP(AL132,X:Y,2,0)=TRUE,1,0),0)+IFERROR(IF(VLOOKUP(AN132,X:Y,2,0)=TRUE,1,0),0)+IFERROR(IF(VLOOKUP(AO132,X:Y,2,0)=TRUE,1,0),0)+IFERROR(IF(VLOOKUP(AP132,X:Y,2,0)=TRUE,1,0),0)+IF(AND(AM132>=Калькулятор!$C$14,AM132<=Калькулятор!$E$14),1,0)+IF(OR(AND(AS132>=Калькулятор!$C$11,AS132<=IF(ISBLANK(Калькулятор!$E$11),100000,Калькулятор!$E$11)),Калькулятор!$C$11&Калькулятор!$E$11=""),1,0))=7,1,0) -> 0 | AR132: =SUM(AQ$2:AQ132) -> 0 | AS132: =IF(Калькулятор!$F$8<>70,ROUND(INDEX($C$6:$V$17,MATCH(AM132,$B$6:$B$17,0),MATCH(AK132&AL132,$C$2:$V$2,0))*(Калькулятор!$F$8/70)^справочно!$Y$2,0),ROUND(INDEX($C$6:$V$17,MATCH(AM132,$B$6:$B$17,0),MATCH(AK132&AL132,$C$2:$V$2,0)),0)) -> 1,825.00 | AT132: ЗО | AU132: =3.6*AV132/(4.19*(Калькулятор!$C$8-Калькулятор!$D$8)) -> 156.79 | AV132: =IF(Калькулятор!$F$8<>70,INDEX($C$6:$V$17,MATCH(AM132,$B$6:$B$17,0),MATCH(AK132&AL132,$C$2:$V$2,0))*(Калькулятор!$F$8/70)^справочно!$Y$2,INDEX($C$6:$V$17,MATCH(AM132,$B$6:$B$17,0),MATCH(AK132&AL132,$C$2:$V$2,0))) -> 1,824.90
AA133: Конвектор внутрипольный Royal Thermo ATRIUM-110/300/3000-DG-U-NA | AB133: НС-1477334 | AC133: RT-A-110/300/3000-DG-U-NA | AD133: 3 | AE133: 5 | AF133: 9 | AG133: 13 | AH133: 18 | AI133: 21 | AJ133: 23 | AK133: 110 | AL133: 300 | AM133: 3000 | AN133: DG | AO133: U | AP133: NA | AQ133: =IF((IFERROR(IF(VLOOKUP(AK133,X:Y,2,0)=TRUE,1,0),0)+IFERROR(IF(VLOOKUP(AL133,X:Y,2,0)=TRUE,1,0),0)+IFERROR(IF(VLOOKUP(AN133,X:Y,2,0)=TRUE,1,0),0)+IFERROR(IF(VLOOKUP(AO133,X:Y,2,0)=TRUE,1,0),0)+IFERROR(IF(VLOOKUP(AP133,X:Y,2,0)=TRUE,1,0),0)+IF(AND(AM133>=Калькулятор!$C$14,AM133<=Калькулятор!$E$14),1,0)+IF(OR(AND(AS133>=Калькулятор!$C$11,AS133<=IF(ISBLANK(Калькулятор!$E$11),100000,Калькулятор!$E$11)),Калькулятор!$C$11&Калькулятор!$E$11=""),1,0))=7,1,0) -> 0 | AR133: =SUM(AQ$2:AQ133) -> 0 | AS133: =IF(Калькулятор!$F$8<>70,ROUND(INDEX($C$6:$V$17,MATCH(AM133,$B$6:$B$17,0),MATCH(AK133&AL133,$C$2:$V$2,0))*(Калькулятор!$F$8/70)^справочно!$Y$2,0),ROUND(INDEX($C$6:$V$17,MATCH(AM133,$B$6:$B$17,0),MATCH(AK133&AL133,$C$2:$V$2,0)),0)) -> 1,961.00 | AT133: ЗО | AU133: =3.6*AV133/(4.19*(Калькулятор!$C$8-Калькулятор!$D$8)) -> 168.51 | AV133: =IF(Калькулятор!$F$8<>70,INDEX($C$6:$V$17,MATCH(AM133,$B$6:$B$17,0),MATCH(AK133&AL133,$C$2:$V$2,0))*(Калькулятор!$F$8/70)^справочно!$Y$2,INDEX($C$6:$V$17,MATCH(AM133,$B$6:$B$17,0),MATCH(AK133&AL133,$C$2:$V$2,0))) -> 1,961.30
AA134: Конвектор внутрипольный Royal Thermo ATRIUM-110/400/800-DG-U-NA | AB134: НС-1477371 | AC134: RT-A-110/400/800-DG-U-NA | AD134: 3 | AE134: 5 | AF134: 9 | AG134: 13 | AH134: 17 | AI134: 20 | AJ134: 22 | AK134: 110 | AL134: 400 | AM134: 800 | AN134: DG | AO134: U | AP134: NA | AQ134: =IF((IFERROR(IF(VLOOKUP(AK134,X:Y,2,0)=TRUE,1,0),0)+IFERROR(IF(VLOOKUP(AL134,X:Y,2,0)=TRUE,1,0),0)+IFERROR(IF(VLOOKUP(AN134,X:Y,2,0)=TRUE,1,0),0)+IFERROR(IF(VLOOKUP(AO134,X:Y,2,0)=TRUE,1,0),0)+IFERROR(IF(VLOOKUP(AP134,X:Y,2,0)=TRUE,1,0),0)+IF(AND(AM134>=Калькулятор!$C$14,AM134<=Калькулятор!$E$14),1,0)+IF(OR(AND(AS134>=Калькулятор!$C$11,AS134<=IF(ISBLANK(Калькулятор!$E$11),100000,Калькулятор!$E$11)),Калькулятор!$C$11&Калькулятор!$E$11=""),1,0))=7,1,0) -> 0 | AR134: =SUM(AQ$2:AQ134) -> 0 | AS134: =IF(Калькулятор!$F$8<>70,ROUND(INDEX($C$6:$V$17,MATCH(AM134,$B$6:$B$17,0),MATCH(AK134&AL134,$C$2:$V$2,0))*(Калькулятор!$F$8/70)^справочно!$Y$2,0),ROUND(INDEX($C$6:$V$17,MATCH(AM134,$B$6:$B$17,0),MATCH(AK134&AL134,$C$2:$V$2,0)),0)) -> 659.00 | AT134: ЗО | AU134: =3.6*AV134/(4.19*(Калькулятор!$C$8-Калькулятор!$D$8)) -> 56.61 | AV134: =IF(Калькулятор!$F$8<>70,INDEX($C$6:$V$17,MATCH(AM134,$B$6:$B$17,0),MATCH(AK134&AL134,$C$2:$V$2,0))*(Калькулятор!$F$8/70)^справочно!$Y$2,INDEX($C$6:$V$17,MATCH(AM134,$B$6:$B$17,0),MATCH(AK134&AL134,$C$2:$V$2,0))) -> 658.90
AA135: Конвектор внутрипольный Royal Thermo ATRIUM-110/400/1000-DG-U-NA | AB135: НС-1477343 | AC135: RT-A-110/400/1000-DG-U-NA | AD135: 3 | AE135: 5 | AF135: 9 | AG135: 13 | AH135: 18 | AI135: 21 | AJ135: 23 | AK135: 110 | AL135: 400 | AM135: 1000 | AN135: DG | AO135: U | AP135: NA | AQ135: =IF((IFERROR(IF(VLOOKUP(AK135,X:Y,2,0)=TRUE,1,0),0)+IFERROR(IF(VLOOKUP(AL135,X:Y,2,0)=TRUE,1,0),0)+IFERROR(IF(VLOOKUP(AN135,X:Y,2,0)=TRUE,1,0),0)+IFERROR(IF(VLOOKUP(AO135,X:Y,2,0)=TRUE,1,0),0)+IFERROR(IF(VLOOKUP(AP135,X:Y,2,0)=TRUE,1,0),0)+IF(AND(AM135>=Калькулятор!$C$14,AM135<=Калькулятор!$E$14),1,0)+IF(OR(AND(AS135>=Калькулятор!$C$11,AS135<=IF(ISBLANK(Калькулятор!$E$11),100000,Калькулятор!$E$11)),Калькулятор!$C$11&Калькулятор!$E$11=""),1,0))=7,1,0) -> 0 | AR135: =SUM(AQ$2:AQ135) -> 0 | AS135: =IF(Калькулятор!$F$8<>70,ROUND(INDEX($C$6:$V$17,MATCH(AM135,$B$6:$B$17,0),MATCH(AK135&AL135,$C$2:$V$2,0))*(Калькулятор!$F$8/70)^справочно!$Y$2,0),ROUND(INDEX($C$6:$V$17,MATCH(AM135,$B$6:$B$17,0),MATCH(AK135&AL135,$C$2:$V$2,0)),0)) -> 857.00 | AT135: ЗО | AU135: =3.6*AV135/(4.19*(Калькулятор!$C$8-Калькулятор!$D$8)) -> 73.62 | AV135: =IF(Калькулятор!$F$8<>70,INDEX($C$6:$V$17,MATCH(AM135,$B$6:$B$17,0),MATCH(AK135&AL135,$C$2:$V$2,0))*(Калькулятор!$F$8/70)^справочно!$Y$2,INDEX($C$6:$V$17,MATCH(AM135,$B$6:$B$17,0),MATCH(AK135&AL135,$C$2:$V$2,0))) -> 856.90
AA136: Конвектор внутрипольный Royal Thermo ATRIUM-110/400/1200-DG-U-NA | AB136: НС-1477346 | AC136: RT-A-110/400/1200-DG-U-NA | AD136: 3 | AE136: 5 | AF136: 9 | AG136: 13 | AH136: 18 | AI136: 21 | AJ136: 23 | AK136: 110 | AL136: 400 | AM136: 1200 | AN136: DG | AO136: U | AP136: NA | AQ136: =IF((IFERROR(IF(VLOOKUP(AK136,X:Y,2,0)=TRUE,1,0),0)+IFERROR(IF(VLOOKUP(AL136,X:Y,2,0)=TRUE,1,0),0)+IFERROR(IF(VLOOKUP(AN136,X:Y,2,0)=TRUE,1,0),0)+IFERROR(IF(VLOOKUP(AO136,X:Y,2,0)=TRUE,1,0),0)+IFERROR(IF(VLOOKUP(AP136,X:Y,2,0)=TRUE,1,0),0)+IF(AND(AM136>=Калькулятор!$C$14,AM136<=Калькулятор!$E$14),1,0)+IF(OR(AND(AS136>=Калькулятор!$C$11,AS136<=IF(ISBLANK(Калькулятор!$E$11),100000,Калькулятор!$E$11)),Калькулятор!$C$11&Калькулятор!$E$11=""),1,0))=7,1,0) -> 0 | AR136: =SUM(AQ$2:AQ136) -> 0 | AS136: =IF(Калькулятор!$F$8<>70,ROUND(INDEX($C$6:$V$17,MATCH(AM136,$B$6:$B$17,0),MATCH(AK136&AL136,$C$2:$V$2,0))*(Калькулятор!$F$8/70)^справочно!$Y$2,0),ROUND(INDEX($C$6:$V$17,MATCH(AM136,$B$6:$B$17,0),MATCH(AK136&AL136,$C$2:$V$2,0)),0)) -> 1,054.00 | AT136: ЗО | AU136: =3.6*AV136/(4.19*(Калькулятор!$C$8-Калькулятор!$D$8)) -> 90.54 | AV136: =IF(Калькулятор!$F$8<>70,INDEX($C$6:$V$17,MATCH(AM136,$B$6:$B$17,0),MATCH(AK136&AL136,$C$2:$V$2,0))*(Калькулятор!$F$8/70)^справочно!$Y$2,INDEX($C$6:$V$17,MATCH(AM136,$B$6:$B$17,0),MATCH(AK136&AL136,$C$2:$V$2,0))) -> 1,053.80
AA137: Конвектор внутрипольный Royal Thermo ATRIUM-110/400/1400-DG-U-NA | AB137: НС-1477349 | AC137: RT-A-110/400/1400-DG-U-NA | AD137: 3 | AE137: 5 | AF137: 9 | AG137: 13 | AH137: 18 | AI137: 21 | AJ137: 23 | AK137: 110 | AL137: 400 | AM137: 1400 | AN137: DG | AO137: U | AP137: NA | AQ137: =IF((IFERROR(IF(VLOOKUP(AK137,X:Y,2,0)=TRUE,1,0),0)+IFERROR(IF(VLOOKUP(AL137,X:Y,2,0)=TRUE,1,0),0)+IFERROR(IF(VLOOKUP(AN137,X:Y,2,0)=TRUE,1,0),0)+IFERROR(IF(VLOOKUP(AO137,X:Y,2,0)=TRUE,1,0),0)+IFERROR(IF(VLOOKUP(AP137,X:Y,2,0)=TRUE,1,0),0)+IF(AND(AM137>=Калькулятор!$C$14,AM137<=Калькулятор!$E$14),1,0)+IF(OR(AND(AS137>=Калькулятор!$C$11,AS137<=IF(ISBLANK(Калькулятор!$E$11),100000,Калькулятор!$E$11)),Калькулятор!$C$11&Калькулятор!$E$11=""),1,0))=7,1,0) -> 0 | AR137: =SUM(AQ$2:AQ137) -> 0 | AS137: =IF(Калькулятор!$F$8<>70,ROUND(INDEX($C$6:$V$17,MATCH(AM137,$B$6:$B$17,0),MATCH(AK137&AL137,$C$2:$V$2,0))*(Калькулятор!$F$8/70)^справочно!$Y$2,0),ROUND(INDEX($C$6:$V$17,MATCH(AM137,$B$6:$B$17,0),MATCH(AK137&AL137,$C$2:$V$2,0)),0)) -> 1,251.00 | AT137: ЗО | AU137: =3.6*AV137/(4.19*(Калькулятор!$C$8-Калькулятор!$D$8)) -> 107.46 | AV137: =IF(Калькулятор!$F$8<>70,INDEX($C$6:$V$17,MATCH(AM137,$B$6:$B$17,0),MATCH(AK137&AL137,$C$2:$V$2,0))*(Калькулятор!$F$8/70)^справочно!$Y$2,INDEX($C$6:$V$17,MATCH(AM137,$B$6:$B$17,0),MATCH(AK137&AL137,$C$2:$V$2,0))) -> 1,250.70
AA138: Конвектор внутрипольный Royal Thermo ATRIUM-110/400/1600-DG-U-NA | AB138: НС-1477352 | AC138: RT-A-110/400/1600-DG-U-NA | AD138: 3 | AE138: 5 | AF138: 9 | AG138: 13 | AH138: 18 | AI138: 21 | AJ138: 23 | AK138: 110 | AL138: 400 | AM138: 1600 | AN138: DG | AO138: U | AP138: NA | AQ138: =IF((IFERROR(IF(VLOOKUP(AK138,X:Y,2,0)=TRUE,1,0),0)+IFERROR(IF(VLOOKUP(AL138,X:Y,2,0)=TRUE,1,0),0)+IFERROR(IF(VLOOKUP(AN138,X:Y,2,0)=TRUE,1,0),0)+IFERROR(IF(VLOOKUP(AO138,X:Y,2,0)=TRUE,1,0),0)+IFERROR(IF(VLOOKUP(AP138,X:Y,2,0)=TRUE,1,0),0)+IF(AND(AM138>=Калькулятор!$C$14,AM138<=Калькулятор!$E$14),1,0)+IF(OR(AND(AS138>=Калькулятор!$C$11,AS138<=IF(ISBLANK(Калькулятор!$E$11),100000,Калькулятор!$E$11)),Калькулятор!$C$11&Калькулятор!$E$11=""),1,0))=7,1,0) -> 0 | AR138: =SUM(AQ$2:AQ138) -> 0 | AS138: =IF(Калькулятор!$F$8<>70,ROUND(INDEX($C$6:$V$17,MATCH(AM138,$B$6:$B$17,0),MATCH(AK138&AL138,$C$2:$V$2,0))*(Калькулятор!$F$8/70)^справочно!$Y$2,0),ROUND(INDEX($C$6:$V$17,MATCH(AM138,$B$6:$B$17,0),MATCH(AK138&AL138,$C$2:$V$2,0)),0)) -> 1,449.00 | AT138: ЗО | AU138: =3.6*AV138/(4.19*(Калькулятор!$C$8-Калькулятор!$D$8)) -> 124.47 | AV138: =IF(Калькулятор!$F$8<>70,INDEX($C$6:$V$17,MATCH(AM138,$B$6:$B$17,0),MATCH(AK138&AL138,$C$2:$V$2,0))*(Калькулятор!$F$8/70)^справочно!$Y$2,INDEX($C$6:$V$17,MATCH(AM138,$B$6:$B$17,0),MATCH(AK138&AL138,$C$2:$V$2,0))) -> 1,448.70
AA139: Конвектор внутрипольный Royal Thermo ATRIUM-110/400/1800-DG-U-NA | AB139: НС-1477355 | AC139: RT-A-110/400/1800-DG-U-NA | AD139: 3 | AE139: 5 | AF139: 9 | AG139: 13 | AH139: 18 | AI139: 21 | AJ139: 23 | AK139: 110 | AL139: 400 | AM139: 1800 | AN139: DG | AO139: U | AP139: NA | AQ139: =IF((IFERROR(IF(VLOOKUP(AK139,X:Y,2,0)=TRUE,1,0),0)+IFERROR(IF(VLOOKUP(AL139,X:Y,2,0)=TRUE,1,0),0)+IFERROR(IF(VLOOKUP(AN139,X:Y,2,0)=TRUE,1,0),0)+IFERROR(IF(VLOOKUP(AO139,X:Y,2,0)=TRUE,1,0),0)+IFERROR(IF(VLOOKUP(AP139,X:Y,2,0)=TRUE,1,0),0)+IF(AND(AM139>=Калькулятор!$C$14,AM139<=Калькулятор!$E$14),1,0)+IF(OR(AND(AS139>=Калькулятор!$C$11,AS139<=IF(ISBLANK(Калькулятор!$E$11),100000,Калькулятор!$E$11)),Калькулятор!$C$11&Калькулятор!$E$11=""),1,0))=7,1,0) -> 0 | AR139: =SUM(AQ$2:AQ139) -> 0 | AS139: =IF(Калькулятор!$F$8<>70,ROUND(INDEX($C$6:$V$17,MATCH(AM139,$B$6:$B$17,0),MATCH(AK139&AL139,$C$2:$V$2,0))*(Калькулятор!$F$8/70)^справочно!$Y$2,0),ROUND(INDEX($C$6:$V$17,MATCH(AM139,$B$6:$B$17,0),MATCH(AK139&AL139,$C$2:$V$2,0)),0)) -> 1,647.00 | AT139: ЗО | AU139: =3.6*AV139/(4.19*(Калькулятор!$C$8-Калькулятор!$D$8)) -> 141.48 | AV139: =IF(Калькулятор!$F$8<>70,INDEX($C$6:$V$17,MATCH(AM139,$B$6:$B$17,0),MATCH(AK139&AL139,$C$2:$V$2,0))*(Калькулятор!$F$8/70)^справочно!$Y$2,INDEX($C$6:$V$17,MATCH(AM139,$B$6:$B$17,0),MATCH(AK139&AL139,$C$2:$V$2,0))) -> 1,646.70
AA140: Конвектор внутрипольный Royal Thermo ATRIUM-110/400/2000-DG-U-NA | AB140: НС-1477375 | AC140: RT-A-110/400/2000-DG-U-NA | AD140: 3 | AE140: 5 | AF140: 9 | AG140: 13 | AH140: 18 | AI140: 21 | AJ140: 23 | AK140: 110 | AL140: 400 | AM140: 2000 | AN140: DG | AO140: U | AP140: NA | AQ140: =IF((IFERROR(IF(VLOOKUP(AK140,X:Y,2,0)=TRUE,1,0),0)+IFERROR(IF(VLOOKUP(AL140,X:Y,2,0)=TRUE,1,0),0)+IFERROR(IF(VLOOKUP(AN140,X:Y,2,0)=TRUE,1,0),0)+IFERROR(IF(VLOOKUP(AO140,X:Y,2,0)=TRUE,1,0),0)+IFERROR(IF(VLOOKUP(AP140,X:Y,2,0)=TRUE,1,0),0)+IF(AND(AM140>=Калькулятор!$C$14,AM140<=Калькулятор!$E$14),1,0)+IF(OR(AND(AS140>=Калькулятор!$C$11,AS140<=IF(ISBLANK(Калькулятор!$E$11),100000,Калькулятор!$E$11)),Калькулятор!$C$11&Калькулятор!$E$11=""),1,0))=7,1,0) -> 0 | AR140: =SUM(AQ$2:AQ140) -> 0 | AS140: =IF(Калькулятор!$F$8<>70,ROUND(INDEX($C$6:$V$17,MATCH(AM140,$B$6:$B$17,0),MATCH(AK140&AL140,$C$2:$V$2,0))*(Калькулятор!$F$8/70)^справочно!$Y$2,0),ROUND(INDEX($C$6:$V$17,MATCH(AM140,$B$6:$B$17,0),MATCH(AK140&AL140,$C$2:$V$2,0)),0)) -> 1,845.00 | AT140: ЗО | AU140: =3.6*AV140/(4.19*(Калькулятор!$C$8-Калькулятор!$D$8)) -> 158.49 | AV140: =IF(Калькулятор!$F$8<>70,INDEX($C$6:$V$17,MATCH(AM140,$B$6:$B$17,0),MATCH(AK140&AL140,$C$2:$V$2,0))*(Калькулятор!$F$8/70)^справочно!$Y$2,INDEX($C$6:$V$17,MATCH(AM140,$B$6:$B$17,0),MATCH(AK140&AL140,$C$2:$V$2,0))) -> 1,844.70
AA141: Конвектор внутрипольный Royal Thermo ATRIUM-110/400/2200-DG-U-NA | AB141: НС-1477376 | AC141: RT-A-110/400/2200-DG-U-NA | AD141: 3 | AE141: 5 | AF141: 9 | AG141: 13 | AH141: 18 | AI141: 21 | AJ141: 23 | AK141: 110 | AL141: 400 | AM141: 2200 | AN141: DG | AO141: U | AP141: NA | AQ141: =IF((IFERROR(IF(VLOOKUP(AK141,X:Y,2,0)=TRUE,1,0),0)+IFERROR(IF(VLOOKUP(AL141,X:Y,2,0)=TRUE,1,0),0)+IFERROR(IF(VLOOKUP(AN141,X:Y,2,0)=TRUE,1,0),0)+IFERROR(IF(VLOOKUP(AO141,X:Y,2,0)=TRUE,1,0),0)+IFERROR(IF(VLOOKUP(AP141,X:Y,2,0)=TRUE,1,0),0)+IF(AND(AM141>=Калькулятор!$C$14,AM141<=Калькулятор!$E$14),1,0)+IF(OR(AND(AS141>=Калькулятор!$C$11,AS141<=IF(ISBLANK(Калькулятор!$E$11),100000,Калькулятор!$E$11)),Калькулятор!$C$11&Калькулятор!$E$11=""),1,0))=7,1,0) -> 0 | AR141: =SUM(AQ$2:AQ141) -> 0 | AS141: =IF(Калькулятор!$F$8<>70,ROUND(INDEX($C$6:$V$17,MATCH(AM141,$B$6:$B$17,0),MATCH(AK141&AL141,$C$2:$V$2,0))*(Калькулятор!$F$8/70)^справочно!$Y$2,0),ROUND(INDEX($C$6:$V$17,MATCH(AM141,$B$6:$B$17,0),MATCH(AK141&AL141,$C$2:$V$2,0)),0)) -> 2,042.00 | AT141: ЗО | AU141: =3.6*AV141/(4.19*(Калькулятор!$C$8-Калькулятор!$D$8)) -> 175.41 | AV141: =IF(Калькулятор!$F$8<>70,INDEX($C$6:$V$17,MATCH(AM141,$B$6:$B$17,0),MATCH(AK141&AL141,$C$2:$V$2,0))*(Калькулятор!$F$8/70)^справочно!$Y$2,INDEX($C$6:$V$17,MATCH(AM141,$B$6:$B$17,0),MATCH(AK141&AL141,$C$2:$V$2,0))) -> 2,041.60
AA142: Конвектор внутрипольный Royal Thermo ATRIUM-110/400/2400-DG-U-NA | AB142: НС-1477377 | AC142: RT-A-110/400/2400-DG-U-NA | AD142: 3 | AE142: 5 | AF142: 9 | AG142: 13 | AH142: 18 | AI142: 21 | AJ142: 23 | AK142: 110 | AL142: 400 | AM142: 2400 | AN142: DG | AO142: U | AP142: NA | AQ142: =IF((IFERROR(IF(VLOOKUP(AK142,X:Y,2,0)=TRUE,1,0),0)+IFERROR(IF(VLOOKUP(AL142,X:Y,2,0)=TRUE,1,0),0)+IFERROR(IF(VLOOKUP(AN142,X:Y,2,0)=TRUE,1,0),0)+IFERROR(IF(VLOOKUP(AO142,X:Y,2,0)=TRUE,1,0),0)+IFERROR(IF(VLOOKUP(AP142,X:Y,2,0)=TRUE,1,0),0)+IF(AND(AM142>=Калькулятор!$C$14,AM142<=Калькулятор!$E$14),1,0)+IF(OR(AND(AS142>=Калькулятор!$C$11,AS142<=IF(ISBLANK(Калькулятор!$E$11),100000,Калькулятор!$E$11)),Калькулятор!$C$11&Калькулятор!$E$11=""),1,0))=7,1,0) -> 0 | AR142: =SUM(AQ$2:AQ142) -> 0 | AS142: =IF(Калькулятор!$F$8<>70,ROUND(INDEX($C$6:$V$17,MATCH(AM142,$B$6:$B$17,0),MATCH(AK142&AL142,$C$2:$V$2,0))*(Калькулятор!$F$8/70)^справочно!$Y$2,0),ROUND(INDEX($C$6:$V$17,MATCH(AM142,$B$6:$B$17,0),MATCH(AK142&AL142,$C$2:$V$2,0)),0)) -> 2,239.00 | AT142: ЗО | AU142: =3.6*AV142/(4.19*(Калькулятор!$C$8-Калькулятор!$D$8)) -> 192.33 | AV142: =IF(Калькулятор!$F$8<>70,INDEX($C$6:$V$17,MATCH(AM142,$B$6:$B$17,0),MATCH(AK142&AL142,$C$2:$V$2,0))*(Калькулятор!$F$8/70)^справочно!$Y$2,INDEX($C$6:$V$17,MATCH(AM142,$B$6:$B$17,0),MATCH(AK142&AL142,$C$2:$V$2,0))) -> 2,238.50
AA143: Конвектор внутрипольный Royal Thermo ATRIUM-110/400/2600-DG-U-NA | AB143: НС-1477378 | AC143: RT-A-110/400/2600-DG-U-NA | AD143: 3 | AE143: 5 | AF143: 9 | AG143: 13 | AH143: 18 | AI143: 21 | AJ143: 23 | AK143: 110 | AL143: 400 | AM143: 2600 | AN143: DG | AO143: U | AP143: NA | AQ143: =IF((IFERROR(IF(VLOOKUP(AK143,X:Y,2,0)=TRUE,1,0),0)+IFERROR(IF(VLOOKUP(AL143,X:Y,2,0)=TRUE,1,0),0)+IFERROR(IF(VLOOKUP(AN143,X:Y,2,0)=TRUE,1,0),0)+IFERROR(IF(VLOOKUP(AO143,X:Y,2,0)=TRUE,1,0),0)+IFERROR(IF(VLOOKUP(AP143,X:Y,2,0)=TRUE,1,0),0)+IF(AND(AM143>=Калькулятор!$C$14,AM143<=Калькулятор!$E$14),1,0)+IF(OR(AND(AS143>=Калькулятор!$C$11,AS143<=IF(ISBLANK(Калькулятор!$E$11),100000,Калькулятор!$E$11)),Калькулятор!$C$11&Калькулятор!$E$11=""),1,0))=7,1,0) -> 0 | AR143: =SUM(AQ$2:AQ143) -> 0 | AS143: =IF(Калькулятор!$F$8<>70,ROUND(INDEX($C$6:$V$17,MATCH(AM143,$B$6:$B$17,0),MATCH(AK143&AL143,$C$2:$V$2,0))*(Калькулятор!$F$8/70)^справочно!$Y$2,0),ROUND(INDEX($C$6:$V$17,MATCH(AM143,$B$6:$B$17,0),MATCH(AK143&AL143,$C$2:$V$2,0)),0)) -> 2,437.00 | AT143: ЗО | AU143: =3.6*AV143/(4.19*(Калькулятор!$C$8-Калькулятор!$D$8)) -> 209.34 | AV143: =IF(Калькулятор!$F$8<>70,INDEX($C$6:$V$17,MATCH(AM143,$B$6:$B$17,0),MATCH(AK143&AL143,$C$2:$V$2,0))*(Калькулятор!$F$8/70)^справочно!$Y$2,INDEX($C$6:$V$17,MATCH(AM143,$B$6:$B$17,0),MATCH(AK143&AL143,$C$2:$V$2,0))) -> 2,436.50
AA144: Конвектор внутрипольный Royal Thermo ATRIUM-110/400/2800-DG-U-NA | AB144: НС-1477379 | AC144: RT-A-110/400/2800-DG-U-NA | AD144: 3 | AE144: 5 | AF144: 9 | AG144: 13 | AH144: 18 | AI144: 21 | AJ144: 23 | AK144: 110 | AL144: 400 | AM144: 2800 | AN144: DG | AO144: U | AP144: NA | AQ144: =IF((IFERROR(IF(VLOOKUP(AK144,X:Y,2,0)=TRUE,1,0),0)+IFERROR(IF(VLOOKUP(AL144,X:Y,2,0)=TRUE,1,0),0)+IFERROR(IF(VLOOKUP(AN144,X:Y,2,0)=TRUE,1,0),0)+IFERROR(IF(VLOOKUP(AO144,X:Y,2,0)=TRUE,1,0),0)+IFERROR(IF(VLOOKUP(AP144,X:Y,2,0)=TRUE,1,0),0)+IF(AND(AM144>=Калькулятор!$C$14,AM144<=Калькулятор!$E$14),1,0)+IF(OR(AND(AS144>=Калькулятор!$C$11,AS144<=IF(ISBLANK(Калькулятор!$E$11),100000,Калькулятор!$E$11)),Калькулятор!$C$11&Калькулятор!$E$11=""),1,0))=7,1,0) -> 0 | AR144: =SUM(AQ$2:AQ144) -> 0 | AS144: =IF(Калькулятор!$F$8<>70,ROUND(INDEX($C$6:$V$17,MATCH(AM144,$B$6:$B$17,0),MATCH(AK144&AL144,$C$2:$V$2,0))*(Калькулятор!$F$8/70)^справочно!$Y$2,0),ROUND(INDEX($C$6:$V$17,MATCH(AM144,$B$6:$B$17,0),MATCH(AK144&AL144,$C$2:$V$2,0)),0)) -> 2,635.00 | AT144: ЗО | AU144: =3.6*AV144/(4.19*(Калькулятор!$C$8-Калькулятор!$D$8)) -> 226.35 | AV144: =IF(Калькулятор!$F$8<>70,INDEX($C$6:$V$17,MATCH(AM144,$B$6:$B$17,0),MATCH(AK144&AL144,$C$2:$V$2,0))*(Калькулятор!$F$8/70)^справочно!$Y$2,INDEX($C$6:$V$17,MATCH(AM144,$B$6:$B$17,0),MATCH(AK144&AL144,$C$2:$V$2,0))) -> 2,634.50
AA145: Конвектор внутрипольный Royal Thermo ATRIUM-110/400/3000-DG-U-NA | AB145: НС-1477368 | AC145: RT-A-110/400/3000-DG-U-NA | AD145: 3 | AE145: 5 | AF145: 9 | AG145: 13 | AH145: 18 | AI145: 21 | AJ145: 23 | AK145: 110 | AL145: 400 | AM145: 3000 | AN145: DG | AO145: U | AP145: NA | AQ145: =IF((IFERROR(IF(VLOOKUP(AK145,X:Y,2,0)=TRUE,1,0),0)+IFERROR(IF(VLOOKUP(AL145,X:Y,2,0)=TRUE,1,0),0)+IFERROR(IF(VLOOKUP(AN145,X:Y,2,0)=TRUE,1,0),0)+IFERROR(IF(VLOOKUP(AO145,X:Y,2,0)=TRUE,1,0),0)+IFERROR(IF(VLOOKUP(AP145,X:Y,2,0)=TRUE,1,0),0)+IF(AND(AM145>=Калькулятор!$C$14,AM145<=Калькулятор!$E$14),1,0)+IF(OR(AND(AS145>=Калькулятор!$C$11,AS145<=IF(ISBLANK(Калькулятор!$E$11),100000,Калькулятор!$E$11)),Калькулятор!$C$11&Калькулятор!$E$11=""),1,0))=7,1,0) -> 0 | AR145: =SUM(AQ$2:AQ145) -> 0 | AS145: =IF(Калькулятор!$F$8<>70,ROUND(INDEX($C$6:$V$17,MATCH(AM145,$B$6:$B$17,0),MATCH(AK145&AL145,$C$2:$V$2,0))*(Калькулятор!$F$8/70)^справочно!$Y$2,0),ROUND(INDEX($C$6:$V$17,MATCH(AM145,$B$6:$B$17,0),MATCH(AK145&AL145,$C$2:$V$2,0)),0)) -> 2,831.00 | AT145: ЗО | AU145: =3.6*AV145/(4.19*(Калькулятор!$C$8-Калькулятор!$D$8)) -> 243.27 | AV145: =IF(Калькулятор!$F$8<>70,INDEX($C$6:$V$17,MATCH(AM145,$B$6:$B$17,0),MATCH(AK145&AL145,$C$2:$V$2,0))*(Калькулятор!$F$8/70)^справочно!$Y$2,INDEX($C$6:$V$17,MATCH(AM145,$B$6:$B$17,0),MATCH(AK145&AL145,$C$2:$V$2,0))) -> 2,831.40
AA146: Конвектор внутрипольный Royal Thermo ATRIUM-150/200/800-DG-U-NA | AB146: НС-1477415 | AC146: RT-A-150/200/800-DG-U-NA | AD146: 3 | AE146: 5 | AF146: 9 | AG146: 13 | AH146: 17 | AI146: 20 | AJ146: 22 | AK146: 150 | AL146: 200 | AM146: 800 | AN146: DG | AO146: U | AP146: NA | AQ146: =IF((IFERROR(IF(VLOOKUP(AK146,X:Y,2,0)=TRUE,1,0),0)+IFERROR(IF(VLOOKUP(AL146,X:Y,2,0)=TRUE,1,0),0)+IFERROR(IF(VLOOKUP(AN146,X:Y,2,0)=TRUE,1,0),0)+IFERROR(IF(VLOOKUP(AO146,X:Y,2,0)=TRUE,1,0),0)+IFERROR(IF(VLOOKUP(AP146,X:Y,2,0)=TRUE,1,0),0)+IF(AND(AM146>=Калькулятор!$C$14,AM146<=Калькулятор!$E$14),1,0)+IF(OR(AND(AS146>=Калькулятор!$C$11,AS146<=IF(ISBLANK(Калькулятор!$E$11),100000,Калькулятор!$E$11)),Калькулятор!$C$11&Калькулятор!$E$11=""),1,0))=7,1,0) -> 0 | AR146: =SUM(AQ$2:AQ146) -> 0 | AS146: =IF(Калькулятор!$F$8<>70,ROUND(INDEX($C$6:$V$17,MATCH(AM146,$B$6:$B$17,0),MATCH(AK146&AL146,$C$2:$V$2,0))*(Калькулятор!$F$8/70)^справочно!$Y$2,0),ROUND(INDEX($C$6:$V$17,MATCH(AM146,$B$6:$B$17,0),MATCH(AK146&AL146,$C$2:$V$2,0)),0)) -> 392.00 | AT146: ЗО | AU146: =3.6*AV146/(4.19*(Калькулятор!$C$8-Калькулятор!$D$8)) -> 33.65 | AV146: =IF(Калькулятор!$F$8<>70,INDEX($C$6:$V$17,MATCH(AM146,$B$6:$B$17,0),MATCH(AK146&AL146,$C$2:$V$2,0))*(Калькулятор!$F$8/70)^справочно!$Y$2,INDEX($C$6:$V$17,MATCH(AM146,$B$6:$B$17,0),MATCH(AK146&AL146,$C$2:$V$2,0))) -> 391.60
AA147: Конвектор внутрипольный Royal Thermo ATRIUM-150/200/1000-DG-U-NA | AB147: НС-1477382 | AC147: RT-A-150/200/1000-DG-U-NA | AD147: 3 | AE147: 5 | AF147: 9 | AG147: 13 | AH147: 18 | AI147: 21 | AJ147: 23 | AK147: 150 | AL147: 200 | AM147: 1000 | AN147: DG | AO147: U | AP147: NA | AQ147: =IF((IFERROR(IF(VLOOKUP(AK147,X:Y,2,0)=TRUE,1,0),0)+IFERROR(IF(VLOOKUP(AL147,X:Y,2,0)=TRUE,1,0),0)+IFERROR(IF(VLOOKUP(AN147,X:Y,2,0)=TRUE,1,0),0)+IFERROR(IF(VLOOKUP(AO147,X:Y,2,0)=TRUE,1,0),0)+IFERROR(IF(VLOOKUP(AP147,X:Y,2,0)=TRUE,1,0),0)+IF(AND(AM147>=Калькулятор!$C$14,AM147<=Калькулятор!$E$14),1,0)+IF(OR(AND(AS147>=Калькулятор!$C$11,AS147<=IF(ISBLANK(Калькулятор!$E$11),100000,Калькулятор!$E$11)),Калькулятор!$C$11&Калькулятор!$E$11=""),1,0))=7,1,0) -> 0 | AR147: =SUM(AQ$2:AQ147) -> 0 | AS147: =IF(Калькулятор!$F$8<>70,ROUND(INDEX($C$6:$V$17,MATCH(AM147,$B$6:$B$17,0),MATCH(AK147&AL147,$C$2:$V$2,0))*(Калькулятор!$F$8/70)^справочно!$Y$2,0),ROUND(INDEX($C$6:$V$17,MATCH(AM147,$B$6:$B$17,0),MATCH(AK147&AL147,$C$2:$V$2,0)),0)) -> 536.00 | AT147: ЗО | AU147: =3.6*AV147/(4.19*(Калькулятор!$C$8-Калькулятор!$D$8)) -> 46.03 | AV147: =IF(Калькулятор!$F$8<>70,INDEX($C$6:$V$17,MATCH(AM147,$B$6:$B$17,0),MATCH(AK147&AL147,$C$2:$V$2,0))*(Калькулятор!$F$8/70)^справочно!$Y$2,INDEX($C$6:$V$17,MATCH(AM147,$B$6:$B$17,0),MATCH(AK147&AL147,$C$2:$V$2,0))) -> 535.70
AA148: Конвектор внутрипольный Royal Thermo ATRIUM-150/200/1200-DG-U-NA | AB148: НС-1477385 | AC148: RT-A-150/200/1200-DG-U-NA | AD148: 3 | AE148: 5 | AF148: 9 | AG148: 13 | AH148: 18 | AI148: 21 | AJ148: 23 | AK148: 150 | AL148: 200 | AM148: 1200 | AN148: DG | AO148: U | AP148: NA | AQ148: =IF((IFERROR(IF(VLOOKUP(AK148,X:Y,2,0)=TRUE,1,0),0)+IFERROR(IF(VLOOKUP(AL148,X:Y,2,0)=TRUE,1,0),0)+IFERROR(IF(VLOOKUP(AN148,X:Y,2,0)=TRUE,1,0),0)+IFERROR(IF(VLOOKUP(AO148,X:Y,2,0)=TRUE,1,0),0)+IFERROR(IF(VLOOKUP(AP148,X:Y,2,0)=TRUE,1,0),0)+IF(AND(AM148>=Калькулятор!$C$14,AM148<=Калькулятор!$E$14),1,0)+IF(OR(AND(AS148>=Калькулятор!$C$11,AS148<=IF(ISBLANK(Калькулятор!$E$11),100000,Калькулятор!$E$11)),Калькулятор!$C$11&Калькулятор!$E$11=""),1,0))=7,1,0) -> 0 | AR148: =SUM(AQ$2:AQ148) -> 0 | AS148: =IF(Калькулятор!$F$8<>70,ROUND(INDEX($C$6:$V$17,MATCH(AM148,$B$6:$B$17,0),MATCH(AK148&AL148,$C$2:$V$2,0))*(Калькулятор!$F$8/70)^справочно!$Y$2,0),ROUND(INDEX($C$6:$V$17,MATCH(AM148,$B$6:$B$17,0),MATCH(AK148&AL148,$C$2:$V$2,0)),0)) -> 686.00 | AT148: ЗО | AU148: =3.6*AV148/(4.19*(Калькулятор!$C$8-Калькулятор!$D$8)) -> 58.97 | AV148: =IF(Калькулятор!$F$8<>70,INDEX($C$6:$V$17,MATCH(AM148,$B$6:$B$17,0),MATCH(AK148&AL148,$C$2:$V$2,0))*(Калькулятор!$F$8/70)^справочно!$Y$2,INDEX($C$6:$V$17,MATCH(AM148,$B$6:$B$17,0),MATCH(AK148&AL148,$C$2:$V$2,0))) -> 686.40
AA149: Конвектор внутрипольный Royal Thermo ATRIUM-150/200/1400-DG-U-NA | AB149: НС-1477388 | AC149: RT-A-150/200/1400-DG-U-NA | AD149: 3 | AE149: 5 | AF149: 9 | AG149: 13 | AH149: 18 | AI149: 21 | AJ149: 23 | AK149: 150 | AL149: 200 | AM149: 1400 | AN149: DG | AO149: U | AP149: NA | AQ149: =IF((IFERROR(IF(VLOOKUP(AK149,X:Y,2,0)=TRUE,1,0),0)+IFERROR(IF(VLOOKUP(AL149,X:Y,2,0)=TRUE,1,0),0)+IFERROR(IF(VLOOKUP(AN149,X:Y,2,0)=TRUE,1,0),0)+IFERROR(IF(VLOOKUP(AO149,X:Y,2,0)=TRUE,1,0),0)+IFERROR(IF(VLOOKUP(AP149,X:Y,2,0)=TRUE,1,0),0)+IF(AND(AM149>=Калькулятор!$C$14,AM149<=Калькулятор!$E$14),1,0)+IF(OR(AND(AS149>=Калькулятор!$C$11,AS149<=IF(ISBLANK(Калькулятор!$E$11),100000,Калькулятор!$E$11)),Калькулятор!$C$11&Калькулятор!$E$11=""),1,0))=7,1,0) -> 0 | AR149: =SUM(AQ$2:AQ149) -> 0 | AS149: =IF(Калькулятор!$F$8<>70,ROUND(INDEX($C$6:$V$17,MATCH(AM149,$B$6:$B$17,0),MATCH(AK149&AL149,$C$2:$V$2,0))*(Калькулятор!$F$8/70)^справочно!$Y$2,0),ROUND(INDEX($C$6:$V$17,MATCH(AM149,$B$6:$B$17,0),MATCH(AK149&AL149,$C$2:$V$2,0)),0)) -> 835.00 | AT149: ЗО | AU149: =3.6*AV149/(4.19*(Калькулятор!$C$8-Калькулятор!$D$8)) -> 71.73 | AV149: =IF(Калькулятор!$F$8<>70,INDEX($C$6:$V$17,MATCH(AM149,$B$6:$B$17,0),MATCH(AK149&AL149,$C$2:$V$2,0))*(Калькулятор!$F$8/70)^справочно!$Y$2,INDEX($C$6:$V$17,MATCH(AM149,$B$6:$B$17,0),MATCH(AK149&AL149,$C$2:$V$2,0))) -> 834.90
AA150: Конвектор внутрипольный Royal Thermo ATRIUM-150/200/1600-DG-U-NA | AB150: НС-1477391 | AC150: RT-A-150/200/1600-DG-U-NA | AD150: 3 | AE150: 5 | AF150: 9 | AG150: 13 | AH150: 18 | AI150: 21 | AJ150: 23 | AK150: 150 | AL150: 200 | AM150: 1600 | AN150: DG | AO150: U | AP150: NA | AQ150: =IF((IFERROR(IF(VLOOKUP(AK150,X:Y,2,0)=TRUE,1,0),0)+IFERROR(IF(VLOOKUP(AL150,X:Y,2,0)=TRUE,1,0),0)+IFERROR(IF(VLOOKUP(AN150,X:Y,2,0)=TRUE,1,0),0)+IFERROR(IF(VLOOKUP(AO150,X:Y,2,0)=TRUE,1,0),0)+IFERROR(IF(VLOOKUP(AP150,X:Y,2,0)=TRUE,1,0),0)+IF(AND(AM150>=Калькулятор!$C$14,AM150<=Калькулятор!$E$14),1,0)+IF(OR(AND(AS150>=Калькулятор!$C$11,AS150<=IF(ISBLANK(Калькулятор!$E$11),100000,Калькулятор!$E$11)),Калькулятор!$C$11&Калькулятор!$E$11=""),1,0))=7,1,0) -> 0 | AR150: =SUM(AQ$2:AQ150) -> 0 | AS150: =IF(Калькулятор!$F$8<>70,ROUND(INDEX($C$6:$V$17,MATCH(AM150,$B$6:$B$17,0),MATCH(AK150&AL150,$C$2:$V$2,0))*(Калькулятор!$F$8/70)^справочно!$Y$2,0),ROUND(INDEX($C$6:$V$17,MATCH(AM150,$B$6:$B$17,0),MATCH(AK150&AL150,$C$2:$V$2,0)),0)) -> 982.00 | AT150: ЗО | AU150: =3.6*AV150/(4.19*(Калькулятор!$C$8-Калькулятор!$D$8)) -> 84.40 | AV150: =IF(Калькулятор!$F$8<>70,INDEX($C$6:$V$17,MATCH(AM150,$B$6:$B$17,0),MATCH(AK150&AL150,$C$2:$V$2,0))*(Калькулятор!$F$8/70)^справочно!$Y$2,INDEX($C$6:$V$17,MATCH(AM150,$B$6:$B$17,0),MATCH(AK150&AL150,$C$2:$V$2,0))) -> 982.30
AA151: Конвектор внутрипольный Royal Thermo ATRIUM-150/200/1800-DG-U-NA | AB151: НС-1477394 | AC151: RT-A-150/200/1800-DG-U-NA | AD151: 3 | AE151: 5 | AF151: 9 | AG151: 13 | AH151: 18 | AI151: 21 | AJ151: 23 | AK151: 150 | AL151: 200 | AM151: 1800 | AN151: DG | AO151: U | AP151: NA | AQ151: =IF((IFERROR(IF(VLOOKUP(AK151,X:Y,2,0)=TRUE,1,0),0)+IFERROR(IF(VLOOKUP(AL151,X:Y,2,0)=TRUE,1,0),0)+IFERROR(IF(VLOOKUP(AN151,X:Y,2,0)=TRUE,1,0),0)+IFERROR(IF(VLOOKUP(AO151,X:Y,2,0)=TRUE,1,0),0)+IFERROR(IF(VLOOKUP(AP151,X:Y,2,0)=TRUE,1,0),0)+IF(AND(AM151>=Калькулятор!$C$14,AM151<=Калькулятор!$E$14),1,0)+IF(OR(AND(AS151>=Калькулятор!$C$11,AS151<=IF(ISBLANK(Калькулятор!$E$11),100000,Калькулятор!$E$11)),Калькулятор!$C$11&Калькулятор!$E$11=""),1,0))=7,1,0) -> 0 | AR151: =SUM(AQ$2:AQ151) -> 0 | AS151: =IF(Калькулятор!$F$8<>70,ROUND(INDEX($C$6:$V$17,MATCH(AM151,$B$6:$B$17,0),MATCH(AK151&AL151,$C$2:$V$2,0))*(Калькулятор!$F$8/70)^справочно!$Y$2,0),ROUND(INDEX($C$6:$V$17,MATCH(AM151,$B$6:$B$17,0),MATCH(AK151&AL151,$C$2:$V$2,0)),0)) -> 1,130.00 | AT151: ЗО | AU151: =3.6*AV151/(4.19*(Калькулятор!$C$8-Калькулятор!$D$8)) -> 97.06 | AV151: =IF(Калькулятор!$F$8<>70,INDEX($C$6:$V$17,MATCH(AM151,$B$6:$B$17,0),MATCH(AK151&AL151,$C$2:$V$2,0))*(Калькулятор!$F$8/70)^справочно!$Y$2,INDEX($C$6:$V$17,MATCH(AM151,$B$6:$B$17,0),MATCH(AK151&AL151,$C$2:$V$2,0))) -> 1,129.70
AA152: Конвектор внутрипольный Royal Thermo ATRIUM-150/200/2000-DG-U-NA | AB152: НС-1477397 | AC152: RT-A-150/200/2000-DG-U-NA | AD152: 3 | AE152: 5 | AF152: 9 | AG152: 13 | AH152: 18 | AI152: 21 | AJ152: 23 | AK152: 150 | AL152: 200 | AM152: 2000 | AN152: DG | AO152: U | AP152: NA | AQ152: =IF((IFERROR(IF(VLOOKUP(AK152,X:Y,2,0)=TRUE,1,0),0)+IFERROR(IF(VLOOKUP(AL152,X:Y,2,0)=TRUE,1,0),0)+IFERROR(IF(VLOOKUP(AN152,X:Y,2,0)=TRUE,1,0),0)+IFERROR(IF(VLOOKUP(AO152,X:Y,2,0)=TRUE,1,0),0)+IFERROR(IF(VLOOKUP(AP152,X:Y,2,0)=TRUE,1,0),0)+IF(AND(AM152>=Калькулятор!$C$14,AM152<=Калькулятор!$E$14),1,0)+IF(OR(AND(AS152>=Калькулятор!$C$11,AS152<=IF(ISBLANK(Калькулятор!$E$11),100000,Калькулятор!$E$11)),Калькулятор!$C$11&Калькулятор!$E$11=""),1,0))=7,1,0) -> 0 | AR152: =SUM(AQ$2:AQ152) -> 0 | AS152: =IF(Калькулятор!$F$8<>70,ROUND(INDEX($C$6:$V$17,MATCH(AM152,$B$6:$B$17,0),MATCH(AK152&AL152,$C$2:$V$2,0))*(Калькулятор!$F$8/70)^справочно!$Y$2,0),ROUND(INDEX($C$6:$V$17,MATCH(AM152,$B$6:$B$17,0),MATCH(AK152&AL152,$C$2:$V$2,0)),0)) -> 1,278.00 | AT152: ЗО | AU152: =3.6*AV152/(4.19*(Калькулятор!$C$8-Калькулятор!$D$8)) -> 109.82 | AV152: =IF(Калькулятор!$F$8<>70,INDEX($C$6:$V$17,MATCH(AM152,$B$6:$B$17,0),MATCH(AK152&AL152,$C$2:$V$2,0))*(Калькулятор!$F$8/70)^справочно!$Y$2,INDEX($C$6:$V$17,MATCH(AM152,$B$6:$B$17,0),MATCH(AK152&AL152,$C$2:$V$2,0))) -> 1,278.20
AA153: Конвектор внутрипольный Royal Thermo ATRIUM-150/200/2200-DG-U-NA | AB153: НС-1477400 | AC153: RT-A-150/200/2200-DG-U-NA | AD153: 3 | AE153: 5 | AF153: 9 | AG153: 13 | AH153: 18 | AI153: 21 | AJ153: 23 | AK153: 150 | AL153: 200 | AM153: 2200 | AN153: DG | AO153: U | AP153: NA | AQ153: =IF((IFERROR(IF(VLOOKUP(AK153,X:Y,2,0)=TRUE,1,0),0)+IFERROR(IF(VLOOKUP(AL153,X:Y,2,0)=TRUE,1,0),0)+IFERROR(IF(VLOOKUP(AN153,X:Y,2,0)=TRUE,1,0),0)+IFERROR(IF(VLOOKUP(AO153,X:Y,2,0)=TRUE,1,0),0)+IFERROR(IF(VLOOKUP(AP153,X:Y,2,0)=TRUE,1,0),0)+IF(AND(AM153>=Калькулятор!$C$14,AM153<=Калькулятор!$E$14),1,0)+IF(OR(AND(AS153>=Калькулятор!$C$11,AS153<=IF(ISBLANK(Калькулятор!$E$11),100000,Калькулятор!$E$11)),Калькулятор!$C$11&Калькулятор!$E$11=""),1,0))=7,1,0) -> 0 | AR153: =SUM(AQ$2:AQ153) -> 0 | AS153: =IF(Калькулятор!$F$8<>70,ROUND(INDEX($C$6:$V$17,MATCH(AM153,$B$6:$B$17,0),MATCH(AK153&AL153,$C$2:$V$2,0))*(Калькулятор!$F$8/70)^справочно!$Y$2,0),ROUND(INDEX($C$6:$V$17,MATCH(AM153,$B$6:$B$17,0),MATCH(AK153&AL153,$C$2:$V$2,0)),0)) -> 1,426.00 | AT153: ЗО | AU153: =3.6*AV153/(4.19*(Калькулятор!$C$8-Калькулятор!$D$8)) -> 122.49 | AV153: =IF(Калькулятор!$F$8<>70,INDEX($C$6:$V$17,MATCH(AM153,$B$6:$B$17,0),MATCH(AK153&AL153,$C$2:$V$2,0))*(Калькулятор!$F$8/70)^справочно!$Y$2,INDEX($C$6:$V$17,MATCH(AM153,$B$6:$B$17,0),MATCH(AK153&AL153,$C$2:$V$2,0))) -> 1,425.60
AA154: Конвектор внутрипольный Royal Thermo ATRIUM-150/200/2400-DG-U-NA | AB154: НС-1477403 | AC154: RT-A-150/200/2400-DG-U-NA | AD154: 3 | AE154: 5 | AF154: 9 | AG154: 13 | AH154: 18 | AI154: 21 | AJ154: 23 | AK154: 150 | AL154: 200 | AM154: 2400 | AN154: DG | AO154: U | AP154: NA | AQ154: =IF((IFERROR(IF(VLOOKUP(AK154,X:Y,2,0)=TRUE,1,0),0)+IFERROR(IF(VLOOKUP(AL154,X:Y,2,0)=TRUE,1,0),0)+IFERROR(IF(VLOOKUP(AN154,X:Y,2,0)=TRUE,1,0),0)+IFERROR(IF(VLOOKUP(AO154,X:Y,2,0)=TRUE,1,0),0)+IFERROR(IF(VLOOKUP(AP154,X:Y,2,0)=TRUE,1,0),0)+IF(AND(AM154>=Калькулятор!$C$14,AM154<=Калькулятор!$E$14),1,0)+IF(OR(AND(AS154>=Калькулятор!$C$11,AS154<=IF(ISBLANK(Калькулятор!$E$11),100000,Калькулятор!$E$11)),Калькулятор!$C$11&Калькулятор!$E$11=""),1,0))=7,1,0) -> 0 | AR154: =SUM(AQ$2:AQ154) -> 0 | AS154: =IF(Калькулятор!$F$8<>70,ROUND(INDEX($C$6:$V$17,MATCH(AM154,$B$6:$B$17,0),MATCH(AK154&AL154,$C$2:$V$2,0))*(Калькулятор!$F$8/70)^справочно!$Y$2,0),ROUND(INDEX($C$6:$V$17,MATCH(AM154,$B$6:$B$17,0),MATCH(AK154&AL154,$C$2:$V$2,0)),0)) -> 1,573.00 | AT154: ЗО | AU154: =3.6*AV154/(4.19*(Калькулятор!$C$8-Калькулятор!$D$8)) -> 135.15 | AV154: =IF(Калькулятор!$F$8<>70,INDEX($C$6:$V$17,MATCH(AM154,$B$6:$B$17,0),MATCH(AK154&AL154,$C$2:$V$2,0))*(Калькулятор!$F$8/70)^справочно!$Y$2,INDEX($C$6:$V$17,MATCH(AM154,$B$6:$B$17,0),MATCH(AK154&AL154,$C$2:$V$2,0))) -> 1,573.00
AA155: Конвектор внутрипольный Royal Thermo ATRIUM-150/200/2600-DG-U-NA | AB155: НС-1477406 | AC155: RT-A-150/200/2600-DG-U-NA | AD155: 3 | AE155: 5 | AF155: 9 | AG155: 13 | AH155: 18 | AI155: 21 | AJ155: 23 | AK155: 150 | AL155: 200 | AM155: 2600 | AN155: DG | AO155: U | AP155: NA | AQ155: =IF((IFERROR(IF(VLOOKUP(AK155,X:Y,2,0)=TRUE,1,0),0)+IFERROR(IF(VLOOKUP(AL155,X:Y,2,0)=TRUE,1,0),0)+IFERROR(IF(VLOOKUP(AN155,X:Y,2,0)=TRUE,1,0),0)+IFERROR(IF(VLOOKUP(AO155,X:Y,2,0)=TRUE,1,0),0)+IFERROR(IF(VLOOKUP(AP155,X:Y,2,0)=TRUE,1,0),0)+IF(AND(AM155>=Калькулятор!$C$14,AM155<=Калькулятор!$E$14),1,0)+IF(OR(AND(AS155>=Калькулятор!$C$11,AS155<=IF(ISBLANK(Калькулятор!$E$11),100000,Калькулятор!$E$11)),Калькулятор!$C$11&Калькулятор!$E$11=""),1,0))=7,1,0) -> 0 | AR155: =SUM(AQ$2:AQ155) -> 0 | AS155: =IF(Калькулятор!$F$8<>70,ROUND(INDEX($C$6:$V$17,MATCH(AM155,$B$6:$B$17,0),MATCH(AK155&AL155,$C$2:$V$2,0))*(Калькулятор!$F$8/70)^справочно!$Y$2,0),ROUND(INDEX($C$6:$V$17,MATCH(AM155,$B$6:$B$17,0),MATCH(AK155&AL155,$C$2:$V$2,0)),0)) -> 1,720.00 | AT155: ЗО | AU155: =3.6*AV155/(4.19*(Калькулятор!$C$8-Калькулятор!$D$8)) -> 147.81 | AV155: =IF(Калькулятор!$F$8<>70,INDEX($C$6:$V$17,MATCH(AM155,$B$6:$B$17,0),MATCH(AK155&AL155,$C$2:$V$2,0))*(Калькулятор!$F$8/70)^справочно!$Y$2,INDEX($C$6:$V$17,MATCH(AM155,$B$6:$B$17,0),MATCH(AK155&AL155,$C$2:$V$2,0))) -> 1,720.40
AA156: Конвектор внутрипольный Royal Thermo ATRIUM-150/200/2800-DG-U-NA | AB156: НС-1477409 | AC156: RT-A-150/200/2800-DG-U-NA | AD156: 3 | AE156: 5 | AF156: 9 | AG156: 13 | AH156: 18 | AI156: 21 | AJ156: 23 | AK156: 150 | AL156: 200 | AM156: 2800 | AN156: DG | AO156: U | AP156: NA | AQ156: =IF((IFERROR(IF(VLOOKUP(AK156,X:Y,2,0)=TRUE,1,0),0)+IFERROR(IF(VLOOKUP(AL156,X:Y,2,0)=TRUE,1,0),0)+IFERROR(IF(VLOOKUP(AN156,X:Y,2,0)=TRUE,1,0),0)+IFERROR(IF(VLOOKUP(AO156,X:Y,2,0)=TRUE,1,0),0)+IFERROR(IF(VLOOKUP(AP156,X:Y,2,0)=TRUE,1,0),0)+IF(AND(AM156>=Калькулятор!$C$14,AM156<=Калькулятор!$E$14),1,0)+IF(OR(AND(AS156>=Калькулятор!$C$11,AS156<=IF(ISBLANK(Калькулятор!$E$11),100000,Калькулятор!$E$11)),Калькулятор!$C$11&Калькулятор!$E$11=""),1,0))=7,1,0) -> 0 | AR156: =SUM(AQ$2:AQ156) -> 0 | AS156: =IF(Калькулятор!$F$8<>70,ROUND(INDEX($C$6:$V$17,MATCH(AM156,$B$6:$B$17,0),MATCH(AK156&AL156,$C$2:$V$2,0))*(Калькулятор!$F$8/70)^справочно!$Y$2,0),ROUND(INDEX($C$6:$V$17,MATCH(AM156,$B$6:$B$17,0),MATCH(AK156&AL156,$C$2:$V$2,0)),0)) -> 1,869.00 | AT156: ЗО | AU156: =3.6*AV156/(4.19*(Калькулятор!$C$8-Калькулятор!$D$8)) -> 160.57 | AV156: =IF(Калькулятор!$F$8<>70,INDEX($C$6:$V$17,MATCH(AM156,$B$6:$B$17,0),MATCH(AK156&AL156,$C$2:$V$2,0))*(Калькулятор!$F$8/70)^справочно!$Y$2,INDEX($C$6:$V$17,MATCH(AM156,$B$6:$B$17,0),MATCH(AK156&AL156,$C$2:$V$2,0))) -> 1,868.90
AA157: Конвектор внутрипольный Royal Thermo ATRIUM-150/200/3000-DG-U-NA | AB157: НС-1477412 | AC157: RT-A-150/200/3000-DG-U-NA | AD157: 3 | AE157: 5 | AF157: 9 | AG157: 13 | AH157: 18 | AI157: 21 | AJ157: 23 | AK157: 150 | AL157: 200 | AM157: 3000 | AN157: DG | AO157: U | AP157: NA | AQ157: =IF((IFERROR(IF(VLOOKUP(AK157,X:Y,2,0)=TRUE,1,0),0)+IFERROR(IF(VLOOKUP(AL157,X:Y,2,0)=TRUE,1,0),0)+IFERROR(IF(VLOOKUP(AN157,X:Y,2,0)=TRUE,1,0),0)+IFERROR(IF(VLOOKUP(AO157,X:Y,2,0)=TRUE,1,0),0)+IFERROR(IF(VLOOKUP(AP157,X:Y,2,0)=TRUE,1,0),0)+IF(AND(AM157>=Калькулятор!$C$14,AM157<=Калькулятор!$E$14),1,0)+IF(OR(AND(AS157>=Калькулятор!$C$11,AS157<=IF(ISBLANK(Калькулятор!$E$11),100000,Калькулятор!$E$11)),Калькулятор!$C$11&Калькулятор!$E$11=""),1,0))=7,1,0) -> 0 | AR157: =SUM(AQ$2:AQ157) -> 0 | AS157: =IF(Калькулятор!$F$8<>70,ROUND(INDEX($C$6:$V$17,MATCH(AM157,$B$6:$B$17,0),MATCH(AK157&AL157,$C$2:$V$2,0))*(Калькулятор!$F$8/70)^справочно!$Y$2,0),ROUND(INDEX($C$6:$V$17,MATCH(AM157,$B$6:$B$17,0),MATCH(AK157&AL157,$C$2:$V$2,0)),0)) -> 2,016.00 | AT157: ЗО | AU157: =3.6*AV157/(4.19*(Калькулятор!$C$8-Калькулятор!$D$8)) -> 173.24 | AV157: =IF(Калькулятор!$F$8<>70,INDEX($C$6:$V$17,MATCH(AM157,$B$6:$B$17,0),MATCH(AK157&AL157,$C$2:$V$2,0))*(Калькулятор!$F$8/70)^справочно!$Y$2,INDEX($C$6:$V$17,MATCH(AM157,$B$6:$B$17,0),MATCH(AK157&AL157,$C$2:$V$2,0))) -> 2,016.30
AA158: Конвектор внутрипольный Royal Thermo ATRIUM-150/250/800-DG-U-NA | AB158: НС-1477452 | AC158: RT-A-150/250/800-DG-U-NA | AD158: 3 | AE158: 5 | AF158: 9 | AG158: 13 | AH158: 17 | AI158: 20 | AJ158: 22 | AK158: 150 | AL158: 250 | AM158: 800 | AN158: DG | AO158: U | AP158: NA | AQ158: =IF((IFERROR(IF(VLOOKUP(AK158,X:Y,2,0)=TRUE,1,0),0)+IFERROR(IF(VLOOKUP(AL158,X:Y,2,0)=TRUE,1,0),0)+IFERROR(IF(VLOOKUP(AN158,X:Y,2,0)=TRUE,1,0),0)+IFERROR(IF(VLOOKUP(AO158,X:Y,2,0)=TRUE,1,0),0)+IFERROR(IF(VLOOKUP(AP158,X:Y,2,0)=TRUE,1,0),0)+IF(AND(AM158>=Калькулятор!$C$14,AM158<=Калькулятор!$E$14),1,0)+IF(OR(AND(AS158>=Калькулятор!$C$11,AS158<=IF(ISBLANK(Калькулятор!$E$11),100000,Калькулятор!$E$11)),Калькулятор!$C$11&Калькулятор!$E$11=""),1,0))=7,1,0) -> 0 | AR158: =SUM(AQ$2:AQ158) -> 0 | AS158: =IF(Калькулятор!$F$8<>70,ROUND(INDEX($C$6:$V$17,MATCH(AM158,$B$6:$B$17,0),MATCH(AK158&AL158,$C$2:$V$2,0))*(Калькулятор!$F$8/70)^справочно!$Y$2,0),ROUND(INDEX($C$6:$V$17,MATCH(AM158,$B$6:$B$17,0),MATCH(AK158&AL158,$C$2:$V$2,0)),0)) -> 503.00 | AT158: ЗО | AU158: =3.6*AV158/(4.19*(Калькулятор!$C$8-Калькулятор!$D$8)) -> 43.19 | AV158: =IF(Калькулятор!$F$8<>70,INDEX($C$6:$V$17,MATCH(AM158,$B$6:$B$17,0),MATCH(AK158&AL158,$C$2:$V$2,0))*(Калькулятор!$F$8/70)^справочно!$Y$2,INDEX($C$6:$V$17,MATCH(AM158,$B$6:$B$17,0),MATCH(AK158&AL158,$C$2:$V$2,0))) -> 502.70
AA159: Конвектор внутрипольный Royal Thermo ATRIUM-150/250/1000-DG-U-NA | AB159: НС-1477421 | AC159: RT-A-150/250/1000-DG-U-NA | AD159: 3 | AE159: 5 | AF159: 9 | AG159: 13 | AH159: 18 | AI159: 21 | AJ159: 23 | AK159: 150 | AL159: 250 | AM159: 1000 | AN159: DG | AO159: U | AP159: NA | AQ159: =IF((IFERROR(IF(VLOOKUP(AK159,X:Y,2,0)=TRUE,1,0),0)+IFERROR(IF(VLOOKUP(AL159,X:Y,2,0)=TRUE,1,0),0)+IFERROR(IF(VLOOKUP(AN159,X:Y,2,0)=TRUE,1,0),0)+IFERROR(IF(VLOOKUP(AO159,X:Y,2,0)=TRUE,1,0),0)+IFERROR(IF(VLOOKUP(AP159,X:Y,2,0)=TRUE,1,0),0)+IF(AND(AM159>=Калькулятор!$C$14,AM159<=Калькулятор!$E$14),1,0)+IF(OR(AND(AS159>=Калькулятор!$C$11,AS159<=IF(ISBLANK(Калькулятор!$E$11),100000,Калькулятор!$E$11)),Калькулятор!$C$11&Калькулятор!$E$11=""),1,0))=7,1,0) -> 0 | AR159: =SUM(AQ$2:AQ159) -> 0 | AS159: =IF(Калькулятор!$F$8<>70,ROUND(INDEX($C$6:$V$17,MATCH(AM159,$B$6:$B$17,0),MATCH(AK159&AL159,$C$2:$V$2,0))*(Калькулятор!$F$8/70)^справочно!$Y$2,0),ROUND(INDEX($C$6:$V$17,MATCH(AM159,$B$6:$B$17,0),MATCH(AK159&AL159,$C$2:$V$2,0)),0)) -> 671.00 | AT159: ЗО | AU159: =3.6*AV159/(4.19*(Калькулятор!$C$8-Калькулятор!$D$8)) -> 57.65 | AV159: =IF(Калькулятор!$F$8<>70,INDEX($C$6:$V$17,MATCH(AM159,$B$6:$B$17,0),MATCH(AK159&AL159,$C$2:$V$2,0))*(Калькулятор!$F$8/70)^справочно!$Y$2,INDEX($C$6:$V$17,MATCH(AM159,$B$6:$B$17,0),MATCH(AK159&AL159,$C$2:$V$2,0))) -> 671.00
AA160: Конвектор внутрипольный Royal Thermo ATRIUM-150/250/1200-DG-U-NA | AB160: НС-1477424 | AC160: RT-A-150/250/1200-DG-U-NA | AD160: 3 | AE160: 5 | AF160: 9 | AG160: 13 | AH160: 18 | AI160: 21 | AJ160: 23 | AK160: 150 | AL160: 250 | AM160: 1200 | AN160: DG | AO160: U | AP160: NA | AQ160: =IF((IFERROR(IF(VLOOKUP(AK160,X:Y,2,0)=TRUE,1,0),0)+IFERROR(IF(VLOOKUP(AL160,X:Y,2,0)=TRUE,1,0),0)+IFERROR(IF(VLOOKUP(AN160,X:Y,2,0)=TRUE,1,0),0)+IFERROR(IF(VLOOKUP(AO160,X:Y,2,0)=TRUE,1,0),0)+IFERROR(IF(VLOOKUP(AP160,X:Y,2,0)=TRUE,1,0),0)+IF(AND(AM160>=Калькулятор!$C$14,AM160<=Калькулятор!$E$14),1,0)+IF(OR(AND(AS160>=Калькулятор!$C$11,AS160<=IF(ISBLANK(Калькулятор!$E$11),100000,Калькулятор!$E$11)),Калькулятор!$C$11&Калькулятор!$E$11=""),1,0))=7,1,0) -> 0 | AR160: =SUM(AQ$2:AQ160) -> 0 | AS160: =IF(Калькулятор!$F$8<>70,ROUND(INDEX($C$6:$V$17,MATCH(AM160,$B$6:$B$17,0),MATCH(AK160&AL160,$C$2:$V$2,0))*(Калькулятор!$F$8/70)^справочно!$Y$2,0),ROUND(INDEX($C$6:$V$17,MATCH(AM160,$B$6:$B$17,0),MATCH(AK160&AL160,$C$2:$V$2,0)),0)) -> 839.00 | AT160: ЗО | AU160: =3.6*AV160/(4.19*(Калькулятор!$C$8-Калькулятор!$D$8)) -> 72.11 | AV160: =IF(Калькулятор!$F$8<>70,INDEX($C$6:$V$17,MATCH(AM160,$B$6:$B$17,0),MATCH(AK160&AL160,$C$2:$V$2,0))*(Калькулятор!$F$8/70)^справочно!$Y$2,INDEX($C$6:$V$17,MATCH(AM160,$B$6:$B$17,0),MATCH(AK160&AL160,$C$2:$V$2,0))) -> 839.30
AA161: Конвектор внутрипольный Royal Thermo ATRIUM-150/250/1400-DG-U-NA | AB161: НС-1477427 | AC161: RT-A-150/250/1400-DG-U-NA | AD161: 3 | AE161: 5 | AF161: 9 | AG161: 13 | AH161: 18 | AI161: 21 | AJ161: 23 | AK161: 150 | AL161: 250 | AM161: 1400 | AN161: DG | AO161: U | AP161: NA | AQ161: =IF((IFERROR(IF(VLOOKUP(AK161,X:Y,2,0)=TRUE,1,0),0)+IFERROR(IF(VLOOKUP(AL161,X:Y,2,0)=TRUE,1,0),0)+IFERROR(IF(VLOOKUP(AN161,X:Y,2,0)=TRUE,1,0),0)+IFERROR(IF(VLOOKUP(AO161,X:Y,2,0)=TRUE,1,0),0)+IFERROR(IF(VLOOKUP(AP161,X:Y,2,0)=TRUE,1,0),0)+IF(AND(AM161>=Калькулятор!$C$14,AM161<=Калькулятор!$E$14),1,0)+IF(OR(AND(AS161>=Калькулятор!$C$11,AS161<=IF(ISBLANK(Калькулятор!$E$11),100000,Калькулятор!$E$11)),Калькулятор!$C$11&Калькулятор!$E$11=""),1,0))=7,1,0) -> 0 | AR161: =SUM(AQ$2:AQ161) -> 0 | AS161: =IF(Калькулятор!$F$8<>70,ROUND(INDEX($C$6:$V$17,MATCH(AM161,$B$6:$B$17,0),MATCH(AK161&AL161,$C$2:$V$2,0))*(Калькулятор!$F$8/70)^справочно!$Y$2,0),ROUND(INDEX($C$6:$V$17,MATCH(AM161,$B$6:$B$17,0),MATCH(AK161&AL161,$C$2:$V$2,0)),0)) -> 1,008.00 | AT161: ЗО | AU161: =3.6*AV161/(4.19*(Калькулятор!$C$8-Калькулятор!$D$8)) -> 86.57 | AV161: =IF(Калькулятор!$F$8<>70,INDEX($C$6:$V$17,MATCH(AM161,$B$6:$B$17,0),MATCH(AK161&AL161,$C$2:$V$2,0))*(Калькулятор!$F$8/70)^справочно!$Y$2,INDEX($C$6:$V$17,MATCH(AM161,$B$6:$B$17,0),MATCH(AK161&AL161,$C$2:$V$2,0))) -> 1,007.60
AA162: Конвектор внутрипольный Royal Thermo ATRIUM-150/250/1600-DG-U-NA | AB162: НС-1477430 | AC162: RT-A-150/250/1600-DG-U-NA | AD162: 3 | AE162: 5 | AF162: 9 | AG162: 13 | AH162: 18 | AI162: 21 | AJ162: 23 | AK162: 150 | AL162: 250 | AM162: 1600 | AN162: DG | AO162: U | AP162: NA | AQ162: =IF((IFERROR(IF(VLOOKUP(AK162,X:Y,2,0)=TRUE,1,0),0)+IFERROR(IF(VLOOKUP(AL162,X:Y,2,0)=TRUE,1,0),0)+IFERROR(IF(VLOOKUP(AN162,X:Y,2,0)=TRUE,1,0),0)+IFERROR(IF(VLOOKUP(AO162,X:Y,2,0)=TRUE,1,0),0)+IFERROR(IF(VLOOKUP(AP162,X:Y,2,0)=TRUE,1,0),0)+IF(AND(AM162>=Калькулятор!$C$14,AM162<=Калькулятор!$E$14),1,0)+IF(OR(AND(AS162>=Калькулятор!$C$11,AS162<=IF(ISBLANK(Калькулятор!$E$11),100000,Калькулятор!$E$11)),Калькулятор!$C$11&Калькулятор!$E$11=""),1,0))=7,1,0) -> 0 | AR162: =SUM(AQ$2:AQ162) -> 0 | AS162: =IF(Калькулятор!$F$8<>70,ROUND(INDEX($C$6:$V$17,MATCH(AM162,$B$6:$B$17,0),MATCH(AK162&AL162,$C$2:$V$2,0))*(Калькулятор!$F$8/70)^справочно!$Y$2,0),ROUND(INDEX($C$6:$V$17,MATCH(AM162,$B$6:$B$17,0),MATCH(AK162&AL162,$C$2:$V$2,0)),0)) -> 1,176.00 | AT162: ЗО | AU162: =3.6*AV162/(4.19*(Калькулятор!$C$8-Калькулятор!$D$8)) -> 101.03 | AV162: =IF(Калькулятор!$F$8<>70,INDEX($C$6:$V$17,MATCH(AM162,$B$6:$B$17,0),MATCH(AK162&AL162,$C$2:$V$2,0))*(Калькулятор!$F$8/70)^справочно!$Y$2,INDEX($C$6:$V$17,MATCH(AM162,$B$6:$B$17,0),MATCH(AK162&AL162,$C$2:$V$2,0))) -> 1,175.90
AA163: Конвектор внутрипольный Royal Thermo ATRIUM-150/250/1800-DG-U-NA | AB163: НС-1477433 | AC163: RT-A-150/250/1800-DG-U-NA | AD163: 3 | AE163: 5 | AF163: 9 | AG163: 13 | AH163: 18 | AI163: 21 | AJ163: 23 | AK163: 150 | AL163: 250 | AM163: 1800 | AN163: DG | AO163: U | AP163: NA | AQ163: =IF((IFERROR(IF(VLOOKUP(AK163,X:Y,2,0)=TRUE,1,0),0)+IFERROR(IF(VLOOKUP(AL163,X:Y,2,0)=TRUE,1,0),0)+IFERROR(IF(VLOOKUP(AN163,X:Y,2,0)=TRUE,1,0),0)+IFERROR(IF(VLOOKUP(AO163,X:Y,2,0)=TRUE,1,0),0)+IFERROR(IF(VLOOKUP(AP163,X:Y,2,0)=TRUE,1,0),0)+IF(AND(AM163>=Калькулятор!$C$14,AM163<=Калькулятор!$E$14),1,0)+IF(OR(AND(AS163>=Калькулятор!$C$11,AS163<=IF(ISBLANK(Калькулятор!$E$11),100000,Калькулятор!$E$11)),Калькулятор!$C$11&Калькулятор!$E$11=""),1,0))=7,1,0) -> 0 | AR163: =SUM(AQ$2:AQ163) -> 0 | AS163: =IF(Калькулятор!$F$8<>70,ROUND(INDEX($C$6:$V$17,MATCH(AM163,$B$6:$B$17,0),MATCH(AK163&AL163,$C$2:$V$2,0))*(Калькулятор!$F$8/70)^справочно!$Y$2,0),ROUND(INDEX($C$6:$V$17,MATCH(AM163,$B$6:$B$17,0),MATCH(AK163&AL163,$C$2:$V$2,0)),0)) -> 1,343.00 | AT163: ЗО | AU163: =3.6*AV163/(4.19*(Калькулятор!$C$8-Калькулятор!$D$8)) -> 115.40 | AV163: =IF(Калькулятор!$F$8<>70,INDEX($C$6:$V$17,MATCH(AM163,$B$6:$B$17,0),MATCH(AK163&AL163,$C$2:$V$2,0))*(Калькулятор!$F$8/70)^справочно!$Y$2,INDEX($C$6:$V$17,MATCH(AM163,$B$6:$B$17,0),MATCH(AK163&AL163,$C$2:$V$2,0))) -> 1,343.10
AA164: Конвектор внутрипольный Royal Thermo ATRIUM-150/250/2000-DG-U-NA | AB164: НС-1477435 | AC164: RT-A-150/250/2000-DG-U-NA | AD164: 3 | AE164: 5 | AF164: 9 | AG164: 13 | AH164: 18 | AI164: 21 | AJ164: 23 | AK164: 150 | AL164: 250 | AM164: 2000 | AN164: DG | AO164: U | AP164: NA | AQ164: =IF((IFERROR(IF(VLOOKUP(AK164,X:Y,2,0)=TRUE,1,0),0)+IFERROR(IF(VLOOKUP(AL164,X:Y,2,0)=TRUE,1,0),0)+IFERROR(IF(VLOOKUP(AN164,X:Y,2,0)=TRUE,1,0),0)+IFERROR(IF(VLOOKUP(AO164,X:Y,2,0)=TRUE,1,0),0)+IFERROR(IF(VLOOKUP(AP164,X:Y,2,0)=TRUE,1,0),0)+IF(AND(AM164>=Калькулятор!$C$14,AM164<=Калькулятор!$E$14),1,0)+IF(OR(AND(AS164>=Калькулятор!$C$11,AS164<=IF(ISBLANK(Калькулятор!$E$11),100000,Калькулятор!$E$11)),Калькулятор!$C$11&Калькулятор!$E$11=""),1,0))=7,1,0) -> 0 | AR164: =SUM(AQ$2:AQ164) -> 0 | AS164: =IF(Калькулятор!$F$8<>70,ROUND(INDEX($C$6:$V$17,MATCH(AM164,$B$6:$B$17,0),MATCH(AK164&AL164,$C$2:$V$2,0))*(Калькулятор!$F$8/70)^справочно!$Y$2,0),ROUND(INDEX($C$6:$V$17,MATCH(AM164,$B$6:$B$17,0),MATCH(AK164&AL164,$C$2:$V$2,0)),0)) -> 1,513.00 | AT164: ЗО | AU164: =3.6*AV164/(4.19*(Калькулятор!$C$8-Калькулятор!$D$8)) -> 129.95 | AV164: =IF(Калькулятор!$F$8<>70,INDEX($C$6:$V$17,MATCH(AM164,$B$6:$B$17,0),MATCH(AK164&AL164,$C$2:$V$2,0))*(Калькулятор!$F$8/70)^справочно!$Y$2,INDEX($C$6:$V$17,MATCH(AM164,$B$6:$B$17,0),MATCH(AK164&AL164,$C$2:$V$2,0))) -> 1,512.50
AA165: Конвектор внутрипольный Royal Thermo ATRIUM-150/250/2200-DG-U-NA | AB165: НС-1477438 | AC165: RT-A-150/250/2200-DG-U-NA | AD165: 3 | AE165: 5 | AF165: 9 | AG165: 13 | AH165: 18 | AI165: 21 | AJ165: 23 | AK165: 150 | AL165: 250 | AM165: 2200 | AN165: DG | AO165: U | AP165: NA | AQ165: =IF((IFERROR(IF(VLOOKUP(AK165,X:Y,2,0)=TRUE,1,0),0)+IFERROR(IF(VLOOKUP(AL165,X:Y,2,0)=TRUE,1,0),0)+IFERROR(IF(VLOOKUP(AN165,X:Y,2,0)=TRUE,1,0),0)+IFERROR(IF(VLOOKUP(AO165,X:Y,2,0)=TRUE,1,0),0)+IFERROR(IF(VLOOKUP(AP165,X:Y,2,0)=TRUE,1,0),0)+IF(AND(AM165>=Калькулятор!$C$14,AM165<=Калькулятор!$E$14),1,0)+IF(OR(AND(AS165>=Калькулятор!$C$11,AS165<=IF(ISBLANK(Калькулятор!$E$11),100000,Калькулятор!$E$11)),Калькулятор!$C$11&Калькулятор!$E$11=""),1,0))=7,1,0) -> 0 | AR165: =SUM(AQ$2:AQ165) -> 0 | AS165: =IF(Калькулятор!$F$8<>70,ROUND(INDEX($C$6:$V$17,MATCH(AM165,$B$6:$B$17,0),MATCH(AK165&AL165,$C$2:$V$2,0))*(Калькулятор!$F$8/70)^справочно!$Y$2,0),ROUND(INDEX($C$6:$V$17,MATCH(AM165,$B$6:$B$17,0),MATCH(AK165&AL165,$C$2:$V$2,0)),0)) -> 1,680.00 | AT165: ЗО | AU165: =3.6*AV165/(4.19*(Калькулятор!$C$8-Калькулятор!$D$8)) -> 144.32 | AV165: =IF(Калькулятор!$F$8<>70,INDEX($C$6:$V$17,MATCH(AM165,$B$6:$B$17,0),MATCH(AK165&AL165,$C$2:$V$2,0))*(Калькулятор!$F$8/70)^справочно!$Y$2,INDEX($C$6:$V$17,MATCH(AM165,$B$6:$B$17,0),MATCH(AK165&AL165,$C$2:$V$2,0))) -> 1,679.70
AA166: Конвектор внутрипольный Royal Thermo ATRIUM-150/250/2400-DG-U-NA | AB166: НС-1477441 | AC166: RT-A-150/250/2400-DG-U-NA | AD166: 3 | AE166: 5 | AF166: 9 | AG166: 13 | AH166: 18 | AI166: 21 | AJ166: 23 | AK166: 150 | AL166: 250 | AM166: 2400 | AN166: DG | AO166: U | AP166: NA | AQ166: =IF((IFERROR(IF(VLOOKUP(AK166,X:Y,2,0)=TRUE,1,0),0)+IFERROR(IF(VLOOKUP(AL166,X:Y,2,0)=TRUE,1,0),0)+IFERROR(IF(VLOOKUP(AN166,X:Y,2,0)=TRUE,1,0),0)+IFERROR(IF(VLOOKUP(AO166,X:Y,2,0)=TRUE,1,0),0)+IFERROR(IF(VLOOKUP(AP166,X:Y,2,0)=TRUE,1,0),0)+IF(AND(AM166>=Калькулятор!$C$14,AM166<=Калькулятор!$E$14),1,0)+IF(OR(AND(AS166>=Калькулятор!$C$11,AS166<=IF(ISBLANK(Калькулятор!$E$11),100000,Калькулятор!$E$11)),Калькулятор!$C$11&Калькулятор!$E$11=""),1,0))=7,1,0) -> 0 | AR166: =SUM(AQ$2:AQ166) -> 0 | AS166: =IF(Калькулятор!$F$8<>70,ROUND(INDEX($C$6:$V$17,MATCH(AM166,$B$6:$B$17,0),MATCH(AK166&AL166,$C$2:$V$2,0))*(Калькулятор!$F$8/70)^справочно!$Y$2,0),ROUND(INDEX($C$6:$V$17,MATCH(AM166,$B$6:$B$17,0),MATCH(AK166&AL166,$C$2:$V$2,0)),0)) -> 1,887.00 | AT166: ЗО | AU166: =3.6*AV166/(4.19*(Калькулятор!$C$8-Калькулятор!$D$8)) -> 162.09 | AV166: =IF(Калькулятор!$F$8<>70,INDEX($C$6:$V$17,MATCH(AM166,$B$6:$B$17,0),MATCH(AK166&AL166,$C$2:$V$2,0))*(Калькулятор!$F$8/70)^справочно!$Y$2,INDEX($C$6:$V$17,MATCH(AM166,$B$6:$B$17,0),MATCH(AK166&AL166,$C$2:$V$2,0))) -> 1,886.50
AA167: Конвектор внутрипольный Royal Thermo ATRIUM-150/250/2600-DG-U-NA | AB167: НС-1477443 | AC167: RT-A-150/250/2600-DG-U-NA | AD167: 3 | AE167: 5 | AF167: 9 | AG167: 13 | AH167: 18 | AI167: 21 | AJ167: 23 | AK167: 150 | AL167: 250 | AM167: 2600 | AN167: DG | AO167: U | AP167: NA | AQ167: =IF((IFERROR(IF(VLOOKUP(AK167,X:Y,2,0)=TRUE,1,0),0)+IFERROR(IF(VLOOKUP(AL167,X:Y,2,0)=TRUE,1,0),0)+IFERROR(IF(VLOOKUP(AN167,X:Y,2,0)=TRUE,1,0),0)+IFERROR(IF(VLOOKUP(AO167,X:Y,2,0)=TRUE,1,0),0)+IFERROR(IF(VLOOKUP(AP167,X:Y,2,0)=TRUE,1,0),0)+IF(AND(AM167>=Калькулятор!$C$14,AM167<=Калькулятор!$E$14),1,0)+IF(OR(AND(AS167>=Калькулятор!$C$11,AS167<=IF(ISBLANK(Калькулятор!$E$11),100000,Калькулятор!$E$11)),Калькулятор!$C$11&Калькулятор!$E$11=""),1,0))=7,1,0) -> 0 | AR167: =SUM(AQ$2:AQ167) -> 0 | AS167: =IF(Калькулятор!$F$8<>70,ROUND(INDEX($C$6:$V$17,MATCH(AM167,$B$6:$B$17,0),MATCH(AK167&AL167,$C$2:$V$2,0))*(Калькулятор!$F$8/70)^справочно!$Y$2,0),ROUND(INDEX($C$6:$V$17,MATCH(AM167,$B$6:$B$17,0),MATCH(AK167&AL167,$C$2:$V$2,0)),0)) -> 2,054.00 | AT167: ЗО | AU167: =3.6*AV167/(4.19*(Калькулятор!$C$8-Калькулятор!$D$8)) -> 176.45 | AV167: =IF(Калькулятор!$F$8<>70,INDEX($C$6:$V$17,MATCH(AM167,$B$6:$B$17,0),MATCH(AK167&AL167,$C$2:$V$2,0))*(Калькулятор!$F$8/70)^справочно!$Y$2,INDEX($C$6:$V$17,MATCH(AM167,$B$6:$B$17,0),MATCH(AK167&AL167,$C$2:$V$2,0))) -> 2,053.70
AA168: Конвектор внутрипольный Royal Thermo ATRIUM-150/250/2800-DG-U-NA | AB168: НС-1477446 | AC168: RT-A-150/250/2800-DG-U-NA | AD168: 3 | AE168: 5 | AF168: 9 | AG168: 13 | AH168: 18 | AI168: 21 | AJ168: 23 | AK168: 150 | AL168: 250 | AM168: 2800 | AN168: DG | AO168: U | AP168: NA | AQ168: =IF((IFERROR(IF(VLOOKUP(AK168,X:Y,2,0)=TRUE,1,0),0)+IFERROR(IF(VLOOKUP(AL168,X:Y,2,0)=TRUE,1,0),0)+IFERROR(IF(VLOOKUP(AN168,X:Y,2,0)=TRUE,1,0),0)+IFERROR(IF(VLOOKUP(AO168,X:Y,2,0)=TRUE,1,0),0)+IFERROR(IF(VLOOKUP(AP168,X:Y,2,0)=TRUE,1,0),0)+IF(AND(AM168>=Калькулятор!$C$14,AM168<=Калькулятор!$E$14),1,0)+IF(OR(AND(AS168>=Калькулятор!$C$11,AS168<=IF(ISBLANK(Калькулятор!$E$11),100000,Калькулятор!$E$11)),Калькулятор!$C$11&Калькулятор!$E$11=""),1,0))=7,1,0) -> 0 | AR168: =SUM(AQ$2:AQ168) -> 0 | AS168: =IF(Калькулятор!$F$8<>70,ROUND(INDEX($C$6:$V$17,MATCH(AM168,$B$6:$B$17,0),MATCH(AK168&AL168,$C$2:$V$2,0))*(Калькулятор!$F$8/70)^справочно!$Y$2,0),ROUND(INDEX($C$6:$V$17,MATCH(AM168,$B$6:$B$17,0),MATCH(AK168&AL168,$C$2:$V$2,0)),0)) -> 2,223.00 | AT168: ЗО | AU168: =3.6*AV168/(4.19*(Калькулятор!$C$8-Калькулятор!$D$8)) -> 191.01 | AV168: =IF(Калькулятор!$F$8<>70,INDEX($C$6:$V$17,MATCH(AM168,$B$6:$B$17,0),MATCH(AK168&AL168,$C$2:$V$2,0))*(Калькулятор!$F$8/70)^справочно!$Y$2,INDEX($C$6:$V$17,MATCH(AM168,$B$6:$B$17,0),MATCH(AK168&AL168,$C$2:$V$2,0))) -> 2,223.10
AA169: Конвектор внутрипольный Royal Thermo ATRIUM-150/250/3000-DG-U-NA | AB169: НС-1477449 | AC169: RT-A-150/250/3000-DG-U-NA | AD169: 3 | AE169: 5 | AF169: 9 | AG169: 13 | AH169: 18 | AI169: 21 | AJ169: 23 | AK169: 150 | AL169: 250 | AM169: 3000 | AN169: DG | AO169: U | AP169: NA | AQ169: =IF((IFERROR(IF(VLOOKUP(AK169,X:Y,2,0)=TRUE,1,0),0)+IFERROR(IF(VLOOKUP(AL169,X:Y,2,0)=TRUE,1,0),0)+IFERROR(IF(VLOOKUP(AN169,X:Y,2,0)=TRUE,1,0),0)+IFERROR(IF(VLOOKUP(AO169,X:Y,2,0)=TRUE,1,0),0)+IFERROR(IF(VLOOKUP(AP169,X:Y,2,0)=TRUE,1,0),0)+IF(AND(AM169>=Калькулятор!$C$14,AM169<=Калькулятор!$E$14),1,0)+IF(OR(AND(AS169>=Калькулятор!$C$11,AS169<=IF(ISBLANK(Калькулятор!$E$11),100000,Калькулятор!$E$11)),Калькулятор!$C$11&Калькулятор!$E$11=""),1,0))=7,1,0) -> 0 | AR169: =SUM(AQ$2:AQ169) -> 0 | AS169: =IF(Калькулятор!$F$8<>70,ROUND(INDEX($C$6:$V$17,MATCH(AM169,$B$6:$B$17,0),MATCH(AK169&AL169,$C$2:$V$2,0))*(Калькулятор!$F$8/70)^справочно!$Y$2,0),ROUND(INDEX($C$6:$V$17,MATCH(AM169,$B$6:$B$17,0),MATCH(AK169&AL169,$C$2:$V$2,0)),0)) -> 2,391.00 | AT169: ЗО | AU169: =3.6*AV169/(4.19*(Калькулятор!$C$8-Калькулятор!$D$8)) -> 205.47 | AV169: =IF(Калькулятор!$F$8<>70,INDEX($C$6:$V$17,MATCH(AM169,$B$6:$B$17,0),MATCH(AK169&AL169,$C$2:$V$2,0))*(Калькулятор!$F$8/70)^справочно!$Y$2,INDEX($C$6:$V$17,MATCH(AM169,$B$6:$B$17,0),MATCH(AK169&AL169,$C$2:$V$2,0))) -> 2,391.40
AA170: Конвектор внутрипольный Royal Thermo ATRIUM-150/300/800-DG-U-NA | AB170: НС-1477491 | AC170: RT-A-150/300/800-DG-U-NA | AD170: 3 | AE170: 5 | AF170: 9 | AG170: 13 | AH170: 17 | AI170: 20 | AJ170: 22 | AK170: 150 | AL170: 300 | AM170: 800 | AN170: DG | AO170: U | AP170: NA | AQ170: =IF((IFERROR(IF(VLOOKUP(AK170,X:Y,2,0)=TRUE,1,0),0)+IFERROR(IF(VLOOKUP(AL170,X:Y,2,0)=TRUE,1,0),0)+IFERROR(IF(VLOOKUP(AN170,X:Y,2,0)=TRUE,1,0),0)+IFERROR(IF(VLOOKUP(AO170,X:Y,2,0)=TRUE,1,0),0)+IFERROR(IF(VLOOKUP(AP170,X:Y,2,0)=TRUE,1,0),0)+IF(AND(AM170>=Калькулятор!$C$14,AM170<=Калькулятор!$E$14),1,0)+IF(OR(AND(AS170>=Калькулятор!$C$11,AS170<=IF(ISBLANK(Калькулятор!$E$11),100000,Калькулятор!$E$11)),Калькулятор!$C$11&Калькулятор!$E$11=""),1,0))=7,1,0) -> 0 | AR170: =SUM(AQ$2:AQ170) -> 0 | AS170: =IF(Калькулятор!$F$8<>70,ROUND(INDEX($C$6:$V$17,MATCH(AM170,$B$6:$B$17,0),MATCH(AK170&AL170,$C$2:$V$2,0))*(Калькулятор!$F$8/70)^справочно!$Y$2,0),ROUND(INDEX($C$6:$V$17,MATCH(AM170,$B$6:$B$17,0),MATCH(AK170&AL170,$C$2:$V$2,0)),0)) -> 630.00 | AT170: ЗО | AU170: =3.6*AV170/(4.19*(Калькулятор!$C$8-Калькулятор!$D$8)) -> 54.15 | AV170: =IF(Калькулятор!$F$8<>70,INDEX($C$6:$V$17,MATCH(AM170,$B$6:$B$17,0),MATCH(AK170&AL170,$C$2:$V$2,0))*(Калькулятор!$F$8/70)^справочно!$Y$2,INDEX($C$6:$V$17,MATCH(AM170,$B$6:$B$17,0),MATCH(AK170&AL170,$C$2:$V$2,0))) -> 630.30
AA171: Конвектор внутрипольный Royal Thermo ATRIUM-150/300/1000-DG-U-NA | AB171: НС-1477458 | AC171: RT-A-150/300/1000-DG-U-NA | AD171: 3 | AE171: 5 | AF171: 9 | AG171: 13 | AH171: 18 | AI171: 21 | AJ171: 23 | AK171: 150 | AL171: 300 | AM171: 1000 | AN171: DG | AO171: U | AP171: NA | AQ171: =IF((IFERROR(IF(VLOOKUP(AK171,X:Y,2,0)=TRUE,1,0),0)+IFERROR(IF(VLOOKUP(AL171,X:Y,2,0)=TRUE,1,0),0)+IFERROR(IF(VLOOKUP(AN171,X:Y,2,0)=TRUE,1,0),0)+IFERROR(IF(VLOOKUP(AO171,X:Y,2,0)=TRUE,1,0),0)+IFERROR(IF(VLOOKUP(AP171,X:Y,2,0)=TRUE,1,0),0)+IF(AND(AM171>=Калькулятор!$C$14,AM171<=Калькулятор!$E$14),1,0)+IF(OR(AND(AS171>=Калькулятор!$C$11,AS171<=IF(ISBLANK(Калькулятор!$E$11),100000,Калькулятор!$E$11)),Калькулятор!$C$11&Калькулятор!$E$11=""),1,0))=7,1,0) -> 0 | AR171: =SUM(AQ$2:AQ171) -> 0 | AS171: =IF(Калькулятор!$F$8<>70,ROUND(INDEX($C$6:$V$17,MATCH(AM171,$B$6:$B$17,0),MATCH(AK171&AL171,$C$2:$V$2,0))*(Калькулятор!$F$8/70)^справочно!$Y$2,0),ROUND(INDEX($C$6:$V$17,MATCH(AM171,$B$6:$B$17,0),MATCH(AK171&AL171,$C$2:$V$2,0)),0)) -> 812.00 | AT171: ЗО | AU171: =3.6*AV171/(4.19*(Калькулятор!$C$8-Калькулятор!$D$8)) -> 69.75 | AV171: =IF(Калькулятор!$F$8<>70,INDEX($C$6:$V$17,MATCH(AM171,$B$6:$B$17,0),MATCH(AK171&AL171,$C$2:$V$2,0))*(Калькулятор!$F$8/70)^справочно!$Y$2,INDEX($C$6:$V$17,MATCH(AM171,$B$6:$B$17,0),MATCH(AK171&AL171,$C$2:$V$2,0))) -> 811.80
AA172: Конвектор внутрипольный Royal Thermo ATRIUM-150/300/1200-DG-U-NA | AB172: НС-1477461 | AC172: RT-A-150/300/1200-DG-U-NA | AD172: 3 | AE172: 5 | AF172: 9 | AG172: 13 | AH172: 18 | AI172: 21 | AJ172: 23 | AK172: 150 | AL172: 300 | AM172: 1200 | AN172: DG | AO172: U | AP172: NA | AQ172: =IF((IFERROR(IF(VLOOKUP(AK172,X:Y,2,0)=TRUE,1,0),0)+IFERROR(IF(VLOOKUP(AL172,X:Y,2,0)=TRUE,1,0),0)+IFERROR(IF(VLOOKUP(AN172,X:Y,2,0)=TRUE,1,0),0)+IFERROR(IF(VLOOKUP(AO172,X:Y,2,0)=TRUE,1,0),0)+IFERROR(IF(VLOOKUP(AP172,X:Y,2,0)=TRUE,1,0),0)+IF(AND(AM172>=Калькулятор!$C$14,AM172<=Калькулятор!$E$14),1,0)+IF(OR(AND(AS172>=Калькулятор!$C$11,AS172<=IF(ISBLANK(Калькулятор!$E$11),100000,Калькулятор!$E$11)),Калькулятор!$C$11&Калькулятор!$E$11=""),1,0))=7,1,0) -> 0 | AR172: =SUM(AQ$2:AQ172) -> 0 | AS172: =IF(Калькулятор!$F$8<>70,ROUND(INDEX($C$6:$V$17,MATCH(AM172,$B$6:$B$17,0),MATCH(AK172&AL172,$C$2:$V$2,0))*(Калькулятор!$F$8/70)^справочно!$Y$2,0),ROUND(INDEX($C$6:$V$17,MATCH(AM172,$B$6:$B$17,0),MATCH(AK172&AL172,$C$2:$V$2,0)),0)) -> 993.00 | AT172: ЗО | AU172: =3.6*AV172/(4.19*(Калькулятор!$C$8-Калькулятор!$D$8)) -> 85.34 | AV172: =IF(Калькулятор!$F$8<>70,INDEX($C$6:$V$17,MATCH(AM172,$B$6:$B$17,0),MATCH(AK172&AL172,$C$2:$V$2,0))*(Калькулятор!$F$8/70)^справочно!$Y$2,INDEX($C$6:$V$17,MATCH(AM172,$B$6:$B$17,0),MATCH(AK172&AL172,$C$2:$V$2,0))) -> 993.30
AA173: Конвектор внутрипольный Royal Thermo ATRIUM-150/300/1400-DG-U-NA | AB173: НС-1477464 | AC173: RT-A-150/300/1400-DG-U-NA | AD173: 3 | AE173: 5 | AF173: 9 | AG173: 13 | AH173: 18 | AI173: 21 | AJ173: 23 | AK173: 150 | AL173: 300 | AM173: 1400 | AN173: DG | AO173: U | AP173: NA | AQ173: =IF((IFERROR(IF(VLOOKUP(AK173,X:Y,2,0)=TRUE,1,0),0)+IFERROR(IF(VLOOKUP(AL173,X:Y,2,0)=TRUE,1,0),0)+IFERROR(IF(VLOOKUP(AN173,X:Y,2,0)=TRUE,1,0),0)+IFERROR(IF(VLOOKUP(AO173,X:Y,2,0)=TRUE,1,0),0)+IFERROR(IF(VLOOKUP(AP173,X:Y,2,0)=TRUE,1,0),0)+IF(AND(AM173>=Калькулятор!$C$14,AM173<=Калькулятор!$E$14),1,0)+IF(OR(AND(AS173>=Калькулятор!$C$11,AS173<=IF(ISBLANK(Калькулятор!$E$11),100000,Калькулятор!$E$11)),Калькулятор!$C$11&Калькулятор!$E$11=""),1,0))=7,1,0) -> 0 | AR173: =SUM(AQ$2:AQ173) -> 0 | AS173: =IF(Калькулятор!$F$8<>70,ROUND(INDEX($C$6:$V$17,MATCH(AM173,$B$6:$B$17,0),MATCH(AK173&AL173,$C$2:$V$2,0))*(Калькулятор!$F$8/70)^справочно!$Y$2,0),ROUND(INDEX($C$6:$V$17,MATCH(AM173,$B$6:$B$17,0),MATCH(AK173&AL173,$C$2:$V$2,0)),0)) -> 1,176.00 | AT173: ЗО | AU173: =3.6*AV173/(4.19*(Калькулятор!$C$8-Калькулятор!$D$8)) -> 101.03 | AV173: =IF(Калькулятор!$F$8<>70,INDEX($C$6:$V$17,MATCH(AM173,$B$6:$B$17,0),MATCH(AK173&AL173,$C$2:$V$2,0))*(Калькулятор!$F$8/70)^справочно!$Y$2,INDEX($C$6:$V$17,MATCH(AM173,$B$6:$B$17,0),MATCH(AK173&AL173,$C$2:$V$2,0))) -> 1,175.90
AA174: Конвектор внутрипольный Royal Thermo ATRIUM-150/300/1600-DG-U-NA | AB174: НС-1477467 | AC174: RT-A-150/300/1600-DG-U-NA | AD174: 3 | AE174: 5 | AF174: 9 | AG174: 13 | AH174: 18 | AI174: 21 | AJ174: 23 | AK174: 150 | AL174: 300 | AM174: 1600 | AN174: DG | AO174: U | AP174: NA | AQ174: =IF((IFERROR(IF(VLOOKUP(AK174,X:Y,2,0)=TRUE,1,0),0)+IFERROR(IF(VLOOKUP(AL174,X:Y,2,0)=TRUE,1,0),0)+IFERROR(IF(VLOOKUP(AN174,X:Y,2,0)=TRUE,1,0),0)+IFERROR(IF(VLOOKUP(AO174,X:Y,2,0)=TRUE,1,0),0)+IFERROR(IF(VLOOKUP(AP174,X:Y,2,0)=TRUE,1,0),0)+IF(AND(AM174>=Калькулятор!$C$14,AM174<=Калькулятор!$E$14),1,0)+IF(OR(AND(AS174>=Калькулятор!$C$11,AS174<=IF(ISBLANK(Калькулятор!$E$11),100000,Калькулятор!$E$11)),Калькулятор!$C$11&Калькулятор!$E$11=""),1,0))=7,1,0) -> 0 | AR174: =SUM(AQ$2:AQ174) -> 0 | AS174: =IF(Калькулятор!$F$8<>70,ROUND(INDEX($C$6:$V$17,MATCH(AM174,$B$6:$B$17,0),MATCH(AK174&AL174,$C$2:$V$2,0))*(Калькулятор!$F$8/70)^справочно!$Y$2,0),ROUND(INDEX($C$6:$V$17,MATCH(AM174,$B$6:$B$17,0),MATCH(AK174&AL174,$C$2:$V$2,0)),0)) -> 1,356.00 | AT174: ЗО | AU174: =3.6*AV174/(4.19*(Калькулятор!$C$8-Калькулятор!$D$8)) -> 116.53 | AV174: =IF(Калькулятор!$F$8<>70,INDEX($C$6:$V$17,MATCH(AM174,$B$6:$B$17,0),MATCH(AK174&AL174,$C$2:$V$2,0))*(Калькулятор!$F$8/70)^справочно!$Y$2,INDEX($C$6:$V$17,MATCH(AM174,$B$6:$B$17,0),MATCH(AK174&AL174,$C$2:$V$2,0))) -> 1,356.30
AA175: Конвектор внутрипольный Royal Thermo ATRIUM-150/300/1800-DG-U-NA | AB175: НС-1477470 | AC175: RT-A-150/300/1800-DG-U-NA | AD175: 3 | AE175: 5 | AF175: 9 | AG175: 13 | AH175: 18 | AI175: 21 | AJ175: 23 | AK175: 150 | AL175: 300 | AM175: 1800 | AN175: DG | AO175: U | AP175: NA | AQ175: =IF((IFERROR(IF(VLOOKUP(AK175,X:Y,2,0)=TRUE,1,0),0)+IFERROR(IF(VLOOKUP(AL175,X:Y,2,0)=TRUE,1,0),0)+IFERROR(IF(VLOOKUP(AN175,X:Y,2,0)=TRUE,1,0),0)+IFERROR(IF(VLOOKUP(AO175,X:Y,2,0)=TRUE,1,0),0)+IFERROR(IF(VLOOKUP(AP175,X:Y,2,0)=TRUE,1,0),0)+IF(AND(AM175>=Калькулятор!$C$14,AM175<=Калькулятор!$E$14),1,0)+IF(OR(AND(AS175>=Калькулятор!$C$11,AS175<=IF(ISBLANK(Калькулятор!$E$11),100000,Калькулятор!$E$11)),Калькулятор!$C$11&Калькулятор!$E$11=""),1,0))=7,1,0) -> 0 | AR175: =SUM(AQ$2:AQ175) -> 0 | AS175: =IF(Калькулятор!$F$8<>70,ROUND(INDEX($C$6:$V$17,MATCH(AM175,$B$6:$B$17,0),MATCH(AK175&AL175,$C$2:$V$2,0))*(Калькулятор!$F$8/70)^справочно!$Y$2,0),ROUND(INDEX($C$6:$V$17,MATCH(AM175,$B$6:$B$17,0),MATCH(AK175&AL175,$C$2:$V$2,0)),0)) -> 1,539.00 | AT175: ЗО | AU175: =3.6*AV175/(4.19*(Калькулятор!$C$8-Калькулятор!$D$8)) -> 132.22 | AV175: =IF(Калькулятор!$F$8<>70,INDEX($C$6:$V$17,MATCH(AM175,$B$6:$B$17,0),MATCH(AK175&AL175,$C$2:$V$2,0))*(Калькулятор!$F$8/70)^справочно!$Y$2,INDEX($C$6:$V$17,MATCH(AM175,$B$6:$B$17,0),MATCH(AK175&AL175,$C$2:$V$2,0))) -> 1,538.90
AA176: Конвектор внутрипольный Royal Thermo ATRIUM-150/300/2000-DG-U-NA | AB176: НС-1477473 | AC176: RT-A-150/300/2000-DG-U-NA | AD176: 3 | AE176: 5 | AF176: 9 | AG176: 13 | AH176: 18 | AI176: 21 | AJ176: 23 | AK176: 150 | AL176: 300 | AM176: 2000 | AN176: DG | AO176: U | AP176: NA | AQ176: =IF((IFERROR(IF(VLOOKUP(AK176,X:Y,2,0)=TRUE,1,0),0)+IFERROR(IF(VLOOKUP(AL176,X:Y,2,0)=TRUE,1,0),0)+IFERROR(IF(VLOOKUP(AN176,X:Y,2,0)=TRUE,1,0),0)+IFERROR(IF(VLOOKUP(AO176,X:Y,2,0)=TRUE,1,0),0)+IFERROR(IF(VLOOKUP(AP176,X:Y,2,0)=TRUE,1,0),0)+IF(AND(AM176>=Калькулятор!$C$14,AM176<=Калькулятор!$E$14),1,0)+IF(OR(AND(AS176>=Калькулятор!$C$11,AS176<=IF(ISBLANK(Калькулятор!$E$11),100000,Калькулятор!$E$11)),Калькулятор!$C$11&Калькулятор!$E$11=""),1,0))=7,1,0) -> 0 | AR176: =SUM(AQ$2:AQ176) -> 0 | AS176: =IF(Калькулятор!$F$8<>70,ROUND(INDEX($C$6:$V$17,MATCH(AM176,$B$6:$B$17,0),MATCH(AK176&AL176,$C$2:$V$2,0))*(Калькулятор!$F$8/70)^справочно!$Y$2,0),ROUND(INDEX($C$6:$V$17,MATCH(AM176,$B$6:$B$17,0),MATCH(AK176&AL176,$C$2:$V$2,0)),0)) -> 1,719.00 | AT176: ЗО | AU176: =3.6*AV176/(4.19*(Калькулятор!$C$8-Калькулятор!$D$8)) -> 147.72 | AV176: =IF(Калькулятор!$F$8<>70,INDEX($C$6:$V$17,MATCH(AM176,$B$6:$B$17,0),MATCH(AK176&AL176,$C$2:$V$2,0))*(Калькулятор!$F$8/70)^справочно!$Y$2,INDEX($C$6:$V$17,MATCH(AM176,$B$6:$B$17,0),MATCH(AK176&AL176,$C$2:$V$2,0))) -> 1,719.30
AA177: Конвектор внутрипольный Royal Thermo ATRIUM-150/300/2200-DG-U-NA | AB177: НС-1477476 | AC177: RT-A-150/300/2200-DG-U-NA | AD177: 3 | AE177: 5 | AF177: 9 | AG177: 13 | AH177: 18 | AI177: 21 | AJ177: 23 | AK177: 150 | AL177: 300 | AM177: 2200 | AN177: DG | AO177: U | AP177: NA | AQ177: =IF((IFERROR(IF(VLOOKUP(AK177,X:Y,2,0)=TRUE,1,0),0)+IFERROR(IF(VLOOKUP(AL177,X:Y,2,0)=TRUE,1,0),0)+IFERROR(IF(VLOOKUP(AN177,X:Y,2,0)=TRUE,1,0),0)+IFERROR(IF(VLOOKUP(AO177,X:Y,2,0)=TRUE,1,0),0)+IFERROR(IF(VLOOKUP(AP177,X:Y,2,0)=TRUE,1,0),0)+IF(AND(AM177>=Калькулятор!$C$14,AM177<=Калькулятор!$E$14),1,0)+IF(OR(AND(AS177>=Калькулятор!$C$11,AS177<=IF(ISBLANK(Калькулятор!$E$11),100000,Калькулятор!$E$11)),Калькулятор!$C$11&Калькулятор!$E$11=""),1,0))=7,1,0) -> 0 | AR177: =SUM(AQ$2:AQ177) -> 0 | AS177: =IF(Калькулятор!$F$8<>70,ROUND(INDEX($C$6:$V$17,MATCH(AM177,$B$6:$B$17,0),MATCH(AK177&AL177,$C$2:$V$2,0))*(Калькулятор!$F$8/70)^справочно!$Y$2,0),ROUND(INDEX($C$6:$V$17,MATCH(AM177,$B$6:$B$17,0),MATCH(AK177&AL177,$C$2:$V$2,0)),0)) -> 1,902.00 | AT177: ЗО | AU177: =3.6*AV177/(4.19*(Калькулятор!$C$8-Калькулятор!$D$8)) -> 163.41 | AV177: =IF(Калькулятор!$F$8<>70,INDEX($C$6:$V$17,MATCH(AM177,$B$6:$B$17,0),MATCH(AK177&AL177,$C$2:$V$2,0))*(Калькулятор!$F$8/70)^справочно!$Y$2,INDEX($C$6:$V$17,MATCH(AM177,$B$6:$B$17,0),MATCH(AK177&AL177,$C$2:$V$2,0))) -> 1,901.90
AA178: Конвектор внутрипольный Royal Thermo ATRIUM-150/300/2400-DG-U-NA | AB178: НС-1477479 | AC178: RT-A-150/300/2400-DG-U-NA | AD178: 3 | AE178: 5 | AF178: 9 | AG178: 13 | AH178: 18 | AI178: 21 | AJ178: 23 | AK178: 150 | AL178: 300 | AM178: 2400 | AN178: DG | AO178: U | AP178: NA | AQ178: =IF((IFERROR(IF(VLOOKUP(AK178,X:Y,2,0)=TRUE,1,0),0)+IFERROR(IF(VLOOKUP(AL178,X:Y,2,0)=TRUE,1,0),0)+IFERROR(IF(VLOOKUP(AN178,X:Y,2,0)=TRUE,1,0),0)+IFERROR(IF(VLOOKUP(AO178,X:Y,2,0)=TRUE,1,0),0)+IFERROR(IF(VLOOKUP(AP178,X:Y,2,0)=TRUE,1,0),0)+IF(AND(AM178>=Калькулятор!$C$14,AM178<=Калькулятор!$E$14),1,0)+IF(OR(AND(AS178>=Калькулятор!$C$11,AS178<=IF(ISBLANK(Калькулятор!$E$11),100000,Калькулятор!$E$11)),Калькулятор!$C$11&Калькулятор!$E$11=""),1,0))=7,1,0) -> 0 | AR178: =SUM(AQ$2:AQ178) -> 0 | AS178: =IF(Калькулятор!$F$8<>70,ROUND(INDEX($C$6:$V$17,MATCH(AM178,$B$6:$B$17,0),MATCH(AK178&AL178,$C$2:$V$2,0))*(Калькулятор!$F$8/70)^справочно!$Y$2,0),ROUND(INDEX($C$6:$V$17,MATCH(AM178,$B$6:$B$17,0),MATCH(AK178&AL178,$C$2:$V$2,0)),0)) -> 2,083.00 | AT178: ЗО | AU178: =3.6*AV178/(4.19*(Калькулятор!$C$8-Калькулятор!$D$8)) -> 179.00 | AV178: =IF(Калькулятор!$F$8<>70,INDEX($C$6:$V$17,MATCH(AM178,$B$6:$B$17,0),MATCH(AK178&AL178,$C$2:$V$2,0))*(Калькулятор!$F$8/70)^справочно!$Y$2,INDEX($C$6:$V$17,MATCH(AM178,$B$6:$B$17,0),MATCH(AK178&AL178,$C$2:$V$2,0))) -> 2,083.40
AA179: Конвектор внутрипольный Royal Thermo ATRIUM-150/300/2600-DG-U-NA | AB179: НС-1477482 | AC179: RT-A-150/300/2600-DG-U-NA | AD179: 3 | AE179: 5 | AF179: 9 | AG179: 13 | AH179: 18 | AI179: 21 | AJ179: 23 | AK179: 150 | AL179: 300 | AM179: 2600 | AN179: DG | AO179: U | AP179: NA | AQ179: =IF((IFERROR(IF(VLOOKUP(AK179,X:Y,2,0)=TRUE,1,0),0)+IFERROR(IF(VLOOKUP(AL179,X:Y,2,0)=TRUE,1,0),0)+IFERROR(IF(VLOOKUP(AN179,X:Y,2,0)=TRUE,1,0),0)+IFERROR(IF(VLOOKUP(AO179,X:Y,2,0)=TRUE,1,0),0)+IFERROR(IF(VLOOKUP(AP179,X:Y,2,0)=TRUE,1,0),0)+IF(AND(AM179>=Калькулятор!$C$14,AM179<=Калькулятор!$E$14),1,0)+IF(OR(AND(AS179>=Калькулятор!$C$11,AS179<=IF(ISBLANK(Калькулятор!$E$11),100000,Калькулятор!$E$11)),Калькулятор!$C$11&Калькулятор!$E$11=""),1,0))=7,1,0) -> 0 | AR179: =SUM(AQ$2:AQ179) -> 0 | AS179: =IF(Калькулятор!$F$8<>70,ROUND(INDEX($C$6:$V$17,MATCH(AM179,$B$6:$B$17,0),MATCH(AK179&AL179,$C$2:$V$2,0))*(Калькулятор!$F$8/70)^справочно!$Y$2,0),ROUND(INDEX($C$6:$V$17,MATCH(AM179,$B$6:$B$17,0),MATCH(AK179&AL179,$C$2:$V$2,0)),0)) -> 2,265.00 | AT179: ЗО | AU179: =3.6*AV179/(4.19*(Калькулятор!$C$8-Калькулятор!$D$8)) -> 194.60 | AV179: =IF(Калькулятор!$F$8<>70,INDEX($C$6:$V$17,MATCH(AM179,$B$6:$B$17,0),MATCH(AK179&AL179,$C$2:$V$2,0))*(Калькулятор!$F$8/70)^справочно!$Y$2,INDEX($C$6:$V$17,MATCH(AM179,$B$6:$B$17,0),MATCH(AK179&AL179,$C$2:$V$2,0))) -> 2,264.90
